{"text_format":"1","workbook":"xlsx","n_sheets":5,"sheets":["Instructions","C2R_Template","Data","Example Data","Lists"],"not_rendered":{"charts":0,"images":1,"macros":0,"external_links":0,"defined_names":15,"comments":3,"pivot_tables":0},"unopened":[],"bounds":{"document_bytes":16777216,"sheet_cells":100000,"rows_first":2000,"rows_last":500,"rows_between":2000,"halvings":0,"cell_chars":16384,"cell_head_chars":4096},"cells_cut":0,"cells_raw":0,"read":"whole","date_system":"1900"}

{"sheet":"Instructions","index":0,"n_rows":13,"n_cols":1,"rows_kept":13,"cut":false,"hidden":false,"merged":[]}
["Surface water data template"]
["EQuIS Database"]
["Metadata Forms"]
["Doc Type:  Sampling Results"]
["wq-s5-04 (Revised 8/25/22)"]
[]
["Instructions"]
["In the \"Data\" Template tab, please read all comments by scrolling your mouse over the header row cells. Units are required for all results data and should be specified by making a choice from the drop-down list above your parameter. Units in the comments box are those standard to EQuIS. Please leave blank cells blank, i.e., don't add dashes or \"NA\" to cells that should be empty. Some columns have drop-down options you can use for your choices. Please specify gage type and flow method,  See the \"Example Data\" tab for help."]
["When you have completed filling out the template, please look it over for errors before you submit it. This will save time when you are asked to review your data later. Do not submit data more than once. This includes data you have submitted in previous years or data for multiple projects. When complete, send the field data template to both your EQuIS contact person and your MPCA project manager (if you have one)."]
["Please contact the EQuIS Team if you have any questions:"]
["Jean Garvin at 651-757-2378"]
["Mary Knight at 651-757-2424"]
["Josh Stock at 651-757-2235"]

{"sheet":"C2R_Template","index":1,"n_rows":23,"n_cols":52,"rows_kept":23,"cut":false,"hidden":true,"merged":[]}
["Project ID","EQuIS_Location_ID","Start_Date","Start_Military_Time","End_Date","End_Military_Time","Start_Depth","End_Depth","QA_Sample_Type","Sample_Method","Equipment","Sampler_Name","General_Comments","Weather_Condition","Lab_Sample_ID","Depth_Unit","Relative_Depth","Temperature, water","Dissolved oxygen (DO)","pH","Specific conductance","Depth, Secchi disk depth","Transparency, tube with disk","Distance from/to","Stream stage","Gage height","Flow","Turbidity","Lake physical appearance (choice list)","Lake recreational suitability (choice list)","Stream Physical Appearance, Minnesota (choice list)","Stream recreational suitability (choice list)","Stream condition (text)","Turbidity","Chlorophyll a, corrected for pheophytin","Phosphorus","Orthophosphate","Ammonia-nitrogen","Kjeldahl nitrogen","Inorganic nitrogen (nitrate and nitrite)","Nitrate","Nitrite","Total suspended solids","Total volatile solids","Escherichia coli","Chloride","Sulfate","Hardness, carbonate","Alkalinity, total","<analyte: required>",{"$f":"IF(LEFT(AV1,6)=\"Remark\",\"Remark\"&TEXT(RIGHT(AV1,2)+1,\"00\"),\"Remark01\")","v":"Remark01"},{"$f":"IF(LEFT(AW1,9)=\"Precision\",\"Precision\"&TEXT(RIGHT(AW1,2)+1,\"00\"),\"Precision01\")","v":"Precision01"}]
["Lab_ID",null,null,null,null,null,null,null,null,null,null,null,null,null,null,null,null,null,null,null,null,null,null,null,null,null,null,null,null,null,null,null,null,"<lab id: required>","<lab id: required>","<lab id: required>","<lab id: required>","<lab id: required>","<lab id: required>","<lab id: required>","<lab id: required>","<lab id: required>","<lab id: required>","<lab id: required>","<lab id: required>","<lab id: required>","<lab id: required>","<lab id: required>","<lab id: required>","<lab id: required>"]
["Lab_Certified",null,null,null,null,null,null,null,null,null,null,null,null,null,null,null,null,null,null,null,null,null,null,null,null,null,null,null,null,null,null,null,null,null,"N"]
["Analytic_Method",null,null,null,null,null,null,null,null,null,null,null,null,null,null,null,null,"FLD","FLD","FLD","FLD","FLD","FLD SECCHI TUBE","FLD TDD","<analytic method: required>","<analytic method: required>","<analytic method: required>","<analytic method: required>","FLD","FLD","FLD","FLD","FLD","<analytic method: required>","<analytic method: required>","<analytic method: required>","<analytic method: required>","<analytic method: required>","<analytic method: required>","<analytic method: required>","<analytic method: required>","<analytic method: required>","<analytic method: required>","<analytic method: required>","<analytic method: required>","<analytic method: required>","<analytic method: required>","<analytic method: required>","<analytic method: required>","<analytic method: required>"]
["Fraction",null,null,null,null,null,null,null,null,null,null,null,null,null,null,null,null,null,null,null,null,null,null,null,null,null,null,null,null,null,null,null,null,"Total","Total","<fraction: required>","<fraction: required>","<fraction: required>","<fraction: required>","<fraction: required>","<fraction: required>","<fraction: required>","Total","Total","Total","<fraction: required>","<fraction: required>","Total","Total","<fraction: required>"]
["Detection_Limit"]
["Reporting_Limit"]
["Result_Unit",null,null,null,null,null,null,null,null,null,null,null,null,null,null,null,null,"deg C","mg/L","None","uS/cm","m","cm","ft","<unit: required>","<unit: required>","<unit: required>","<unit: required>",null,null,null,null,null,"<unit: required>","<unit: required>","<unit: required>","<unit: required>","<unit: required>","<unit: required>","<unit: required>","<unit: required>","<unit: required>","<unit: required>","<unit: required>","<unit: required>","<unit: required>","<unit: required>","<unit: required>","<unit: required>","<unit: required>"]
["Method_Speciation",null,null,null,null,null,null,null,null,null,null,null,null,null,null,null,null,null,null,null,null,null,null,null,null,null,null,null,null,null,null,null,null,null,null,"as P","as P","as N","as N","as N","as N","as N",null,null,null,null,"as SO4","as CaCO3","as CaCO3"]
["Duration_Basis"]
["Stat_Type"]
["Value_Type",null,null,null,null,null,null,null,null,null,null,null,null,null,null,null,null,"Actual","Actual","Actual","Actual","Actual","Actual","Actual","Actual","Actual","Actual","Actual","Actual","Actual","Actual","Actual","Actual","Actual","Actual","Actual","Actual","Actual","Actual","Actual","Actual","Actual","Actual","Actual","Actual","Actual","Actual","Actual","Actual","Actual"]
["Preservative"]
["Temp_Preserve_Type"]
["Container_Type"]
["Container_Color"]
["Container_Size"]
["Container_Size_Unit"]
["Prep_Method"]
["Lab_Or_Field",null,null,null,null,null,null,null,null,null,null,null,null,null,null,null,null,"Field","Field","Field","Field","Field","Field","Field","Field","Field","Field","Field","Field","Field","Field","Field","Field","Lab","Lab","Lab","Lab","Lab","Lab","Lab","Lab","Lab","Lab","Lab","Lab","Lab","Lab","Lab","Lab","Lab"]
["Medium_Code",null,null,null,null,null,null,null,null,null,null,null,null,null,null,null,null,"Water","Water","Water","Water","Water","Water","Water","Water","Water","Water","Water","Water","Water","Water","Water","Water","Water","Water","Water","Water","Water","Water","Water","Water","Water","Water","Water","Water","Water","Water","Water","Water","Water"]
["Matrix_Code",null,null,null,null,null,null,null,null,null,null,null,null,null,null,null,null,{"$f":"IF(R21=\"Water\",\"Surface Water\",IF(R21=\"Air\",\"Ambient Air\",\"\"))","v":"Surface Water"},"Surface Water","Surface Water","Surface Water","Surface Water","Surface Water","Surface Water","Surface Water","Surface Water","Surface Water","Surface Water","Surface Water","Surface Water","Surface Water","Surface Water","Surface Water","Surface Water","Surface Water","Surface Water","Surface Water","Surface Water","Surface Water","Surface Water","Surface Water","Surface Water","Surface Water","Surface Water","Surface Water","Surface Water","Surface Water","Surface Water","Surface Water","Surface Water"]
["Template row - copy down, delete",null,null,null,null,null,null,null,null,"G",null,null,null,null,null,{"$f":"IF(ISBLANK($G23),\"\",\"m\")","v":""},{"$f":"IF(AND(ISBLANK($H23)=TRUE,ISBLANK($G23)=FALSE,$G23=0),\"Surface\",\"\")","v":""}]

{"sheet":"Data","index":2,"n_rows":1,"n_cols":33,"rows_kept":1,"cut":false,"hidden":false,"merged":[]}
["Project_ID","Project_Station_ID","EQuIS_Location_ID","Start_Date","Start_Military_Time","End_Date","End_Military_Time","Start_Depth","End_Depth","QA_Sample_Type","Sample_Method","Equipment","Sampler_Name","General comments","Weather condition","Temperature, water","Dissolved oxygen (DO)","pH","Specific conductance","Depth, Secchi Disk Depth","Transparency, Secchi tube with disk","Tape-down distance","Stream stage height","Gage height","Gage method","Flow","Flow method","Turbidity","Lake Physical Appearance (choice list)","Lake Recreational Suitability (choice list)","Stream Physical Appearance, Minnesota (choice list)","Stream Recreational Suitability (choice list)","Stream condition (text)"]

{"sheet":"Example Data","index":3,"n_rows":13,"n_cols":30,"rows_kept":13,"cut":false,"hidden":false,"merged":[]}
[null,null,null,null,null,null,null,"m","m",null,null,null,null,null,null,"deg C","mg/l","None","m","cm","ft","ft","ft",null,"cfs",null,"FNU"]
["Project_ID","Project_Station_ID\n(Optional Entry)","EQuIS_Location_ID","Start_Date","Start_Military_Time","End_Date","End_Military_Time","Start_Depth","End_Depth","QA_Sample_Type","Sample_Method","Equipment","Sampler_Name","General comments","Weather condition","Temperature, water","Dissolved oxygen (DO)","pH","Depth, Secchi Disk Depth","Transparency, Secchi tube with disk","Tape-down distance","Stream stage height","Gage height","Gage method","Flow","Flow method","Turbidity","Stream Physical Appearance, Minnesota (choice list)","Stream Recreational Suitability (choice list)","Stream condition (text)"]
["PRJ01234","SI 4","S004-515","2014-09-12","14:30:00",null,null,null,null,null,"G",null,"Johnson III, Robert","Stream flooded","Breezy, sunny, ~70 degF",20,8.74,7.8,null,null,null,1.1000000000000001,null,null,7.2,"FLD STR FLOW D-MEAN",null,"3.MUDDY","4.POOR","HSWM"]
["PRJ01235","Diamond Lake","32-0044-00-401","2014-10-12","11:00:00",null,null,0,2,"Duplicate","LKSURF2M",null,null,null,null,null,null,null,null,null,null,null,null,null,null,"FLD STR FLOW H-DAILY"]
["PRJ01235","Diamond Lake","32-0044-00-401","2014-10-12","11:00:00",null,null,0,2,null,"LKSURF2M",null,null,null,null,null,null,null,2.4,null,null,null,null,null,null,"FLD STR FLOW H-UNIT"]
["PRJ01237","Clear Lake, West Bay","17-0054-01-201","2014-01-17",null,null,null,4.5,null,null,"LKDEPTH","Kemmerer Sampler",null,"Fish kill investigation",null,null,null,null,null,null,null,null,null,null,null,"FLD STR FLOW MEASURE"]
["PRJ00011","Round Lake","87-0101-00-101","2014-04-30","15:45:00",null,null,7,null,null,"LKDEPTH","Kemmerer Sampler","Anderson, Laura",null,null,null,"<0.01",null,null,null,null,null,null,null,null,"FLD STR FLOW MILE"]
["PRJ00011","Round Lake","87-0101-00-101","2014-05-17","06:55:00",null,null,1,null,null,"LKDEPTH","Kemmerer Sampler","Anderson, Laura","New DO meter",null,null,5.99,null,null,null,null,null,null,null,null,"FLD STR FLOW RATING"]
["PRJ00011","Round Lake","87-0101-00-101","2014-08-10","18:03:00",null,null,0,null,null,"G","Simple Bucket","Anderson, Laura",null,null,null,5.45,null,null,null,null,null,null,null,null,"FLD STR FLOW UNKNOWN"]
["PRJ00011","Round Lake Creek at CSAH-4","S004-001","2014-04-30","12:15:00",null,null,null,null,null,"G","Water Bottle","Anderson, Laura",null,null,9.52,12.89,null,null,">100",null,null,null,null,4.5999999999999996,null,2.2999999999999998,"1B.TEA-COLOR","3.FAIR"]
["PRJ00011","Round Lake Creek at CSAH-4","S004-001","2014-06-22","09:07:00",null,null,null,null,null,"G","Telescoping Rod with Bottle","Anderson, Laura","Response to storm event",null,15.45,12.43,null,null,null,3.1,null,15.2,"USGS",10.3,null,"<0.1","1A.CLEAR","1.VERY GOOD"]
["PRJ00011","Round Lake Creek at CSAH-4","S004-001","2014-08-10","08:15:00","2014-08-11","04:12:00",null,null,null,"CF-F","Automatic Sampler","Anderson, Laura"]
["PRJ00011","Round Lake Creek at CSAH-4","S004-001","2014-10-01","13:10:00",null,null,null,null,"Equipment blank","G","Van Dorn Horizontal Sampler",null,"No flow",null,18.57,13.68,null,null,null,null,null,null,null,null,null,null,null,null,"ZSLC"]

{"sheet":"Lists","index":4,"n_rows":3179,"n_cols":28,"rows_kept":3179,"cut":false,"hidden":false,"merged":[]}
[]
["A < > value indicates requirement or recommendation."]
["No < > value means optional, calculated, or assumed."]
["A blank value beneath a < > value means the user may enter values other than those shown."]
[]
["CAS_RN","Analyte_Name","Analyte_Alias","Prevalence","Lab_ID","Lab_Name","Lab_License_Num","City","State","Analytic_Method","Analytic_Method_Context","Analytic_Method_Name","Prevalence","Fraction","Fraction Description","Unit","Unit_Description","Prevalence","Preservative","Temp_Preserve_Type","Container_Type","Container_Color","Prep_Method","Prep_Method_Name","Sample_Method","Sample_Method_Name","Equipment","Equipment_Type"]
[null,"<analyte: required>",null,null,"<lab id: required>",null,null,null,null,"<analytic method: required>",null,null,null,"<fraction: required>",null,"<unit: required>",null,null,null,null,null,null,null,null,"<sample method: required for sample>",null,"<equipment: required for sample>"]
[null,null,null,null,null,null,null,null,null,null,null,null,null,null,null,null,null,null,"Acid, unspecified","Cold Packs (4 deg C)","Aluminum Dish","Amber","ALK_PERSULFATE","Alkaline Persulfate Digestion for Determination of Total and Dissolved Nitrogen"]
["54774-45-7","(+)-cis-Permethrin",null,null,"CA01534","TestAmerica - West Sacramento, CA",null,"West Sacramento","CA","00-01","USEPA","Gross Alpha and Beta Activity in Water",null,"Total","The total of all fractions of the analyte.","%","Percent",414790,"BrCl","Dry Ice (-78.5 deg C)","Aluminum Foil Wrap","Black","APHA 2310-B","Acidity, hot peroxide preparation","G","Grab sample.  Submerge and fill a water sampling vessel, or sample directly into the sample bottle provided by the analytical laboratory, at a single point in a waterbody.","ALASD 15 ft Integrated Sampler","WSVC"]
["54774-46-8","(-)-cis-Permethrin",null,null,"CN00003","AXYS Analytical Services Ltd.","NELAC 232-999-430","Seattle","WA","00-02","USEPA","Gross Alpha Activity in Drinking Water by Coprecipitation",null,"Dissolved","That portion of the analyte found in the liquid medium.  Cannot be removed by filtration.","% CaCO3","Percent calcium carbonate",null,"H2SO4","Freeze Dried","BOD Bottle","Clear","APHA 3030-B","Preliminary Filtration of Metals Samples","LKSURF2M","Lake surface 2m depth-integrated sampling. Lower a 2-meter-long, 2-inch-diameter PVC pipe vertically into the water, capture the water in the pipe by stoppering the top end, raise the tube, then release the water into a 2L bottle by removing the stopper.","Automatic Sampler","WSOTH"]
["54774-47-9","(-)-trans-Permethrin",null,null,"GUSTAVUS","Gustavus Adolphus College Department of Chemistry",null,"St. Peter","MN","00-03","USEPA","Lead-210 and Polonium-210 in Dried Samples",null,"Suspended","That portion of the analyte which is suspended in the sampled medium, either as, or adsorbed to, particles which are more or less uniformly dispersed within the medium.","% Cover","Percent Cover",null,"H2SO4, 10%, 5 mL","Frozen (-20 deg C)","Carboy Container","Green","APHA 3030-C","Treatment for Acid-Extractable Metals","LKSURF1M","Lake surface 1m depth-integrated sampling. Lower a 2-meter-long, 2-inch-diameter PVC pipe vertically into the water, capture the water in the pipe by stoppering the top end, raise the tube, then release the water into a 2L bottle by removing the stopper.","Brezinka Bottle Sampler","WSWB"]
["89-78-1","(1R,2S,5R)-Menthol",null,null,"IA00018","TestAmerica - Cedar Falls","NELAC 019-999-319","Cedar Falls","IA","00-04","USEPA","Plutonium, Thorium & Uranium in Air Filters",null,"Non-filterable","That portion of the analyte which is in or absorbed to material which passes through the filter during sample filtration.","% by vol","Percent by volume",14,"HCl","Frozen (-50 deg C)","Cubitainer","Opaque","APHA 3030-D","Preliminary Digestion for Metal Samples","LKDEPTH","Lake depth point sampling.  Lake water is sampled at a discrete depth in the water column using a vertical Kemmerer- or Van Dorn-type sampler.","Depth Integrating (USGS Type)","WSOTH"]
["768-49-0","(2-Methyl-1-propenyl)benzene",null,null,"IL00018","U.S. Environmental Protection Agency Reg. 5 Central Lab.",null,"Chicago","IL","00-05","USEPA","Thorium and Uranium in Ashed Samples",null,null,null,"% by wt","Percent by weight",1,"HCl, 1:1, 0.5 mL","Frozen (0 deg C)","Galvanized Steel Container","Translucent","APHA 3030-E","Nitric Acid Digestion of Metals","LKDEP_INTEGR","Lake depth-integrated sampling, not at the surface","Dutch Auger","MSOTH"]
["637-59-2","(3-Bromopropyl)benzene",null,null,"IN00035","UL UCC","NELAC 018-999-338","South Bend","IA","00-06","USEPA","Thorium and Uranium in Ashed Samples",null,null,null,"% sediment","% target/clean sed mix which produces response",null,"HCl, 50%, 5 mL","Refrigerated (4 deg C)","Glass Bottle",null,"APHA 3030-F","Nitric and Hydrochloric Acid Digestion","LKSURFOTH","Lake surface depth-integrated sampling other than 0-2m","Geoprobe Soil/GW Sampler","MSOTH"]
["74630-52-7","(E)-6-Methyl-3-undecene",null,null,"MN00005","City of Detroit Lakes Water and Wastewater","NELAC 027-005-183",null,null,"00-07","USEPA","Thorium and Uranium in Water Samples",null,null,null,"/100 gal","Number per 100 gallons",null,"HCl, 6N, 10 mL","Wet Ice (4 deg C)","Glass Media Bottle",null,"APHA 3030-G","Nitric and Sulfuric Acid Digestion","CF","Composite sample with auto-sampler","Horizontal Water Sampler","MSOTH"]
["106-28-5","(E,E)-Farnesol",null,null,"MN00006","Minnesota Department of Health, Public Health, Chemical Lab",null,"St. Paul","MN","00-09","USEPA","Plutonium and Uranium in Milk",null,null,null,"/100mL","Number per hundred milliliters",89633,"HNO3","None","Glass Petri Dish",null,"APHA 3030-H","Nitric and Perchloric Acid Digestion","CF-F","Composite sample, flow-weighted/flow-paced with auto-sampler","Ice Sampler","WSWB"]
["16136-84-8","(Z)-Chloro-1-propene",null,null,"MN00008","Minnesota Valley Testing Laboratories","NELAC 027-015-125","New Ulm","MN","0010(B)","USEPA","Total Chromatographable Organic Material",null,null,null,"/500 mL","Number per 500 milliters",null,"HNO3, 20%, 2.5 mL",null,"Glass Tube",null,"APHA 3030-I","Nitric, Perchloric and Hydrofluoric Acid","CF-T","Composite sample, flow-weighted/time-paced with auto-sampler","Inverted T -Tube for Sed Core","MSOTH"]
["71317-73-2","(Z,Z)-11,13-Hexadecadienal",null,null,"MN00011","Marshall Wastewater Treatment Facility","NELAC 027-083-173",null,null,"0010(BT)","USEPA","Tritium in Biological Tissue",null,null,null,"/L","Number per liter",624,"HNO3, 50%, 10 mL",null,"Glass Vial",null,"APHA 3030-J","Dry Ashing of Metals Samples","-----",null,"Isco GLS Sampler","WSOTH"]
["122-09-8",".alpha.,.alpha.-Dimethylphenethylamine",null,25,"MN00015","3M Environmental Laboratory",null,null,null,"0010(W)","USEPA","Tritium in Water",null,null,null,"/acre","Number per acre",null,"Na2S2O3",null,"Glass Vial w/ Septa",null,"APHA 4500-CN(B)","Preliminary Treatment of Cyanide Samples","BED SED 1","Stream Bed Sediment Grab with Tube.  Sample soft sediments from the pools with an inverted transparency tube to collect the top 10cm, and then extruded the core into the sample container with a stick.","Lab-Line","WSVC"]
["56534-02-2",".alpha.-Chlordene",null,null,"MN00018","Fairmont Waste Water Treatment Facility",null,null,null,"0011-0","USEPA","Sampling for Formaldehyde Emissions",null,null,null,"/cm","Number per centimeter",84,"Na2S2O3, 0.008%",null,"HDPE Bottle",null,"APHA 4500-CN-B","Preliminary Treatment of Samples in Water Containing Cyanide","CG-T","Composite of grab samples, time-paced.  Individual grab samples taken over time are composited for a single result.","K-B Gravity Lake Sed Core","BCGR"]
["959-98-8",".alpha.-Endosulfan",null,784,"MN00025","Metropolitan Council Analytical Services Lab","NELAC 027-123-172","St. Paul","MN","0011A","USEPA","Analysis of Aldehydes/Ketones by HPLC",null,null,null,"/cm2","Number per square centimeter",null,"None",null,"HDPE Vial",null,"APHA 4500-F-B","Preliminary Distillation for Water Samples Containing Fluoride","CM","Composite sample from multiple locations on a waterbody, combined with a churn splitter.","Kemmerer Sampler","WSKM"]
["319-84-6",".alpha.-Hexachlorocyclohexane","BHC-alpha",867,"MN00030","Albert Lea Wastewater Treatment Plant","NELAC 027-047-177",null,null,"002(A)","USEPA","Radon-222 in Air",null,null,null,"/cm3","Number per cubic centimeter",null,null,null,"Nalgene Bottle",null,"APHA 4500-NH3(B)","Preliminary Distillation Step","CO","Composite sample (other)","Peristaltic Pump withTeflon Tube","WSPAL"]
["98-83-9",".alpha.-Methylstyrene",null,null,"MN00031","Owatonna Wastewater Treatment Facility","NELAC 027-147-180",null,null,"002(W)","USEPA","Radon-222 in Water",null,null,null,"/dL","Number per deciliter",null,null,null,"Nalgene Vial",null,"APHA 4500-NH3-B","Preliminary Distillation for Ammonia in Water","CT","Composite sample, time-paced auto-sampler.  Automatic composite sampling at regular time intervals.","Pump/Bailer","WSPB"]
["86-88-4",".alpha.-Naphthylthiourea",null,null,"MN00033","Otter Tail Power Co.",null,null,null,"0023A","USEPA","Sampling for PCDD and PCDF Emissions",null,null,null,"/ft2","Number per square foot",null,null,null,"Plastic Bag",null,"APHA 4500-S2(B)","Separation of Soluble and Insoluble Sulfides","CT-T","Composite sample,  flow-triggered, time-paced, auto-sampler.  Automatic sampling at regular time intervals triggered by a pre-set increase in stream water level.","Pump/Non-Submersible","WSPNS"]
["622-42-4",".alpha.-Nitrotoluene",null,null,"MN00039","City of Mankato Wastewater Treatment Plant","NELAC 027-013-221",null,null,"004(A)","USEPA","Radium-226 and Radium-228 in Air",null,null,null,"/ha","Number per hectare",null,null,null,"Plastic Bottle",null,"APHA 4500-S2(C)","Pretreatment to Remove Interfering Substances or Concentrate Sulfide","CT-U","Composite sample, time-paced, trigger unknown, auto-sampler.  Automatic composite sampling at regular time intervals.","Pump/Submersible","WSPS"]
["98-55-5",".alpha.-Terpineol",null,null,"MN00043","St. Cloud Public Utilities Water Treatment Facility","NELAC 027-145-143",null,null,"004(S)","USEPA","Radium-226 and Radium-228 in Soil",null,null,null,"/in2","Number per square inch",null,null,null,"Plastic Dilution Bottle",null,"APHA 4500-S2-C","Pretreatment to Remove Interfering Substances or to Concentrate the Sulfide in Water by Wet Chemistry","D-T","Discrete sample, time-paced with auto-sampler","PVC Pipe Other Than 2m","WSVC"]
["56534-03-3",".beta.-Chlordene",null,null,"MN00052","Western Lake Superior Sanitary District Environmental Lab","NELAC 027-137-138","Duluth","MN","004(W)","USEPA","Radium-226 and Radium-228 in Water",null,null,null,"/km2","Number per square kilometer",null,null,null,"Plastic Syringe",null,"APHA 5520-E","Extraction of Oil and Grease for Sludge","FIELDMSROBS","Direct field measurement or observation. No sample collected.","Russian Peat Sampler","MSOTH"]
["33213-65-9",".beta.-Endosulfan",null,784,"MN00054","University of Minnesota Environmental Engineering Laboratory",null,null,null,"005(A)","USEPA","Plutonium, Uranium and Thorium in Air",null,null,null,"/m2","Number per square meter",null,null,null,"Polycarbonate Media Bottle",null,"APHA 9213-D-3","Natural Bathing Beach, Sample Preparation for Escherichia coli Determination","FISHELEC","Electrofishing Survey Procedure.  Stream or lake fish sampling with the heavy duty electroshock unit.  Fish returned alive to the stream/lake after count, identification, and measurement or sent to lab for tissue analysis.","Simple Bucket","WSBK"]
["319-85-7",".beta.-Hexachlorocyclohexane","BHC-beta",784,"MN00055","Montgomery Watson Harza (formerly JMM)",null,null,null,"005(BT)","USEPA","Plutonium, Uranium and Thorium in Tissue",null,null,null,"/m3","Number per cubic meter",null,null,null,"Polyethylene Bottle",null,"APHA 9215-A-5","Heterotrophic Plate Count, General Sample Preparation","G-DLF","Grab, Disturbed, Low-Flow.  The modified grab sample was taken from Stephenson, and Rychert (1982). Bottom sediments were disturbed by raking a 4 sq. m. area for 30 seconds. Grab samples were then taken in downstream sediment plumes that exceeded 25 NTUs.","Smith-Root LR-24 Backpack Unit","ESBP"]
["83-46-5",".beta.-Sitosterol",null,null,"MN00056","Environmental Research Group, Inc., Nat'l Biocentric Div.",null,null,null,"005(S)","USEPA","Plutonium, Uranium and Thorium in Soil",null,null,null,"/mL","Number per milliliter",3641,null,null,"Polyethylene Container",null,"APHA 9215-C-3","Heterotrophic Plate Count, Spread Plate Method Sample Preparation","G-EVT","Grab sample collected in response to an event.","Telescoping Rod with Bottle","WSWB"]
["319-86-8",".delta.-Hexachlorocyclohexane","BHC-delta",784,"MN00057","Barr Engineering Laboratory",null,null,null,"005(W)","USEPA","Plutonium, Uranium and Thorium in Water",null,null,null,"/mi2","Number per square mile",null,null,null,"Polyethylene Vial",null,"APHA 9215-D-3","Heterotrophic Plate Count, Membrane Filter Method Sample Preparation","LAKE SED","Lake sediment sample grab","Two-Meter PVC Pipe with Stopper","WSVC"]
["96-48-0",".gamma.-Butyrolactone",null,null,"MN00058","Minnesota Pollution Control Agency Laboratory",null,null,null,"008(BT)","USEPA","Strontium-89 and Strontium-90 in Tissue",null,null,null,"/yd2","Number per square yard",null,null,null,"Polypropylene Bottle",null,"APHA 9230-C-2","Fecal Streptococcus and Enterococcus Group, Membrane Filter Sample Preparation","LKSEDGC","Lake Sediment Gravity Core.  Lake sediment core by Benthic Gravity Corer.  Sample is collected vertically via a tube and extruded in order to keep integrity of the sedimentation.","Van Dorn Horizontal Sampler","WSVD"]
["56641-38-4",".gamma.-Chlordene",null,null,"MN00059","Interpoll Laboratories, Inc. 027-003-148","NELAC 027-003-148","Circle Pines","MN","008(S)","USEPA","Strontium-89 and Strontium-90 in Soil",null,null,null,"0/00","Parts per thousand",null,null,null,"Polypropylene Container",null,"ASTM D3269-ISO","Isolation Techniques for Analysis for Fluoride Content of the Atmosphere and Plant Tissues by Manual Procedures","METALS1","Continuous-flow sampling, Clean Hands technique.  Lower teflon collection tube to a representative depth of the waterbody.  Pump water into sample collection bottles.  Tubing was cleaned with site water for 20 minutes between station visits.","Water Bottle","WSWB"]
["604-53-5","1,1'-Binaphthalene",null,null,"MN00063","Braun Intertec Corporation (lab)","NELAC 027-053-117","Minneapolis","MN","008(V)","USEPA","Strontium-89 and Strontium-90 in Plants",null,null,null,"A","Electrical current, amperes",null,null,null,"Polypropylene Vial",null,"ASTM D3326-A","Std. Practice for Prep. of Samples for Id. of Waterborne Oils of Large Samples","PERI-PILOT","Periphyton collection, substrate or depositional sand/silt.  Collection of periphyton from 5 separate substrate rocks, wood, or silt and sand depositional regions in the stream bottom; pilot project in 2009.","Weighted Bucket with Cover","WSBK"]
["629-36-7","1,1'-Oxybis[3-chloropropane]",null,null,"MN00064","Pace Analytical - Minneapolis, MN","NELAC 027-053-137","Minneapolis","MN","008(W)","USEPA","Strontium-89 and Strontium-90 in Water",null,null,null,"ADMI value","American Dye Manufacturers Institute Color Value",null,null,null,"Polystyrene Container",null,"ASTM D3326-B","Std. Practice for Prep. of Samples for Id. of Waterborne Oils in Limited Sample Volumes of Heavy Oils","QC-BLANK","Quality control blank.  No sample collected.","Weighted Water Bottle","WSWB"]
["630-20-6","1,1,1,2-Tetrachloroethane",null,68468,"MN00065","Tetra Tech, Inc. (formerly Maxim Technologies)",null,null,null,"1","USEPA","Beta Activity in Airborne Particulates",null,null,null,"AU","Turbidity, Attenuation Unit",null,null,null,"Polystyrene Petri Dish",null,"ASTM D3326-C","Std. Practice for Prep. of Samples for Id. of Waterborne Oils in Oils Boiling Below 280 degrees C","SHALLSOIL","Shallow soil sample grab"]
["918-00-3","1,1,1-Trichloro-2-propanone",null,null,"MN00068","UC Laboratory, Janesville, MN","NELAC 027-161-186","Janesville","MN","10","USEPA","Carbon Monoxide Emissions in Air",null,null,null,"Angst","Angstroms",null,null,null,"Stainless Steel Container",null,"ASTM D3326-D","Std. Practice for Prep. of Samples for Id. of Waterborne Oils Composed of Mixed Petroleum-based & Animal/Vegetable Oils","SOILBORI","Boring, soil sample extraction"]
["71-55-6","1,1,1-Trichloroethane",null,68823,"MN00069","Spectrum Labs, Inc.",null,null,null,"1000","NIOSH","Allyl Chlorine by GC/FID",null,null,null,"BTU","Energy, British Thermal Units",null,null,null,"Teflon Bottle",null,"ASTM D3326-E","Std. Practice for Prep. of Samples for Identification of Waterborne Oils in Limited Volumes of Light Oils","SW-BASIC","Generic GW Sampling"]
["7789-89-1","1,1,1-Trichloropropane",null,null,"MN00073","St. Cloud Public Utilities - Water","NELAC 027-145-139","St. Cloud","MN","10001","HACH","Nitrogen, Ammonia, Electrode",815,null,null,"BU","Turbidity, Backscatter Unit",null,null,null,"Teflon Vial",null,"ASTM D3326-F","Std. Practice for Prep. of Samples for Identification of Waterborne Oils in Thin Films of Oil-On-Water","SW-GAS","Gas Sampling"]
["1067-90-0","1,1,1-Tris(chloromethyl)ethane",null,null,"MN00076","Instrumental Research, Inc.","NELAC 027-003-130","Fridley","MN","10002","HACH","Nitrogen, Ammonia, Electrode, Known Addition",null,null,null,"CFU","Colony Forming Units",7053,null,null,null,null,"ASTM D3974","Std. Practice for Extr. of Trace Elements for Sediments","SW-SOIL","Soil Sampling"]
["3922-27-8","1,1,1-trichloropentane",null,18,"MN00089","Midwest Analytical Services",null,"Ferndale","MN","1001","HACH","Determination of Lead, for use in Lead and Copper Rule compliance monitoring",null,null,null,"DD","Decimal degrees",null,null,null,null,null,"ASTM D3975","Std. Practice for Prep. of Samples for Collaborative Testing of Methods for Analysis of Sediments","WELL-BAIL","Bail. For wells that cannot be pumped. Measure depth to water and well depth. Lower bailer into well with rope and recover water. Pour water into 5-gal bucket to measure water volume and record field readings. Bail 3-5 well volumes prior to sampling."]
["79-27-6","1,1,2,2-Tetrabromoethane",null,null,"MN00090","Brown Nicollet Community Health Svc (Traverse Des Sioux)","NELAC 027-103-259",null,null,"10018","HACH","Total and Fecal Coliforms, E. Coli, P/A",null,null,null,"Deg","Direction or angle, degrees",116,null,null,null,null,"ASTM D3976","Std. Practice for Prep. of Sediment Samples for Chemical Analysis","WELL-NONSUBMERS","Non-submersible. For shallow mon wells w/o pump. Msr water & well depth. Install tube/pump, begin flow. Record fld readings w/ multi-probe & flow cell til stable, when 3 consec Temps, SCs & pHs within 0.1 deg C, 5% mS & 0.1 units, resp. Collect samples."]
["79-34-5","1,1,2,2-Tetrachloroethane",null,68651,"MN00099","Mower County Environmental Laboratory",null,null,null,"10019","MNPCA","Nitrite, Diazotization Method, Low Range, Test 'N Tube",70,null,null,"FAU","Turbidity, Formazine Attenuation Units",1,null,null,null,null,"ASTM D3987","Shake Extraction of Solid Waste and Water","WELL-SUBMERS","Submersible. For domestic/deep mon wells w/ pump. Turn on pump, flow water. Record fld readings w/ multi-param probe & flow cell until stable, when 3 consec readings of Temp, SC & pH are within 0.1 deg C, 5% mS & 0.1 units, respectively. Collect samples."]
["79-00-5","1,1,2-Trichloroethane",null,68708,"MN00100","Minnesota Department of Agriculture Lab - St Paul, MN",null,"St. Paul","MN","1002","NIOSH","beta-Chloroprene by GC/FID",null,null,null,"FBU","Turbidity, Formazin Backscatter Unit",null,null,null,null,null,"ASTM D4874-89","Column Leach for Soil"]
["74421-09-3","1,1,3-Trimethyl-3-(2-methallyl)cyclopentane",null,null,"MN00102","Northeast Technical Services, Inc.",null,"Virginia","MN","10023","HACH","Nitrogen-Ammonia Reagent Set, TNT, AmVer (Salicylate),Low Range",36,null,null,"FNMU","Turbidity, Formazin Nephelometric Multibeam Unit",4069,null,null,null,null,"ASTM E1195-87","Sequential Batch Extraction for Soil"]
["941-60-6","1,1,4,6-Tetramethylindan",null,null,"MN00901","ERA Laboratories",null,"Duluth","MN","10027","HACH","Fecal Coliforms, MPN (sludges)",12,null,null,"FNRU","Turbidity, Formazin Nephelometric Ratio Unit",2409,null,null,null,null,"FLT CHL A","Filtration of sample prior to lab delivery for chlorophyll analysis"]
["1078-04-2","1,1,4,7-Tetramethylindan",null,null,"MN00902","Archer Daniel Midland Corn Processing - Marshall","NELAC 027-083-361","Marshall","MN","10028","HACH","Fecal Coliforms, MPN (sludges)",null,null,null,"FNU","Turbidity, Formazin Nephelometric Unit",49239,null,null,null,null,"FLT CHL A LAB","Filtration of sample at lab prior to analysis for chlorophyll"]
["75-34-3","1,1-Dichloroethane",null,69238,"MN00908","Legend Technical Services, Inc.","NELAC 027-123-295","St. Paul","MN","10029","HACH","m-ColiBlue24 Method of the Determination of Total Coliforms and E. coli",9123,null,null,"FTU","Turbidity, Formazin Turbidity Units",null,null,null,null,null,"USDOC/NOAA TBT-P","Tributyltin Preparation Step"]
["75-35-4","1,1-Dichloroethylene",null,68799,"MN00913","A.W. Research Laboratories",null,"Brainerd","MN","1003","NIOSH","Halogenated Hydrocarbons by GC/FID",null,null,null,"Imp gal","Imperial gallons",null,null,null,null,null,"USDOE/ASD OC010R","Preparation of VOC Samples Containing Hydrocarbons"]
["78-99-9","1,1-Dichloropropane",null,null,"MN00914","Xcel Energy - Minneapolis","NELAC 027-053-197","Minneapolis","MN","1004","NIOSH","Dichloroethyl Ether by GC/FID",null,null,null,"JCU","Light Intensity, Jackson Candle Units",4542,null,null,null,null,"USEPA 1310-A","Extraction Procedure Toxicity Test Method and Structural Integrity Test"]
["513-88-2","1,1-Dichloropropanone",null,null,"MN00917","Eco Agri Laboratories",null,null,null,"1005","NIOSH","Methylene Chloride by GC/FID",null,null,null,"JTU","Turbidity, Jackson Turbidity Units",null,null,null,null,null,"USEPA 1311","TCLP Preparation for Semivolatiles"]
["563-58-6","1,1-Dichloropropene",null,68406,"MN00918","RMB Laboratories, Inc.","NELAC 027-005-336","Detroit Lakes","MN","1006","NIOSH","Fluorotrichloromethane by GC/FID",null,null,null,"Joules","Energy, Joules",null,null,null,null,null,"USEPA 1311-HG","TCLP Preparation for Mercury"]
["534-15-6","1,1-Dimethoxyethane",null,null,"MN00921","Alexandria Lake Area Sanitary District","NELAC 027-041-171",null,null,"1007","NIOSH","Vinyl Chloride by GC/FID",null,null,null,"L","Liters",null,null,null,null,null,"USEPA 1311-V","TCLP Preparation ZHE"]
["62338-30-1","1,1-Dimethyl-2-octylcyclobutane",null,null,"MN00932","City of Luverne WWTP","NELAC 027-133-182",null,null,"1008","NIOSH","Ethylene Dibromide by GC/ECD",null,null,null,"L/d","Liters per day",null,null,null,null,null,"USEPA 200.2","Preparation for Water, Soil, or Waste Samples"]
["1630-94-0","1,1-Dimethylcyclopropane",null,1,"MN00950","Prairie Island WWTP - XCEL Energy Mps Lab, Nuclear Mgmt Corp","NELAC 027-049-218",null,null,"1009","NIOSH","Vinyl Bromide by GC/FID",null,null,null,"L/h","Liters per hour",null,null,null,null,null,"USEPA 200.2-M","Total Recoverable Metals Digestion"]
["4912-92-9","1,1-Dimethylindan",null,null,"MN00957","City of Waseca Wastewater Treatment Plant",null,"Waseca","MN","101","USEPA","Gaseous Mercury in Air by CVAA",null,null,null,"L/mg-cm","Liters per milligram-centimeter",84,null,null,null,null,"USEPA 200.8-CR","Clean Room Preparation for EPA 200.8"]
["608-73-1","1,2,3,4,5,6-Hexachlorocyclohexane",null,null,"MN00958","White Water Associates",null,"Amasa","MI","1010","NIOSH","Epichlorohydrin by GC/FID",2,null,null,"L/min","Liters per minute",null,null,null,null,null,"USEPA 200.8-T","Total Metals Preparation for EPA 200.8"]
["5202-36-8","1,2,3,4,5,7,7-Heptachloro-2-norbornene",null,null,"MN00963","City of Worthington Wastewater Treatment Lab","NELAC 027-105-213","Worthington","MN","1011","NIOSH","Ethyl Bromide by GC/FID",null,null,null,"L/s","Liters per second",null,null,null,null,null,"USEPA 3005-A","Total Recoverable and Dissolved Prep for FLAA, ICP"]
["3268-87-9","1,2,3,4,6,7,8,9-Octachlorodibenzo-p-dioxin",null,null,"MN00965","Southeast Minnesota Analytical Service (Winona State U)",null,"Winona","MN","1012","NIOSH","Difluorodibromomethane by GC/FID",null,null,null,"Langleys","Energy Intensity, Langleys (cal/sq cm)",1,null,null,null,null,"USEPA 3015","Microwave Assisted Acid Digestion of Aqueous Samples and Extracts"]
["39001-02-0","1,2,3,4,6,7,8,9-Octachlorodibenzofuran","OCDF",4,"MN00970","Montevideo Wastewater Treatment Plant","NELAC 027-023-258",null,null,"1013","NIOSH","Propylene Dichloride by GC/ECD",null,null,null,"MPN","Most Probable Number",827,null,null,null,null,"USEPA 3015-M","Aqueous Sample Prep for Total Metals (modified) Suspended Solids, ICP,GFAA,ICP-MS"]
["35822-46-9","1,2,3,4,6,7,8-Heptachlorodibenzo-p-dioxin","1,2,3,4,6,7,8-HCDD",null,"MN00994","Traut Water Analysis Lab","NELAC 027-145-121","Waite Park","MN","1014","NIOSH","Methyl Iodide by GC/FID",null,null,null,"MPN/100g","Most Probable Number per 100 grams",null,null,null,null,null,"USEPA 3020-A","Acid Digestion of Aqueous Samples and Extracts for Total Metals for Analysis by GFAA Spectroscopy"]
["67562-39-4","1,2,3,4,6,7,8-Heptachlorodibenzofuran",null,5,"MN00995","Ramsey County Lake Management Lab","NELAC 027-123-414","Arden Hills","MN","1015","NIOSH","Vinylidene Chloride by GC/FID",null,null,null,"MPN/100mL","Most Probable Number per 100 milliliters",53712,null,null,null,null,"USEPA 3040","Oily Waste Prep for Soluble Metals by AA and ICP"]
["3389-71-7","1,2,3,4,7,7-Hexachloronorbornadiene",null,null,"MN00998","Water Laboratories, Inc.","NELAC 027-141-110","Elk River","MN","1016","NIOSH","1,1,2-Tetrachloro-2,2-Difluoroethane",null,null,null,"MPN/g","Most Probable Number per gram",null,null,null,null,null,"USEPA 3040-A","Dissolution Procedure for Oils, Greases, and Waxes"]
["55673-89-7","1,2,3,4,7,8,9-Heptachlorodibenzofuran",null,5,"MN00999","Saint Paul Regional Water Services Laboratory","NELAC 027-123-106",null,null,"1017","NIOSH","Trifluorobromomethane by GC/FID",null,null,null,"MT/km2/yr","Metric tons per square kilometer per year",null,null,null,null,null,"USEPA 3050-B","Acid Digestion of Sediments, Sludges, and Soils for Metals Analysis by FLAA/ICP or GFAA/ICPMS"]
["39227-28-6","1,2,3,4,7,8-Hexachlorodibenzo-p-dioxin",null,6,"MN01003","Minneapolis Water Works Lab","NELAC 027-053-128","Fridley","MN","1018","NIOSH","Organics by GC/FID",null,null,null,"MW","Power, megawatts",null,null,null,null,null,"USEPA 3051","Microwave Assisted Acid Digestion of Sediments, Sludges, Soils, and Oils"]
["70648-26-9","1,2,3,4,7,8-Hexachlorodibenzofuran",null,4,"MN01004","Stearns DHIA Central Laboratory","NELAC 027-145-378","Sauk Centre","MN","1019","NIOSH","1,1,2,2-Tetrachloroethane by GC/FID",null,null,null,"Min","Direction or angle, minutes",null,null,null,null,null,"USEPA 3510-C","Separatory Funnel Liquid-Liquid Estraction"]
["634-66-2","1,2,3,4-Tetrachlorobenzene",null,null,"MN01005","Magic Water Testing Lab","NELAC 027-127-283","Redwood Falls","MN","101A","USEPA","Gaseous Mercury from Sewage/Sludge Incinerators",null,null,null,"Molal","Molal",null,null,null,null,null,"USEPA 3520-B","Continuous Liquid-Liquid Extraction for Organics"]
["119-64-2","1,2,3,4-Tetrahydronaphthalene","Tetralin",null,"MN01011","North Shore Analytical, Inc.","NELAC 027-137-389","Duluth","MN","102","USEPA","Mercury Emissions - Hydrogen Streams",null,null,null,"Molar","Molar",null,null,null,null,null,"USEPA 3520-C","Continuous Liquid-Liquid Extraction for Organics"]
["488-23-3","1,2,3,4-Tetramethylbenzene",null,null,"MN01030","Benson Water and Wastewater",null,null,null,"1020","NIOSH","1,1,2-Trichloro-1,2,2-Trifluoroethane",null,null,null,"N","Normal",null,null,null,null,null,"USEPA 3540-C","Soxhlet Extraction for Nonvolatile and Semivolatile Organics from Soils, Sludges, and Wastes"]
["4466-77-7","1,2,3,4-Tetramethylphenanthrene",null,null,"MN01041","Moorhead Public Service Laboratory","NELAC 027-027-145","Moorhead","MN","10200-F","APHA","Phytoplankton Counting Techniques",null,null,null,"NTMU","Turbidity, Nephelometric Turbidity Multibeam Unit",null,null,null,null,null,"USEPA 3550-A","Ultrasonic Extraction of Nonvolatile and Semivolatile Organic Compounds from Soils, Sludges, and Wastes"]
["634-90-2","1,2,3,5-Tetrachlorobenzene",null,null,"MN01042","Natural Resources Research Institute Central Analytical Laboratory","NELAC 027-137-248","Duluth","MN","10200-G","APHA","Zooplankton Counting Techniques",null,null,null,"NTRU","Turbidity, Nephelometric Turbidity Ratio Unit",48210,null,null,null,null,"USEPA 3550-B","Ultrasonic Extr. of Nonvolatile/Semivolatile Organics from Soils, Sludges, and Wastes (No Organophosphorus Compounds)"]
["527-53-7","1,2,3,5-Tetramethylbenzene",null,null,"MN01044","Three Rivers Park District (TRPD) Lab","NELAC 027-053-352",null,null,"10200-H","APHA","Chlorophyll a-b-c Determination",89665,null,null,"NTU","Turbidity, Nephelometric Turbidity Units",93974,null,null,null,null,"USEPA 3580-A","Waste Dilution"]
["57653-85-7","1,2,3,6,7,8-Hexachlorodibenzo-p-dioxin",null,6,"MN01047","Environmental Quality Lab - Minnesota State University Mankato",null,"Mankato","MN","10200-I","APHA","Determination of Biomass (Standing Crop)",null,null,null,"None","None",654242,null,null,null,null,"USEPA 3585","Waste Dilution"]
["57117-44-9","1,2,3,6,7,8-Hexachlorodibenzofuran",null,5,"MN01065","Minneapolis Health Laboratory",null,"Minneapolis","MN","10200-J","APHA","Metabolic Rate Measurements",550,null,null,"PCU","Platinum Cobalt Units (color)",25811,null,null,null,null,"USEPA 50.6","Phase Separation and Aliquotting"]
["19408-74-3","1,2,3,7,8,9-Hexachlorodibenzo-p-dioxin",null,6,"MN01069","Traut Wells Lab, Alexandria",null,"Alexandria","MN","10200H(2)","APHA","Chlorophyll a-b-c Determination by spectrophotometer",null,null,null,"PSS","Practical Salinity Scale",null,null,null,null,null,"USEPA 548.1-P","Endothall Preparation"]
["72918-21-9","1,2,3,7,8,9-Hexachlorodibenzofuran",null,5,"MN01078","Fillmore SWCD Water Quality Laboratory","NELAC 027-045-435","Preston","MN","10200H(3)","APHA","Chlorophyll a-b-c Determination by fluorometer",null,null,null,"Pa","Pressure, Pascal units",null,null,null,null,null,"USEPA 549.1-P","Diquat and Paraquat Preparation"]
["40321-76-4","1,2,3,7,8-Pentachlorodibenzo-p-dioxin",null,6,"MN01080","Itasca Community College Water Quality Laboratory","NELAC 027-061-440","Grand Rapids","MN","10205","HACH","Ammonia Nitrogen by the Salicylate Method, using TNTplus vials",982,null,null,"Plate cnt","Plate Count",null,null,null,null,null,"USEPA 8150-P","Herbicide Preparation Portion of 8150"]
["57117-41-6","1,2,3,7,8-Pentachlorodibenzofuran",null,5,"MN01084","Pace Analytical Services, Inc - Virginia, MN 027-137-445","NELAC 027-137-445","Virginia","MN","10209","HACH","Reactive (ortho) by the Ascorbic Acid method, using TNT 843",78,null,null,"S/m","Siemens per meter",null,null,null,null,null,"USEPA MT_PREP1","Preparation of Metals Samples in Water"]
["95-14-7","1,2,3-Benzotriazole","btaH",null,"MNL0001","Agriculture Resource Services",null,null,null,"10210","HACH","Total Phosphorus (phosphate) by the Ascorbic Acid method, using TNT 843",78,null,null,"Sec","Direction or angle, seconds",null,null,null,null,null,"USEPA MT_PREP3","Sample Preparation Using Microwave Digestion"]
["87-61-6","1,2,3-Trichlorobenzene",null,66894,"MNL0002","Albert Lea Technical College (aka Riverland Community College) Lab",null,null,null,"1022","NIOSH","Trichloroethylene by GC/FID",null,null,null,"T.U.","Tritium Unit",15,null,null,null,null,"USEPA P-010-1","Preparation for Pesticides/PCB in Water/Soil"]
["96-18-4","1,2,3-Trichloropropane",null,68427,"MNL0003","American Engineering",null,null,null,"1024","NIOSH","1,3 Butadiene by GC/FID",null,null,null,"TON","Threshold Odor Number",null,null,null,null,null,"USEPA PCB-007","Preparation of Samples for PCB Analysis"]
["526-73-8","1,2,3-Trimethylbenzene",null,13,"MNL0004","BEI",null,null,null,"103","USEPA","Beryllium Screening in Air",null,null,null,"TU","Toxic Units, dividing 100% by the LC50 (% effluent",197,null,null,null,null,"USEPA R-003-1","Preparation of Soil for Radiological Analysis"]
["95-94-3","1,2,4,5-Tetrachlorobenzene",null,683,"MNL0005","CH2MHill",null,"Mendota Heights","MN","1030","MNPCA","Checking Correctness of Analyses Using Cation-Anion Basis",13566,null,null,"TUc","Toxic Unit chronic",null,null,null,null,null,"USEPA SFSAS_FT_PREP","Fish Tissue Preparation Technique"]
["95-93-2","1,2,4,5-Tetramethylbenzene",null,null,"MNL0006","Columbia Analytical",null,"Rochester","MN","10300-C","APHA","Periphyton Sample Analysis",null,null,null,"Torr","Pressure, Torr units(vacuum)",null,null,null,null,null,"USEPA SFSAS_S_PREP","Sediment Preparation Technique"]
["120-82-1","1,2,4-Trichlorobenzene",null,67942,"MNL0007","Dorset Env. Science Centre, Ontario Ministry of the Env.",null,null,null,"10300-D","APHA","Periphyton Primary Productivity",null,null,null,"V","Electro-motive force, volts",1,null,null,null,null,"USEPA 3550C","Ultrasonic Extraction"]
["95-63-6","1,2,4-Trimethylbenzene",null,67227,"MNL0008","E.A. Hickok and Associates",null,null,null,"1030F","MNPCA","Cation-Anion Balance",5995,null,null,"W","Power, Watts",null,null,null,null,null,"USEPA 5030B","Purge-and-Trap for Aqueous Samples"]
["272-16-2","1,2-Benzisothiazole",null,null,"MNL0009","Eau Galle Aquatic Ecology Lab (Limnology, Army Corps of Eng)",null,null,null,"104","USEPA","Beryllium in Air",null,null,null,"ac","Acres",20,null,null,null,null,"USEPA 5035","Closed-System Purge-and-Trap and Extraction for Volatile Organics in Soil and Waste Samples"]
["2634-33-5","1,2-Benzisothiazolin-3-one",null,null,"MNL0010","Environmental Instrumentation Center, St. Cloud State U",null,null,null,"10400-D","APHA","Macrophyton Population Estimates",null,null,null,"ac-ft","Acre-feet",205,null,null,null,null,"ASTM D3326-G","Std. Practice for Prep. of Samples for Identification of Waterborne Oils in Oil-Soaked Samples"]
["112-26-5","1,2-Bis(2-chloroethoxy)ethane",null,null,"MNL0011","ESC",null,null,null,"10400-E","APHA","Macrophyton Productivity",null,null,null,"atm","Pressure, atmospheres",null,null,null,null,null,"ASTM D4638","Preparation of Biological Samples for Inorganic Chemical Analysis"]
["106-88-7","1,2-Butylene oxide",null,null,"MNL0012","Fargo Cass Public Health Environmental Laboratory",null,null,null,"105","USEPA","Mercury in Sewage Sludge",null,null,null,"beaufort","Wind force (beaufort unit)",null,null,null,null,null,"HG BRCL OXI","Sample prepared by Acid Digestion and BrCl Oxidation"]
["96-12-8","1,2-Dibromo-3-chloropropane","DBCP",67350,"MNL0013","FOTH",null,null,null,"10500-C","APHA","Benthic Macroinvertebrate Sample Processing and Analysis",null,null,null,"c","Count",658,null,null,null,null,"USDOE/EML G-03","Microprecipitation Source Preparation"]
["2199-69-1","1,2-Dichlorobenzene-d4",null,2322,"MNL0014","GLEC",null,null,null,"106","USEPA","Vinyl Chloride in Stack Gas",null,null,null,"cal","Energy, calories",null,null,null,null,null,"USEPA 1311-MT","TCLP Preparation for Metals"]
["616-21-7","1,2-Dichlorobutane",null,null,"MNL0015","High Island Creek Watershed Project",null,null,null,"107","USEPA","Vinyl Chloride - Wastewater",null,null,null,"cfm","Cubic feet per minute",null,null,null,null,null,"USEPA 1625P","BNA (isotopic dilution) Preparation"]
["107-06-2","1,2-Dichloroethane",null,68770,"MNL0017","Iowa State University Limnology Laboratory",null,"Ames","IA","107A","USEPA","Vinyl Chloride - Solvent/Resin",null,null,null,"cfs","Cubic feet per second",78694,null,null,null,null,"USEPA 200.7-T","Total Metals Preparation for EPA 200.2"]
["17060-07-0","1,2-Dichloroethane-d4",null,2110,"MNL0018","Lincoln, Lyon, Murray, and Pipestone County Health Services",null,null,null,"108","USEPA","Particulate and Gaseous Arsenic",null,null,null,"cfu/100g","Colony Forming Units per 100 grams",null,null,null,null,null,"USEPA 3010-A","Acid Digestion of Aqueous Samples and Extracts for Total Metals for Analysis fy FLAA or ICP Spectrometry"]
["540-59-0","1,2-Dichloroethylene",null,18,"MNL0019","Littlefork - Big Falls High School Lab",null,null,null,"10A","USEPA","Carbon Monoxide Emissions in Air",null,null,null,"cfu/100mL","Colony Forming Units per 100 Milliliters",1350,null,null,null,null,"USEPA 3050-A","Acid Digestion of Sediments, Sludges, and Soils"]
["78-87-5","1,2-Dichloropropane",null,68918,"MNL0020","Microbiologics (formerly Environmental Protection Laboratory)",null,null,null,"10B","USEPA","Carbon Monoxide Emissions in Air",null,null,null,"cfu/10mL","Colony Forming Units per 10 Milliliters",null,null,null,null,null,"USEPA 3510-B","Separatory Funnel Extraction, Liquid-Liquid"]
["563-54-2","1,2-Dichloropropene",null,null,"MNL0021","Mille Lacs Chippewa Band Environmental Lab",null,null,null,"11","USEPA","Isotopic Analysis by Ge(Li) Detector",null,null,null,"cm","Centimeters",236421,null,null,null,null,"USEPA 3540-B","Soxhlet Extraction for Nonvolatile and Semivolatile Organic Compounds from Solids, Solid Samples Only"]
["933-98-2","1,2-Dimethyl-3-ethylbenzene",null,null,"MNL0022","Minnesota Department of Natural Resources",null,null,null,"110.1","USEPA","Color by Calculating ADMI Values",null,null,null,"cm/s","Centimeters per second",null,null,null,null,null,"USEPA 5030-A","Sample Preparation and Extraction for Volatile Organic Analysis by Purge-and Trap"]
["540-73-8","1,2-Dimethylhydrazine",null,null,"MNL0023","Monsanto Labs",null,null,null,"110.2","USEPA","Color Analysis Using Platinum/Cobalt",3792,null,null,"cm2","Square centimeters",null,null,null,null,null,"USEPA MT_PREP2","Preparation of Metals Samples in Soils"]
["573-98-8","1,2-Dimethylnaphthalene",null,null,"MNL0024","MPI Research (formerly Exygen)",null,null,null,"110.3","USEPA","Color by Spectrophotometric Analysis",222,null,null,"cm3","Cubic centimeters",null,null,null,null,null,"USEPA PAH-010","Preparation of Samples for PAH Analysis"]
["122-66-7","1,2-Diphenylhydrazine",null,757,"MNL0025","Pace Analytical",null,null,null,"1103.1","USEPA","Escherichia coli in Water by Membrane Filtration Using membrane-Thermotolerant E. coli Agar (mTEC)",2095,null,null,"cm3/L","Cubic centimeters per liter"]
["286-28-2","1,2-Epithiocyclohexane",null,null,"MNL0026","Red River Watershed Management Board",null,null,null,"1104","USEPA","E. coli in Drinking Water/EC Medium with Mug Tub",null,null,null,"cm3/h","Cubic centimeters per hour"]
["2327-99-3","1,2-Propadienylbenzene",null,null,"MNL0027","Saint Anthony Falls Laboratory (SAFL), U of M",null,"Minneapolis","MN","1106.1","USEPA","Enterococci in Water by Membrane Filtration Using membrane-Enterococcus-Esculin Iron Agar (mE-EIA)",null,null,null,"cm3/min","Cubic centimeters per minute"]
["1222-05-5","1,3,4,6,7,8-Hexahydro-4,6,6,7,8,8-hexamethylcyclopenta[g]-2-benzopyran","HHCB",null,"MNL0028","Saint Olaf College Lab",null,"Northfield","MN","111","USEPA","Polonium-210 Emissions",null,null,null,"cm3/s","Cubic centimeters per second"]
["504-08-5","1,3,5-Triazine-2,4-diamine",null,null,"MNL0029","Sample Tech",null,null,null,"114","USEPA","Radionuclide Emissions",null,null,null,"d","Days"]
["108-70-3","1,3,5-Trichlorobenzene",null,null,"MNL0030","SKB Environmental",null,null,null,"115","USEPA","Monitoring for Radon-222",null,null,null,"d/h/m/s","Days/hours/minutes/seconds"]
["108-67-8","1,3,5-Trimethylbenzene",null,67196,"MNL0031","St. Cloud State U Biology Lab",null,null,null,"12 (ATM PB)","USEPA","Inorganic Lead Emissions in Air",null,null,null,"dL","Deciliters"]
["99-35-4","1,3,5-Trinitrobenzene",null,9,"MNL0032","Stork Twin City Testing",null,null,null,"12 (ISOTOPES)","USEPA","Isotopic Analysis by NaI(Tl) Detector",null,null,null,"deg C","Degrees Celsius (Centigrade)",1099984]
["106-99-0","1,3-Butadiene",null,null,"MNL0033","TestAmerica",null,null,null,"120.1","USEPA","Conductance",40006,null,null,"deg F","Degrees Fahrenheit",7080]
["77-48-5","1,3-Dibromo-5,5-dimethylhydantoin",null,null,"MNL0034","TestAmerica - Chicago, IL",null,"Chicago","IL","120.1_M","USEPA","Conductivity in Industrial Waste",1,null,null,"deg K","Degrees Kelvin"]
["96-23-1","1,3-Dichloro-2-propanol",null,null,"MNL0035","TestAmerica - FL",null,"Pensacola","FL","120.6","IL/SWSD","Specific Conductance - Acid Deposition",null,null,null,"dm","Decimeters"]
["142-28-9","1,3-Dichloropropane",null,68457,"MNL0036","U of MN, St. Paul campus Soil Testing & Research Analytical",null,"St. Paul","MN","13","USEPA","Krypton, Xenon and Tritiated Methane",null,null,null,"dm2","Square decimeters"]
["542-75-6","1,3-Dichloropropene",null,77,"MNL0037","U.S. Geological Survey Mercury Research Laboratory",null,null,null,"130.1","USEPA","Total Hardness",1657,null,null,"dpm/g","Decay per minute per gram"]
["874-41-9","1,3-Dimethyl-4-ethylbenzene",null,null,"MNL0038","University of Minnesota - Crookston Water Quality Laboratory",null,"Crookston","MN","130.2","USEPA","Total Hardness",5867,null,null,"drips/min","Drips per minute"]
["934-74-7","1,3-Dimethyl-5-ethylbenzene",null,null,"MNL0039","University of Missouri Limnology Laboratory",null,null,null,"1300","NIOSH","Ketone I by GC/FID",null,null,null,"drops","Drops"]
["4175-53-5","1,3-Dimethylindan",null,null,"MNL0040","University of Wisconsin - Madison, Water Chemistry Lab",null,"Madison","WI","1301","NIOSH","Ketone II by GC/FID",null,null,null,"eq/L","Equivalents per Liter"]
["646-06-0","1,3-Dioxolane",null,null,"MNL0041","Upper Mississippi Headwaters Board Lab",null,null,null,"13A","USEPA","Total Fluoride Emissions in Air",null,null,null,"fc/ft2","Light Intensity, foot candles per square foot"]
["637-88-7","1,4-Cyclohexanedione",null,null,"MNL0042","USDA/NRCS Forest Service, North Central Station",null,"Grand Rapids","MN","13B","USEPA","Total Fluoride Emissions in Air",null,null,null,"fibers/L","Fibers per liter"]
["764-41-0","1,4-Dichloro-2-butene",null,null,"MNL0043","USEPA Midcontinent Ecology Division Lab, Duluth, MN",null,"Duluth","MN","140.1","USEPA","Odor in Water Using a Consistent Series",null,null,null,"fraction","Fraction of sample total"]
["821-10-3","1,4-Dichloro-2-butyne",null,null,"MNL0044","USGS Water Res. Div., Organic Geochemistry Research Lab, KS",null,null,"KS","1400","NIOSH","Alcohols I by GC/FID",null,null,null,"ft","Feet",155232]
["3855-82-1","1,4-Dichlorobenzene-d4",null,null,"MNL0045","Winona State University Water Resources Center",null,"Winona","MN","1401","NIOSH","Alcohols II by GC/FID",null,null,null,"ft-candles","Light Intensity, foot candles"]
["110-56-5","1,4-Dichlorobutane",null,null,"MNL0046","US Filter EnviroScan",null,null,null,"1402","NIOSH","Alcohols III by GC/FID",null,null,null,"ft-lbs","Energy, foot pounds"]
["13076-29-4","1,4-Dimethoxyanthracene",null,null,"MNL0047","St. Paul Water Utility, Vadnais Laboratory",null,"Vadnais Heights","MN","1403","NIOSH","Alcohols IV by GC/FID",null,null,null,"ft/d","Feet per day"]
["571-58-4","1,4-Dimethylnaphthalene",null,null,"MNL0048","U.S. Geological Survey National Water Quality Laboratory",null,null,null,"1404","NIOSH","Methylcyclohexane by GC/FID",null,null,null,"ft/min","Feet per minute"]
["123-91-1","1,4-Dioxane",null,44,"ND00910","Fargo Wastewater Treatment Plant",null,null,null,"1450","NIOSH","Esters I by GC/FID",null,null,null,"ft/s","Feet per second",4]
["130-15-4","1,4-Naphthoquinone",null,9,"NY00044","TestAmerica - Buffalo, NY","NELAC 036-999-337","Buffalo","NY","1451","NIOSH","Methyl Cellosolve Acetate by GC/FID",null,null,null,"ft2","Square feet"]
["2245-38-7","1,6,7-Trimethylnaphthalene",null,null,"SD00025","South Dakota State Health Lab",null,"Pierre","SD","1452","NIOSH","Ethyl Formate by GC/FID",null,null,null,"ft3","Cubic feet"]
["17059-48-2","1,6-Dimethylindan",null,null,"SEMWAL","Southeastern Minnesota Water Analysis Laboratory",null,null,null,"1453","NIOSH","Vinyl Acetate by GC/FID",null,null,null,"ft3/d","Cubic feet per day"]
["575-43-9","1,6-Dimethylnaphthalene",null,null,"TN00009","TestAmerica - Knoxville, TN",null,"Knoxville","TN","1454","NIOSH","Isopropyl Acetate by GC/FID",null,null,null,"ft3/s","Cubic feet per second"]
["42397-64-8","1,6-Dinitropyrene",null,null,"TN00032","TestAmerica - Nashville, TN","NELAC 047-999-345","Nashville","TN","1457","NIOSH","Ethyl Acetate by GC/FID",null,null,null,"g","Grams"]
["611-59-6","1,7-Dimethylxanthine",null,null,"WA01127","Frontier Geosciences, Inc.",null,"Seattle","WA","1458","NIOSH","Methyl Acetate by GC/FID",null,null,null,"g/L","Grams per liter",1120]
["42397-65-9","1,8-Dinitropyrene",null,null,"WI00006","Siemens Water Technologies Corp.","NELAC 055-999-302",null,null,"1459","NIOSH","Methyl Acrylate by GC/FID",null,null,null,"g/cm2","Grams per square centimeters"]
["81-84-5","1,8-Naphthalic anhydride",null,null,"WI00007","Wisconsin State Laboratory of Hygiene",null,"Madison","WI","15","USEPA","Hydrogen Sulfide, Carbonyl Sulfide",null,null,null,"g/cm3","Grams per cubic centimeter",6]
["3937-56-2","1,9-Nonanediol",null,null,"WI00033","Davy Laboratories","NELAC 055-999-151","La Crosse","WI","150.1","USEPA","pH",7993,null,null,"g/d","Grams per day"]
["54446-78-5","1-(2-Butoxyethoxy)ethanol",null,null,"WI00044","UW-Stevens Point Water & Environmental Analysis Lab",null,"Stevens Point","WI","150.2","USEPA","pH by Continuous Monitoring",899,null,null,"g/h","Grams per hour"]
["107-04-0","1-Bromo-2-chloroethane",null,null,"WI00051","EnChem",null,null,null,"150.2_M","USEPA","pH in Industrial Waste Materials",null,null,null,"g/kg","Grams per kilogram"]
["16079-88-2","1-Bromo-3-chloro-5,5-dimethyl-2,4-imidazolidinedione",null,null,"WI00902","LaCrosse County Public Health Lab",null,"La Crosse","MN","150.6","IL/SWSD","pH of Wet Deposition - pH Meter",1,null,null,"g/m2","Grams per square meter"]
["109-65-9","1-Bromobutane",null,null,"WI01103","Pace Analytical - Green Bay, WI","NELAC 055-999-334","Green Bay","WI","1500","NIOSH","Hydrocarbons, BP 36-126 C by GC/FID",null,null,null,"g/m2/d","Grams per square meter per day"]
["71-36-3","1-Butanol",null,3,"WI01123","University of Wisconsin - Madison, Soil Plant Analysis Lab",null,"Madison","WI","1501","NIOSH","Aromatic Hydrocarbons by GC/FID",null,null,null,"g/m2/h","Grams per square meter per hour"]
["5131-66-8","1-Butoxy-2-propanol",null,null,null,null,null,null,null,"1550","NIOSH","Naphthas by GC/FID",null,null,null,"g/m3","Grams per cubic meter"]
["753-89-9","1-Chloro-2,2-dimethylpropane",null,null,null,null,null,null,null,"1551","NIOSH","Turpentine by GC/FID",null,null,null,"g/m3/d","Grams per cubic meter per day"]
["82-44-0","1-Chloroanthraquinone",null,null,null,null,null,null,null,"16","USEPA","Sulfur Emissions from Stationary Sources",null,null,null,"g/m3/h","Grams per cubic meter per hour",12]
["109-69-3","1-Chlorobutane",null,null,null,null,null,null,null,"160.1","USEPA","Filterable Residue - TDS",4853,null,null,"g/mL","Grams per milliliter"]
["930-66-5","1-Chlorocyclohexene",null,null,null,null,null,null,null,"160.1_M","USEPA","Total Dissolved Solids",null,null,null,"g/min","Grams per minute"]
["544-10-5","1-Chlorohexane",null,null,null,null,null,null,null,"160.2","USEPA","Non-Filterable Residue - TSS",21277,null,null,"g/s","Grams per second"]
["90-13-1","1-Chloronaphthalene",null,674,null,null,null,null,null,"160.2_M","USEPA","Total Suspended Solids",null,null,null,"gal","Fluid gallons",3585]
["540-54-5","1-Chloropropane",null,null,null,null,null,null,null,"160.3","USEPA","Total Residue",635,null,null,"gal/d","Gallons per day",395]
["112-30-1","1-Decanol",null,null,null,null,null,null,null,"160.4","USEPA","Volatile Residue",37072,null,null,"gal/h","Gallons per hour"]
["112-53-8","1-Dodecanol",null,null,null,null,null,null,null,"160.5","USEPA","Settleable Matter",null,null,null,"gal/min","Gallons per minute"]
["629-96-9","1-Eicosanol",null,null,null,null,null,null,null,"1600","USEPA","Enterococci in Water by Membrane Filtration Using membrane-Enterococcus Indoxyl-B-D-Glucoside Agar (mEl)",555,null,null,"gal/s","Gallons per second"]
["1454-85-9","1-Heptadecanol",null,null,null,null,null,null,null,"1601","USEPA","Male-specific (F+) and Somatic Coliphage in Water by Two-step Enrichment Procedure",null,null,null,"gpg","Grains per gallon"]
["36653-82-4","1-Hexadecanol",null,null,null,null,null,null,null,"1602","USEPA","Male-specific (F+) and Somatic Coliphage in Water by Single Agar Layer (SAL) Procedure",null,null,null,"gpm/ft","Drawdown capacity, gallons per minute per foot"]
["111-27-3","1-Hexanol",null,3,null,null,null,null,null,"1603","USEPA","Escherichia coli in Water by Membrane Filtration Using Modified membrane-Thermotolerant E. coli Agar (Modified mTEC)",3697,null,null,"h","Hours"]
["2597-11-7","1-Hydroxychlordene",null,null,null,null,null,null,null,"1604","USEPA","Total Coliforms and E. coli in Water by Membrane Filtration Using a Simultaneous Detection Technique (MI Medium)",null,null,null,"ha","Hectares"]
["53778-73-7","1-Methoxy-2-butanol",null,null,null,null,null,null,null,"1605","USEPA","Aeromonas in Finished Water Membrane Filtration Using Ampicillin-Dextrin Agar with Vancomycin (ADA-V)",null,null,null,"hp","Power, horsepower"]
["1730-37-6","1-Methylfluorene",null,null,null,null,null,null,null,"1606","NIOSH","Acetonitrile",null,null,null,"in","Inches",21747]
["767-58-8","1-Methylindan",null,null,null,null,null,null,null,"1608","NIOSH","Glycidol by GC/FID",null,null,null,"in/d","Inches per day"]
["90-12-0","1-Methylnaphthalene",null,22,null,null,null,null,null,"1609","NIOSH","Tetrahydrofuran by GC/FID",null,null,null,"in2","Square inches"]
["832-69-9","1-Methylphenanthrene",null,null,null,null,null,null,null,"1610","NIOSH","Ethyl Ether by GC/FID",null,null,null,"in3","Cubic inches"]
["2381-21-7","1-Methylpyrene",null,null,null,null,null,null,null,"1611","NIOSH","Methylal by GC/FID",null,null,null,"inH2O","Pressure, inches of water"]
["134-32-7","1-Naphthalenamine",null,660,null,null,null,null,null,"1612","NIOSH","Propylene Oxide by GC/FID",null,null,null,"inHg","Pressure, inches of mercury",8259]
["90-15-3","1-Naphthol",null,null,null,null,null,null,null,"1613","NIOSH","Pyridine by GC/FID",null,null,null,"kW","Power, kilowatts"]
["5522-43-0","1-Nitropyrene",null,null,null,null,null,null,null,"1613(S)","USEPA","Dioxins and Furans - Solids",null,null,null,"kcal","Energy, kilocalories"]
["112-88-9","1-Octadecene",null,null,null,null,null,null,null,"1613(W)","USEPA","Dioxins and Furans - Water",104,null,null,"kg","Kilograms"]
["27619-97-2","1-Octanesulfonic acid, 3,3,4,4,5,5,6,6,7,7,8,8,8-tridecafluo","6:2 FtS",null,null,null,null,null,null,"1614","NIOSH","Ethylene Oxide by GC/ECD",null,null,null,"kg/m2","Kilograms per square meter"]
["111-87-5","1-Octanol",null,3,null,null,null,null,null,"1615","NIOSH","Methyl tert-Butyl Ether by GC/FID",null,null,null,"kg/m3","Kilograms per cubic meter"]
["71-41-0","1-Pentanol",null,null,null,null,null,null,null,"1616","NIOSH","n-Butyl Glycidyl Ether by GC/FID",null,null,null,"kg/t CaCO3","Kilograms per Ton calcium carbonate"]
["109-67-1","1-Pentene",null,2,null,null,null,null,null,"1617","NIOSH","Phenyl Ether by GC/FID",null,null,null,"km","Kilometers"]
["605-02-7","1-Phenylnaphthalene",null,null,null,null,null,null,null,"1618","USEPA","Pesticides and Herbicides",null,null,null,"km/h","Kilometers per hour"]
["71-23-8","1-Propanol",null,null,null,null,null,null,null,"1619","NIOSH","Phenyl Glycidyl Ether by GC/FID",null,null,null,"km/s","Kilometers per second"]
["112-72-1","1-Tetradecanol",null,null,null,null,null,null,null,"1620","NIOSH","Isopropyl Glycidyl Ether by GC/FID",null,null,null,"km2","Square kilometers"]
["1120-36-1","1-Tetradecene",null,null,null,null,null,null,null,"1620(A)","USEPA","Metals by Calibrated ICP",null,null,null,"knots","Nautical miles per hour"]
["564-35-2","11-Ketotestosterone",null,null,null,null,null,null,null,"1620(B)","USEPA","Metals by GFAA",null,null,null,"lb","Pounds"]
["52078-56-5","11-Tricosene",null,null,null,null,null,null,null,"1620(C)","USEPA","Mercury - CVAA",null,null,null,"lb/acre/yr","Pounds per acre per year"]
["243-17-4","11H-Benzo[b]fluorene",null,null,null,null,null,null,null,"1620(D)","USEPA","Metals by Semi-quantitative ICP Screen",null,null,null,"lb/d","Pounds per day"]
["366495-94-5","16-Epiestriol-d2",null,null,null,null,null,null,null,"1622","USEPA","Crytosporidium in Water by Filtration/IMS/FA - April 2001 Update",null,null,null,"lb/h","Pounds per hour"]
["651-55-8","17.alpha.-Dihydroequilin",null,null,null,null,null,null,null,"1623","USEPA","Cryptosporidium and Giardia in Water by Filtration/IMS/FA - April 2001 Update",null,null,null,"lb/in","Tension, pounds per inch displacement"]
["57-91-0","17.alpha.-Estradiol",null,null,null,null,null,null,null,"1624(S)","USEPA","Volatiles by Isotope Dilution - Soil",null,null,null,"lb/min","Pounds per minute"]
["50-28-2","17.beta.-Estradiol",null,null,null,null,null,null,null,"1624(W)","USEPA","Volatiles by Isotope Dilution - Water",null,null,null,"lb/s","Pounds per second"]
["E2-13C6","17.beta.-Estradiol-13C6",null,null,null,null,null,null,null,"1625(AW)","USEPA","Semivolatiles - Acids, GC/MS",null,null,null,"lm/ft2","Light Intensity, lumens per square foot"]
["66789-03-5","17.beta.-Estradiol-d4",null,null,null,null,null,null,null,"1625(BNW)","USEPA","Semivolatiles - Base/Neutrals, GC/MS",null,null,null,"lumens","Light Intensity, lumens"]
["40186-72-9","2,2',3,3',4,4',5,5',6-Nonachlorobiphenyl","PCB-206",null,null,null,null,null,null,"1625(S)","USEPA","Semivolatiles - Soil, GC/MS",null,null,null,"m","Meters",481755]
["35694-08-7","2,2',3,3',4,4',5,5'-Octachlorobiphenyl","PCB-194",null,null,null,null,null,null,"1630","USEPA","Methyl Mercury in Water by Distillation, Aqueous Ethylation, Purge and Trap, and CVAFS",478,null,null,"m/s","Meters per second"]
["42740-50-1","2,2',3,3',4,4',5,6'-Octachlorobiphenyl","PCB-196",null,null,null,null,null,null,"1631","USEPA","Mercury in Water by Oxidation, Purge and Trap, and CVAFS",1551,null,null,"m/y","Month/year"]
["52663-79-3","2,2',3,3',4,4',5,6,6'-Nonachlorobiphenyl","PCB-207",null,null,null,null,null,null,"1631E","USEPA","Mercury in Water by Oxidation, Purge and Trap, and CVAFS",661,null,null,"m2","Square meters"]
["52663-78-2","2,2',3,3',4,4',5,6-Octachlorobiphenyl","PCB-195",null,null,null,null,null,null,"1632","USEPA","Inorganic Arsenic in Water by Hydride Generation Quartz Furnace",null,null,null,"m2/km2","Square meters per square kilometers"]
["35065-30-6","2,2',3,3',4,4',5-Heptachlorobiphenyl","PCB-170",null,null,null,null,null,null,"1636","USEPA","Hexavalent Chromium in Ambient Water by Ion Chromatography",null,null,null,"m3","Cubic meters"]
["33091-17-7","2,2',3,3',4,4',6,6'-Octachlorobiphenyl","PCB-197",null,null,null,null,null,null,"1637","USEPA","Trace Elements in Water by Chelation Preconcentration and GFAA",null,null,null,"m3/h","Cubic meters per hour"]
["52663-71-5","2,2',3,3',4,4',6-Heptachlorobiphenyl","PCB-171",null,null,null,null,null,null,"1638","USEPA","Trace Elements in Water by ICP/MS",597,null,null,"m3/min","Cubic meters per min"]
["38380-07-3","2,2',3,3',4,4'-Hexachlorobiphenyl","PCB-128",null,null,null,null,null,null,"1639","USEPA","Trace Elements in Water by GFAA",null,null,null,"m3/s","Cubic meters per second",199]
["52663-70-4","2,2',3,3',4,5',6'-Heptachlorobiphenyl","PCB-177",null,null,null,null,null,null,"1640","USEPA","Trace Elements in Water by Chelation Preconcentration and ICP/MS",null,null,null,"mL","Milliliters"]
["40186-71-8","2,2',3,3',4,5',6,6'-Octachlorobiphenyl","PCB-201",null,null,null,null,null,null,"1648","USEPA","Organic Halides by Neutron Activation",null,null,null,"mL/L","Milliliters per liter",139]
["40186-70-7","2,2',3,3',4,5',6-Heptachlorobiphenyl","PCB-175",null,null,null,null,null,null,"1649","USEPA","Organic Halides by Coulometry",null,null,null,"mS/cm","Milli-Siemens per Centimeter",21]
["52663-66-8","2,2',3,3',4,5'-Hexachlorobiphenyl","PCB-130",null,null,null,null,null,null,"1650","USEPA","Organic Halides in Water",null,null,null,"mV","Millivolts",88298]
["52663-75-9","2,2',3,3',4,5,5',6'-Octachlorobiphenyl","PCB-199",null,null,null,null,null,null,"1651","USEPA","Diesel Oil in Muds by GC/FID",null,null,null,"meq/L","Milli-equivalents per Liter",15719]
["52663-77-1","2,2',3,3',4,5,5',6,6'-Nonachlorobiphenyl","PCB-208",null,null,null,null,null,null,"1652","USEPA","Oil and Grease",null,null,null,"metric ton","Metric tons"]
["68194-17-2","2,2',3,3',4,5,5',6-Octachlorobiphenyl","PCB-198",null,null,null,null,null,null,"1653","USEPA","Chlorinated Phenolics by GC/MS",null,null,null,"mg","Milligrams"]
["52663-74-8","2,2',3,3',4,5,5'-Heptachlorobiphenyl","PCB-172",null,null,null,null,null,null,"1654","USEPA","Polynuclear Aromatic Hydrocarbons in Oil",null,null,null,"mg/L","Milligrams per liter",2866441]
["38411-25-5","2,2',3,3',4,5,6'-Heptachlorobiphenyl","PCB-174",null,null,null,null,null,null,"1656(ECD)","USEPA","Organohalide Pesticides in Wastewater",null,null,null,"mg/cm2","Milligrams per square centimeters"]
["52663-73-7","2,2',3,3',4,5,6,6'-Octachlorobiphenyl","PCB-200",null,null,null,null,null,null,"1656(HSD)","USEPA","Organohalide Pesticides in Wastewater",null,null,null,"mg/cm3","Milligrams per cubic centimeter"]
["68194-16-1","2,2',3,3',4,5,6-Heptachlorobiphenyl","PCB-173",null,null,null,null,null,null,"1657","USEPA","Organophosphorus Pesticides in Water",null,null,null,"mg/d","Milligrams per day"]
["55215-18-4","2,2',3,3',4,5-Hexachlorobiphenyl","PCB-129",null,null,null,null,null,null,"1658","USEPA","Phenoxy-Acid Herbicides in Wastewater",null,null,null,"mg/g","Milligrams per gram",354]
["38380-05-1","2,2',3,3',4,6'-Hexachlorobiphenyl","PCB-132",null,null,null,null,null,null,"1659","USEPA","Dazomet in Wastewater",null,null,null,"mg/h","Milligrams per hour"]
["52663-65-7","2,2',3,3',4,6,6'-Heptachlorobiphenyl","PCB-176",null,null,null,null,null,null,"1660","USEPA","Pyrethrins and Pyrethroids in Water",null,null,null,"mg/kg","Milligrams per kilogram",118]
["61798-70-7","2,2',3,3',4,6-Hexachlorobiphenyl","PCB-131",null,null,null,null,null,null,"1661","USEPA","Bromoxynil in Wastewater by HPLC/UV",null,null,null,"mg/m2","Milligrams per square meter"]
["52663-62-4","2,2',3,3',4-Pentachlorobiphenyl","PCB-082",null,null,null,null,null,null,"1662","USEPA","Extractable Material in Mud by SDS",null,null,null,"mg/m2/d","Milligrams per square meter per day"]
["2136-99-4","2,2',3,3',5,5',6,6'-Octachlorobiphenyl","PCB-202",null,null,null,null,null,null,"1663","USEPA","Differentiation of Oil by GC/FID",null,null,null,"mg/m2/h","Milligrams per square meter per hour"]
["52663-67-9","2,2',3,3',5,5',6-Heptachlorobiphenyl","PCB-178",null,null,null,null,null,null,"1664","USEPA","Extractable Material in Oil and Grease",2,null,null,"mg/m3","Milligrams per cubic meter",85]
["35694-04-3","2,2',3,3',5,5'-Hexachlorobiphenyl","PCB-133",null,null,null,null,null,null,"1664A","USEPA","N-Hexane Extractable Material (HEM; Oil and Grease) and (SGT-HEM; Non-Polar Material) by Extraction and Gravimetry",1,null,null,"mg/m3/d","Milligrams per cubic meter per day"]
["52744-13-5","2,2',3,3',5,6'-Hexachlorobiphenyl","PCB-135",null,null,null,null,null,null,"1665","USEPA","Semivolatiles by Isotope Dilution GC/MS",null,null,null,"mg/m3/h","Milligrams per cubic meter per hour"]
["52663-64-6","2,2',3,3',5,6,6'-Heptachlorobiphenyl","PCB-179",null,null,null,null,null,null,"1666","USEPA","VOCs by Isotope Dilution GC/MS",null,null,null,"mg/mL","Milligrams per milliliter"]
["52704-70-8","2,2',3,3',5,6-Hexachlorobiphenyl","PCB-134",null,null,null,null,null,null,"1667","USEPA","Aldehydes by Derivatization and HPLC",null,null,null,"mg/min","Milligrams per minute"]
["60145-20-2","2,2',3,3',5-Pentachlorobiphenyl","PCB-083",null,null,null,null,null,null,"1668A","USEPA","Chlorinated Biphenyl Congeners in Water, Soil, Sediment, and Tissue by HRGC/HRMS  single-lab QC",null,null,null,"mg/s","Milligrams per second"]
["38411-22-2","2,2',3,3',6,6'-Hexachlorobiphenyl","PCB-136",null,null,null,null,null,null,"1668B","USEPA","Chlorinated Biphenyl Congeners in Water, Soil, Sediment, Biosolids, and Tissue by HRGC/HRMS inter-lab QC",null,null,null,"mgal/mnth","Millions of gallons per month"]
["52663-60-2","2,2',3,3',6-Pentachlorobiphenyl","PCB-084",null,null,null,null,null,null,"1671","USEPA","VOCs by GC/FID",null,null,null,"mgal/year","Millions of gallons per year"]
["38444-93-8","2,2',3,3'-Tetrachlorobiphenyl","PCB-040",null,null,null,null,null,null,"1673","USEPA","PEG-600 by Derivatization and HPLC",null,null,null,"mgd","Millions of gallons per day"]
["38380-04-0","2,2',3,4',5',6-Hexachlorobiphenyl","PCB-149",null,null,null,null,null,null,"1694","USEPA","Pharmaceuticals and personal care products in water, soil, sediment, and biosolids by HPLC/MS/MS",1,null,null,"mho/cm","Electrical conductivity, mhos per centimeter"]
["41464-51-1","2,2',3,4',5'-Pentachlorobiphenyl","PCB-097",null,null,null,null,null,null,"16A","USEPA","Total Reduced Sulfur Emissions in Air",null,null,null,"mi","Miles"]
["52663-68-0","2,2',3,4',5,5',6-Heptachlorobiphenyl","PCB-187",null,null,null,null,null,null,"16B","USEPA","Total Reduced Sulfur Emissions in Air",null,null,null,"mi2","Square miles"]
["51908-16-8","2,2',3,4',5,5'-Hexachlorobiphenyl","PCB-146",null,null,null,null,null,null,"17","USEPA","Particulate Emissions in Air",null,null,null,"micron","Micron"]
["74472-41-6","2,2',3,4',5,6'-Hexachlorobiphenyl","PCB-148",null,null,null,null,null,null,"170.1","USEPA","Temperature",4308,null,null,"minutes","Minutes"]
["74487-85-7","2,2',3,4',5,6,6'-Heptachlorobiphenyl","PCB-188",null,null,null,null,null,null,"18","USEPA","Gaseous Organic Compound Emission in Air",null,null,null,"mm","Millimeters"]
["68194-13-8","2,2',3,4',5,6-Hexachlorobiphenyl","PCB-147",null,null,null,null,null,null,"180.1","USEPA","Turbidity by Nephelometry",25960,null,null,"mm2","Square millimeters"]
["68194-07-0","2,2',3,4',5-Pentachlorobiphenyl","PCB-090",null,null,null,null,null,null,"1A","USEPA","Sample and Velocity Traverses",null,null,null,"mm3/L","Cubic millimeters per liter"]
["60233-25-2","2,2',3,4',6'-Pentachlorobiphenyl","PCB-098",null,null,null,null,null,null,"1AP73-7","ENV/CANADA","Ozone in the Atmosphere",null,null,null,"mmH2O","Pressure, millimeters of water"]
["68194-08-1","2,2',3,4',6,6'-Hexachlorobiphenyl","PCB-150",null,null,null,null,null,null,"1AP77-A","ENV/CANADA","Vinyl Chloride",null,null,null,"mmHg","Pressure, millimeters of mercury"]
["68194-05-8","2,2',3,4',6-Pentachlorobiphenyl","PCB-091",null,null,null,null,null,null,"1RM-1","ENV/CANADA","Hydrogen Chloride",null,null,null,"mmol/kg","Millimoles per kilogram"]
["36559-22-5","2,2',3,4'-Tetrachlorobiphenyl","PCB-042",null,null,null,null,null,null,"1RM-15","ENV/CANADA","Gaseous Emissions from Fossil Boilers",null,null,null,"mmol/m2/dy","Millimoles per square meter per day"]
["52663-69-1","2,2',3,4,4',5',6-Heptachlorobiphenyl","PCB-183",null,null,null,null,null,null,"1RM-19","ENV/CANADA","PCDDs and PCDFs",null,null,null,"mmol/m2/h","Millimoles per square meter per hour"]
["35065-28-2","2,2',3,4,4',5'-Hexachlorobiphenyl","PCB-138",null,null,null,null,null,null,"1RM-20","ENV/CANADA","Dibenzofuran and Dibenzo-p-dioxin",null,null,null,"mol/L","Moles per liter"]
["52663-76-0","2,2',3,4,4',5,5',6-Octachlorobiphenyl","PCB-203",null,null,null,null,null,null,"1RM-5","ENV/CANADA","Release of Mercury from Mercury Cell",null,null,null,"months","Months"]
["35065-29-3","2,2',3,4,4',5,5'-Heptachlorobiphenyl","PCB-180",null,null,null,null,null,null,"1RM-6","ENV/CANADA","Total Reduced Sulphur (TRS) Compounds",null,null,null,"mosm/kg","Milliosmole per kg"]
["60145-23-5","2,2',3,4,4',5,6'-Heptachlorobiphenyl","PCB-182",null,null,null,null,null,null,"1RM-7","ENV/CANADA","Lead",null,null,null,"mph","Miles per hour",406]
["74472-52-9","2,2',3,4,4',5,6,6'-Octachlorobiphenyl","PCB-204",null,null,null,null,null,null,"1SRM-1","ENV/CANADA","Hydrogen Sulfide",null,null,null,"mrem/d","Millirems per day"]
["74472-47-2","2,2',3,4,4',5,6-Heptachlorobiphenyl","PCB-181",null,null,null,null,null,null,"2.1 (ATM SO2)","USEPA","Sulfur Dioxide in the Atmosphere",null,null,null,"mrem/yr","Millirems per year"]
["35694-06-5","2,2',3,4,4',5-Hexachlorobiphenyl","PCB-137",null,null,null,null,null,null,"2.1(PART.PM10)","USEPA","Particulate Matter as PM10 in Atmosphere",null,null,null,"ms","Milliseconds"]
["59291-64-4","2,2',3,4,4',6'-Hexachlorobiphenyl","PCB-140",null,null,null,null,null,null,"2.11","USEPA","Particulate Matter as PM10 in Atmosphere",null,null,null,"nCi/L","Nanocuries per liter"]
["74472-48-3","2,2',3,4,4',6,6'-Heptachlorobiphenyl","PCB-184",null,null,null,null,null,null,"2.1A","USEPA","Sulfur Dioxide in the Atmosphere",null,null,null,"ng","Nanograms"]
["56030-56-9","2,2',3,4,4',6-Hexachlorobiphenyl","PCB-139",null,null,null,null,null,null,"2.2","USEPA","Suspended Particulates in the Atmosphere",null,null,null,"ng/L","Nanograms per liter",82492]
["65510-45-4","2,2',3,4,4'-Pentachlorobiphenyl","PCB-085",null,null,null,null,null,null,"2.3","USEPA","Nitrogen Dioxide in the Atmosphere",null,null,null,"ng/cm2","nanograms per square centimeter"]
["68194-14-9","2,2',3,4,5',6-Hexachlorobiphenyl","PCB-144",null,null,null,null,null,null,"2.6","USEPA","Carbon Monoxide in the Atmosphere",null,null,null,"ng/cm3","Nanograms per cubic centimeter"]
["38380-02-8","2,2',3,4,5'-Pentachlorobiphenyl","PCB-087",null,null,null,null,null,null,"2.8","USEPA","Lead in Suspended Particulate Matter",null,null,null,"ng/g","Nanograms per gram",5685]
["52712-05-7","2,2',3,4,5,5',6-Heptachlorobiphenyl","PCB-185",null,null,null,null,null,null,"2.9","USEPA","Sulfur Dioxide in the Atmosphere",null,null,null,"ng/kg","Nanograms per kilogram"]
["52712-04-6","2,2',3,4,5,5'-Hexachlorobiphenyl","PCB-141",null,null,null,null,null,null,"20","USEPA","Nitrogen Oxides and Sulfur Dioxide in Air",null,null,null,"ng/m2","Nanograms per square meter"]
["68194-15-0","2,2',3,4,5,6'-Hexachlorobiphenyl","PCB-143",null,null,null,null,null,null,"200","USEPA","Metals by Atomic Absorption",20,null,null,"ng/m3","Nanograms per cubic meter"]
["74472-49-4","2,2',3,4,5,6,6'-Heptachlorobiphenyl","PCB-186",null,null,null,null,null,null,"200.1","USEPA","Metals in Marine Waters by ICP/MS",null,null,null,"ng/mL","Nanograms per milliliter"]
["41411-61-4","2,2',3,4,5,6-Hexachlorobiphenyl","PCB-142",null,null,null,null,null,null,"200.1(FLAA)","USEPA","Acid Soluble Metals in Water by FLAA",null,null,null,"nm","Nanometers",13]
["55312-69-1","2,2',3,4,5-Pentachlorobiphenyl","PCB-086",null,null,null,null,null,null,"200.1(GFAA)","USEPA","Acid Soluble Metals in Water by GFAA",null,null,null,"nm-1","Inverse nanometers"]
["73575-57-2","2,2',3,4,6'-Pentachlorobiphenyl","PCB-089",null,null,null,null,null,null,"200.1(ICP)","USEPA","Acid Soluble Metals - ICP",null,null,null,"nmi","Nautical miles"]
["74472-40-5","2,2',3,4,6,6'-Hexachlorobiphenyl","PCB-145",null,null,null,null,null,null,"200.10_M","USEPA","Inductively Coupled Plasma",null,null,null,"nmi2","Square nautical miles"]
["55215-17-3","2,2',3,4,6-Pentachlorobiphenyl","PCB-088",null,null,null,null,null,null,"200.11","USEPA","Metals in Fish Tissue by ICP-AES",null,null,null,"nmol/g DW/h","Nanomoles per gram dry weight per hour"]
["52663-59-9","2,2',3,4-Tetrachlorobiphenyl","PCB-041",null,null,null,null,null,null,"200.12","USEPA","Elements in Water by Temperature GFAA",null,null,null,"nmol/h/g","Nanomoles per hour per gram"]
["38379-99-6","2,2',3,5',6-Pentachlorobiphenyl","PCB-095",null,null,null,null,null,null,"200.13","USEPA","Elements in Water by Chelation with GFAA",null,null,null,"nmol/kg","Nano-moles per Kilogram"]
["41464-39-5","2,2',3,5'-Tetrachlorobiphenyl","PCB-044",null,null,null,null,null,null,"200.15","USEPA","Metals in Water by Nebulization and ICP-AES",null,null,null,"nu","Number or gage"]
["52663-63-5","2,2',3,5,5',6-Hexachlorobiphenyl","PCB-151",null,null,null,null,null,null,"200.6","IL/SWSD","Ca, Mg, K and Na in Wet Deposition",null,null,null,"oz","Ounces"]
["52663-61-3","2,2',3,5,5'-Pentachlorobiphenyl","PCB-092",null,null,null,null,null,null,"200.62(B)","USEPA","Pneumatic Nebulization ICP Analysis",null,null,null,"pCi/L","Pico-Curies per Liter",2704]
["73575-55-0","2,2',3,5,6'-Pentachlorobiphenyl","PCB-094",null,null,null,null,null,null,"200.62(C)","USEPA","Hydride Generation ICP Analysis",null,null,null,"pCi/g","Pico-Curies per gram"]
["68194-09-2","2,2',3,5,6,6'-Hexachlorobiphenyl","PCB-152",null,null,null,null,null,null,"200.7","USEPA","Metals in Water by ICP-AES",13175,null,null,"pCi/m2","Pico-Curies per square meter"]
["73575-56-1","2,2',3,5,6-Pentachlorobiphenyl","PCB-093",null,null,null,null,null,null,"200.7(S)","USEPA","Metals in Soil by ICP-AES",2781,null,null,"pCi/m3","Pico-Curies per cubic meter"]
["70362-46-8","2,2',3,5-Tetrachlorobiphenyl","PCB-043",null,null,null,null,null,null,"200.7(W)","USEPA","Metals in Water by ICP-AES",4975,null,null,"pCi/mL","Pico-Curies per milliliter"]
["41464-47-5","2,2',3,6'-Tetrachlorobiphenyl","PCB-046",null,null,null,null,null,null,"200.7_M","USEPA","ICP-AES For Trace Element Analysis",null,null,null,"per m","Per meter"]
["73575-54-9","2,2',3,6,6'-Pentachlorobiphenyl","PCB-096",null,null,null,null,null,null,"200.8","USEPA","Metals in Waters by ICP/MS",8776,null,null,"pfu/100mL","Plaque Forming Units per 100 Milliliters"]
["70362-45-7","2,2',3,6-Tetrachlorobiphenyl","PCB-045",null,null,null,null,null,null,"200.8(S)","USEPA","Metals in Wastes by ICP/MS",2821,null,null,"pg","Picograms"]
["38444-78-9","2,2',3-Trichlorobiphenyl","PCB-016",null,null,null,null,null,null,"200.8(W)","USEPA","Metals in Waters by ICP/MS",4874,null,null,"pg/L","Picograms per liter",22]
["35065-27-1","2,2',4,4',5,5'-Hexachlorobiphenyl","PCB-153",null,null,null,null,null,null,"200.9","USEPA","Metals by Temperature Stabilized GFAA",5710,null,null,"pg/cm3","Picograms per cubic centimeter"]
["60145-22-4","2,2',4,4',5,6'-Hexachlorobiphenyl","PCB-154",null,null,null,null,null,null,"2000","NIOSH","Methanol by GC/FID",null,null,null,"pg/g","Picograms per gram"]
["38380-01-7","2,2',4,4',5-Pentachlorobiphenyl","PCB-099",null,null,null,null,null,null,"2002","NIOSH","Amines, Aromatics by GC/FID",null,null,null,"pg/kg","Picograms per kilogram"]
["33979-03-2","2,2',4,4',6,6'-Hexachlorobiphenyl","PCB-155",null,null,null,null,null,null,"2003","NIOSH","1,1,2,2-Tetrabromoethane by GC/FID",null,null,null,"pg/m2","Picograms per square meter"]
["39485-83-1","2,2',4,4',6-Pentachlorobiphenyl","PCB-100",null,null,null,null,null,null,"2004","NIOSH","Amides by GC/FID",null,null,null,"pg/m3","Picograms per cubic meter"]
["2437-79-8","2,2',4,4'-Tetrachlorobiphenyl","PCB-047",null,null,null,null,null,null,"2005","NIOSH","Nitrobenzenes by GC/FID",null,null,null,"ppb","Parts per billion",429]
["60145-21-3","2,2',4,5',6-Pentachlorobiphenyl","PCB-103",null,null,null,null,null,null,"2007","NIOSH","Amioethanol compound I",null,null,null,"ppm","Parts per million",192]
["41464-40-8","2,2',4,5'-Tetrachlorobiphenyl","PCB-049",null,null,null,null,null,null,"2008","NIOSH","Chloroacetic Acid by Ion Chromatography",null,null,null,"ppmv","Parts per million by volume",115]
["37680-73-2","2,2',4,5,5'-Pentachlorobiphenyl","PCB-101",null,null,null,null,null,null,"201(CSR)","USEPA","Determination of PM10 Emissions",null,null,null,"ppt","Parts per trillion",13144]
["68194-06-9","2,2',4,5,6'-Pentachlorobiphenyl","PCB-102",null,null,null,null,null,null,"201(EGR)","USEPA","Determination of PM10 Emissions",null,null,null,"ppth","Parts per thousand",70]
["70362-47-9","2,2',4,5-Tetrachlorobiphenyl","PCB-048",null,null,null,null,null,null,"2010","NIOSH","Amines, Aliphatic by GC/FID",null,null,null,"psi","Pressure, pounds per square inch"]
["68194-04-7","2,2',4,6'-Tetrachlorobiphenyl","PCB-051",null,null,null,null,null,null,"2011","NIOSH","Formic Acid by Ion Chromatography",null,null,null,"pt","Fluid pints"]
["56558-16-8","2,2',4,6,6'-Pentachlorobiphenyl","PCB-104",null,null,null,null,null,null,"2012","NIOSH","n-Butylamine by GC/FID",null,null,null,"qt","Fluid quarts"]
["62796-65-0","2,2',4,6-Tetrachlorobiphenyl","PCB-050",null,null,null,null,null,null,"2013","NIOSH","Phenyl Ether-Diphenyl Mixture by GC/FID",null,null,null,"s","Seconds"]
["37680-66-3","2,2',4-Trichlorobiphenyl","PCB-017",null,null,null,null,null,null,"2014","NIOSH","p-Chlorophenol by HPLC/UV",null,null,null,"tCaCO3/Kt","Tons of calcium carbonate per kiloton"]
["35693-99-3","2,2',5,5'-Tetrachlorobiphenyl","PCB-052",null,null,null,null,null,null,"2015","NIOSH","Chloroacetaldehyde by GC/ECD",null,null,null,"tons","Short tons"]
["41464-41-9","2,2',5,6'-Tetrachlorobiphenyl","PCB-053",null,null,null,null,null,null,"202","USEPA","Determination of Particulate Emission",null,null,null,"tons/ac ft","Tons per acre feet"]
["37680-65-2","2,2',5-Trichlorobiphenyl","PCB-018",null,null,null,null,null,null,"202.1","USEPA","Aluminum by FLAA",null,null,null,"tons/d","Tons per day"]
["15968-05-5","2,2',6,6'-Tetrachlorobiphenyl","PCB-054",null,null,null,null,null,null,"202.1_M","USEPA","Aluminum by FLAA",null,null,null,"uE/m2/s","Photosynth. radiation,micro-Einsteins/sq.meter/sec",2436]
["38444-73-4","2,2',6-Trichlorobiphenyl","PCB-019",null,null,null,null,null,null,"202.2","USEPA","Aluminum by GFAA",180,null,null,"uS/cm","Micro-Siemens per Centimeter",488944]
["119-91-5","2,2'-Biquinoline",null,null,null,null,null,null,null,"202.2_M","USEPA","Aluminum by GFAA",null,null,null,"ueq/L","Micro-equivalents per Liter"]
["5293-97-0","2,2'-Dichlorobenzophenone",null,null,null,null,null,null,null,"202.2_M/HG)","USEPA","Mercury in Industrial Wastes by CVAA",null,null,null,"ug","Micrograms"]
["13029-08-8","2,2'-Dichlorobiphenyl","PCB-004",null,null,null,null,null,null,"202.62(D)","USEPA","KOH Fusion Samples by GFAA",null,null,null,"ug/L","Micrograms per liter",5655187]
["2408-37-9","2,2,6-Trimethylcyclohexanone",null,null,null,null,null,null,null,"203","USEPA","Determination of Opacity of Emissions",null,null,null,"ug/cart","Microgram per cartridge"]
["10222-01-2","2,2-Dibromo-3-nitrilopropionamide",null,null,null,null,null,null,null,"203A","USEPA","Time-Averaged Opacity of Emissions",null,null,null,"ug/cm2","micrograms per square centimeters"]
["594-20-7","2,2-Dichloropropane",null,67383,null,null,null,null,null,"203B","USEPA","Opacity of Emission - Time Exception Regs.",null,null,null,"ug/cm2/d","Micrograms per square centimeter per day"]
["463-82-1","2,2-Dimethylpropane",null,null,null,null,null,null,null,"203C","USEPA","Opacity of Emission - Instantaneous Regs.",null,null,null,"ug/cm3","Micrograms per cubic centimeter"]
["7146-60-3","2,3 Dimethyloctane",null,null,null,null,null,null,null,"204.1","USEPA","Antimony by FLAA",null,null,null,"ug/g","Micrograms per gram",1830]
["74472-39-2","2,3',4',5',6-Pentachlorobiphenyl","PCB-125",null,null,null,null,null,null,"204.1_M","USEPA","Antimony by FLAA",null,null,null,"ug/g DW/h","Micrograms per gram dry weight per hour"]
["70362-48-0","2,3',4',5'-Tetrachlorobiphenyl","PCB-076",null,null,null,null,null,null,"204.2","USEPA","Antimony by GFAA",20,null,null,"ug/h/g","Micrograms per hour per gram"]
["70424-70-3","2,3',4',5,5'-Pentachlorobiphenyl","PCB-124",null,null,null,null,null,null,"204.2_M","USEPA","Antimony by GFAA",null,null,null,"ug/kg","Micrograms per kilogram",5]
["32598-11-1","2,3',4',5-Tetrachlorobiphenyl","PCB-070",null,null,null,null,null,null,"206.2","USEPA","Arsenic by GFAA",5058,null,null,"ug/m2","Micrograms per square meter"]
["41464-46-4","2,3',4',6-Tetrachlorobiphenyl","PCB-071",null,null,null,null,null,null,"206.2_M","USEPA","Arsenic by GFAA",null,null,null,"ug/m3","Micrograms per cubic meter"]
["38444-86-9","2,3',4'-Trichlorobiphenyl","PCB-033",null,null,null,null,null,null,"206.3","USEPA","Arsenic by HYDAA",null,null,null,"um3/L","Cubic microns per liter"]
["59291-65-5","2,3',4,4',5',6-Hexachlorobiphenyl","PCB-168",null,null,null,null,null,null,"206.3_M","USEPA","Hydride Generation ICP",null,null,null,"um3/cm2","Cubic microns per square cm"]
["65510-44-3","2,3',4,4',5'-Pentachlorobiphenyl","PCB-123",null,null,null,null,null,null,"206.4","USEPA","Arsenic by Spectrophotometric Analysis",null,null,null,"um3/ml","Cubic microns per ml"]
["52663-72-6","2,3',4,4',5,5'-Hexachlorobiphenyl","PCB-167",null,null,null,null,null,null,"206.5","USEPA","Arsenic Digestion for HYDAA",null,null,null,"umho","Electrical conductance, micro-mhos",24]
["31508-00-6","2,3',4,4',5-Pentachlorobiphenyl","PCB-118",null,null,null,null,null,null,"208.1","USEPA","Barium by FLAA",null,null,null,"umho/cm","Electrical conductivity, micro-mhos per centimeter",73821]
["56558-17-9","2,3',4,4',6-Pentachlorobiphenyl","PCB-119",null,null,null,null,null,null,"208.1_M","USEPA","Barium by FLAA",null,null,null,"umol","Micro mole"]
["32598-10-0","2,3',4,4'-Tetrachlorobiphenyl","PCB-066",null,null,null,null,null,null,"208.2","USEPA","Barium by GFAA",356,null,null,"umol/S/m2","Micro moles per siemen per square meter"]
["56558-18-0","2,3',4,5',6-Pentachlorobiphenyl","PCB-121",null,null,null,null,null,null,"208.2_M","USEPA","Barium by GFAA",null,null,null,"umol/g","Micromoles per gram",47]
["73575-52-7","2,3',4,5'-Tetrachlorobiphenyl","PCB-068",null,null,null,null,null,null,"210.1","USEPA","Beryllium by FLAA",null,null,null,"umol/m2/s","Micro moles per square meter per second"]
["68194-12-7","2,3',4,5,5'-Pentachlorobiphenyl","PCB-120",null,null,null,null,null,null,"210.1_M","USEPA","Beryllium by FLAA",null,null,null,"units/cm","Units per centimeter, for UV absorbance",136]
["73575-53-8","2,3',4,5-Tetrachlorobiphenyl","PCB-067",null,null,null,null,null,null,"210.2","USEPA","Beryllium by GFAA",21,null,null,"weeks","Weeks"]
["60233-24-1","2,3',4,6-Tetrachlorobiphenyl","PCB-069",null,null,null,null,null,null,"210.2_M","USEPA","Beryllium by GFAA",null,null,null,"y/m/d","Year/month/day"]
["55712-37-3","2,3',4-Trichlorobiphenyl","PCB-025",null,null,null,null,null,null,"211.1","USFDA","Organochlorine Residues for Fatty Foods",null,null,null,"yd","Yards"]
["74338-23-1","2,3',5',6-Tetrachlorobiphenyl","PCB-073",null,null,null,null,null,null,"2110","MNPCA","Visual Appearance",90,null,null,"yd2","Square yards"]
["37680-68-5","2,3',5'-Trichlorobiphenyl","PCB-034",null,null,null,null,null,null,"212.3","USEPA","Boron by Colorimetric Analysis",1,null,null,"yd3","Cubic yards"]
["41464-42-0","2,3',5,5'-Tetrachlorobiphenyl","PCB-072",null,null,null,null,null,null,"2120-B","APHA","Color in Water by Visual Comparison",1639,null,null,"years","Years"]
["38444-81-4","2,3',5-Trichlorobiphenyl","PCB-026",null,null,null,null,null,null,"2120-C","APHA","Color in Water by Spectrophotometry",345]
["38444-76-7","2,3',6-Trichlorobiphenyl","PCB-027",null,null,null,null,null,null,"2120-D","APHA","Color in Water Using Tristimulus Filters"]
["25569-80-6","2,3'-Dichlorobiphenyl","PCB-006",null,null,null,null,null,null,"2120-E","APHA","Color in Water Using the ADMI Method"]
["74472-45-0","2,3,3',4',5',6-Hexachlorobiphenyl","PCB-164",null,null,null,null,null,null,"213.1","USEPA","Cadmium by FLAA"]
["76842-07-4","2,3,3',4',5'-Pentachlorobiphenyl","PCB-122",null,null,null,null,null,null,"213.1_M","USEPA","Cadmium by FLAA"]
["69782-91-8","2,3,3',4',5,5',6-Heptachlorobiphenyl","PCB-193",null,null,null,null,null,null,"213.2","USEPA","Cadmium by GFAA",4147]
["39635-34-2","2,3,3',4',5,5'-Hexachlorobiphenyl","PCB-162",null,null,null,null,null,null,"213.2_M","USEPA","Cadmium by GFAA"]
["74472-44-9","2,3,3',4',5,6-Hexachlorobiphenyl","PCB-163",null,null,null,null,null,null,"2130","APHA","Turbidity in Water",10553]
["70424-68-9","2,3,3',4',5-Pentachlorobiphenyl","PCB-107",null,null,null,null,null,null,"2130-B","APHA","Nephelometric Method",30903]
["38380-03-9","2,3,3',4',6-Pentachlorobiphenyl","PCB-110",null,null,null,null,null,null,"215.1","USEPA","Calcium by FLAA",2464]
["41464-43-1","2,3,3',4'-Tetrachlorobiphenyl","PCB-056",null,null,null,null,null,null,"215.1_M","USEPA","Calcium by FLAA"]
["74472-50-7","2,3,3',4,4',5',6-Heptachlorobiphenyl","PCB-191",null,null,null,null,null,null,"215.2","USEPA","Calcium by EDTA Titrimetric Analysis"]
["69782-90-7","2,3,3',4,4',5'-Hexachlorobiphenyl","PCB-157",null,null,null,null,null,null,"2150","APHA","Odor in Water by Threshold Testing"]
["74472-53-0","2,3,3',4,4',5,5',6-Octachlorobiphenyl","PCB-205",null,null,null,null,null,null,"2160-B","APHA","Taste in Water by Flavor Threshold Test"]
["39635-31-9","2,3,3',4,4',5,5'-Heptachlorobiphenyl","PCB-189",null,null,null,null,null,null,"2160-C","APHA","Taste in Water by Flavor Rating"]
["41411-64-7","2,3,3',4,4',5,6-Heptachlorobiphenyl","PCB-190",null,null,null,null,null,null,"2170","APHA","Taste and Odor by Profile Analysis"]
["38380-08-4","2,3,3',4,4',5-Hexachlorobiphenyl","PCB-156",null,null,null,null,null,null,"218.1","USEPA","Chromium by FLAA"]
["74472-42-7","2,3,3',4,4',6-Hexachlorobiphenyl","PCB-158",null,null,null,null,null,null,"218.1_M","USEPA","Chromium by FLAA"]
["32598-14-4","2,3,3',4,4'-Pentachlorobiphenyl","PCB-105",null,null,null,null,null,null,"218.2","USEPA","Chromium by GFAA",823]
["74472-43-8","2,3,3',4,5',6-Hexachlorobiphenyl","PCB-161",null,null,null,null,null,null,"218.2_M","USEPA","Chromium by GFAA"]
["70362-41-3","2,3,3',4,5'-Pentachlorobiphenyl","PCB-108",null,null,null,null,null,null,"218.3","USEPA","Chromium by Chelation Extraction FLAA"]
["74472-51-8","2,3,3',4,5,5',6-Heptachlorobiphenyl","PCB-192",null,null,null,null,null,null,"218.4","USEPA","Hexavalent Chromium by FLAA"]
["39635-35-3","2,3,3',4,5,5'-Hexachlorobiphenyl","PCB-159",null,null,null,null,null,null,"218.5","USEPA","Hexavalent Chromium by GFAA"]
["41411-62-5","2,3,3',4,5,6-Hexachlorobiphenyl","PCB-160",null,null,null,null,null,null,"218.6","USEPA","Hexavalent Chromium by Ion Chromatograph"]
["70424-69-0","2,3,3',4,5-Pentachlorobiphenyl","PCB-106",null,null,null,null,null,null,"219.1","USEPA","Cobalt by FLAA"]
["74472-35-8","2,3,3',4,6-Pentachlorobiphenyl","PCB-109",null,null,null,null,null,null,"219.1_M","USEPA","Cobalt by FLAA"]
["74338-24-2","2,3,3',4-Tetrachlorobiphenyl","PCB-055",null,null,null,null,null,null,"219.2","USEPA","Cobalt by GFAA",190]
["68194-10-5","2,3,3',5',6-Pentachlorobiphenyl","PCB-113",null,null,null,null,null,null,"219.2_M","USEPA","Cobalt by GFAA"]
["41464-49-7","2,3,3',5'-Tetrachlorobiphenyl","PCB-058",null,null,null,null,null,null,"220.1","USEPA","Copper by FLAA"]
["74472-46-1","2,3,3',5,5',6-Hexachlorobiphenyl","PCB-165",null,null,null,null,null,null,"220.1_M","USEPA","Copper by FLAA"]
["39635-32-0","2,3,3',5,5'-Pentachlorobiphenyl","PCB-111",null,null,null,null,null,null,"220.2","USEPA","Copper by GFAA",334]
["74472-36-9","2,3,3',5,6-Pentachlorobiphenyl","PCB-112",null,null,null,null,null,null,"220.2_M","USEPA","Copper by GFAA"]
["70424-67-8","2,3,3',5-Tetrachlorobiphenyl","PCB-057",null,null,null,null,null,null,"221.1","USFDA","Chlorophenoxy Acid and Pentachlorophenol"]
["74472-33-6","2,3,3',6-Tetrachlorobiphenyl","PCB-059",null,null,null,null,null,null,"23","USEPA","PCDDs and PCDFs in Air Emissions"]
["38444-84-7","2,3,3'-Trichlorobiphenyl","PCB-020",null,null,null,null,null,null,"231.1","USEPA","Gold by FLAA"]
["68194-11-6","2,3,4',5,6-Pentachlorobiphenyl","PCB-117",null,null,null,null,null,null,"231.2","USEPA","Gold by GFAA"]
["74472-34-7","2,3,4',5-Tetrachlorobiphenyl","PCB-063",null,null,null,null,null,null,"2310","APHA","Acidity in Water by Titration",2]
["52663-58-8","2,3,4',6-Tetrachlorobiphenyl","PCB-064",null,null,null,null,null,null,"2320","APHA","Alkalinity in Water by Titration",11374]
["38444-85-8","2,3,4'-Trichlorobiphenyl","PCB-022",null,null,null,null,null,null,"2320-B","APHA","Alkalinity by Gran Titration",16211]
["41411-63-6","2,3,4,4',5,6-Hexachlorobiphenyl","PCB-166",null,null,null,null,null,null,"2340B","APHA","Hardness by Calculation",4076]
["74472-37-0","2,3,4,4',5-Pentachlorobiphenyl","PCB-114",null,null,null,null,null,null,"2340C","APHA_SM20ED","Hardness in Water by EDTA Titration",5335]
["74472-38-1","2,3,4,4',6-Pentachlorobiphenyl","PCB-115",null,null,null,null,null,null,"235.1","USEPA","Iridium by FLAA"]
["33025-41-1","2,3,4,4'-Tetrachlorobiphenyl","PCB-060",null,null,null,null,null,null,"235.2","USEPA","Iridium by GFAA"]
["18259-05-7","2,3,4,5,6-Pentachlorobiphenyl","PCB-116",null,null,null,null,null,null,"2350-B","APHA","Chlorine Demand/Requirement of Water"]
["33284-53-6","2,3,4,5-Tetrachlorobiphenyl","PCB-061",null,null,null,null,null,null,"2350-C","APHA","Chlorine Dioxide Demand/Requirement of Water"]
["4901-51-3","2,3,4,5-Tetrachlorophenol",null,null,null,null,null,null,null,"2350-D","APHA","Ozone Demand or Requirement of Water- Batch Method"]
["60851-34-5","2,3,4,6,7,8-Hexachlorodibenzofuran",null,5,null,null,null,null,null,"2350-E","APHA","Ozone Demand or Requirement of Water- Semi-Batch Method"]
["57117-43-8","2,3,4,6,7-Pentachlorodibenzofuran",null,null,null,null,null,null,null,"236.1","USEPA","Iron by FLAA"]
["54230-22-7","2,3,4,6-Tetrachlorobiphenyl","PCB-062",null,null,null,null,null,null,"236.1_M","USEPA","Iron by FLAA"]
["58-90-2","2,3,4,6-Tetrachlorophenol",null,669,null,null,null,null,null,"236.2","USEPA","Iron by GFAA",293]
["57117-31-4","2,3,4,7,8-Pentachlorodibenzofuran",null,5,null,null,null,null,null,"236.2_M","USEPA","Iron by GFAA"]
["55702-46-0","2,3,4-Trichlorobiphenyl","PCB-021",null,null,null,null,null,null,"239.1","USEPA","Lead by FLAA",2]
["33284-54-7","2,3,5,6-Tetrachlorobiphenyl","PCB-065",null,null,null,null,null,null,"239.1_M","USEPA","Lead by FLAA"]
["935-95-5","2,3,5,6-Tetrachlorophenol",null,null,null,null,null,null,null,"239.2","USEPA","Lead by GFAA",4324]
["55720-44-0","2,3,5-Trichlorobiphenyl","PCB-023",null,null,null,null,null,null,"239.2_M","USEPA","Lead by GFAA"]
["55702-45-9","2,3,6-Trichlorobiphenyl","PCB-024",null,null,null,null,null,null,"242.1","USEPA","Magnesium by FLAA",2795]
["933-75-5","2,3,6-Trichlorophenol",null,null,null,null,null,null,null,"242.1_M","USEPA","Magnesium by FLAA"]
["829-26-5","2,3,6-Trimethylnaphthalene",null,null,null,null,null,null,null,"242.4","USFDA","Substituted Urea Herbicides"]
["1746-01-6","2,3,7,8-Tetrachlorodibenzo-p-dioxin","TCDD",109,null,null,null,null,null,"243.1","USEPA","Manganese by FLAA"]
["51207-31-9","2,3,7,8-Tetrachlorodibenzofuran",null,4,null,null,null,null,null,"243.1_M","USEPA","Manganese by FLAA"]
["600-05-5","2,3-Dibromopropionic acid",null,null,null,null,null,null,null,"243.2","USEPA","Manganese by GFAA",2795]
["16605-91-7","2,3-Dichlorobiphenyl","PCB-005",null,null,null,null,null,null,"243.2_M","USEPA","Manganese by GFAA"]
["78-88-6","2,3-Dichloropropene",null,440,null,null,null,null,null,"245.1","USEPA","Mercury in Water by CVAA",6020]
["4166-46-5","2,3-Dimethyl-3-hexanol",null,null,null,null,null,null,null,"245.1_M","USEPA","Mercury in Water by Manual CVAA"]
["16606-02-3","2,4',5-Trichlorobiphenyl","PCB-031",null,null,null,null,null,null,"245.2","USEPA","Mercury by CVAA",2354]
["38444-77-8","2,4',6-Trichlorobiphenyl","PCB-032",null,null,null,null,null,null,"245.2_M","USEPA","Mercury in Water by Automated CVAA"]
["34883-43-7","2,4'-Dichlorobiphenyl","PCB-008",null,null,null,null,null,null,"245.3","USEPA","Mercury in Water by HPLC"]
["32690-93-0","2,4,4',5-Tetrachlorobiphenyl","PCB-074",null,null,null,null,null,null,"245.5","USEPA","Mercury in Sediment by CVAA"]
["32598-12-2","2,4,4',6-Tetrachlorobiphenyl","PCB-075",null,null,null,null,null,null,"245.5_M","USEPA","Mercury in Soil and Sediment by CVAA"]
["7012-37-5","2,4,4'-Trichlorobiphenyl","PCB-028",null,null,null,null,null,null,"245.6","USEPA","Mercury in Tissue by CVAA"]
["93-76-5","2,4,5-T",null,1645,null,null,null,null,null,"245.7","USEPA","Mercury in water by cold-vapor atomic fluorescence spectrometry",2369]
["25168-15-4","2,4,5-T isooctyl ester",null,null,null,null,null,null,null,"246.1","USEPA","Molybdenum by FLAA"]
["93-78-7","2,4,5-T isopropyl ester",null,null,null,null,null,null,null,"246.2","USEPA","Molybdenum by GFAA",30]
["93-80-1","2,4,5-TB",null,null,null,null,null,null,null,"249.1","USEPA","Nickel by FLAA"]
["93-72-1","2,4,5-TP",null,1650,null,null,null,null,null,"249.1_M","USEPA","Nickel by FLAA"]
["15862-07-4","2,4,5-Trichlorobiphenyl","PCB-029",null,null,null,null,null,null,"249.2","USEPA","Nickel by GFAA",229]
["95-95-4","2,4,5-Trichlorophenol",null,719,null,null,null,null,null,"249.2_M","USEPA","Nickel by GFAA"]
["29990-39-4","2,4,5-Trichlorophenoxypropanoic acid",null,null,null,null,null,null,null,"25","USEPA","Total Gaseous Nonmethane Organic Emissions"]
["528-90-5","2,4,5-Trimethylbenzoic acid",null,null,null,null,null,null,null,"2500","NIOSH","Methyl Ethyl Ketone by GC/FID"]
["118-79-6","2,4,6-Tribromophenol",null,25,null,null,null,null,null,"2501","NIOSH","Acrolein"]
["35693-92-6","2,4,6-Trichlorobiphenyl","PCB-030",null,null,null,null,null,null,"2504","NIOSH","Tetraethyl Pyrophosphate by GC/FPD"]
["88-06-2","2,4,6-Trichlorophenol","TCPh",797,null,null,null,null,null,"2505","NIOSH","Furfuryl Alcohol by GC/FID"]
["480-63-7","2,4,6-Trimethylbenzoic acid",null,null,null,null,null,null,null,"2506","NIOSH","Acetone Cyanohydrin"]
["527-60-6","2,4,6-Trimethylphenol",null,null,null,null,null,null,null,"2507","NIOSH","Nitroglycerin GC/ECD"]
["732-26-3","2,4,6-Tris(tert-butyl)phenol",null,null,null,null,null,null,null,"2508","NIOSH","Isophorone by GC/FID"]
["94-75-7","2,4-D",null,5107,null,null,null,null,null,"2510","APHA","Conductivity in Water",6662]
["1928-43-4","2,4-D 2-ethylhexyl ester",null,null,null,null,null,null,null,"2510B","APHA","Conductivity - Laboratory Method",1238]
["1713-15-1","2,4-D isobutyl ester",null,null,null,null,null,null,null,"2513","NIOSH","Ethylene Chlorohydrin by GC/FID"]
["94-11-1","2,4-D isopropyl ester",null,null,null,null,null,null,null,"2514","NIOSH","Anisidine"]
["94-79-1","2,4-D sec-butyl ester",null,null,null,null,null,null,null,"2515","NIOSH","Diazomethane by GC/FID"]
["94-82-6","2,4-DB",null,1706,null,null,null,null,null,"2516","NIOSH","Dichlorofluoromethane by GC/FID"]
["615-58-7","2,4-Dibromophenol",null,null,null,null,null,null,null,"2517","NIOSH","Pentachloroethane by GC/ECD"]
["33284-50-3","2,4-Dichlorobiphenyl","PCB-007",null,null,null,null,null,null,"2518","NIOSH","Hexachloro-1,3-Cyclopentadiene by GC/ECD"]
["611-06-3","2,4-Dichloronitrobenzene",null,null,null,null,null,null,null,"2519","NIOSH","Ethyl Chloride by GC/FID"]
["120-83-2","2,4-Dichlorophenol",null,861,null,null,null,null,null,"252.1","USEPA","Osmium by FLAA"]
["105-67-9","2,4-Dimethylphenol",null,999,null,null,null,null,null,"252.2","USEPA","Osmium by GFAA"]
["51-28-5","2,4-Dinitrophenol",null,797,null,null,null,null,null,"2520-B","APHA","Salinity in Water- Electrical Conductivity Method"]
["121-14-2","2,4-Dinitrotoluene",null,775,null,null,null,null,null,"2520-C","APHA","Salinity in Water- Density Method"]
["95-80-7","2,4-Toluenediamine",null,null,null,null,null,null,null,"2520-D","APHA","Salinity in Water- Algorithm of Practical Salinity"]
["34883-39-1","2,5-Dichlorobiphenyl","PCB-009",null,null,null,null,null,null,"2521","NIOSH","Methylcyclohexanone by GC/FID"]
["583-78-8","2,5-Dichlorophenol",null,null,null,null,null,null,null,"2522","NIOSH","Nitrosamine by GC/TEA"]
["41239-48-9","2,5-Diethyltetrahydrofuran",null,null,null,null,null,null,null,"2523","NIOSH","1,3-Cyclopentadiene by GC/FID"]
["625-86-5","2,5-Dimethylfuran",null,null,null,null,null,null,null,"2524","NIOSH","Dimethyl Sulfate by GC/ECD"]
["638-02-8","2,5-Dimethylthiophene",null,null,null,null,null,null,null,"2526","NIOSH","Nitroethane by GC/FID"]
["7683-64-9","2,6,10,15,19,23-Hexamethyl-2,6,10,14,18,22-tetracosahexaene","Squalene",null,null,null,null,null,null,"2527","NIOSH","Nitromethane GC/ECD"]
["128-37-0","2,6-Di-tert-butyl-p-cresol","BHT",null,null,null,null,null,null,"2528","NIOSH","2-Nitropropane GC/FID"]
["719-22-2","2,6-Di-tert-butylbenzoquinone",null,null,null,null,null,null,null,"2529","NIOSH","Furfural Gas Chromatography/FID"]
["128-39-2","2,6-Di-tert-butylphenol",null,null,null,null,null,null,null,"253.1","USEPA","Palladium by FLAA"]
["2432-12-4","2,6-Dichloro-4-methylphenol",null,null,null,null,null,null,null,"253.2","USEPA","Palladium by GFAA"]
["2008-58-4","2,6-Dichlorobenzamide",null,10,null,null,null,null,null,"2530","NIOSH","Diphenyl by GC/FID"]
["33146-45-1","2,6-Dichlorobiphenyl","PCB-010",null,null,null,null,null,null,"2530-B","APHA","Particulate Floatables in Water"]
["87-65-0","2,6-Dichlorophenol",null,662,null,null,null,null,null,"2530-C","APHA","Floatable Oil and Grease in Water",46]
["118-69-4","2,6-Dichlorotoluene",null,null,null,null,null,null,null,"2532","NIOSH","Glutaraldehyde by HPLC/UV"]
["579-66-8","2,6-Diethylaniline",null,null,null,null,null,null,null,"2533","NIOSH","Tetraethyl Lead (as Pb) by GC/PID"]
["581-42-0","2,6-Dimethylnaphthalene",null,null,null,null,null,null,null,"2534","NIOSH","Tetramethyl Lead (as Pb) by GC/PID"]
["609-93-8","2,6-Dinitro-p-cresol",null,null,null,null,null,null,null,"2535","NIOSH","Toluene-2,4-Diisocyanate by HPLC/UV"]
["606-20-2","2,6-Dinitrotoluene",null,775,null,null,null,null,null,"2536","NIOSH","Valeraldehyde by GC/FID"]
["582-16-1","2,7-Dimethylnaphthalene",null,null,null,null,null,null,null,"2537","NIOSH","Methyl Methacrylate by GC/FID"]
["615-22-5","2-(Methylthio)benzothiazole",null,null,null,null,null,null,null,"2538","NIOSH","Acetaldehyde by GC"]
["N-ETFOSE","2-(N-ethylperfluoro-1-octanesulfonamido)-ethanol","N-EtFOSE",null,null,null,null,null,null,"2539","NIOSH","Aldehydes, Screening"]
["N-MEFOSE","2-(N-methylperfluoro-1-octanesulfonamido)-ethanol","N-MeFOSE",null,null,null,null,null,null,"2540","NIOSH","Organics by HPLC/UV"]
["53-96-3","2-Acetylaminofluorene",null,9,null,null,null,null,null,"2540-B","APHA","Total Solids Dried 103-105C in Water",4673]
["35572-78-2","2-Amino-4,6-dinitrotoluene",null,null,null,null,null,null,null,"2540-C","APHA","Total Dissolved Solids in Water",17482]
["3017-95-6","2-Bromo-1-chloropropane",null,null,null,null,null,null,null,"2540-D","APHA","Total Suspended Solids in Water",108842]
["78-92-2","2-Butanol",null,null,null,null,null,null,null,"2540-E","APHA","Fixed and Volatile Solids in Water",16113]
["85-70-1","2-Butoxy-2-oxoethyl butyl phthalate",null,null,null,null,null,null,null,"2540-F","APHA","Settleable Solids in Water",508]
["3913-02-8","2-Butyloctanol",null,null,null,null,null,null,null,"2540-G","APHA","Total, Fixed and Volatile Solids",22]
["1674-30-2","2-Chloro-1-phenylethanol",null,null,null,null,null,null,null,"2541","NIOSH","Formaldehyde by GC/FID"]
["615-20-3","2-Chlorobenzothiazole",null,null,null,null,null,null,null,"2542","NIOSH","Methyl-, Ethyl- and n-Butyl Mercaptans"]
["2051-60-7","2-Chlorobiphenyl","PCB-001",null,null,null,null,null,null,"2543","NIOSH","Hexachlorobutadiene by GC/ECD"]
["1561-86-0","2-Chlorocyclohexanol",null,null,null,null,null,null,null,"2544","NIOSH","Nicotine by GC/NPD"]
["107-07-3","2-Chloroethanol",null,null,null,null,null,null,null,"2545","NIOSH","Allyl Glycidyl Ether by GC/FID"]
["110-75-8","2-Chloroethyl vinyl ether",null,2703,null,null,null,null,null,"2546","NIOSH","Cresol and Phenol by GC/FID"]
["91-58-7","2-Chloronaphthalene",null,775,null,null,null,null,null,"255.1","USEPA","Platinum by FLAA"]
["75-29-6","2-Chloropropane",null,null,null,null,null,null,null,"255.2","USEPA","Platinum by GFAA"]
["76341-69-0","2-Chlorosyringaldehyde",null,null,null,null,null,null,null,"2550","APHA","Temperature of Water by Thermometer",14970]
["822-67-3","2-Cyclohexen-1-ol",null,null,null,null,null,null,null,"2560-B","APHA","Particle Counting by Electrical Sensing"]
["930-68-7","2-Cyclohexen-1-one",null,null,null,null,null,null,null,"2560-C","APHA","Particle Counting by Light-Blockage"]
["1011-12-7","2-Cyclohexylidenecyclohexanone",null,null,null,null,null,null,null,"2560-D","APHA","Particle Counting by Light-Scattering"]
["693-54-9","2-Decanone",null,null,null,null,null,null,null,"2570-B","APHA","Asbestos in Water by TEM"]
["110-80-5","2-Ethoxyethanol",null,null,null,null,null,null,null,"258.1","USEPA","Potassium by FLAA",2930]
["94-96-2","2-Ethyl-1,3-hexanediol",null,null,null,null,null,null,null,"258.1_M","USEPA","Potassium by FLAA"]
["126-39-6","2-Ethyl-2-methyl-1,3-dioxolane",null,null,null,null,null,null,null,"2580","APHA","Oxidation-Reduction Potential of Water",3123]
["4359-46-0","2-Ethyl-4-methyl-1,3-dioxolane",null,null,null,null,null,null,null,"25A","USEPA","Total Gaseous Organic Emissions"]
["2870-04-4","2-Ethyl-m-xylene",null,null,null,null,null,null,null,"25B","USEPA","Total Gaseous Organic Emissions"]
["1758-88-9","2-Ethyl-p-xylene",null,null,null,null,null,null,null,"25C","USEPA","Nonmethane Organics in Landfill Gases"]
["149-57-5","2-Ethylhexanoic acid",null,null,null,null,null,null,null,"25D","USEPA","Volatile Organic Concentration in Waste"]
["104-76-7","2-Ethylhexanol",null,null,null,null,null,null,null,"25E","USEPA","Vapor Phase Organic Concentration in Waste"]
["1241-94-7","2-Ethylhexyl diphenyl phosphate","Octicizer",null,null,null,null,null,null,"26","USEPA","Hydrogen Chloride from Stationary Sources"]
["939-27-5","2-Ethylnaphthalene",null,null,null,null,null,null,null,"264.1","USEPA","Rhenium by FLAA"]
["21571-34-6","2-Fluoro-4-nitrophenol potassium salt",null,null,null,null,null,null,null,"264.2","USEPA","Rhenium by GFAA"]
["1526-17-6","2-Fluoro-6-nitrophenol",null,null,null,null,null,null,null,"265.1","USEPA","Rhodium by FLAA"]
["321-60-8","2-Fluorobiphenyl",null,25,null,null,null,null,null,"265.2","USEPA","Rhodium by GFAA"]
["110-43-0","2-Heptanone",null,null,null,null,null,null,null,"267.1","USEPA","Ruthenium by FLAA"]
["626-93-7","2-Hexanol",null,null,null,null,null,null,null,"267.2","USEPA","Ruthenium by GFAA"]
["591-78-6","2-Hexanone",null,115,null,null,null,null,null,"26A","USEPA","Hydrogen Halide/Halogen by Isokinetic"]
["131-57-7","2-Hydroxy-4-methoxybenzophenone",null,null,null,null,null,null,null,"270.2","USEPA","Selenium by GFAA",324]
["109-86-4","2-Methoxyethanol",null,null,null,null,null,null,null,"270.2_M","USEPA","Selenium by GFAA"]
["497-26-7","2-Methyl-1,3-dioxolane",null,null,null,null,null,null,null,"270.3","USEPA","Selenium by FLAA"]
["149-31-5","2-Methyl-1,3-pentanediol",null,null,null,null,null,null,null,"272.1","USEPA","Silver by FLAA"]
["137-32-6","2-Methyl-1-butanol",null,null,null,null,null,null,null,"272.1_M","USEPA","Silver by FLAA"]
["56253-64-6","2-Methyl-1-phenyl-1-butene",null,null,null,null,null,null,null,"272.2","USEPA","Silver by GFAA",448]
["75-85-4","2-Methyl-2-butanol",null,null,null,null,null,null,null,"272.2_M","USEPA","Silver by GFAA"]
["115-19-5","2-Methyl-3-butyn-2-ol",null,null,null,null,null,null,null,"273.1","USEPA","Sodium by FLAA",23]
["565-67-3","2-Methyl-3-pentanol",null,null,null,null,null,null,null,"273.1_M","USEPA","Sodium by FLAA"]
["565-69-5","2-Methyl-3-pentanone",null,null,null,null,null,null,null,"273.2","USEPA","Sodium by GFAA",2550]
["7492-38-8","2-Methyl-4-octanone",null,null,null,null,null,null,null,"279.1","USEPA","Thallium by FLAA"]
["99-55-8","2-Methyl-5-nitroaniline",null,9,null,null,null,null,null,"279.1_M","USEPA","Thallium by FLAA"]
["613-12-7","2-Methylanthracene",null,null,null,null,null,null,null,"279.2","USEPA","Thallium by GFAA",36]
["96-17-3","2-Methylbutanal",null,null,null,null,null,null,null,"279.2_M","USEPA","Thallium by GFAA"]
["78-78-4","2-Methylbutane",null,11,null,null,null,null,null,"2810","APHA","Dissolved Gas Supersaturation"]
["583-60-8","2-Methylcyclohexanone",null,null,null,null,null,null,null,"282.1","USEPA","Tin by FLAA"]
["1120-72-5","2-Methylcyclopentanone",null,null,null,null,null,null,null,"282.2","USEPA","Tin by GFAA",28]
["534-22-5","2-Methylfuran",null,null,null,null,null,null,null,"283.1","USEPA","Titanium by FLAA"]
["591-76-4","2-Methylhexane",null,null,null,null,null,null,null,"283.2","USEPA","Titanium by GFAA"]
["91-57-6","2-Methylnaphthalene",null,750,null,null,null,null,null,"286.1","USEPA","Vanadium by FLAA"]
["107-83-5","2-Methylpentane",null,1,null,null,null,null,null,"286.1_M","USEPA","Vanadium by FLAA"]
["109-06-8","2-Methylpyridine",null,648,null,null,null,null,null,"286.2","USEPA","Vanadium by GFAA",133]
["91-59-8","2-Naphthalenamine",null,683,null,null,null,null,null,"286.2_M","USEPA","Vanadium by GFAA"]
["117-27-1","2-Nitro-1,1-bis(p-chlorophenyl)propane","Prolan",null,null,null,null,null,null,"289.1","USEPA","Zinc by FLAA"]
["607-57-8","2-Nitrofluorene",null,null,null,null,null,null,null,"289.1_M","USEPA","Zinc by FLAA"]
["6032-29-7","2-Pentanol",null,1,null,null,null,null,null,"289.2","USEPA","Zinc by GFAA",356]
["107-87-9","2-Pentanone",null,3,null,null,null,null,null,"289.2_M","USEPA","Zinc by GFAA"]
["617-94-7","2-Phenyl-2-propanol",null,null,null,null,null,null,null,"29","USEPA","Metals Emissions from Stationary Sources"]
["4537-13-7","2-Phenyldecane",null,null,null,null,null,null,null,"3","USEPA","Gross Alpha and Beta Activity in Water"]
["2719-61-1","2-Phenyldodecane",null,null,null,null,null,null,null,"3.2-B","APHA","Coliforms in Seawater and Shellfish"]
["4534-59-2","2-Phenyltetradecane",null,null,null,null,null,null,null,"3.2-C","APHA","Coliforms in Seawater and Shellfish"]
["4534-53-6","2-Phenyltridecane",null,null,null,null,null,null,null,"3.2-D","APHA","Coliforms in Shellfish"]
["4536-88-3","2-Phenylundecane",null,null,null,null,null,null,null,"3.3-B","APHA","Coliforms - Cytochrome Oxidase"]
["535-75-1","2-Piperidinecarboxylic acid",null,null,null,null,null,null,null,"3.3-C","APHA","Coliforms - IMViC"]
["675-20-7","2-Piperidone",null,null,null,null,null,null,null,"3.4","APHA","Coliforms- Membrane Filter"]
["107-18-6","2-Propen-1-ol",null,null,null,null,null,null,null,"3.5","APHA","Coliforms- Plate Count"]
["527-72-0","2-Thiophenecarboxylic acid",null,null,null,null,null,null,null,"300(A)","USEPA","Inorganic Anions by Ion Chromatography",4953]
["27757-85-3","2-Thiophenemethylamine",null,null,null,null,null,null,null,"300(B)","USEPA","Inorganic Anions by Ion Chromatography"]
["1689-78-7","2-tert-Butylthiophene",null,null,null,null,null,null,null,"300.0","USEPA","Determination of Inorganic Anions by Ion Chromatography",16703]
["FOUEA","2H-Perfluoro-2-decenoic acid","FOUEA",null,null,null,null,null,null,"300.1","USEPA","Determination of Inorganic Anions in Drinking Water by Ion Chromatography",8216]
["FHUEA","2H-Perfluoro-2-octenoic acid","FHUEA",null,null,null,null,null,null,"300.6","IL/SWSD","Cl, PO4, NO3 and SO4 - IONCHR"]
["32774-16-6","3,3',4,4',5,5'-Hexachlorobiphenyl","PCB-169",null,null,null,null,null,null,"300.7","IL/SWSD","Na, NH4, Mg, K and Ca - IONCHR"]
["57465-28-8","3,3',4,4',5-Pentachlorobiphenyl","PCB-126",null,null,null,null,null,null,"300_M","USEPA","Determination of Anions by IC"]
["32598-13-3","3,3',4,4'-Tetrachlorobiphenyl","PCB-077",null,null,null,null,null,null,"3040","USEPA","Metals in Oils, Greases and Wax"]
["41464-48-6","3,3',4,5'-Tetrachlorobiphenyl","PCB-079",null,null,null,null,null,null,"304A","USEPA","Biodegredation Rates (Vent Option)"]
["39635-33-1","3,3',4,5,5'-Pentachlorobiphenyl","PCB-127",null,null,null,null,null,null,"304B","USEPA","Biodegredation Rates (Scrubber Option)"]
["70362-49-1","3,3',4,5-Tetrachlorobiphenyl","PCB-078",null,null,null,null,null,null,"305","USEPA","Emissions of Volatiles in Waste",2]
["37680-69-6","3,3',4-Trichlorobiphenyl","PCB-035",null,null,null,null,null,null,"305.1","USEPA","Acidity by Titration with a pH Meter"]
["33284-52-5","3,3',5,5'-Tetrachlorobiphenyl","PCB-080",null,null,null,null,null,null,"305.2","USEPA","Acidity by Titration Using a pH Meter"]
["38444-87-0","3,3',5-Trichlorobiphenyl","PCB-036",null,null,null,null,null,null,"306","USEPA","Chromium Emissions from Electroplating"]
["91-94-1","3,3'-Dichlorobenzidine",null,744,null,null,null,null,null,"306A","USEPA","Chromium Emissions from Electroplating"]
["7094-34-0","3,3'-Dichlorobenzophenone",null,null,null,null,null,null,null,"310.1","USEPA","Alkalinity by Titration",9397]
["2050-67-1","3,3'-Dichlorobiphenyl","PCB-011",null,null,null,null,null,null,"310.1_M","USEPA","Alkalinity in Water by Titration"]
["119-90-4","3,3'-Dimethoxybenzidine",null,null,null,null,null,null,null,"310.2","USEPA","Alkalinity by Colorimetric Analysis",8292]
["119-93-7","3,3'-Dimethylbenzidine",null,9,null,null,null,null,null,"3111-B","APHA","Metals in Water by FLAA- Direct Air-Acetylene Flame",357]
["563-16-6","3,3-Dimethylhexane",null,null,null,null,null,null,null,"3111-C","APHA","Metals in Water by FLAA- Extraction/Air-Acetylene Flame"]
["38444-88-1","3,4',5-Trichlorobiphenyl","PCB-039",null,null,null,null,null,null,"3111-D","APHA","Metals in Water by FLAA- Direct Nitrous Oxide-Acetylene Flame"]
["2974-90-5","3,4'-Dichlorobiphenyl","PCB-013",null,null,null,null,null,null,"3111-E","APHA","Metals in Water by FLAA- Extraction/Nitrous Oxide-Acetylene Flame"]
["70362-50-4","3,4,4',5-Tetrachlorobiphenyl","PCB-081",null,null,null,null,null,null,"3112-B","APHA","Mercury in Water by CVAA"]
["38444-90-5","3,4,4'-Trichlorobiphenyl","PCB-037",null,null,null,null,null,null,"3113-B","APHA","Metals in Water by GFAA",2647]
["53555-66-1","3,4,5-Trichlorobiphenyl","PCB-038",null,null,null,null,null,null,"3114-B","APHA","Metals in Water by Manual HYDAA"]
["95-76-1","3,4-Dichloroaniline",null,null,null,null,null,null,null,"3114-C","APHA","Metals in Water by Continuous HYDAA"]
["2974-92-7","3,4-Dichlorobiphenyl","PCB-012",null,null,null,null,null,null,"3120","APHA","Metals in Water by ICP"]
["95-77-2","3,4-Dichlorophenol",null,null,null,null,null,null,null,"3130","APHA","Metals by Anodic Stripping Voltammetry"]
["102-36-3","3,4-Dichlorophenyl isocyanate",null,null,null,null,null,null,null,"314","USEPA","Perchlorate in Drinking Water using Ion Chromatography"]
["619-04-5","3,4-Dimethylbenzoic acid",null,null,null,null,null,null,null,"320.1","USEPA","Bromide by Titration with Iodine"]
["583-48-2","3,4-Dimethylhexane",null,null,null,null,null,null,null,"325.1","USEPA","Chloride by Colorimetric Analysis I",461]
["95-65-8","3,4-Dimethylphenol",null,null,null,null,null,null,null,"325.2","USEPA","Chloride by Colorimetric Analysis II",22352]
["51-36-5","3,5-Dichlorobenzoic acid",null,null,null,null,null,null,null,"325.3","USEPA","Chloride by Mercuric Nitrate Titration",7351]
["34883-41-5","3,5-Dichlorobiphenyl","PCB-014",null,null,null,null,null,null,"325.6","IL/SWSD","Chloride in Wet Deposition",1]
["108-68-9","3,5-Dimethylphenol",null,null,null,null,null,null,null,"325_M(A)","USEPA","Chloride in Water by Colorimetry"]
["618-87-1","3,5-Dinitroaniline",null,null,null,null,null,null,null,"325_M(B)","USEPA","Chloride in Water by Titration"]
["95-74-9","3-Chloro-4-methylaniline",null,null,null,null,null,null,null,"330.1","USEPA","Total Residual Chlorine by Titration"]
["35242-17-2","3-Chlorobicyclo[3.2.1]oct-2-ene",null,null,null,null,null,null,null,"330.2","USEPA","Total Residual Chlorine by Titration"]
["2051-61-8","3-Chlorobiphenyl","PCB-002",null,null,null,null,null,null,"330.3","USEPA","Total Residual Chlorine by Titration"]
["4771-80-6","3-Cyclohexene-1-carboxylic acid",null,null,null,null,null,null,null,"330.4","USEPA","Total Residual Chlorine by Titration"]
["394-41-2","3-Fluoro-4-nitrophenol",null,null,null,null,null,null,null,"330.5","USEPA","Chlorine by Spectrophotometry with DPD"]
["16655-82-6","3-Hydroxycarbofuran",null,null,null,null,null,null,null,"335.1","USEPA","Cyanides Amenable to Chlorination"]
["123-51-3","3-Methyl-1-butanol",null,null,null,null,null,null,null,"335.2","USEPA","Total Cyanide in Water",160]
["6072-57-7","3-Methyl-1-indanone",null,null,null,null,null,null,null,"335.2(MIDI)","USEPA","Cyanide Analysis by MIDI Distillation"]
["565-61-7","3-Methyl-2-pentanone",null,null,null,null,null,null,null,"335.2_M(S)","USEPA","Total Cyanide in Soils and Sediments"]
["643-93-6","3-Methylbiphenyl",null,null,null,null,null,null,null,"335.2_MA(W)","USEPA","Total Cyanide in Water by Colorimetry"]
["56-49-5","3-Methylcholanthrene",null,657,null,null,null,null,null,"335.2_MB(W)","USEPA","Total Cyanide in Water by Colorimetry"]
["589-34-4","3-Methylhexane",null,null,null,null,null,null,null,"335.2_MC(W)","USEPA","Total Cyanide in Water by Colorimetry"]
["83-34-1","3-Methylindole",null,null,null,null,null,null,null,"335.3","USEPA","Total Cyanide by Colorimetric Analysis",7]
["96-14-0","3-Methylpentane",null,1,null,null,null,null,null,"335.4","USEPA","Cyanide by Semi-Automated Colorimetry",133]
["83-40-9","3-Methylsalicylic acid",null,null,null,null,null,null,null,"335.63","USEPA","Cyanide in Waste by Colorimetry"]
["597-49-9","3-Pentanol, 3-ethyl-",null,null,null,null,null,null,null,"340.1","USEPA","Total Fluoride by Colorimetric Analysis"]
["4621-36-7","3-Phenyldecane",null,null,null,null,null,null,null,"340.2","USEPA","Fluoride in Water Using an ISE",53]
["4534-58-1","3-Phenyltetradecane",null,null,null,null,null,null,null,"340.3","USEPA","Fluoride in Water by Colorimetry"]
["4534-52-5","3-Phenyltridecane",null,null,null,null,null,null,null,"340.6","IL/SWSD","Fluoride in Wet Deposition"]
["4536-87-2","3-Phenylundecane",null,null,null,null,null,null,null,"345.1","USEPA","Iodide in Water by Titration"]
["88-30-2","3-Trifluoromethyl-4-nitrophenol","TFM",null,null,null,null,null,null,"350.1","USEPA","Ammonia Nitrogen by Colorimetry",69231]
["3457-46-3","4,4'-Dichlorobenzil",null,null,null,null,null,null,null,"350.2(A)","USEPA","Ammonia Nitrogen Using an ISE"]
["2050-68-2","4,4'-Dichlorobiphenyl","PCB-015",null,null,null,null,null,null,"350.2(B)","USEPA","Ammonia Nitrogen by Colorimetry",597]
["80-05-7","4,4'-Isopropylidenediphenol","Bisphenol-A",null,null,null,null,null,null,"350.2(C)","USEPA","Ammonia Nitrogen by Titration"]
["101-14-4","4,4'-Methylenebis(2-chloroaniline)",null,null,null,null,null,null,null,"350.3","USEPA","Ammonia Nitrogen Using an ISE",1011]
["766-15-4","4,4-Dimethyl-1,3-dioxane",null,null,null,null,null,null,null,"3500","NIOSH","Formaldehyde by Visible Absorption Spec.",26]
["3428-24-8","4,5-Dichlorocatechol",null,null,null,null,null,null,null,"3500-AG(B)","APHA","Silver in Water by FLAA or GFAA"]
["35659-69-9","4,5-Dimethyl-1,2-dithiol-3-one",null,null,null,null,null,null,null,"3500-AG(C)","APHA","Silver in Water by ICP"]
["1570-65-6","4,6-Dichloro-o-cresol",null,null,null,null,null,null,null,"3500-AG(D)","APHA","Silver in Water by Spectrophotometry"]
["1685-82-1","4,6-Dimethylindan",null,null,null,null,null,null,null,"3500-AL(B)","APHA","Aluminum in Water by FLAA or GFAA"]
["534-52-1","4,6-Dinitro-o-cresol",null,741,null,null,null,null,null,"3500-AL(C)","APHA","Aluminum in Water by ICP"]
["6682-71-9","4,7-Dimethylindan",null,null,null,null,null,null,null,"3500-AL(D)","APHA","Aluminum in Water by Colorimetry"]
["19406-51-0","4-Amino-2,6-dinitrotoluene",null,null,null,null,null,null,null,"3500-AL(E)","APHA","Aluminum in Water with an AutoAnalyzer"]
["92-67-1","4-Aminobiphenyl",null,680,null,null,null,null,null,"3500-AS(B)","APHA","Arsenic in Water by GFAA or HYDAA"]
["63-05-8","4-Androstenedione",null,null,null,null,null,null,null,"3500-AS(C)","APHA","Arsenic in Water by Spectrophotometry"]
["1570-64-5","4-Chloro-2-methylphenol",null,null,null,null,null,null,null,"3500-AS(D)","APHA","Arsenic in Water by ICP"]
["88-04-0","4-Chloro-3,5-dimethylphenol",null,null,null,null,null,null,null,"3500-AU","APHA","Gold in Water by FLAA"]
["2051-62-9","4-Chlorobiphenyl","PCB-003",null,null,null,null,null,null,"3500-BA(B)","APHA","Barium in Water by FLAA or GFAA"]
["60-11-7","4-Dimethylaminoazobenzene",null,657,null,null,null,null,null,"3500-BA(C)","APHA","Barium in Water by ICP"]
["158018-53-2","4-Epianhydrochlortetracycline","EACTC",null,null,null,null,null,null,"3500-BE(B)","APHA","Beryllium in Water by FLAA or GFAA"]
["7518-17-4","4-Epianhydrotetracycline","EATC",null,null,null,null,null,null,"3500-BE(C)","APHA","Beryllium in Water by ICP"]
["42786-06-1","4-Ethyl-4H-1,2,4-triazole-3-amine",null,null,null,null,null,null,null,"3500-BE(D)","APHA","Beryllium in Water by Spectrophotometry"]
["2896-60-8","4-Ethylresorcinol",null,null,null,null,null,null,null,"3500-BI","APHA","Bismuth in Water by FLAA"]
["394-33-2","4-Fluoro-2-nitrophenol",null,null,null,null,null,null,null,"3500-CA(B)","APHA","Calcium in Water by FLAA"]
["123-42-2","4-Hydroxy-4-methyl-2-pentanone",null,null,null,null,null,null,null,"3500-CA(C)","APHA","Calcium in Water by ICP"]
["1072-47-5","4-Methyl-1,3-dioxolane",null,null,null,null,null,null,null,"3500-CA(D)","APHA","Calcium in Water by Titration Using EDTA"]
["108-11-2","4-Methyl-2-pentanol",null,null,null,null,null,null,null,"3500-CD(B)","APHA","Cadmium in Water by FLAA/GFAA"]
["4461-48-7","4-Methyl-2-pentene",null,null,null,null,null,null,null,"3500-CD(C)","APHA","Cadmium in Water by ICP"]
["119-32-4","4-Methyl-3-nitroaniline",null,null,null,null,null,null,null,"3500-CD(D)","APHA","Cadmium in Water by Spectrophotometry"]
["3351-30-2","4-Methylchrysene",null,null,null,null,null,null,null,"3500-CO(B)","APHA","Cobalt in Water by FLAA or GFAA"]
["2847-72-5","4-Methyldecane",null,null,null,null,null,null,null,"3500-CO(C)","APHA","Cobalt in Water by ICP"]
["824-22-6","4-Methylindan",null,null,null,null,null,null,null,"3500-CR(B)","APHA","Chromium in Water by FLAA or GFAA",62]
["57835-92-4","4-Nitropyrene",null,null,null,null,null,null,null,"3500-CR(C)","APHA","Chromium in Water by ICP"]
["625-31-0","4-Penten-2-ol",null,null,null,null,null,null,null,"3500-CR(D)","APHA","Total Hexavalent Chromium in Water",494]
["1821-12-1","4-Phenylbutyric acid",null,null,null,null,null,null,null,"3500-CR(E)","APHA","Chromium in Water by Ion Chromatography"]
["4537-12-6","4-Phenyldecane",null,null,null,null,null,null,null,"3500-CS","APHA","Cesium in Water by FLAA"]
["2719-64-4","4-Phenyldodecane",null,null,null,null,null,null,null,"3500-CU(B)","APHA","Copper in Water by FLAA or GFAA"]
["939-23-1","4-Phenylpyridine",null,null,null,null,null,null,null,"3500-CU(C)","APHA","Copper in Water by ICP"]
["4534-57-0","4-Phenyltetradecane",null,null,null,null,null,null,null,"3500-CU(D)","APHA","Copper in Water by Spectrophotometry- Neocuproine Method"]
["4534-51-4","4-Phenyltridecane",null,null,null,null,null,null,null,"3500-CU(E)","APHA","Copper in Water by Spectrophotometry- Bathocuproine Method"]
["4536-86-1","4-Phenylundecane",null,null,null,null,null,null,null,"3500-FE(B)","APHA","Iron in Water by FLAA or GFAA"]
["2315-61-9","4-tert-Octylphenol diethoxylate",null,null,null,null,null,null,null,"3500-FE(C)","APHA","Iron in Water by ICP"]
["2315-67-5","4-tert-Octylphenol monoethoxylate",null,null,null,null,null,null,null,"3500-FE(D)","APHA","Iron in Water by Colorimetry"]
["203-64-5","4H-Cyclopenta[def]phenanthrene",null,null,null,null,null,null,null,"3500-HG(B)","APHA","Mercury in Water by CVAA"]
["85668-76-4","5,6-Dibutyl-5,6-bis(4-tert-butylphenyl)decane",null,null,null,null,null,null,null,"3500-HG(C)","APHA","Mercury in Water by Spectrophotometry"]
["7600-50-2","5-Hydroxydicamba",null,null,null,null,null,null,null,"3500-IR","APHA","Iridium in Water by FLAA"]
["3697-24-3","5-Methylchrysene",null,null,null,null,null,null,null,"3500-K-B","APHA","Potassium in Water by FLAA"]
["874-35-1","5-Methylindan",null,null,null,null,null,null,null,"3500-K-C","APHA","Potassium in Water by ICP"]
["602-87-9","5-Nitroacenaphthene",null,null,null,null,null,null,null,"3500-K-D","APHA","Potassium in Water by Flame Photometry"]
["6635-20-7","5-Nitrovanillin",null,null,null,null,null,null,null,"3500-K-E","APHA","Potassium in Water Using an ISE"]
["4537-11-5","5-Phenyldecane",null,null,null,null,null,null,null,"3500-LI(B)","APHA","Lithium in Water by FLAA"]
["2719-63-3","5-Phenyldodecane",null,null,null,null,null,null,null,"3500-LI(C)","APHA","Lithium in Water by ICP"]
["4534-56-9","5-Phenyltetradecane",null,null,null,null,null,null,null,"3500-LI(D)","APHA","Lithium in Water by Flame Photometry"]
["4534-50-3","5-Phenyltridecane",null,null,null,null,null,null,null,"3500-MG(B)","APHA","Magnesium in Water by FLAA"]
["4537-15-9","5-Phenylundecane",null,null,null,null,null,null,null,"3500-MG(C)","APHA","Magnesium in Water by ICP"]
["136-85-6","5-Tolyltriazole",null,null,null,null,null,null,null,"3500-MG(D)","APHA","Magnesium in Water by Gravimetric Analysis"]
["1506-02-1","6-Acetyl-1,1,2,4,4,7-hexamethyltetralin","ATHN",null,null,null,null,null,null,"3500-MG(E)","APHA","Magnesium in Water by Calculation"]
["1705-85-7","6-Methylchrysene",null,null,null,null,null,null,null,"3500-MN(B)","APHA","Manganese in Water by FLAA or GFAA"]
["7496-02-8","6-Nitrochrysene",null,null,null,null,null,null,null,"3500-MN(C)","APHA","Manganese in Water by ICP"]
["2719-62-2","6-Phenyldodecane",null,null,null,null,null,null,null,"3500-MN(D)","APHA","Manganese in Water by Spectrophotometry"]
["4534-55-8","6-Phenyltetradecane",null,null,null,null,null,null,null,"3500-MO(B)","APHA","Molybdenum in Water by FLAA"]
["4534-49-0","6-Phenyltridecane",null,null,null,null,null,null,null,"3500-MO(C)","APHA","Molybdenum in Water by ICP"]
["4537-14-8","6-Phenylundecane",null,null,null,null,null,null,null,"3500-NA(B)","APHA","Sodium in Water by FLAA"]
["57-97-6","7,12-Dimethylbenz[a]anthracene",null,678,null,null,null,null,null,"3500-NA(C)","APHA","Sodium in Water by ICP"]
["4534-54-7","7-Phenyltetradecane",null,null,null,null,null,null,null,"3500-NA(D)","APHA","Sodium in Water by Flame Photometry"]
["194-59-2","7H-Dibenzo[c,g]carbazole",null,null,null,null,null,null,null,"3500-NI(B)","APHA","Nickel in Water by FLAA or GFAA"]
["2091-29-4","9-Hexadecenoic acid",null,null,null,null,null,null,null,"3500-NI(C)","APHA","Nickel in Water by ICP"]
["779-02-2","9-Methylanthracene",null,null,null,null,null,null,null,"3500-OS","APHA","Osmium in Water by FLAA"]
["2788-23-0","9-Nitroso-9H-carbazole",null,null,null,null,null,null,null,"3500-PB(B)","APHA","Lead in Water by FLAA or GFAA"]
["5090-41-5","9-Octadecenal",null,null,null,null,null,null,null,"3500-PB(C)","APHA","Lead in Water by ICP"]
["5557-31-3","9-Octadecene",null,null,null,null,null,null,null,"3500-PB(D)","APHA","Lead in Water by Spectrophotometry"]
["21145-77-7","AHTN",null,null,null,null,null,null,null,"3500-PD","APHA","Palladium in Water"]
["77521-29-0","AMPA","AMPA",102,null,null,null,null,null,"3500-PT","APHA","Platinum in Water by FLAA"]
["47117-16-8","Abietylamine",null,null,null,null,null,null,null,"3500-RE","APHA","Rhenium in Water by FLAA"]
["83-32-9","Acenaphthene",null,868,null,null,null,null,null,"3500-RH","APHA","Rhodium in Water by FLAA"]
["15067-26-2","Acenaphthene-d10",null,null,null,null,null,null,null,"3500-RU","APHA","Ruthenium in Water by FLAA"]
["208-96-8","Acenaphthylene",null,863,null,null,null,null,null,"3500-SB(B)","APHA","Antimony in Water by FLAA or GFAA"]
["30560-19-1","Acephate","Orthene",null,null,null,null,null,null,"3500-SB(C)","APHA","Antimony in Water - ICP"]
["57960-19-7","Acequincyl",null,null,null,null,null,null,null,"3500-SE(C)","APHA","Selenium in Water by HYDAA"]
["33665-90-6","Acesulfame",null,null,null,null,null,null,null,"3500-SE(D)","APHA","Selenium in Water by Colorimetry"]
["75-07-0","Acetaldehyde",null,null,null,null,null,null,null,"3500-SE(E)","APHA","Selenium in Water by Fluorimetry"]
["107-89-1","Acetaldol",null,null,null,null,null,null,null,"3500-SE(F)","APHA","Volatile Selenium in Water"]
["60-35-5","Acetamide",null,null,null,null,null,null,null,"3500-SE(G)","APHA","Nonvolatile Organic Selenium in Water"]
["103-90-2","Acetaminophen",null,null,null,null,null,null,null,"3500-SE(H)","APHA","Selenium in Water by GFAA"]
["135410-20-7","Acetamiprid",null,1697,null,null,null,null,null,"3500-SE(I)","APHA","Selenium in Water by ICP"]
["ACETATE","Acetate and intermediate ethanol degradation products",null,120,null,null,null,null,null,"3500-SN","APHA","Tin in Water by FLAA or GFAA"]
["64-19-7","Acetic acid",null,null,null,null,null,null,null,"3500-SR(B)","APHA","Strontium in Water by FLAA"]
["822-23-1","Acetic acid, octadecyl ester",null,null,null,null,null,null,null,"3500-SR(C)","APHA","Strontium in Water by ICP"]
["34256-82-1","Acetochlor",null,9602,null,null,null,null,null,"3500-SR(D)","APHA","Strontium in Water by Flame Photometry"]
["34256-82-1-ESA","Acetochlor ESA",null,4144,null,null,null,null,null,"3500-TH","APHA","Thorium in Water by FLAA"]
["184992-44-4","Acetochlor OXA",null,4143,null,null,null,null,null,"3500-TI","APHA","Titanium in Water by FLAA"]
["67-64-1","Acetone",null,68933,null,null,null,null,null,"3500-TL(B)","APHA","Thallium in Water by FLAA"]
["75-05-8","Acetonitrile",null,90,null,null,null,null,null,"3500-TL(C)","APHA","Thallium in Water by ICP"]
["98-86-2","Acetophenone",null,657,null,null,null,null,null,"3500-V-B","APHA","Vanadium in Water by FLAA"]
["498-02-2","Acetovanillone",null,null,null,null,null,null,null,"3500-V-C","APHA","Vanadium in Water by ICP"]
["ACIDITY","Acidity, hydrogen ion (H+)",null,81,null,null,null,null,null,"3500-V-D","APHA","Vanadium in Water by Spectrophotometry"]
["50594-66-6","Acifluorfen",null,null,null,null,null,null,null,"3500-ZN(B)","APHA","Zinc in Water by FLAA"]
["62476-59-9","Acifluorfen, sodium salt",null,null,null,null,null,null,null,"3500-ZN(C)","APHA","Zinc in Water by ICP"]
["260-94-6","Acridine",null,null,null,null,null,null,null,"3500-ZN(D)","APHA","Zinc in Water by Spectrophotometry"]
["107-02-8","Acrolein",null,945,null,null,null,null,null,"3500-ZN(E)","APHA","Zinc in Water by Spectrophotometry- Dithizone Method"]
["79-06-1","Acrylamide",null,null,null,null,null,null,null,"3500-ZN(F)","APHA","Zinc in Water by Spectrophotometry- Dithizone Method II"]
["107-13-1","Acrylonitrile",null,934,null,null,null,null,null,"3503","NIOSH","Hydrazine by Visible Absorption Spec."]
["14331-83-0","Actinium-228",null,null,null,null,null,null,null,"3505","NIOSH","Tetramethyl Thiourea by Visible Absorption"]
["56-65-5","Adenosine triphosphate","ATP",null,null,null,null,null,null,"3506","NIOSH","Acetic Anhydride"]
["1402-68-2","Aflatoxins",null,null,null,null,null,null,null,"3507","NIOSH","Acetaldehyde by HPLC"]
["15972-60-8","Alachlor",null,10147,null,null,null,null,null,"3508","NIOSH","Methyl Ethyl Ketone Peroxide by VA Spec."]
["142363-53-9","Alachlor ESA",null,4582,null,null,null,null,null,"3509","NIOSH","Amioethanol compound II"]
["171262-17-2","Alachlor OXA",null,4523,null,null,null,null,null,"350_M(A)","USEPA","Ammonia Nitrogen in Water by Colorimetry"]
["18559-94-9","Albuterol",null,null,null,null,null,null,null,"350_M(B)","USEPA","Ammonia Nitrogen in Water by Titration"]
["116-06-3","Aldicarb",null,52,null,null,null,null,null,"350_M(C)","USEPA","Ammonia Nitrogen in Water"]
["1646-88-4","Aldicarb sulfone",null,1698,null,null,null,null,null,"351.1","USEPA","Total Kjeldahl Nitrogen by Colorimetry",637]
["1646-87-3","Aldicarb sulfoxide",null,1698,null,null,null,null,null,"351.2","USEPA","Total Kjeldahl Nitrogen by Colorimetry",110851]
["309-00-2","Aldrin",null,922,null,null,null,null,null,"351.3(A)","USEPA","Total Kjeldahl Nitrogen by Titration",1703]
["ALGAE","Algae, all groups, density",null,341,null,null,null,null,null,"351.3(B)","USEPA","Total Kjeldahl Nitrogen - Nesslerization"]
["ALGAE-BG","Algae, blue-green (phylum cyanophyta) density",null,2838,null,null,null,null,null,"351.3(C)","USEPA","Total Kjeldahl Nitrogen - Potentiometric"]
["ALGAE-G","Algae, green (phylum chlorophyta) density",null,338,null,null,null,null,null,"351.4","USEPA","Total Kjeldahl Nitrogen Using an ISE"]
["9001-78-9","Alkaline phosphatase",null,null,null,null,null,null,null,"3510","NIOSH","Monomethylhydrazine by Visible Spec."]
["ALK-PHENOL","Alkalinity, Phenolphthalein (total hydroxide+1/2 carbonate)",null,4,null,null,null,null,null,"3511","NIOSH","Monomethylaniline by GC/FID"]
["ALK-TOTAL","Alkalinity, total","Alk",95594,null,null,null,null,null,"3512","NIOSH","Maleic Anhydride by HPLC/UV"]
["584-79-2","Allethrin",null,null,null,null,null,null,null,"3513","NIOSH","Tetranitromethane by GC/NPD"]
["107-05-1","Allyl chloride",null,68499,null,null,null,null,null,"3514","NIOSH","Ethylenimine by HPLC/UV"]
["57-06-7","Allyl isothiocyanate",null,null,null,null,null,null,null,"3515","NIOSH","1,1-Dimethylhydrazine by Visible Spec."]
["850-52-2","Allyl trenbolone",null,null,null,null,null,null,null,"3516","NIOSH","Crotonaldehyde by Differential Pulse Polar."]
["PARTICLE-ALPHA","Alpha particle",null,1232,null,null,null,null,null,"3518","NIOSH","Phenylhydrazine by Visible Absorption"]
["28981-97-7","Alprazolam",null,null,null,null,null,null,null,"352.1","USEPA","Nitrate Nitrogen by Colorimetry",977]
["7429-90-5","Aluminum","Al",11597,null,null,null,null,null,"353.1","USEPA","Nitrate-Nitrite Nitrogen by Colorimetry",17732]
["10043-01-3","Aluminum sulfate",null,null,null,null,null,null,null,"353.2","USEPA","Nitrate-Nitrite Nitrogen by Colorimetry",100038]
["14596-10-2","Americium-241",null,null,null,null,null,null,null,"353.2_M","USEPA","Nitrate and Nitrite by Colorimetry",176]
["834-12-8","Ametryn",null,null,null,null,null,null,null,"353.3","USEPA","Nitrate-Nitrite Nitrogen by Cd Reduction",377]
["2032-59-9","Aminocarb",null,null,null,null,null,null,null,"353.4","USEPA","Determination of Nitrite and Nitrate"]
["1066-51-9","Aminomethylphosphonic acid",null,null,null,null,null,null,null,"353.6","IL/SWSD","Nitrate-Nitrite in Wet Deposition"]
["50-48-6","Amitriptyline",null,null,null,null,null,null,null,"354.1","USEPA","Nitrite Nitrogen by Spectophotometry",2866]
["61-82-5","Amitrole",null,null,null,null,null,null,null,"360.1","USEPA","Dissolved Oxygen Using an ISE",2424]
["88150-42-9","Amlodipine",null,null,null,null,null,null,null,"360.2","USEPA","Dissolved Oxygen by Winkler Technique"]
["7664-41-7","Ammonia",null,20378,null,null,null,null,null,"3640A","USEPA","Determination of Percent Solids (Context = SW-846)"]
["AMMONIA-N","Ammonia-nitrogen",null,140349,null,null,null,null,null,"365.1","USEPA","Phosphorus by Colorimetry",99387]
["AMMONIUM","Ammonium","NH4",126,null,null,null,null,null,"365.2","USEPA","Phosphorus by Single Reagent Colorimetry",28173]
["12124-97-9","Ammonium bromide",null,null,null,null,null,null,null,"365.3","USEPA","Phosphorus by Two Reagent Colorimetry",136629]
["1336-21-6","Ammonium hydroxide",null,null,null,null,null,null,null,"365.4","USEPA","Total Phosphorus After Block Digestion",53727]
["7790-98-9","Ammonium perchlorate",null,null,null,null,null,null,null,"365.5","USEPA","Orthophosphate in Water by Colorimetry"]
["131-74-8","Ammonium picrate",null,null,null,null,null,null,null,"365.6","IL/SWSD","Orthophosphate in Wet Deposition"]
["7773-06-0","Ammonium sulfamate",null,null,null,null,null,null,null,"365_M","USEPA","Phosphorus in Water by Colorimetry"]
["538-68-1","Amylbenzene",null,null,null,null,null,null,null,"370.1","USEPA","Dissolved Silica by Colorimetry",106]
["494-52-0","Anabasine",null,null,null,null,null,null,null,"3700","NIOSH","Benzene by portable GC"]
["67034-85-9","Androstenedione-d7",null,null,null,null,null,null,null,"3701","NIOSH","Trichloroethylene by portable GC"]
["53-41-8","Androsterone",null,null,null,null,null,null,null,"3702","NIOSH","Ethylene Oxide by portable GC"]
["4497-08-9","Anhydrochlortetracycline","ACTC",null,null,null,null,null,null,"375.1","USEPA","Sulfate by Colorimetry With Chloranilate",169]
["4496-85-9","Anhydrotetracycline","ATC",null,null,null,null,null,null,"375.2","USEPA","Sulfate in Water by Colorimetry",38]
["101-05-3","Anilazine",null,null,null,null,null,null,null,"375.3","USEPA","Sulfate by Gravimetric Determination"]
["62-53-3","Aniline",null,684,null,null,null,null,null,"375.4","USEPA","Sulfate by Turbidimetric Determination",7669]
["AC-RATIO","Anion/cation ratio",null,10507,null,null,null,null,null,"375.6","IL/SWSD","Sulfate in Wet Deposition",1]
["8007-70-3","Anise oil",null,null,null,null,null,null,null,"375_M(A)","USEPA","Sulfate by Colorimetry"]
["100-66-3","Anisole",null,null,null,null,null,null,null,"375_M(B)","USEPA","Sulfate in Water by Turbidity"]
["191-26-4","Anthanthrene",null,null,null,null,null,null,null,"376.1","USEPA","Sulfide by Titration with Iodine",280]
["120-12-7","Anthracene",null,931,null,null,null,null,null,"376.2","USEPA","Sulfide by Colorimetric Determination",8]
["84-65-1","Anthraquinone",null,null,null,null,null,null,null,"377.1","USEPA","Sulfite in Water by Titration"]
["7440-36-0","Antimony","Sb",3126,null,null,null,null,null,"3810","USEPA","Headspace Technique for Volatiles",1476]
["28300-74-5","Antimony potassium tartrate",null,null,null,null,null,null,null,"3820","USEPA","Hexadecane Screening for Volatiles"]
["14234-35-6","Antimony-125",null,null,null,null,null,null,null,"3A","USEPA","Oxygen and Carbon Dioxide in Air"]
["1397-94-0","Antimycin A",null,null,null,null,null,null,null,"3H-01","USDOE/EML","Tritium in Water"]
["AIP","Apatite inorganic phosphorus","AIP",47,null,null,null,null,null,"3H-02","USDOE/EML","Tritium in Water"]
["COLOR-APP","Apparent color",null,23359,null,null,null,null,null,"3H-03","USDOE/EML","Organically Labeled Tritium"]
["7440-37-1","Argon","Ar",null,null,null,null,null,null,"3M PETRIFILM","MNPCA","3M Petrifilm Method for Detecting E. coli",512]
["12767-79-2","Aroclor (unspecified)","PCB-aroclors",null,null,null,null,null,null,"4","USEPA","Moisture Content in Stack Gases"]
["12674-11-2","Aroclor 1016","PCB-aroclor 1016",661,null,null,null,null,null,"4000","NIOSH","Toluene by GC/FID"]
["147601-87-4","Aroclor 1210","PCB-aroclor 1210",null,null,null,null,null,null,"405.1","USEPA","5 Day Biochemical Oxygen Demand",1]
["151820-27-8","Aroclor 1216","PCB-aroclor 1216",null,null,null,null,null,null,"410.1","USEPA","Mid-Level Chemical Oxygen Demand",5]
["11104-28-2","Aroclor 1221","PCB-aroclor 1221",638,null,null,null,null,null,"410.2","USEPA","Low Level Chemical Oxygen Demand",315]
["37234-40-5","Aroclor 1231","PCB-aroclor 1231",null,null,null,null,null,null,"410.3","USEPA","Chemical Oxygen Demand in Saline Waters"]
["11141-16-5","Aroclor 1232","PCB-aroclor 1232",640,null,null,null,null,null,"410.4","USEPA","Chemical Oxygen Demand by Colorimetry",4924]
["71328-89-7","Aroclor 1240","PCB-aroclor 1240",null,null,null,null,null,null,"410_M(A)","USEPA","Chemical Oxygen Demand by Colorimetry"]
["53469-21-9","Aroclor 1242","PCB-aroclor 1242",651,null,null,null,null,null,"410_M(B)","USEPA","Chemical Oxygen Demand by Titration"]
["12672-29-6","Aroclor 1248","PCB-aroclor 1248",640,null,null,null,null,null,"4110-B","APHA","Anions in Water by Ion Chromatography",1643]
["165245-51-2","Aroclor 1250","PCB-aroclor 1250",null,null,null,null,null,null,"4110-C","APHA","Single Column Ion Chromatography",11]
["89577-78-6","Aroclor 1252","PCB-aroclor 1252",null,null,null,null,null,null,"413.1","USEPA","Total Recoverable Oil and Grease"]
["11097-69-1","Aroclor 1254","PCB-aroclor 1254",671,null,null,null,null,null,"413.2","USEPA","Total Recoverable Oil and Grease by IR"]
["11096-82-5","Aroclor 1260","PCB-aroclor 1260",673,null,null,null,null,null,"415.1","USEPA","Total Organic Carbon by Combustion",1997]
["37324-23-5","Aroclor 1262","PCB-aroclor 1262",9,null,null,null,null,null,"415.2","USEPA","Low Level Total Organic Carbon in Water",108]
["11100-14-4","Aroclor 1268","PCB-aroclor 1268",null,null,null,null,null,null,"415.2_M","USEPA","Total Organic Carbon in Water",64]
["12642-23-8","Aroclor 5442","PCB-aroclor 5442",null,null,null,null,null,null,"415.3","USEPA","Determination of Total Organic Carbon and Specific UV Absorbance at 254 nm in Source Water and Drinking Water",42]
["7440-38-2","Arsenic","As",36464,null,null,null,null,null,"418.1","USEPA","Total Recoverable Petroleum Hydrocarbons"]
["22541-54-4","Arsenic ion (3+)",null,null,null,null,null,null,null,"420.1","USEPA","Total Recoverable Phenolics in Water",370]
["17428-41-0","Arsenic ion (5+)",null,null,null,null,null,null,null,"420.2","USEPA","Total Recoverable Phenolics in Water",14]
["7784-36-3","Arsenic pentafluoride",null,null,null,null,null,null,null,"420.3","USEPA","Total Recoverable Phenolics in Water"]
["1327-53-3","Arsenic(III) trioxide",null,4,null,null,null,null,null,"420.4","USEPA","Total Recoverable Phenolics in Water",1]
["12044-50-7","Arsenic(V) oxide hydrate",null,4,null,null,null,null,null,"425.1","USEPA","Methylene Blue Active Substances"]
["1303-28-2","Arsenic(V) pentoxide",null,null,null,null,null,null,null,"430.1","USEPA","NTA by Manual Colorimetric Determination"]
["1332-21-4","Asbestos",null,null,null,null,null,null,null,"430.2","USEPA","NTA by Automated Colorimetric Analysis"]
["1610-17-9","Atraton",null,null,null,null,null,null,null,"440(S)","USEPA","Determination of Carbon and Nitrogen"]
["1912-24-9","Atrazine",null,10360,null,null,null,null,null,"440(W)","USEPA","Determination of Carbon and Nitrogen"]
["17778-88-0","Azide",null,null,null,null,null,null,null,"445","USEPA","In-Vitro Determination of Chlorophyll",2408]
["2642-71-9","Azinphos-ethyl",null,null,null,null,null,null,null,"446","USEPA","Chlorophylls and Pheopigments in Phytoplankton by Spectrophotometry"]
["86-50-0","Azinphos-methyl",null,null,null,null,null,null,null,"450.1","USEPA","Total Organic Halide"]
["83905-01-5","Azithromycin",null,null,null,null,null,null,null,"4500-B-B","APHA","Boron in Water by Spectrophotometry- Curcumin Method"]
["103-33-3","Azobenzene",null,null,null,null,null,null,null,"4500-B-C","APHA","Boron in Water by Spectrophotometry- Carmine Method"]
["131860-33-8","Azoxystrobin",null,1698,null,null,null,null,null,"4500-B-D","APHA","Boron in Water by ICP"]
["BPSvr4","BPSvr4",null,null,null,null,null,null,null,"4500-BR(B)","APHA","Bromide in Water by Spectrophotometry",13]
["68038-71-1","Bacillus thuringiensis (Berliner)",null,null,null,null,null,null,null,"4500-BR(C)","APHA","Bromide in Water by Ion Chromatography"]
["1405-87-4","Bacitracin",null,null,null,null,null,null,null,"4500-CL(B)","APHA","Residual Chlorine in Water by Titration- Iodometric Method I"]
["HETERO-BAC","Bacteria, Heterotrophic",null,909,null,null,null,null,null,"4500-CL(C)","APHA","Residual Chlorine in Water by Titration- Iodometric Method II"]
["101-27-9","Barban",null,null,null,null,null,null,null,"4500-CL(D)","APHA","Residual Chlorine in Water by Titration- Amperometric Method"]
["13462-86-7","Barite",null,null,null,null,null,null,null,"4500-CL(F)","APHA","Residual Chlorine in Water by Titration- DPD Ferrous Method"]
["7440-39-3","Barium","Ba",10284,null,null,null,null,null,"4500-CL(G)","APHA","Residual Chlorine by Colorimetry- DPD Colorimetric Method"]
["14798-08-4","Barium-140",null,null,null,null,null,null,null,"4500-CL(H)","APHA","Residual Chlorine by FACTS- Syringaldazine Method"]
["BAR-PRESSURE","Barometric pressure",null,8528,null,null,null,null,null,"4500-CL(I)","APHA","Residual Chlorine by Iodometirc Electrode Technique"]
["22961-82-6","Bendiocarb phenol",null,null,null,null,null,null,null,"4500-CL-(B)","APHA","Chloride in Water by Titration- Argentometric Method",7828]
["1861-40-1","Benfluralin","Benefin",1067,null,null,null,null,null,"4500-CL-(C)","APHA","Chloride in Water by Titration- Mercuric Nitrate Method",167]
["17804-35-2","Benomyl",null,null,null,null,null,null,null,"4500-CL-(D)","APHA","Chloride in Water by Potentiometry"]
["83055-99-6","Bensulfuron-methyl",null,1707,null,null,null,null,null,"4500-CL-(E)","APHA","Chloride in Water by Colorimetry- Automated Ferricyanide Method",24078]
["741-58-2","Bensulide","Betasan",null,null,null,null,null,null,"4500-CL-(F)","APHA","Chloride in Water by Ion Chromatography"]
["25057-89-0","Bentazon",null,1964,null,null,null,null,null,"4500-CLO(B)","APHA","Chlorine Dioxide in Water by Titration- Iodometric Method"]
["1302-78-9","Bentonite",null,null,null,null,null,null,null,"4500-CLO(C)","APHA","Chlorine Dioxide in Water by Titration- Amperometric Method I"]
["56-55-3","Benz[a]anthracene",null,856,null,null,null,null,null,"4500-CLO(D)","APHA","Chlorine Dioxide in Water by Colorimetry- DPD Method"]
["98-87-3","Benzal chloride",null,null,null,null,null,null,null,"4500-CLO(E)","APHA","Chlorine Dioxide in Water by Titration- Amperometric Method II"]
["100-52-7","Benzaldehyde",null,null,null,null,null,null,null,"4500-CN(C)","APHA","Cyanide in Water after Distillation",1]
["71-43-2","Benzene",null,69466,null,null,null,null,null,"4500-CN(D)","APHA","Cyanide in Water by Titration",5]
["2400-00-2","Benzene, (1-ethyldecyl)-",null,null,null,null,null,null,null,"4500-CN(E)","APHA","Cyanide in Water by Colorimetry",801]
["5436-43-1","Benzene, 1,1'-oxybis[2,4-dibromo-]",null,null,null,null,null,null,null,"4500-CN(F)","APHA","Cyanide in Water Using ISE"]
["68608-80-0","Benzene, C6-12-alkyl derivs.",null,null,null,null,null,null,null,"4500-CN(G)","APHA","Cyanides Amenable to Chlorination after Distillation",28]
["1081-77-2","Benzene, nonyl-",null,null,null,null,null,null,null,"4500-CN(H)","APHA","Cyanides Amenable to Chlorination without Distallation"]
["140-29-4","Benzeneacetonitrile",null,null,null,null,null,null,null,"4500-CN(I)","APHA","Weak Acid Dissociable Cyanide in Water"]
["60-12-8","Benzeneethanol",null,null,null,null,null,null,null,"4500-CN(J)","APHA","Cyanogen Chloride in Water"]
["68411-30-3","Benzenesulfonic acid, C10-13-alkyl derivs., sodium salts",null,null,null,null,null,null,null,"4500-CN(K)","APHA","Spot Test for Cyanides for Screening"]
["92-87-5","Benzidine",null,743,null,null,null,null,null,"4500-CN(L)","APHA","Cyanates in Waste Using an ISE"]
["205-99-2","Benzo(b)fluoranthene",null,230,null,null,null,null,null,"4500-CN(M)","APHA","Thiocyanate in Water"]
["50-32-8","Benzo[a]pyrene",null,875,null,null,null,null,null,"4500-CO2(B)","APHA","Carbon Dioxide in Water by Nomography"]
["30777-19-6","Benzo[b]fluorene",null,null,null,null,null,null,null,"4500-CO2(C)","APHA","Carbon Dioxide in Water by Titration"]
["243-46-9","Benzo[b]naphtho[2,3-d]thiophene",null,null,null,null,null,null,null,"4500-F-B","APHA","Preliminary Distillation of Fluoride"]
["95-15-8","Benzo[b]thiophene",null,null,null,null,null,null,null,"4500-F-C","APHA","Fluoride in Water Using an ISE",206]
["230-17-1","Benzo[c]cinnoline",null,null,null,null,null,null,null,"4500-F-D","APHA","Fluoride in Water by Spectrophotometry"]
["192-97-2","Benzo[e]pyrene",null,78,null,null,null,null,null,"4500-F-E","APHA","Fluoride in Water by Colorimetry"]
["191-24-2","Benzo[ghi]perylene",null,873,null,null,null,null,null,"4500-F-F","APHA","Fluoride in Water by Ion Chromatography"]
["205-82-3","Benzo[j]fluoranthene",null,12,null,null,null,null,null,"4500-H","APHA","pH in Water",28619]
["207-08-9","Benzo[k]fluoranthene",null,850,null,null,null,null,null,"4500-H+B","APHA","pH in Water by Potentiometry, pH Value in Water by Potentiometry Using a Standard Hydrogen Electrode",7546]
["56832-73-6","Benzofluoranthene",null,null,null,null,null,null,null,"4500-I-(B)","APHA","Iodide in Water by Spectrophotometry- Leuco Crystal Violet Method"]
["61089-87-0","Benzofluorene",null,null,null,null,null,null,null,"4500-I-(C)","APHA","Iodide in Water by Spectrophotometry- Catalytic Reduction Method"]
["271-89-6","Benzofuran",null,null,null,null,null,null,null,"4500-I-B","APHA","Iodine in Water by Spectrophotometry"]
["65-85-0","Benzoic acid",null,698,null,null,null,null,null,"4500-I-C","APHA","Iodine in Water by Titration"]
["100-47-0","Benzonitrile",null,null,null,null,null,null,null,"4500-N-B","APHA_SM21ED","In-Line UV/Persulfate Digestion and Oxidation and Flow Injection Analysis",116]
["119-61-9","Benzophenone",null,null,null,null,null,null,null,"4500-N-C","APHA","Persufate Method for Total Nitrogen",16399]
["95-16-9","Benzothiazole",null,null,null,null,null,null,null,"4500-NH3(C)","APHA","Ammonia in Water by Titrimetric Method",8751]
["98-88-4","Benzoyl chloride",null,null,null,null,null,null,null,"4500-NH3(D)","APHA","Ammonia in Water by Selective Electrode Method",1172]
["519-09-5","Benzoylecgonine hydrate",null,null,null,null,null,null,null,"4500-NH3(E)","APHA","Ammonia in Water by Selective Electrode Method (Known Addition)",7040]
["86-13-5","Benztropine",null,null,null,null,null,null,null,"4500-NH3(F)","APHA","Ammonia in Water Using Phenate Method",4577]
["100-51-6","Benzyl alcohol",null,671,null,null,null,null,null,"4500-NH3(G)","APHA","Ammonia in Water Using Automated Phenate Method",5726]
["100-44-7","Benzyl chloride",null,null,null,null,null,null,null,"4500-NH3(H)","APHA","Ammonia in Water - Flow Injection Analysis",4314]
["539-30-0","Benzyl ethyl ether",null,null,null,null,null,null,null,"4500-NO2(B)","APHA","Nitrite in Water by Colorimetry",74]
["94-18-8","Benzylparaben",null,null,null,null,null,null,null,"4500-NO2(C)","APHA","Nitrite in Water by Ion Chromatography"]
["7440-41-7","Beryllium","Be",4346,null,null,null,null,null,"4500-NO3(B)","APHA","Nitrate in Water by Ultraviolet Spectrophotometry",6797]
["13966-02-4","Beryllium-7",null,null,null,null,null,null,null,"4500-NO3(C)","APHA","Nitrate in Water by Ion Chromatography"]
["PARTICLE-BETA","Beta particle",null,2035,null,null,null,null,null,"4500-NO3(D)","APHA","Nitrate in Water Using an ISE",1340]
["378-44-9","Betamethasone",null,null,null,null,null,null,null,"4500-NO3(E)","APHA","Nitrate in Water- Cadmium Reduction",4914]
["1541-20-4","Bi-2-cyclohexen-1-yl",null,null,null,null,null,null,null,"4500-NO3(F)","APHA","Nitrate in Water- Automated Cadmium Reduction",9701]
["103-29-7","Bibenzyl",null,null,null,null,null,null,null,"4500-NO3(G)","APHA","Nitrate in Water- Titanous Chloride Reduction"]
["71-52-3","Bicarbonate",null,374,null,null,null,null,null,"4500-NO3(H)","APHA","Nitrate in Water- Automated Hydrazine Reduction",2040]
["7787-20-4","Bicyclo[2.2.1]heptan-2-one, 1,3,3-trimethyl-, (1R,4S)-",null,null,null,null,null,null,null,"4500-NO3(I)","APHA","Nitrate in Water- Cadmium Reduction Flow Injection"]
["149877-41-8","Bifenazate",null,null,null,null,null,null,null,"4500-NOR(B)","APHA","Total Kjeldahl Nitrogen in Water",2146]
["82657-04-3","Bifenthrin",null,1082,null,null,null,null,null,"4500-NOR(C)","APHA","Total Kjeldahl Nitrogen in Water"]
["491-80-5","Biochanin A",null,null,null,null,null,null,null,"4500-O-B","APHA","Total Dissolved Oxygen by Titration- Iodometric Method"]
["BOD-U","Biochemical oxygen demand, non-standard conditions",null,92,null,null,null,null,null,"4500-O-C","APHA","Total Dissolved Oxygen by Titration- Azide Modification"]
["BOD","Biochemical oxygen demand, standard conditions",null,38505,null,null,null,null,null,"4500-O-D","APHA","Total Dissolved Oxygen by Titration- Permanganate Modification"]
["92-52-4","Biphenyl",null,null,null,null,null,null,null,"4500-O-E","APHA","Total Dissolved Oxygen by Titration- Alum Flocculation Modificati"]
["108-60-1","Bis(2-chloro-1-methylethyl) ether",null,762,null,null,null,null,null,"4500-O-F","APHA","Total Dissolved Oxygen by Titration- Copper/Sulfate-Sulfamic Acid"]
["111-91-1","Bis(2-chloroethoxy)methane",null,775,null,null,null,null,null,"4500-O-G","APHA","Total Dissolved Oxygen by Membrane Electrode Method",16118]
["111-44-4","Bis(2-chloroethyl) ether",null,839,null,null,null,null,null,"4500-O3","APHA","Residual Ozone by Indigo Colorimetric Method"]
["39638-32-9","Bis(2-chloroisopropyl) ether",null,16,null,null,null,null,null,"4500-P-C","APHA","Phosphorus in Water by Vanadomolybdophosphoric Acid Colorimetry",46]
["110-98-5","Bis(2-hydroxypropyl) ether",null,null,null,null,null,null,null,"4500-P-D","APHA","Phosphorus in Water by Stannous Chloride Titration"]
["101-76-8","Bis(4-chlorophenyl)methane",null,null,null,null,null,null,null,"4500-P-E","APHA","Phosphorus in Water by Colorimetry- Ascorbic Acid Method",55203]
["542-88-1","Bis(chloromethyl) ether",null,1,null,null,null,null,null,"4500-P-F","APHA","Phosphorus in Water by Colorimetry- Automated Ascorbic Acid Metho",3550]
["7440-69-9","Bismuth","Bi",341,null,null,null,null,null,"4500-P-G","APHA_SM21ED","Flow Injection Analysis for Orthophosphate"]
["14913-49-6","Bismuth-212",null,null,null,null,null,null,null,"4500-P-H","APHA","Manual Digestion and Flow Injection Analysis for Total Phosphorus"]
["14733-03-0","Bismuth-214",null,null,null,null,null,null,null,"4500-P-I","MNPCA","In-line UV/Persulfate Digestion and Flow Injection Analysis for Total Phosphorus",5342]
["96210-87-6","Bisphenol A-d16",null,null,null,null,null,null,null,"4500-P-J","APHA","Persulfate Method for Simultaneous Determination of Total Nitrogen and Total Phosphorus"]
["BISPHENOLA-D3","Bisphenol A-d3",null,null,null,null,null,null,null,"4500-S2(D)","APHA","Sulfide in Water by Spectrophotometry",58]
["2079-00-7","Blasticidin S",null,null,null,null,null,null,null,"4500-S2(E)","APHA","Sulfide in Water by Titration",141]
["11113-50-1","Boric acid",null,null,null,null,null,null,null,"4500-S2(F)","APHA","Sulfide by Calculation",96]
["7440-42-8","Boron","B",12680,null,null,null,null,null,"4500-S2(G)","APHA","Sulfide in Water by Ion-Selective Electrode Method"]
["188425-85-6","Boscalid",null,7407,null,null,null,null,null,"4500-S2(I)","APHA","Sulfide by Distillation, Methylene Blue Flow Injection Analysis Method",43]
["314-40-9","Bromacil",null,1707,null,null,null,null,null,"4500-S2(J)","APHA","Sulfide by Acid-Volatile Analysis",165]
["15541-45-4","Bromate",null,null,null,null,null,null,null,"4500-SI(B)","APHA","Silica in Water by FLAA"]
["24959-67-9","Bromide",null,2864,null,null,null,null,null,"4500-SI(C)","APHA","Silica in Water by Gravimetric Analysis",622]
["7726-95-6","Bromine",null,null,null,null,null,null,null,"4500-SI(D)","APHA","Silica in Water by Spectrophotometry- Molybdosilicate Method",1257]
["13863-41-7","Bromine chloride",null,null,null,null,null,null,null,"4500-SI(E)","APHA","Silica in Water by Spectrophotometry- Heteropoly Blue Method"]
["79-08-3","Bromoacetic acid","MBAA",null,null,null,null,null,null,"4500-SI(F)","APHA","Silica in Water by Automated Colorimetry",145]
["108-86-1","Bromobenzene",null,67371,null,null,null,null,null,"4500-SI(G)","APHA","Silica in Water by ICP"]
["5589-96-8","Bromochloroacetic acid","BCAA",null,null,null,null,null,null,"4500-SIO2-C","APHA_SM20ED","Silica Molybdosilicate Method",554]
["83463-62-1","Bromochloroacetonitrile",null,null,null,null,null,null,null,"4500-SO3(B)","APHA","Sulfite in Water by Titration"]
["34970-00-8","Bromochloroiodomethane",null,null,null,null,null,null,null,"4500-SO3(C)","APHA","Sulfite in Water by Colorimetry"]
["71133-14-7","Bromodichloroacetic acid",null,null,null,null,null,null,null,"4500-SO4(B)","APHA","Sulfate in Water by Ion Chromatography"]
["1689-84-5","Bromoxynil",null,null,null,null,null,null,null,"4500-SO4(C)","APHA","Sulfate in Water by Gravimetric Analysis",1]
["117-26-0","Bulan",null,null,null,null,null,null,null,"4500-SO4(D)","APHA","Sulfate in Water by Gravimetric Analysis"]
["8027-00-7","Bulan mixt. with 2-nitro-1,1-bis(p-chlorophenyl)propane","Dilan",null,null,null,null,null,null,"4500-SO4(E)","APHA","Sulfate by Turbidimetric Analysis",1407]
["34911-55-2","Bupropion",null,null,null,null,null,null,null,"4500-SO4(F)","APHA","Sulfate in Water by Colorimetry",20]
["23184-66-9","Butachlor",null,null,null,null,null,null,null,"4670","USEPA","Triazine Herbicides as Atrazine in Water By Quantitative Immunoassay, EPA SW-846 1998"]
["106-97-8","Butane",null,null,null,null,null,null,null,"5","USEPA","Particulate Emissions in Air"]
["110-61-2","Butanedinitrile",null,null,null,null,null,null,null,"5.6","APHA","Enteric Viruses"]
["25167-67-3","Butene",null,null,null,null,null,null,null,"500","NIOSH","Total Particulates by Gravimetric Technique"]
["85-69-8","Butyl 2-ethylhexyl phthalate",null,null,null,null,null,null,null,"5000","NIOSH","Carbon Black by Gravimetric Technique"]
["136-60-7","Butyl benzoate",null,null,null,null,null,null,null,"5001","NIOSH","2,4-D by HPLC/UV"]
["85-68-7","Butyl benzyl phthalate",null,764,null,null,null,null,null,"5002","NIOSH","Warfarin by HPLC/UV"]
["123-95-5","Butyl stearate",null,null,null,null,null,null,null,"5003","NIOSH","Paraquat by HPLC/UV"]
["109-73-9","Butylamine",null,null,null,null,null,null,null,"5004","NIOSH","Hydroquinone by HPLC"]
["2008-41-5","Butylate",null,84,null,null,null,null,null,"5005","NIOSH","Thiram by HPLC/UV",1]
["25013-16-5","Butylated hydroxyanisole","BHA",null,null,null,null,null,null,"5006","NIOSH","Carbaryl by Visible Absorption Spec."]
["94-26-8","Butylparaben",null,null,null,null,null,null,null,"5007","NIOSH","Rotenone by HPLC/UV"]
["78763-54-9","Butyltin",null,null,null,null,null,null,null,"5008","NIOSH","Pyrethrum by HPLC/UV"]
["1118-46-3","Butyltin trichloride",null,null,null,null,null,null,null,"5009","NIOSH","Benzoyl Peroxide by HPLC/UV"]
["123-72-8","Butyraldehyde",null,null,null,null,null,null,null,"5010","NIOSH","Bromoxynil and Bromoxynil Octanoate"]
["107-92-6","Butyric acid",null,null,null,null,null,null,null,"5011","NIOSH","Ethylene Thiourea by Visible Absorption"]
["C1-3-FLUOR","C1-C3 Fluorenes",null,138,null,null,null,null,null,"5012","NIOSH","EPN by GC/FPD"]
["C1-4-CHRYS","C1-C4 Chrysenes",null,77,null,null,null,null,null,"5013","NIOSH","Dyes, Benzidine, o-Tolidine, o-Dianisidi"]
["C1-4-FLUORANTH","C1-C4 Fluoranthenes",null,138,null,null,null,null,null,"5014","NIOSH","Chlorinated Terphenyl by GC/ECD"]
["C1-4-PHENANTH","C1-C4 Phenanthrenes",null,138,null,null,null,null,null,"5016","NIOSH","Strychnine by HPLC/UV"]
["93924-41-5","C10 Hydrocarbons",null,null,null,null,null,null,null,"5017","NIOSH","Dibutyl Phosphate by GC/FPD"]
["70592-80-2","C10-16-Alkyldimethylamines oxides",null,null,null,null,null,null,null,"5018","NIOSH","2,4,7-Trinitrofluoren-9-one HPLC/UV"]
["93924-44-8","C12 Hydrocarbons",null,null,null,null,null,null,null,"5019","NIOSH","Azelaic Acid by GC/FID"]
["93924-47-1","C14 Hydrocarbons",null,null,null,null,null,null,null,"502.1","USEPA","Volatile Halogenated Organics"]
["93924-49-3","C16 Hydrocarbons",null,null,null,null,null,null,null,"502.2","USEPA","Volatile Organic Compounds in Water by GC/PID/ELCD",4895]
["93924-52-8","C18 Hydrocarbons",null,null,null,null,null,null,null,"502.2(ELCD)","USEPA","Volatile Organic Compounds in Water"]
["93924-54-0","C20 Hydrocarbons",null,null,null,null,null,null,null,"502.2(PID)","USEPA","Volatile Organic Compounds in Water"]
["93924-56-2","C22 Hydrocarbons",null,null,null,null,null,null,null,"5020","NIOSH","Phthalates by GC/FID"]
["93924-38-0","C8 Hydrocarbons",null,null,null,null,null,null,null,"5021","USEPA","VOC Using Equilibrium Headspace Analysis"]
["76-13-1","CFC-113",null,67991,null,null,null,null,null,"5021A","ASTM","VOC Using Equilibrium Headspace Analysis Rev1, 6/2003"]
["354-58-5","CFC-113a",null,null,null,null,null,null,null,"5022","NIOSH","Arsenic, organo-"]
["76-14-2","CFC-114",null,4,null,null,null,null,null,"5025","NIOSH","Chlorinated Diphenyl Oxide by GC/ECD"]
["75-71-8","CFC-12",null,69080,null,null,null,null,null,"5026","NIOSH","Mineral Oil Mist by Infrared Spec."]
["7440-43-9","Cadmium","Cd",37472,null,null,null,null,null,"5027","NIOSH","Ribavirin by HPLC/UV"]
["58-08-2","Caffeine",null,57,null,null,null,null,null,"5029","NIOSH","4,4'-Methylenedianiline by HPLC"]
["202282-98-2","Caffeine-13C",null,null,null,null,null,null,null,"503.1","USEPA","Volatile Aromatics in Water by GC"]
["7440-70-2","Calcium","Ca",37726,null,null,null,null,null,"5030","NIOSH","Cyanuric Acid by HPLC/UV"]
["CACO3","Calcium carbonate",null,5659,null,null,null,null,null,"5031","USEPA","Volatiles by Azeotropic Distillation"]
["1305-78-8","Calcium oxide",null,null,null,null,null,null,null,"5032","USEPA","Volatiles by Vacuum Distillation"]
["7778-18-9","Calcium sulfate",null,null,null,null,null,null,null,"5033","NIOSH","p-Nitroaniline by HPLC"]
["10101-41-4","Calcium sulfate dihydrate",null,null,null,null,null,null,null,"5034","NIOSH","Tributyl Phosphate by GC/FPD"]
["13966-05-7","Calcium-45",null,null,null,null,null,null,null,"5035","NIOSH","Super Absorbent Polymers by ICP"]
["76-22-2","Camphor",null,null,null,null,null,null,null,"5036","NIOSH","Trimellitic Anhydride by GC/FID"]
["105-60-2","Caprolactam",null,null,null,null,null,null,null,"5037","NIOSH","Triorthocresyl Phosphate GC/FPD"]
["133-06-2","Captan",null,null,null,null,null,null,null,"5038","NIOSH","Triphenyl Phosphate GC/FPD"]
["6804-07-5","Carbadox",null,null,null,null,null,null,null,"5039","NIOSH","Chlorinated Camphene by GC/ECD"]
["298-46-4","Carbamazepine",null,null,null,null,null,null,null,"504","USEPA","EDB and DBCP in Water by GC"]
["132183-78-9","Carbamazepine-d10",null,null,null,null,null,null,null,"504.1","USEPA","EDB, DBCP and 123TCP in Water by GC"]
["63-25-2","Carbaryl","Sevin",1751,null,null,null,null,null,"5040A","USEPA","Analysis of VOST Sorbent Cartridges"]
["86-74-8","Carbazole",null,672,null,null,null,null,null,"5041","USEPA","Analysis of Sorbent Cartridges"]
["10605-21-7","Carbendazim",null,570,null,null,null,null,null,"5041A","USEPA","Desorption of Sorbent Cartridge by GC/MS"]
["1563-66-2","Carbofuran",null,1754,null,null,null,null,null,"505","USEPA","Organohalide Pesticides and PCB in Water"]
["7440-44-0","Carbon","TC",362,null,null,null,null,null,"506","USEPA","Phthalate and Adipate Esters in Water"]
["124-38-9","Carbon dioxide",null,11503,null,null,null,null,null,"507","USEPA","Nitrogen and Phosphorus Pesticides"]
["75-15-0","Carbon disulfide",null,125,null,null,null,null,null,"508","USEPA","Chlorinated Pesticides in Water by GC"]
["630-08-0","Carbon monoxide",null,3,null,null,null,null,null,"508.1","USEPA","Chlorinated Pest., Herb. and Organohalide"]
["56-23-5","Carbon tetrachloride",null,68683,null,null,null,null,null,"508A","USEPA","PCB Screen by Perchlorination and GC"]
["14762-75-5","Carbon-14",null,null,null,null,null,null,null,"509","USEPA","Ethylene Thiourea in Water by GC"]
["CBOD-NS","Carbonaceous biochemical oxygen demand, non-standard",null,390,null,null,null,null,null,"50APP-A","USEPA","Sulfur Dioxide in Atmosphere"]
["CBOD","Carbonaceous biochemical oxygen demand, standard conditions",null,4002,null,null,null,null,null,"50APP-B","USEPA","Suspended Particulate Matter"]
["3812-32-6","Carbonate",null,92,null,null,null,null,null,"50APP-C","USEPA","Carbon Monoxide in Atmosphere - NDIR"]
["786-19-6","Carbophenothion","Trithion",null,null,null,null,null,null,"50APP-D","USEPA","Ozone in the Atmosphere"]
["953-17-3","Carbophenothion-methyl","Methyl trithion",null,null,null,null,null,null,"50APP-E","USEPA","Hydrocarbons in Atmosphere"]
["5234-68-4","Carboxin",null,null,null,null,null,null,null,"50APP-F","USEPA","NO2 in Atmosphere - Chemiluminescense"]
["120-80-9","Catechol",null,null,null,null,null,null,null,"50APP-G","USEPA","Lead in Particulate Matter"]
["CATION-ANION","Cations-Anions",null,96,null,null,null,null,null,"50APP-J","USEPA","Suspended Particulate Matter (PM10)"]
["63527-52-6","Cefotaxime",null,null,null,null,null,null,null,"5100","USEPA","Volatile Organic Concentration in Waste"]
["7440-45-1","Cerium","Ce",null,null,null,null,null,null,"5110","USEPA","Organic Phase Vapor Pressure in Waste"]
["14762-78-8","Cerium-144",null,null,null,null,null,null,null,"513","USEPA","Tetrachlorodibenzo-p-dioxin in Water"]
["7440-46-2","Cesium","Cs",341,null,null,null,null,null,"515.1","USEPA","Chlorinated Acids in Water by CGC/ECD"]
["13967-70-9","Cesium-134",null,null,null,null,null,null,null,"515.2","USEPA","Chlorinated Acids in Water by GC"]
["10045-97-3","Cesium-137",null,null,null,null,null,null,null,"515.3","USEPA","Chlorinated Acids by GC/ECD"]
["COD","Chemical oxygen demand","COD",17209,null,null,null,null,null,"5210-B","APHA","5-Day Biochemical Oxygen Demand",11032]
["75-87-6","Chloral",null,null,null,null,null,null,null,"5210-C","APHA","Ultimate Biochemical Oxygen Test",19]
["302-17-0","Chloral hydrate",null,null,null,null,null,null,null,"5220-B","APHA","Chemical Oxygen Demand by Titration- Open Reflux Method",4]
["133-90-4","Chloramben",null,null,null,null,null,null,null,"5220-C","APHA","Chemical Oxygen Demand by Titration- Closed Reflux Method",295]
["7286-84-2","Chloramben-methyl",null,null,null,null,null,null,null,"5220-D","APHA","Chemical Oxygen Demand by Colorimetry- Closed Reflux",4711]
["10599-90-3","Chloramine",null,null,null,null,null,null,null,"524.1","USEPA","Purgeable Organics in Water by GC/MS"]
["56-75-7","Chloramphenicol",null,null,null,null,null,null,null,"524.2","USEPA","Purgeable Organics in Water by CGC/MS",8498]
["500008-45-7","Chlorantraniliprole",null,857,null,null,null,null,null,"525.1","USEPA","Organics in Water by Gas Chromatography"]
["14866-68-3","Chlorate",null,null,null,null,null,null,null,"525.2","USEPA","Organics in Water by Gas Chromatography"]
["103-17-3","Chlorbenside",null,null,null,null,null,null,null,"531.1","USEPA","N-Methylcarbamates in Water by HPLC"]
["57-74-9","Chlordane",null,765,null,null,null,null,null,"5310-B","APHA","Total Organic Carbon by Combustion-Infrared Method",1216]
["5566-34-7","Chlordane, gamma",null,44,null,null,null,null,null,"5310-C","APHA","Total Organic Carbon in Water- Ultraviolet Oxidation Method",7602]
["12789-03-6","Chlordane, technical",null,44,null,null,null,null,null,"5310-D","APHA","Total Organic Carbon in Water- Wet-Oxidation Method",17]
["143-50-0","Chlordecone","Kepone",9,null,null,null,null,null,"5320-B","APHA","Dissolved Organic Halogen in Water"]
["3734-48-3","Chlordene",null,null,null,null,null,null,null,"547","USEPA","Glyphosate in Drinking Water by HPLC"]
["6164-98-3","Chlordimeform",null,null,null,null,null,null,null,"548","USEPA","Endothall in Water by Gas Chromatography"]
["80-33-1","Chlorfenson","Ovex",null,null,null,null,null,null,"548.1","USEPA","Endothall in Drinking Water"]
["16887-00-6","Chloride",null,131943,null,null,null,null,null,"549","USEPA","Diquat and Paraquat in Water by HPLC/UV"]
["90982-32-4","Chlorimuron-ethyl",null,1707,null,null,null,null,null,"549.1","USEPA","Diquat and Paraquat in Water by HPLC"]
["25104-55-6","Chlorinated naphthalenes","PCNs",null,null,null,null,null,null,"549.2","USEPA","Diquat and Paraquat in Water Using HPLC/UV"]
["7782-50-5","Chlorine","Cl",null,null,null,null,null,null,"550","USEPA","Polycyclic Aromatic Hydrocarbons by HPLC"]
["10049-04-4","Chlorine dioxide",null,null,null,null,null,null,null,"550.1","USEPA","Polycyclic Aromatic Hydrocarbons by HPLC"]
["14998-27-7","Chlorite",null,null,null,null,null,null,null,"5502","NIOSH","Aldrin by GC/ECD"]
["107-20-0","Chloroacetaldehyde",null,null,null,null,null,null,null,"5503","NIOSH","Polychlorobiphenyls by GC/ECD"]
["79-11-8","Chloroacetic acid","MCAA",null,null,null,null,null,null,"5504","NIOSH","Organotin Compounds (as Sn) by HPLC/GFAA"]
["27134-26-5","Chloroaniline",null,null,null,null,null,null,null,"5506","NIOSH","Polynuclear Aromatic Hydrocarbons, HPLC"]
["108-90-7","Chlorobenzene",null,68864,null,null,null,null,null,"5508","NIOSH","Kepone by GC/ECD"]
["3114-55-4","Chlorobenzene-d5",null,null,null,null,null,null,null,"5509","NIOSH","3,3-Dichlorobenzidine and Benzidine HPLC"]
["510-15-6","Chlorobenzilate",null,9,null,null,null,null,null,"551","USEPA","Chlorinated Solvents in Water by GC"]
["124-48-1","Chlorodibromomethane",null,67529,null,null,null,null,null,"551.1","USEPA","Chlorinated Compounds in Water Using GC-ECD"]
["75-00-3","Chloroethane",null,68991,null,null,null,null,null,"5510","NIOSH","Chlordane by GC/ECD"]
["67-66-3","Chloroform",null,68803,null,null,null,null,null,"5510-B","APHA","Aquatic Humic Substances in Water"]
["74-87-3","Chloromethane",null,68778,null,null,null,null,null,"5510-C","APHA","Aquatic Humic Substances in Water"]
["107-30-2","Chloromethyl methyl ether",null,null,null,null,null,null,null,"5512","NIOSH","Pentachlorophenol by HPLC/UV"]
["25586-43-0","Chloronaphthalene","Halowax 1031",null,null,null,null,null,null,"5514","NIOSH","Demeton by GC/FPD"]
["2675-77-6","Chloroneb",null,null,null,null,null,null,null,"5515","NIOSH","Polynuclear Aromatic Hydrocarbons by GC"]
["25167-93-5","Chloronitrobenzene",null,null,null,null,null,null,null,"5516","NIOSH","2,4- and 2,6-Toluenediamine by HPLC/UV"]
["25167-80-0","Chlorophenol",null,null,null,null,null,null,null,"5517","NIOSH","Polychlorobenzenes by GC/ECD"]
["1406-65-1","Chlorophyll",null,297,null,null,null,null,null,"5518","NIOSH","alpha and beta Naphthylamines by GC/FID"]
["479-61-8","Chlorophyll a",null,null,null,null,null,null,null,"5519","NIOSH","Endrin by GC/ECD"]
["CHLA-CORR","Chlorophyll a, corrected for pheophytin",null,136130,null,null,null,null,null,"552","USEPA","Haloacetic Acids in Water by GC"]
["CHLA-C-PERI","Chlorophyll a, corrected for pheophytin - Periphyton (attached)",null,18,null,null,null,null,null,"552.1","USEPA","Haloacetic Acids in Water by GC"]
["CHLA-FREE","Chlorophyll a, free of pheophytin",null,126,null,null,null,null,null,"552.2","USEPA","Haloacetic Acids and Dalapon in Water Using GCECD"]
["CHLA-UNCORR","Chlorophyll a, uncorrected for pheophytin",null,35711,null,null,null,null,null,"5520-B","APHA","Oil and Grease by Gravimetric Analysis"]
["CHLA-U-PERI","Chlorophyll a, uncorrected for pheophytin - Periphyton (attached)",null,null,null,null,null,null,null,"5520-C","APHA","Oil and Grease by Infrared Spectroscopy"]
["519-62-0","Chlorophyll b",null,12417,null,null,null,null,null,"5520-D","APHA","Oil and Grease by Gravimetric Analysis",8]
["11003-45-5","Chlorophyll c",null,12426,null,null,null,null,null,"5520-F","APHA","Hydrocarbons by Gravimetric Analysis"]
["CHL-PHEO-RATIO","Chlorophyll/Pheophytin ratio",null,7926,null,null,null,null,null,"5521","NIOSH","Monomeric Isocyanates by HPLC/UV"]
["76-06-2","Chloropicrin",null,null,null,null,null,null,null,"553(LLE)","USEPA","Benzidines and Pesticides in Water"]
["126-99-8","Chloroprene",null,12,null,null,null,null,null,"553(LSE)","USEPA","Benzidines and Pesticides in Water"]
["5836-10-2","Chloropropylate",null,null,null,null,null,null,null,"5530-C","APHA","Phenols in Water by Spectrophotometry- Chloroform Extraction Meth"]
["1897-45-6","Chlorothalonil","Daconil",6052,null,null,null,null,null,"5530-D","APHA","Phenols in Water by Spectrophotometry- Direct Photometric Method"]
["25168-05-2","Chlorotoluene",null,null,null,null,null,null,null,"554","USEPA","Carbonyl Compounds in Water by HPLC"]
["1982-47-4","Chloroxuron",null,null,null,null,null,null,null,"5540-C","APHA","Anionic Surfactants in Water as MBAS"]
["101-21-3","Chlorpropham",null,null,null,null,null,null,null,"5540-D","APHA","Nonionic Surfactants as CTAS"]
["2921-88-2","Chlorpyrifos",null,8933,null,null,null,null,null,"555","USEPA","Chlorinated Acids in Water by HPLC"]
["5598-15-2","Chlorpyrifos O.A.",null,570,null,null,null,null,null,"5550-B","APHA","Tannin and Lignin by Colorimetry"]
["5598-13-0","Chlorpyrifos-methyl",null,263,null,null,null,null,null,"5560-B","APHA","Non-Volatile and Volatile Organic Acids"]
["64902-72-3","Chlorsulfuron",null,null,null,null,null,null,null,"5600","NIOSH","Organophosphorus Pesticides by GC/FPD"]
["57-62-5","Chlortetracycline","CTC",null,null,null,null,null,null,"5700","NIOSH","Formaldehyde On Dust by HPLC/UV"]
["1861-32-1","Chlorthal-dimethyl","Dacthal",null,null,null,null,null,null,"5710-B","APHA","Trihalomethane Formation Potential"]
["500-28-7","Chlorthion",null,null,null,null,null,null,null,"5710-C","APHA","Trihalomethane Formation Potential"]
["57-88-5","Cholesterol",null,null,null,null,null,null,null,"5710-D","APHA","Trihalomethane Formation Potential"]
["83199-47-7","Cholesterol-d7",null,null,null,null,null,null,null,"5910-B","APHA","UV - Absorbing Organic Compounds",136]
["7440-47-3","Chromium","Cr",28284,null,null,null,null,null,"5A","USEPA","Particulate Emissions in Air"]
["16065-83-1","Chromium(III)",null,596,null,null,null,null,null,"5B","USEPA","Nonsulfuric Acid Particulate Matter"]
["18540-29-9","Chromium(VI)",null,1002,null,null,null,null,null,"5D","USEPA","Particulate Emissions in Air"]
["14392-02-0","Chromium-51",null,null,null,null,null,null,null,"5E","USEPA","Particulate Emissions in Air"]
["218-01-9","Chrysene",null,797,null,null,null,null,null,"5F","USEPA","Non-Sulfate Particulate Matter in Air"]
["1719-03-5","Chrysene-d12",null,null,null,null,null,null,null,"5G","USEPA","Particulate Emissions in Air"]
["12001-29-5","Chrysotile asbestos",null,null,null,null,null,null,null,"5H","USEPA","Particulate Emissions in Air"]
["25402-06-6","Cinerin I",null,null,null,null,null,null,null,"6 (ATM SO2)","USEPA","Sulfur Dioxide from Stationary Sources"]
["621-82-9","Cinnamic acid",null,null,null,null,null,null,null,"6 (PO-210)","USEPA","Polonium-210 in Soil and Air Filters"]
["85721-33-1","Ciprofloxacin",null,null,null,null,null,null,null,"6-FORMALDEHYD","USEPA","Formaldehyde in Wastewater by GC"]
["59729-33-8","Citalopram",null,null,null,null,null,null,null,"600","NIOSH","Respirable Particulates by Gravimetric"]
["81103-11-9","Clarithromycin",null,null,null,null,null,null,null,"6001","NIOSH","Arsine"]
["105956-97-6","Clinafloxacin",null,null,null,null,null,null,null,"6002","NIOSH","Phosphine by UV-VIS Spectrometer"]
["81777-89-1","Clomazone",null,2833,null,null,null,null,null,"6004","NIOSH","Sulfur Dioxide by Ion Chromatography"]
["1420-04-8","Clonitralid","Bayer-73",null,null,null,null,null,null,"6005","NIOSH","Iodine by Ion Chromatography"]
["1702-17-6","Clopyralid",null,4257,null,null,null,null,null,"6006","NIOSH","Diborane by Plasma Emission Spectrometry"]
["210880-92-5","Clothianidin",null,861,null,null,null,null,null,"6007","NIOSH","Nickel Carbonyl AA Graphite Furnace"]
["CLOUDCOVER","Cloud cover",null,15902,null,null,null,null,null,"6008","NIOSH","Stibine by Visible Spectrophotometry"]
["CLOUDCOVER-LIST","Cloud cover (choice list)",null,859,null,null,null,null,null,"6009","NIOSH","Mercury by Cold Vapor Atomic Absorption"]
["61-72-3","Cloxacillin",null,null,null,null,null,null,null,"601","USEPA","Purgeable Halocarbons in Wastewater",432]
["125612-26-2","Coal",null,null,null,null,null,null,null,"6010","NIOSH","Hydrogen Cyanide by Visible Absorption",1777]
["7440-48-4","Cobalt","Co",5897,null,null,null,null,null,"6010A","USEPA","ICP Spectroscopy",13437]
["13981-38-9","Cobalt-58",null,null,null,null,null,null,null,"6010B","USEPA","Inductively Coupled Plasma AES",16143]
["10198-40-0","Cobalt-60",null,null,null,null,null,null,null,"6010C","USEPA","Inductively Coupled Plasma - Atomic Emission Spectroscopy (ICP-AES)",129]
["50-36-2","Cocaine",null,null,null,null,null,null,null,"6011","NIOSH","Chlorine and Bromine by IC"]
["76-57-3","Codeine",null,null,null,null,null,null,null,"6012","NIOSH","Sulfuryl Fluoride by Ion Chromatography"]
["FCOLSTREP-RATIO","Coliform/Streptococcus ratio, fecal",null,5072,null,null,null,null,null,"6013","NIOSH","Hydrogen Sulfide by Ion Chromatography"]
["7440-50-8","Copper","Cu",37459,null,null,null,null,null,"6014","NIOSH","Nitric Oxide and Nitrogen Dioxide"]
["360-68-9","Coprosterol",null,null,null,null,null,null,null,"6015","NIOSH","Ammonia"]
["191-07-1","Coronene",null,null,null,null,null,null,null,"602","USEPA","Purgeable Aromatics in Wastewater by GC"]
["486-56-6","Cotinine",null,null,null,null,null,null,null,"6020","USEPA","Inductively Coupled Plasma - Mass Spec.",10407]
["56-72-4","Coumaphos",null,null,null,null,null,null,null,"6020_M","USEPA","Inductively Coupled Plasma - Mass Spec."]
["479-13-0","Coumestrol",null,null,null,null,null,null,null,"603","USEPA","Acrolein and Acrylonitrile in Wastewater"]
["COUNT","Count",null,7786,null,null,null,null,null,"604(A)","USEPA","Phenols in Wastewater by GC/FID"]
["8007-45-2","Creosote",null,null,null,null,null,null,null,"604(B)","USEPA","Phenols in Wastewater by GC/ECD"]
["1319-77-3","Cresol",null,2,null,null,null,null,null,"604.1","USEPA","Hexachlorophene and Dichlorophen"]
["98-82-8","Cumene",null,68621,null,null,null,null,null,"6040-B","APHA","Organics by Closed Loop Stripping"]
["13981-15-2","Curium-244",null,null,null,null,null,null,null,"6040-C","APHA","Organics in Water by Purge and Trap GC"]
["21725-46-2","Cyanazine",null,10068,null,null,null,null,null,"605","USEPA","Benzidines in Wastewater by HPLC"]
["21725-46-2-AMID","Cyanazine-amide",null,1,null,null,null,null,null,"606","USEPA","Phthalate Esters in Wastewater by GC"]
["420-05-3","Cyanic acid",null,null,null,null,null,null,null,"607","USEPA","Nitrosamines in Wastewater by GC",8]
["57-12-5","Cyanide",null,2012,null,null,null,null,null,"608","USEPA","Organochlorine Pesticides and PCBs by GC",196]
["506-77-4","Cyanogen chloride",null,null,null,null,null,null,null,"608.1","USEPA","Organochlorine Pesticides in Wastewater"]
["97-11-0","Cyclethrin",null,null,null,null,null,null,null,"608.2","USEPA","Organochlorine Pesticides in Wastewater"]
["1134-23-2","Cycloate",null,null,null,null,null,null,null,"609(A)","USEPA","Nitroaromatics and Isopherone by GC"]
["294-62-2","Cyclododecane",null,null,null,null,null,null,null,"609(B)","USEPA","Nitroaromatics and Isophorone"]
["110-82-7","Cyclohexane",null,29,null,null,null,null,null,"61","USEPA","Hexavalent Chromium in Stack Emissions"]
["98-89-5","Cyclohexanecarboxylic acid",null,null,null,null,null,null,null,"610","USEPA","Polynuclear Aromatic Hydrocarbons by GC"]
["108-93-0","Cyclohexanol",null,null,null,null,null,null,null,"611","USEPA","Haloethers in Wastewater by GC"]
["108-94-1","Cyclohexanone",null,null,null,null,null,null,null,"612","USEPA","Chlorinated Hydrocarbons by GC"]
["110-83-8","Cyclohexene",null,null,null,null,null,null,null,"613","USEPA","Tetrachlorodibenzo-p-dioxin by GC/MS"]
["108-91-8","Cyclohexylamine",null,null,null,null,null,null,null,"614","USEPA","Organophosphorus Pesticides I"]
["121-82-4","Cyclonite",null,1193,null,null,null,null,null,"614.1","USEPA","Organophosphorus Pesticides II"]
["27208-37-3","Cyclopenta[cd]pyrene",null,null,null,null,null,null,null,"615","USEPA","Chlorinated Herbicides in Wastewater"]
["287-92-3","Cyclopentane",null,1,null,null,null,null,null,"616","USEPA","C, H, O Containing Pesticides in Water"]
["873-49-4","Cyclopropylbenzene",null,null,null,null,null,null,null,"617","USEPA","Organohalide Pesticides and PCBs"]
["2691-41-0","Cyclotetramethylenetetranitramine",null,null,null,null,null,null,null,"618","USEPA","Volatile Pesticides in Water by GC"]
["68359-37-5","Cyfluthrin",null,2815,null,null,null,null,null,"619","USEPA","Triazine Pesticides in Wastewater"]
["25155-15-1","Cymene",null,7585,null,null,null,null,null,"620","USEPA","Diphenylamine in Wastewater by GC"]
["22936-86-3","Cyprazine",null,null,null,null,null,null,null,"621","USEPA","Carbamate Pesticides - TLC"]
["526-95-4","D-Gluconic acid",null,null,null,null,null,null,null,"6210-B","APHA","Volatile Organics by Purge and Trap GC"]
["5989-27-5","D-Limonene",null,null,null,null,null,null,null,"6210-C","APHA","Volatile Organics by Purge and Trap GC"]
["14906-97-9","D-gluconic acid sodium salt",null,null,null,null,null,null,null,"6210-D","APHA","Volatile Organics by Purge and Trap CGC"]
["3397-62-4","DEDI Atrazine",null,1970,null,null,null,null,null,"6211-B","APHA","Methane in Water by Combustable Gas"]
["299-85-4","DMPA","DMPA",null,null,null,null,null,null,"6211-C","APHA","Methane in Water by Volumetric Analysis"]
["486-66-8","Daidzein",null,null,null,null,null,null,null,"622","USEPA","Organophosphorus Pesticides III by GC"]
["75-99-0","Dalapon",null,null,null,null,null,null,null,"622.1","USEPA","Thiophosphate Pesticides in Wastewater"]
["2051-24-3","Decachlorobiphenyl","PCB-209",89,null,null,null,null,null,"6220-B","APHA","Volatile Aromatic Organics in Water"]
["434-90-2","Decafluorobiphenyl",null,null,null,null,null,null,null,"6220-C","APHA","Volatile Aromatic Organics in Water"]
["91-17-8","Decahydronaphthalene",null,null,null,null,null,null,null,"6220-D","APHA","Volatile Aromatic Organics in Water"]
["541-02-6","Decamethylcyclopentasiloxane",null,null,null,null,null,null,null,"6220-E","APHA","Volatile Aromatic Organics in Water"]
["124-18-5","Decane",null,null,null,null,null,null,null,"6230-B","APHA","Volatile Halocarbons in Water by GC"]
["334-48-5","Decanoic acid",null,null,null,null,null,null,null,"6230-C","APHA","Volatile Halocarbons in Water by GC"]
["104-72-3","Decylbenzene",null,null,null,null,null,null,null,"6230-D","APHA","Volatile Halocarbons in Water by GC"]
["27381-15-3","Decyne",null,null,null,null,null,null,null,"6230-E","APHA","Volatile Halocarbons in Water by GC/MS"]
["1740-19-8","Dehydroabietic acid",null,null,null,null,null,null,null,"6231-B","APHA","EDB and DBCP in Water by CGC"]
["1446-61-3","Dehydroabietylamine",null,null,null,null,null,null,null,"6231-C","APHA","EDB and DBCP in Water by CGC/MS"]
["2026-24-6","Dehydroabietylamine acetate",null,null,null,null,null,null,null,"6231-D","APHA","EDB and DBCP in Water by CGC"]
["67035-22-7","Dehydronifedipine",null,null,null,null,null,null,null,"6232-B","APHA","Trihalomethanes in Water by CGC"]
["1007-28-9","Deisopropylatrazine",null,9400,null,null,null,null,null,"6232-C","APHA","Trihalomethanes in Water by CGC/MS"]
["127-33-3","Demeclocycline",null,null,null,null,null,null,null,"6232-D","APHA","Trihalomethanes in Water by CGC"]
["8065-48-3","Demeton",null,null,null,null,null,null,null,"6233-B","APHA","Haloacetic Acids and Trichlorphenol"]
["298-03-3","Demeton-O",null,null,null,null,null,null,null,"624","USEPA","Purgeable Organics in Wastewater",1294]
["126-75-0","Demeton-S",null,null,null,null,null,null,null,"624-S","USEPA","Organics in Sludge - Volatiles"]
["8022-00-2","Demeton-methyl","Metasystox",null,null,null,null,null,null,"625","USEPA","Base/Neutral and Acid Organics in Wastewater",76]
["DENSITY","Density",null,43,null,null,null,null,null,"625-S","USEPA","Organics in Sludge - Base/Neutral and Acid",1]
["DEPTH","Depth",null,4798,null,null,null,null,null,"6251-B","APHA","Disinfection By-Products: Haloacetic Acids and Trichlorophenol"]
["SECCHI","Depth, Secchi disk depth",null,481319,null,null,null,null,null,"6252-B","APHA","Disinfection By-Products:  Aldehydes"]
["DEPTH-BOTTOM","Depth, bottom",null,null,null,null,null,null,null,"626","USEPA","Acrolein and Acrylonitrile by GC"]
["6190-65-4","Desethylatrazine",null,9826,null,null,null,null,null,"627","USEPA","Dinitroaniline Pesticides in Wastewater"]
["50-47-5","Desipramine",null,null,null,null,null,null,null,"629","USEPA","Cyanazine in Wastewater by HPLC"]
["84903-78-6","Desmethyldiltiazem",null,null,null,null,null,null,null,"630","USEPA","Dithiocarbamate Pesticides in Wastewater"]
["23576-24-1","Desmethylnorflurazon",null,571,null,null,null,null,null,"630.1","USEPA","Dithiocarbamate Pesticides in Water"]
["54024-22-5","Desogestrel",null,null,null,null,null,null,null,"631","USEPA","Benomyl and Carbendazim in Wastewater"]
["103-23-1","Di(2-ethylhexyl) adipate",null,null,null,null,null,null,null,"632","USEPA","Carbamate Pesticides by HPLC/UV"]
["117-81-7","Di(2-ethylhexyl) phthalate","DEHP",828,null,null,null,null,null,"632.1","USEPA","Carbamate Pesticides by HPLC/UV"]
["53404-27-6","Di(dehydroabietyl)amine acetate",null,null,null,null,null,null,null,"633","USEPA","Organonitrogen Pesticides in Wastewater"]
["117-84-0","Di-n-octyl phthalate",null,763,null,null,null,null,null,"633.1","USEPA","Nitrogen-Containing Pesticides in Water"]
["815-24-7","Di-tert-butyl ketone",null,null,null,null,null,null,null,"634","USEPA","Thiocarbate Pesticides in Wastewaters"]
["2303-16-4","Diallate",null,93,null,null,null,null,null,"635","USEPA","Rotenone in Wastewater by HPLC"]
["131-17-9","Diallyl phthalate",null,null,null,null,null,null,null,"636","USEPA","Bensulide in Wastewater by HPLC/UV"]
["DIATOMS","Diatoms",null,169,null,null,null,null,null,"637","USEPA","MBTS and TCMTB in Wastewater by HPLC"]
["439-14-5","Diazepam",null,null,null,null,null,null,null,"638","USEPA","Determination of Oryzalin in Wastewater"]
["333-41-5","Diazinon",null,8553,null,null,null,null,null,"639","USEPA","Determination of Bendiocarb in Water"]
["962-58-3","Diazinon OXA",null,1073,null,null,null,null,null,"640","USEPA","Mercaptobenzothiazole in Wastewaters"]
["226-36-8","Dibenz[a,h]acridine",null,null,null,null,null,null,null,"6402","NIOSH","Phosphorus Trichloride by Visible Spec."]
["53-70-3","Dibenz[a,h]anthracene",null,851,null,null,null,null,null,"641","USEPA","Thiabendazole in Wastewater by HPLC"]
["224-42-0","Dibenz[a,j]acridine",null,648,null,null,null,null,null,"6410-B","APHA","Extractable Semivolatile Organics by GC"]
["5385-75-1","Dibenzo[a,e]fluoranthene",null,null,null,null,null,null,null,"642","USEPA","Biphenyl and Ortho Phenylphenol in Water"]
["192-65-4","Dibenzo[a,e]pyrene",null,null,null,null,null,null,null,"6420-BA","APHA","Phenols in Water by Gas Chromatography"]
["189-64-0","Dibenzo[a,h]pyrene",null,null,null,null,null,null,null,"6420-BB","APHA","Phenols in Water by Gas Chromatography"]
["189-55-9","Dibenzo[a,i]pyrene",null,null,null,null,null,null,null,"6420-C","APHA","Phenols in Water by Gas Chromatography"]
["191-30-0","Dibenzo[a,l]pyrene",null,null,null,null,null,null,null,"643","USEPA","Determination of Bentazon in Wastewater"]
["205-97-0","Dibenzo[b,k]fluoranthene",null,19,null,null,null,null,null,"6431-B","APHA","Polychorinated Biphenyls in Water by GC"]
["132-64-9","Dibenzofuran",null,700,null,null,null,null,null,"6431-C","APHA","Polychlorinated Biphenyls in Water by GC"]
["132-65-0","Dibenzothiophene",null,null,null,null,null,null,null,"644","USEPA","Determination of Picloram in Wastewater"]
["103-49-1","Dibenzylamine",null,null,null,null,null,null,null,"6440-B","APHA","Polynuclear Aromatic Hydrocarbons"]
["631-64-1","Dibromoacetic acid","DBAA",null,null,null,null,null,null,"6440-C","APHA","Polynuclear Aromatic Hydrocarbons by GC"]
["3252-43-5","Dibromoacetonitrile",null,null,null,null,null,null,null,"645","USEPA","Amine Pesticides and Lethane in Water"]
["73506-94-2","Dibromochloroethane",null,null,null,null,null,null,null,"646","USEPA","Dinitro Aromatic Pesticides in Water"]
["594-18-3","Dibromodichloromethane",null,null,null,null,null,null,null,"6600","NIOSH","Nitrous Oxide by Infrared Spectrophotometry"]
["1868-53-7","Dibromofluoromethane",null,2130,null,null,null,null,null,"6601","NIOSH","Oxygen by Electrochemical Sensor",6]
["74-95-3","Dibromomethane",null,68438,null,null,null,null,null,"6602","NIOSH","Sulfur Hexafluoride by Portable GC"]
["2917-73-9","Dibutyl azelate",null,null,null,null,null,null,null,"6603","NIOSH","Carbon Dioxide by GC/TCD"]
["84-74-2","Dibutyl phthalate",null,828,null,null,null,null,null,"6610-B","APHA","Carbamate Pesticides in Water by HPLC"]
["1962-75-0","Dibutyl terephthalate",null,null,null,null,null,null,null,"6630-B","APHA","Organochlorine Pesticides in Water by GC"]
["1002-53-5","Dibutyltin",null,null,null,null,null,null,null,"6630-C","APHA","Organochlorine Pesticides in Water by GC"]
["683-18-1","Dibutyltin dichloride",null,null,null,null,null,null,null,"6630-D","APHA","Organochlorine Pesticides in Water by GC"]
["1918-00-9","Dicamba",null,4959,null,null,null,null,null,"6640-B","APHA","Chlorinated Phenoxy Herbicides in Water"]
["2463-84-5","Dicapthon",null,null,null,null,null,null,null,"6651-B","APHA","Glyphosate Herbicide in Water"]
["1194-65-6","Dichlobenil",null,1095,null,null,null,null,null,"680","USEPA","Pesticides and PCBs"]
["97-17-6","Dichlofenthion",null,null,null,null,null,null,null,"6A","USEPA","Sulfur Dioxide, Carbon Dioxide, Moisture"]
["117-80-6","Dichlone",null,null,null,null,null,null,null,"6B","USEPA","Sulfur Dioxide and Carbon Dioxide in Air"]
["99-30-9","Dichloran",null,null,null,null,null,null,null,"6C","USEPA","Sulfur Dioxide from Stationary Sources"]
["79-43-6","Dichloroacetic acid","DCAA",null,null,null,null,null,null,"7 (ATM NOX)","USEPA","Nitrogen Oxide from Stationary Sources"]
["3018-12-0","Dichloroacetonitrile",null,null,null,null,null,null,null,"7 (SR-89/90)","USEPA","Strontium-89 and Strontium-90 in Milk"]
["7572-29-4","Dichloroacetylene",null,null,null,null,null,null,null,"7000A(FLAA)","USEPA","Atomic Absorption - FLAA"]
["54518-15-9","Dichloroanisole",null,null,null,null,null,null,null,"7000A(GFAA)","USEPA","Atomic Absorption - GFAA"]
["25321-22-6","Dichlorobenzene",null,null,null,null,null,null,null,"7013","NIOSH","Aluminum and Compounds"]
["25512-42-9","Dichlorobiphenyl",null,null,null,null,null,null,null,"7020","USEPA","Aluminum by FLAA"]
["353-58-2","Dichlorobromofluoromethane",null,null,null,null,null,null,null,"7024","NIOSH","Chromium by Flame Atomic Absorption"]
["75-27-4","Dichlorobromomethane",null,66996,null,null,null,null,null,"7027","NIOSH","Cobalt by Flame Atomic Absorption"]
["26761-81-9","Dichlorobutane",null,null,null,null,null,null,null,"7029","NIOSH","Copper by Flame Atomic Absorption"]
["11069-19-5","Dichlorobutene",null,null,null,null,null,null,null,"7030","NIOSH","Zinc and Compounds by FLAA"]
["1300-21-6","Dichloroethane",null,null,null,null,null,null,null,"7040","USEPA","Antimony by FLAA"]
["25323-30-2","Dichloroethylene",null,null,null,null,null,null,null,"7041","USEPA","Antimony by GFAA"]
["594-04-7","Dichloroiodomethane",null,null,null,null,null,null,null,"7048","NIOSH","Cadmium by Atomic Absorption"]
["30586-10-8","Dichloropentane",null,null,null,null,null,null,null,"7056","NIOSH","Barium, soluble compounds"]
["25167-81-1","Dichlorophenol",null,null,null,null,null,null,null,"7060A","USEPA","Arsenic by GFAA",653]
["26638-19-7","Dichloropropane",null,null,null,null,null,null,null,"7061A","USEPA","Arsenic by Gaseous Hydride AA"]
["26952-23-8","Dichloropropene",null,null,null,null,null,null,null,"7062","USEPA","Antimony and Arsenic by GBAA"]
["29797-40-8","Dichlorotoluene",null,null,null,null,null,null,null,"7063","USEPA","Arsenic by ASV"]
["34077-87-7","Dichlorotrifluoroethane",null,null,null,null,null,null,null,"7074(INSL)","NIOSH","Tungsten by Flame Atomic Absorption"]
["120-36-5","Dichlorprop",null,4954,null,null,null,null,null,"7074(SOL)","NIOSH","Tungsten by Flame Atomic Absorption"]
["62-73-7","Dichlorvos","DDVP",1066,null,null,null,null,null,"7080A","USEPA","Barium by FLAA"]
["51338-27-3","Diclofop methyl",null,52,null,null,null,null,null,"7081","USEPA","Barium by GFAA"]
["115-32-2","Dicofol",null,null,null,null,null,null,null,"7082","NIOSH","Lead by Flame AAS"]
["141-66-2","Dicrotophos",null,570,null,null,null,null,null,"7090","USEPA","Beryllium by FLAA"]
["84-61-7","Dicyclohexyl phthalate",null,null,null,null,null,null,null,"7091","USEPA","Beryllium by GFAA"]
["77-73-6","Dicyclopentadiene",null,null,null,null,null,null,null,"7102","NIOSH","Beryllium and compounds"]
["60-57-1","Dieldrin",null,924,null,null,null,null,null,"7105","NIOSH","Lead by GFAAS"]
["68334-30-5","Diesel fuel",null,null,null,null,null,null,null,"7110-B","APHA","Gross Alpha and Beta Radioactivity"]
["DRO","Diesel range organics",null,221,null,null,null,null,null,"7110-C","APHA","Gross Alpha Radioactivity in Water"]
["38727-55-8","Diethatyl ethyl","Antor",null,null,null,null,null,null,"7130","USEPA","Cadmium by FLAA"]
["110-81-6","Diethyl disulfide",null,null,null,null,null,null,null,"7131A","USEPA","Cadmium by GFAA",664]
["84-66-2","Diethyl phthalate",null,829,null,null,null,null,null,"7140","USEPA","Calcium by FLAA"]
["352-93-2","Diethyl sulfide",null,null,null,null,null,null,null,"7190","USEPA","Chromium by FLAA"]
["636-09-9","Diethyl terephthalate",null,null,null,null,null,null,null,"7191","USEPA","Chromium by GFAA"]
["25340-17-4","Diethylbenzene",null,null,null,null,null,null,null,"7195","USEPA","Hexavalent Chromium (Coprecipitation)"]
["112-34-5","Diethylene glycol monobutyl ether",null,null,null,null,null,null,null,"7196A","USEPA","Hexavalent Chromium (Colorimetric)",144]
["124-17-4","Diethylene glycol monobutyl ether acetate",null,null,null,null,null,null,null,"7197","USEPA","Hexavalent Chromium by FLAA"]
["111-90-0","Diethylene glycol monoethyl ether",null,null,null,null,null,null,null,"7198","USEPA","Hexavalent Chromium by Polarography"]
["111-77-3","Diethylene glycol monomethyl ether",null,null,null,null,null,null,null,"7199","USEPA","Hexavalent Chromium in Water by IC"]
["56-53-1","Diethylstilbestrol","DES",null,null,null,null,null,null,"7200","USEPA","Cobalt by FLAA"]
["119446-68-3","Difenoconazole",null,857,null,null,null,null,null,"7201","USEPA","Cobalt by GFAA"]
["109293-97-2","Diflufenzopyr","SAN 835H",null,null,null,null,null,null,"7210","USEPA","Copper by FLAA"]
["109293-98-3","Diflufenzopyr-sodium",null,null,null,null,null,null,null,"7211","USEPA","Copper by GFAA"]
["1672-46-4","Digoxigenin",null,null,null,null,null,null,null,"7300","NIOSH","Elements by ICP"]
["20830-75-5","Digoxin",null,null,null,null,null,null,null,"7380","USEPA","Iron by FLAA"]
["3648-21-3","Diheptyl phthalate",null,null,null,null,null,null,null,"7381","USEPA","Iron by GFAA"]
["53466-80-1","Dihydroabietylamine acetate",null,null,null,null,null,null,null,"7400","NIOSH","Asbestos by PCM"]
["80-97-7","Dihydrocholesterol",null,null,null,null,null,null,null,"7401","NIOSH","Alkaline Dusts by Titration"]
["521-18-6","Dihydrotestosterone",null,null,null,null,null,null,null,"7402","NIOSH","Asbestos by TEM"]
["5295-66-9","Dihydrotestosterone-d4",null,null,null,null,null,null,null,"7420","USEPA","Lead by FLAA"]
["84-69-5","Diisobutyl phthalate",null,null,null,null,null,null,null,"7421","USEPA","Lead by GFAA",636]
["53466-89-0","Diisobutylphenoxyethanol",null,null,null,null,null,null,null,"7430","USEPA","Lithium by FLAA"]
["27554-26-3","Diisooctyl phthalate",null,null,null,null,null,null,null,"7450","USEPA","Magnesium by FLAA"]
["6938-94-9","Diisopropyl adipate",null,null,null,null,null,null,null,"7460","USEPA","Manganese by FLAA"]
["42399-41-7","Diltiazem",null,null,null,null,null,null,null,"7461","USEPA","Manganese by GFAA"]
["87674-68-8","Dimethenamid",null,8394,null,null,null,null,null,"7470A","USEPA","Mercury in Liquid Wastes by CVAA",4101]
["87674-68-8-ESA","Dimethenamid ESA",null,4122,null,null,null,null,null,"7471A","USEPA","Mercury in Solid or Semisolid Waste",61]
["87674-68-8-OXA","Dimethenamid OXA",null,4122,null,null,null,null,null,"7471B","USEPA","Mercury in Solid or Semisolid Waste (Manual Cold Vapor Technique)"]
["60-51-5","Dimethoate",null,8103,null,null,null,null,null,"7472","USEPA","Mercury by ASV"]
["828-00-2","Dimethoxane",null,null,null,null,null,null,null,"7473","USEPA","Mercury in solids and solutions by thermal decomposition"]
["109-87-5","Dimethoxymethane",null,null,null,null,null,null,null,"7480","USEPA","Molybdenum by FLAA"]
["617-55-0","Dimethyl L-malate",null,null,null,null,null,null,null,"7481","USEPA","Molybdenum by GFAA"]
["115-10-6","Dimethyl ether",null,null,null,null,null,null,null,"7500","NIOSH","Crystalline Silica by X-Ray Diffraction"]
["131-11-3","Dimethyl phthalate",null,786,null,null,null,null,null,"7500-3H(B)","APHA","Tritium in Water by Liquid Scintillation"]
["77-78-1","Dimethyl sulfate",null,null,null,null,null,null,null,"7500-CS(B)","APHA","Radioactive Cesium"]
["75-18-3","Dimethyl sulfide",null,4,null,null,null,null,null,"7500-I-B","APHA","Radioactive Iodine by Precipitation"]
["67-68-5","Dimethyl sulfoxide","DMSO",null,null,null,null,null,null,"7500-I-C","APHA","Radioactive Iodine by Ion-Exchange"]
["120-61-6","Dimethyl terephthalate","DMT",null,null,null,null,null,null,"7500-I-D","APHA","Radioactive Iodine by Distillation"]
["127-19-5","Dimethylacetamide",null,null,null,null,null,null,null,"7500-RA(B)","APHA","Radium in Water by Precipitation"]
["124-40-3","Dimethylamine",null,null,null,null,null,null,null,"7500-RA(C)","APHA","Radium in Water by Emanation"]
["593-74-8","Dimethylmercury",null,4,null,null,null,null,null,"7500-RA(D)","APHA","Radium in Water by Sequential Precipitation"]
["28804-88-8","Dimethylnaphthalene",null,null,null,null,null,null,null,"7500-RN(B)","APHA","Radon Analysis by liquid scintillation method"]
["29062-98-4","Dimethylphenanthrene",null,null,null,null,null,null,null,"7500-SR(B)","APHA","Total Radioactive Strontium in Water"]
["27576-03-0","Dimethylstyrene",null,null,null,null,null,null,null,"7500-U-B","APHA","Uranium in Water by GPC or Scintillation"]
["513-37-1","Dimethylvinyl chloride",null,null,null,null,null,null,null,"7500-U-C","APHA","Uranium in Water by Isotopic Analysis"]
["131-89-5","Dinex",null,null,null,null,null,null,null,"7501","NIOSH","Amorphous silica by X-Ray Diffraction"]
["1335-85-9","Dinitro-o-cresol",null,58,null,null,null,null,null,"7502","NIOSH","Zinc Oxide by X-Ray Powder Diffraction"]
["25321-14-6","Dinitrotoluene",null,null,null,null,null,null,null,"7504","NIOSH","Vanadium Oxides by X-Ray Powder Fraction"]
["88-85-7","Dinoseb","DNBP",null,null,null,null,null,null,"7505","NIOSH","Lead Sulfide by X-Ray Powder Diffraction"]
["165252-70-0","Dinotefuran",null,591,null,null,null,null,null,"7506","NIOSH","Boron Carbide"]
["123-79-5","Dioctyl adipate",null,null,null,null,null,null,null,"7520","USEPA","Nickel by FLAA"]
["78-34-2","Dioxathion",null,null,null,null,null,null,null,"7521","USEPA","Nickel by GFAA"]
["957-51-7","Diphenamid",null,null,null,null,null,null,null,"7550","USEPA","Osmium in Various Matrices by FLAA"]
["58-73-1","Diphenhydramine",null,null,null,null,null,null,null,"7580","USEPA","White Phosphorous by GC"]
["882-33-7","Diphenyl disulfide",null,null,null,null,null,null,null,"7600","NIOSH","Hexavalent Chromium by UV-Visible Spec."]
["122-39-4","Diphenylamine",null,690,null,null,null,null,null,"7601","NIOSH","Crystalline Silica by VIS"]
["38622-18-3","Diphenylhydrazine",null,null,null,null,null,null,null,"7602","NIOSH","Crystalline Silica by Infra-Red Absorption"]
["5035-58-5","Diphenylstibene 2-ethylhexanoate",null,null,null,null,null,null,null,"7603","NIOSH","Crystalline Silica in Coal Mine Dust"]
["127-63-9","Diphenylsulfone",null,null,null,null,null,null,null,"7604","NIOSH","Hexavalent Chromium by Ion Chromatograph"]
["111-47-7","Dipropyl sulfide",null,null,null,null,null,null,null,"7610","USEPA","Potassium by FLAA",64]
["2764-72-9","Diquat",null,null,null,null,null,null,null,"7740","USEPA","Selenium in Various Matrices by GFAA",4]
["85-00-7","Diquat dibromide",null,null,null,null,null,null,null,"7741A","USEPA","Selenium in Water by Gaseous Hydride"]
["DO","Dissolved oxygen (DO)",null,819417,null,null,null,null,null,"7742","USEPA","Selenium by Gaseous Borohydride AA"]
["DO-SAT","Dissolved oxygen saturation",null,320497,null,null,null,null,null,"7760A","USEPA","Silver by FLAA"]
["DO-UP","Dissolved oxygen uptake",null,1,null,null,null,null,null,"7761","USEPA","Silver by GFAA",19]
["DISTANCE","Distance from/to",null,42189,null,null,null,null,null,"7770","USEPA","Sodium by FLAA",16]
["298-04-4","Disulfoton",null,2843,null,null,null,null,null,"7780","USEPA","Strontium by FLAA"]
["2497-06-5","Disulfoton sulfone",null,1707,null,null,null,null,null,"7840","USEPA","Thallium by FLAA"]
["330-54-1","Diuron",null,1707,null,null,null,null,null,"7841","USEPA","Thallium by GFAA"]
["1321-74-0","Divinylbenzene",null,null,null,null,null,null,null,"7870","USEPA","Tin by FLAA"]
["629-97-0","Docosane",null,null,null,null,null,null,null,"7900","NIOSH","Arsenic"]
["112-85-6","Docosanoic acid",null,null,null,null,null,null,null,"7901","NIOSH","Arsenic Trioxide"]
["929-77-1","Docosanoic acid, methyl ester",null,null,null,null,null,null,null,"7902","NIOSH","Fluorides, Aerosol and Gas, by ISE"]
["112-40-3","Dodecane",null,null,null,null,null,null,null,"7903","NIOSH","Acids, inorganic"]
["112-55-0","Dodecyl mercaptan",null,null,null,null,null,null,null,"7904","NIOSH","Cyanide by Ion Specific Electrode"]
["123-01-3","Dodecylbenzene",null,null,null,null,null,null,null,"7905","NIOSH","Phosphorus by GC/FPD"]
["544-85-4","Dotriacontane",null,null,null,null,null,null,null,"7906","NIOSH","Fluorides, Aerosol and Gas, by IC"]
["1668-19-5","Doxepin",null,null,null,null,null,null,null,"7910","USEPA","Vanadium by FLAA"]
["564-25-0","Doxycycline",null,null,null,null,null,null,null,"7911","USEPA","Vanadium by GFAA"]
["68911-49-9","Dried blood, glyoxal-denatured",null,null,null,null,null,null,null,"7950","USEPA","Zinc by FLAA",84]
["136434-34-9","Duloxetine",null,null,null,null,null,null,null,"7951","USEPA","Zinc by GFAA"]
["527-35-5","Durenol",null,null,null,null,null,null,null,"7A","USEPA","Nitrogen Oxide from Stationary Sources"]
["479-18-5","Dyphylline",null,null,null,null,null,null,null,"7B","USEPA","Nitrogen Oxide from Stationary Sources"]
["7429-91-6","Dysprosium",null,null,null,null,null,null,null,"7C","USEPA","Nitrogen Oxide from Stationary Sources"]
["759-94-4","EPTC",null,9858,null,null,null,null,null,"7D","USEPA","Nitrogen Oxide from Stationary Sources"]
["112-95-8","Eicosane",null,null,null,null,null,null,null,"7E","USEPA","Nitrogen Oxide from Stationary Sources"]
["ELEV-GW-MSL","Elevation, groundwater surface, MSL",null,29423,null,null,null,null,null,"8000","HACH","Chemical Oxygen Demand",261]
["ELEV-W-MSL","Elevation, water surface, MSL",null,647,null,null,null,null,null,"8000(A1)","HACH","Chemical Oxygen Demand"]
["115-29-7","Endosulfan",null,null,null,null,null,null,null,"8000(A2)","HACH","Chemical Oxygen Demand"]
["1031-07-8","Endosulfan sulfate",null,750,null,null,null,null,null,"8000A","USEPA","Organic Compounds by Gas Chromatography"]
["145-73-3","Endothall",null,null,null,null,null,null,null,"8000B","USEPA","Organic Compounds by Gas Chromatography"]
["72-20-8","Endrin",null,876,null,null,null,null,null,"8001","NIOSH","Pentachlorophenol in Blood by GC/ECD"]
["7421-93-4","Endrin aldehyde",null,744,null,null,null,null,null,"8001(1)","HACH","Total, Fecal and E. Coli Coliform"]
["53494-70-5","Endrin ketone",null,637,null,null,null,null,null,"8001(2)","HACH","Total, Fecal and E. Coli Coliform"]
["13838-16-9","Enflurane",null,null,null,null,null,null,null,"8001(3)","HACH","Total, Fecal and E. Coli Coliform"]
["93106-60-6","Enrofloxacin",null,null,null,null,null,null,null,"8001(A1)","HACH","Total, Fecal and E. Coli Coliform"]
["ENTEROCOCCUS","Enterococcus",null,1267,null,null,null,null,null,"8001(A2)","HACH","Total, Fecal and E. Coli Coliform"]
["14297-93-9","Epi-chlorotetracycline","ECTC",null,null,null,null,null,null,"8001(A3)","HACH","Total, Fecal and E. Coli Coliform"]
["EICTC","Epi-iso-chlorotetracycline","EICTC",null,null,null,null,null,null,"8002","NIOSH","Methyl Ethyl Ketone, Ethanol and Toluene"]
["14206-58-7","Epi-oxytetracycline","EOTC",null,null,null,null,null,null,"8003","NIOSH","Lead in Blood and Urine by FLAA"]
["23313-80-6","Epi-tetracycline","ETC",null,null,null,null,null,null,"8004","NIOSH","Polychlorobiphenyls in Serum by GC/ECD"]
["106-89-8","Epichlorohydrin",null,null,null,null,null,null,null,"8005","HACH","Oil and Grease in Water"]
["481-30-1","Epitestosterone",null,null,null,null,null,null,null,"8005(B)","NIOSH","Elements in blood or tissue by ICP"]
["517-09-9","Equilenin",null,null,null,null,null,null,null,"8005(T)","NIOSH","Elements in blood or tissue by ICP"]
["474-86-2","Equilin",null,null,null,null,null,null,null,"8008","HACH","Total Iron in Water"]
["531-95-3","Equol",null,null,null,null,null,null,null,"8009","HACH","Zinc in Water"]
["7440-52-0","Erbium","Er",null,null,null,null,null,null,"8010","HACH","Acidity by Titration"]
["114-07-8","Erythromycin",null,null,null,null,null,null,null,"8010B","USEPA","Halogenated Volatile Organics by GC"]
["ERY-H2O","Erythromycin-H20",null,null,null,null,null,null,null,"8011","USEPA","EDB and DBCP by Gas Chromatography",43]
["ECOLI","Escherichia coli",null,71235,null,null,null,null,null,"8013","HACH","Arsenic in Water"]
["66230-04-4","Esfenvalerate",null,2677,null,null,null,null,null,"8015A","USEPA","Non-Halogenated Volatile Organics",26]
["50-27-1","Estriol",null,null,null,null,null,null,null,"8015B","USEPA","Non-Halogenated Organics Using GC/FID",53]
["79037-36-8","Estriol-d3",null,null,null,null,null,null,null,"8020A","USEPA","Aromatic Volatile Organics by GC",66]
["ESTRIOL-D4","Estriol-d4",null,null,null,null,null,null,null,"8021","HACH","Free Chlorine in Water by DPD",1230]
["53-16-7","Estrone",null,null,null,null,null,null,null,"8021A","MNPCA","Halogenated and Aromatic Volatiles by GC/PID/ELCD",16547]
["ESTRONE-13C6","Estrone-13C6",null,null,null,null,null,null,null,"8021A(ELCD)","USEPA","Halogenated and Aromatic Volatiles",19179]
["53866-34-5","Estrone-d4",null,null,null,null,null,null,null,"8021A(PID)","USEPA","Halo and Aromatic Volatiles - CGC/PID"]
["55283-68-6","Ethalfluralin",null,3242,null,null,null,null,null,"8021B","USEPA","Aromatic and Halogenated Volatiles by Gas Chromatography",3812]
["74-84-0","Ethane",null,873,null,null,null,null,null,"8023","HACH","Hexavalent Chromium in Water"]
["542-85-8","Ethane, isothiocyanato-",null,null,null,null,null,null,null,"8024","HACH","Total Chromium in Water"]
["64-17-5","Ethanol",null,182,null,null,null,null,null,"8025","HACH","Color, APHA Platinum-Cobalt",239]
["925-93-9","Ethanol-d",null,null,null,null,null,null,null,"8027","HACH","Cyanide in Water"]
["2476-37-1","Ethanone, 1-(2,5-dichlorophenyl)-",null,null,null,null,null,null,null,"8029","HACH","Fluoride in Water"]
["57-63-6","Ethinyl estradiol",null,null,null,null,null,null,null,"8030A","USEPA","Acrolein and Acrylonitrile by GC"]
["563-12-2","Ethion",null,null,null,null,null,null,null,"8031","USEPA","Acrylonitrile by Gas Chromatography"]
["26225-79-6","Ethofumesate",null,1108,null,null,null,null,null,"8032","USEPA","Acrylamide by Gas Chromatography"]
["13194-48-4","Ethoprop",null,null,null,null,null,null,null,"8032A","USEPA","Acrylamide by Gas Chromatography"]
["51344-60-6","Ethoxylated abietylamine",null,null,null,null,null,null,null,"8033","USEPA","Acetonitrile by GC/NPD"]
["51344-62-8","Ethoxylated dehydroabietylamine",null,null,null,null,null,null,null,"8034","HACH","Manganese in Water"]
["8050-33-7","Ethoxylated rosin acids",null,null,null,null,null,null,null,"8037","HACH","Nickel in Water"]
["141-78-6","Ethyl acetate",null,33,null,null,null,null,null,"8038","HACH","Ammonia Nitrogen in Water",254]
["105-54-4","Ethyl butyrate",null,15,null,null,null,null,null,"8040A(ECD)","USEPA","Phenols by Gas Chromatography"]
["103-36-6","Ethyl cinnamate",null,null,null,null,null,null,null,"8040A(FID)","USEPA","Phenols by Gas Chromatography"]
["60-29-7","Ethyl ether",null,69306,null,null,null,null,null,"8041","USEPA","Phenols by Capillary Column GC"]
["123-66-0","Ethyl hexanoate",null,1,null,null,null,null,null,"8043","HACH","Biological Oxygen Demand in Water"]
["97-62-1","Ethyl isobutyrate",null,28,null,null,null,null,null,"8047","HACH","Phenols in Water"]
["75-08-1","Ethyl mercaptan",null,4,null,null,null,null,null,"8048","HACH","Reactive Phosphorus in Water",2002]
["97-63-2","Ethyl methacrylate",null,14,null,null,null,null,null,"8051","HACH","Sulfate in Water",123]
["62-50-0","Ethyl methanesulfonate",null,685,null,null,null,null,null,"8060(ECD)","USEPA","Phthalate Esters by Gas Chromatography"]
["624-89-5","Ethyl methyl sulfide",null,null,null,null,null,null,null,"8060(FID)","USEPA","Phthalate Esters by Gas Chromatography"]
["66148-16-1","Ethyl nicotinate-d4",null,null,null,null,null,null,null,"8061","USEPA","Phthalate Esters by Gas Chromatography"]
["106-32-1","Ethyl octanoate",null,null,null,null,null,null,null,"8061A","USEPA","Phthalate Esters by Capillary GC/ECD"]
["111-62-6","Ethyl oleate",null,null,null,null,null,null,null,"8070","USEPA","Nitrosamines by Gas Chromatography"]
["105-37-3","Ethyl propionate",null,14,null,null,null,null,null,"8070A","USEPA","Nitrosamines by Gas Chromatography"]
["637-92-3","Ethyl tert-butyl ether",null,null,null,null,null,null,null,"8071","HACH","Sulfite in Water by Titration"]
["14324-55-1","Ethyl ziram",null,null,null,null,null,null,null,"8074(A)","HACH","Total, Fecal and E. Coli Coliform"]
["72-56-0","Ethylan",null,null,null,null,null,null,null,"8074(B)","HACH","Total, Fecal and E. Coli Coliform",97]
["100-41-4","Ethylbenzene",null,68927,null,null,null,null,null,"8080A","USEPA","Pesticides and PCBs",6]
["74-85-1","Ethylene",null,873,null,null,null,null,null,"8081","USEPA","Organochlorine Pesticides and PCBs",339]
["106-93-4","Ethylene dibromide","EDB",68451,null,null,null,null,null,"8081(S)","USEPA","Organochlorine Pesticides and PCBs"]
["107-21-1","Ethylene glycol",null,null,null,null,null,null,null,"8081(W)","USEPA","Organochlorine Pesticides and PCBs",64]
["629-14-1","Ethylene glycol diethyl ether",null,null,null,null,null,null,null,"8081A","USEPA","Organochlorine Pesticides and PCBs by GC",6]
["628-96-6","Ethylene glycol dinitrate",null,null,null,null,null,null,null,"8081A(SNB)","USEPA","Organochlorine Pesticides and PCBs by GC"]
["111-76-2","Ethylene glycol monobutyl ether",null,null,null,null,null,null,null,"8081A(SWB)","USEPA","Organochlorine Pesticides and PCBs by GC"]
["111-15-9","Ethylene glycol monoethyl ether acetate",null,null,null,null,null,null,null,"8081A(WNB)","USEPA","Organochlorine Pesticides and PCBs by GC"]
["75-21-8","Ethylene oxide",null,null,null,null,null,null,null,"8081A(WWB)","USEPA","Organochlorine Pesticides and PCBs by GC"]
["96-45-7","Ethylene thiourea",null,null,null,null,null,null,null,"8082","USEPA","Polychlorinated Biphenyls (PCBs) by Gas Chromatography",440]
["107-15-3","Ethylenediamine",null,null,null,null,null,null,null,"8082(S)","USEPA","PCBs as Aroclors by Capillary Column GC"]
["64-02-8","Ethylenediaminetetraacetic acid","EDTA",null,null,null,null,null,null,"8082(W)","USEPA","PCBs as Aroclors by Capillary Column GC",69]
["120-47-8","Ethylparaben",null,null,null,null,null,null,null,"8090(ECD)","USEPA","Nitroaromatics and Cyclic Ketones"]
["25550-14-5","Ethyltoluene",null,null,null,null,null,null,null,"8090(FID)","USEPA","Nitroaromatics and Cyclic Ketones"]
["350820-06-3","Ethynylestradiol-d4",null,null,null,null,null,null,null,"8091","USEPA","Nitroaromatics and Cyclic Ketones"]
["2593-15-9","Etridiazole",null,null,null,null,null,null,null,"8100","USEPA","Polynuclear Aromatic Hydrocarbons by GC"]
["470-82-6","Eucalyptol",null,null,null,null,null,null,null,"8110","USEPA","Haloethers by Gas Chromatography"]
["7440-53-1","Europium","Eu",null,null,null,null,null,null,"8111(S)","USEPA","Haloethers by Gas Chromatography"]
["14683-23-9","Europium-152",null,null,null,null,null,null,null,"8111(W)","USEPA","Haloethers by Gas Chromatography"]
["15585-10-1","Europium-154",null,null,null,null,null,null,null,"8116","HACH","Chemical Oxygen Demand in Water"]
["14391-16-3","Europium-155",null,null,null,null,null,null,null,"8120A","USEPA","Chlorinated Hydrocarbons by GC"]
["P-EXCHG","Exchangeable phosphorus",null,47,null,null,null,null,null,"8121","USEPA","Chlorinated Hydrocarbons by GC"]
["52-85-7","Famphur",null,8,null,null,null,null,null,"8131","USEPA","Aniline by GC: Capillary Column"]
["4602-84-0","Farnesol",null,null,null,null,null,null,null,"8140","USEPA","Organophosphorus Pesticides by GC"]
["FECAL-COLIF","Fecal Coliform",null,68961,null,null,null,null,null,"8141","USEPA","Organophosphorus Compounds by Gas Chromatography: Capillary Column Technique"]
["FECAL-SGB","Fecal Streptococcus Group Bacteria",null,5542,null,null,null,null,null,"8141(S)","USEPA","Organophosphorus Compounds in Soil by GC"]
["22224-92-6","Fenamiphos",null,null,null,null,null,null,null,"8141(W)","USEPA","Organophosphorus Compounds in Water"]
["60168-88-9","Fenarimol",null,null,null,null,null,null,null,"8141A(S)","USEPA","Organophosphorus Compounds in Soil by GC"]
["1195-79-5","Fenchone",null,null,null,null,null,null,null,"8141A(W)","USEPA","Organophosphorus Compounds in Water"]
["115-90-2","Fensulfothion",null,null,null,null,null,null,null,"8141B","MNPCA","Organophosphorus Compounds by Gas Chromatography",9]
["55-38-9","Fenthion",null,null,null,null,null,null,null,"8150B","USEPA","Chlorinated Herbicides by GC"]
["101-42-8","Fenuron",null,null,null,null,null,null,null,"8151(S)","USEPA","Chlorinated Herbicides in Soils by GC"]
["51630-58-1","Fenvalerate",null,null,null,null,null,null,null,"8151(W)","USEPA","Chlorinated Herbicides in Water by GC"]
["14484-64-1","Ferbam",null,null,null,null,null,null,null,"8151A","USEPA","Chlorinated Herbicides by GC using Methylation or Pentafluorobenzylation Derivatization"]
["20074-52-6","Ferric ion",null,null,null,null,null,null,null,"8156","HACH","pH in Water",4664]
["15438-31-0","Ferrous ion",null,2798,null,null,null,null,null,"8157","HACH","Dissolved Oxygen in Water"]
["120068-37-3","Fipronil",null,null,null,null,null,null,null,"8158","HACH","Total Nonfilterable Residue Solids"]
["59536-65-1","FireMaster BP 6","PBBS",null,null,null,null,null,null,"8160","HACH","Conductivity in Water by Direct Measurement",4207]
["SOLIDS-FDS","Fixed dissolved solids",null,4985,null,null,null,null,null,"8163","HACH","Total Filterable Solids"]
["SOLIDS-FSS","Fixed suspended solids",null,7961,null,null,null,null,null,"8164","HACH","Volatile Nonfilterable Solids in Water"]
["FLASHPT","Flash point",null,653,null,null,null,null,null,"8165","HACH","Settleable Matter Solids in Wastewater"]
["FLOW","Flow",null,82739,null,null,null,null,null,"8167","HACH","Total Chlorine in Water by DPD"]
["FLOW-SEVERITY","Flow, severity (choice list)",null,38,null,null,null,null,null,"8168","HACH","Total Chlorine in Water by Titration"]
["FLOW-STAGE","Flow, stream stage (choice list)",null,null,null,null,null,null,null,"8171","HACH","Nitrate, Cadmium Reduction Method",25]
["79241-46-6","Fluazifop-P-butyl","Fusilade 2000",null,null,null,null,null,null,"8172","HACH","Fecal Streptococci, MPN"]
["33245-39-5","Fluchloralin",null,null,null,null,null,null,null,"8186","HACH","Silica, Colorimetric"]
["70124-77-5","Flucythrinate","Cybolt",null,null,null,null,null,null,"8190","HACH","Total Phosphorus in Water",1709]
["142459-58-3-OA","Flufenacet OXA",null,1704,null,null,null,null,null,"8195","HACH","Determination of Turbidity",873]
["42835-25-6","Flumequine",null,null,null,null,null,null,null,"8215","MNPCA","Dissolved Oxygen (Azide Modification of Winkler Method)"]
["98967-40-9","Flumetsulam",null,991,null,null,null,null,null,"8219","HACH","Acidity in Water"]
["356-12-7","Fluocinonide",null,null,null,null,null,null,null,"8221","HACH","Alkalinity by Buret Titration",306]
["2164-17-2","Fluometuron",null,null,null,null,null,null,null,"8222","HACH","Calcium Hardness in Water"]
["206-44-0","Fluoranthene",null,792,null,null,null,null,null,"8224","HACH","Chloride by Buret Titration"]
["93951-69-0","Fluoranthene-d10",null,null,null,null,null,null,null,"8225","HACH","Chloride by Titration",685]
["86-73-7","Fluorene",null,792,null,null,null,null,null,"8226","HACH","Total Hardness in Water"]
["16984-48-8","Fluoride",null,9076,null,null,null,null,null,"8229","HACH","Dissolved Oxygen in Water"]
["7782-41-4","Fluorine","F",null,null,null,null,null,null,"8230","HACH","Chemical Oxygen Demand in Water"]
["462-06-6","Fluorobenzene",null,null,null,null,null,null,null,"8240B","USEPA","Volatile Organics by GC/MS"]
["16872-11-0","Fluoroboric acid",null,null,null,null,null,null,null,"8240B(S)","USEPA","Volatile Organics in Soil by GC/MS"]
["420-56-4","Fluorotrimethylsilane",null,null,null,null,null,null,null,"8240B(W)","USEPA","Volatile Organics in Water by GC/MS"]
["54910-89-3","Fluoxetine",null,null,null,null,null,null,null,"8241","HACH","Heterotrophic Bacteria, Pour Plate"]
["59333-67-4","Fluoxetine hydrochloride","Prozac",null,null,null,null,null,null,"8250A","USEPA","Semivolatile Organics in Water by GC/MS"]
["59756-60-4","Fluridone",null,null,null,null,null,null,null,"8260A","USEPA","Volatile Organics in Waste by CGC/MS",14]
["80474-14-2","Fluticasone propionate",null,null,null,null,null,null,null,"8260B","USEPA","Volatile Organics by CGC/MS",71786]
["76674-21-0","Flutriafol",null,125,null,null,null,null,null,"8270 SIM","MNPCA","Semivolatile Organic Compounds by GC/MS",39]
["69409-94-5","Fluvalinate","Spur",null,null,null,null,null,null,"8270B(S)","USEPA","Semivolatile Organics in Soil by GC/MS"]
["54739-18-3","Fluvoxamine",null,null,null,null,null,null,null,"8270B(W)","USEPA","Semivolatile Organics in Water by GC/MS",103]
["133-07-3","Folpet",null,null,null,null,null,null,null,"8270C","USEPA","Semivolatile Organic Compounds by CGC/MS",999]
["944-22-9","Fonofos",null,10115,null,null,null,null,null,"8270C(S)","USEPA","Semivolatile Organic Compounds by CGC/MS"]
["50-00-0","Formaldehyde",null,28,null,null,null,null,null,"8270C(W)","USEPA","Semivolatile Organic Compounds by CGC/MS",377]
["23422-53-9","Formetanate hydrochloride","Carzol",null,null,null,null,null,null,"8270D","USEPA","Semivolatile Organic Compounds by GC/MS",390]
["64-18-6","Formic acid",null,null,null,null,null,null,null,"8271","HACH","Residue, Total Solids"]
["485-72-3","Formononetin",null,null,null,null,null,null,null,"8275","USEPA","Screening Semivolatile Organics"]
["25954-13-6","Fosamine-ammonium","Krenite",null,null,null,null,null,null,"8275A","USEPA","PAHs and PCBs in Soils/Wastes: TE/GC/MS"]
["70892-10-3","Fuel oil no. 1",null,null,null,null,null,null,null,"8276","HACH","Total Volatile and Fixed Solids"]
["68476-30-2","Fuel oil no. 2",null,null,null,null,null,null,null,"8277","HACH","Residue, Volatile, Filterable (dissolved)"]
["110-00-9","Furan",null,null,null,null,null,null,null,"8280(S)","USEPA","Polychorinated Dioxins and Furans"]
["26447-28-9","Furancarboxylic acid",null,null,null,null,null,null,null,"8280(W)","USEPA","Polychlorinated Dioxins and Furans"]
["98-01-1","Furfural",null,null,null,null,null,null,null,"8280A(O)","USEPA","Polychorinated Dioxins and Furans"]
["54-31-9","Furosemide",null,null,null,null,null,null,null,"8280A(S)","USEPA","Polychorinated Dioxins and Furans"]
["7440-54-2","Gadolinium","Gd",null,null,null,null,null,null,"8280A(W)","USEPA","Polychorinated Dioxins and Furans"]
["GAGE-HEIGHT","Gage height",null,16759,null,null,null,null,null,"8290","USEPA","Polychlorinated PCDDs and PCDFs by HRGC/HRMS",5]
["7440-55-3","Gallium","Ga",110,null,null,null,null,null,"8300","NIOSH","Hippuric Acid in Urine by Visible Absorption"]
["8006-61-9","Gasoline",null,null,null,null,null,null,null,"8301","NIOSH","Hippuric and Methyl Hippuric Acids"]
["GRO","Gasoline range organics",null,318,null,null,null,null,null,"8302","NIOSH","MBOCA in Urine by GC/ECD"]
["25812-30-0","Gemfibrozil",null,null,null,null,null,null,null,"8303","NIOSH","Pentachlorophenol in Urine by GC/ECD"]
["446-72-0","Genistein",null,null,null,null,null,null,null,"8305","NIOSH","Phenol and p-Cresol in Urine by GC/FID"]
["1403-66-3","Gentamicin",null,null,null,null,null,null,null,"8306","NIOSH","Benzidine in Urine by GC/ECD"]
["7440-56-4","Germanium","Ge",null,null,null,null,null,null,"8308","NIOSH","Fluoride in Urine by ISE"]
["29094-61-9","Glipizide",null,null,null,null,null,null,null,"8310","USEPA","Polynuclear Aromatic Hydrocarbons",9]
["10238-21-8","Glyburide",null,null,null,null,null,null,null,"8311","HACH","Ozone in Water"]
["56-40-6","Glycine",null,null,null,null,null,null,null,"8315","USEPA","Carbonyl Compounds by HPLC"]
["40957-83-3","Glycitein",null,null,null,null,null,null,null,"8315A(LLE)","USEPA","Carbonyl Compounds by HPLC"]
["79-14-1","Glycolic acid",null,null,null,null,null,null,null,"8315A(LSE)","USEPA","Carbonyl Compounds by HPLC"]
["1071-83-6","Glyphosate","Roundup",103,null,null,null,null,null,"8316","USEPA","Acrylamide, Acetonitrile and Acrolein"]
["7440-57-5","Gold","Au",null,null,null,null,null,null,"8318(S)","USEPA","n-Methylcarbamates by HPLC"]
["ANC-GRAN","Gran acid neutralizing capacity","ANC",152,null,null,null,null,null,"8318(W)","USEPA","n-Methylcarbamates by HPLC"]
["90-05-1","Guaiacol",null,null,null,null,null,null,null,"8321","USEPA","Non-Volatile Compounds by HPLC"]
["306-83-2","HCFC-123",null,null,null,null,null,null,null,"8321A","USEPA","Non-Volatile Compounds by HPLC/TS/MS"]
["75-43-4","HCFC-21",null,67894,null,null,null,null,null,"8323","HACH","Fluoride, Electrode"]
["75-45-6","HCFC-22",null,null,null,null,null,null,null,"8325(CRT)","USEPA","Non-Volatile Compounds by HPLC/PB/MS"]
["593-70-4","HCFC-31",null,null,null,null,null,null,null,"8325(DSK)","USEPA","Non-Volatile Compounds by HPLC/PB/MS"]
["811-97-2","HFC-134a",null,null,null,null,null,null,null,"8325(LLE)","USEPA","Non-Volatile Compounds by HPLC/PB/MS"]
["75-37-6","HFC-152a",null,null,null,null,null,null,null,"8330(S)","USEPA","Nitroaromatics and Nitramines by HPLC"]
["406-58-6","HFC-365mfc",null,null,null,null,null,null,null,"8330(W)","USEPA","Nitroaromatics and Nitramines by HPLC"]
["7440-58-6","Hafnium","Hf",null,null,null,null,null,null,"8331(S)","USEPA","Tetrazene in Soil by HPLC"]
["74-97-5","Halon 1011",null,67338,null,null,null,null,null,"8331(W)","USEPA","Tetrazene in Water by HPLC"]
["100784-20-1","Halosulfuron-methyl",null,1707,null,null,null,null,null,"8332","USEPA","Nitroglycerine by HPLC"]
["HARD-CA-MG","Hardness, Ca, Mg",null,40016,null,null,null,null,null,"8334","HACH","Free Chlorine in Water by Titration"]
["HARD-CARB","Hardness, carbonate",null,6742,null,null,null,null,null,"8368","HACH","Coliform Bacteria, Fecal MPN"]
["7440-59-7","Helium","He",null,null,null,null,null,null,"8375","HACH","Temperature, Thermometric"]
["1399-70-8","Helleborein",null,null,null,null,null,null,null,"8410(A)","USEPA","Semivolatile Organics by GC/FTIR"]
["629-94-7","Heneicosane",null,null,null,null,null,null,null,"8410(BN)","USEPA","Semivolatile Organics by GC/FTIR, B/N Extrct"]
["630-04-6","Hentriacontane",null,null,null,null,null,null,null,"8430","USEPA","Bis(2-Chloroethyl)Ether Products by GC/FTIR"]
["76-44-8","Heptachlor",null,792,null,null,null,null,null,"8440","USEPA","TRPH by Infrared Spectrophotometry"]
["1024-57-3","Heptachlor epoxide",null,789,null,null,null,null,null,"8506","HACH","Copper in Water"]
["28680-45-7","Heptachloro-2-norbornene",null,null,null,null,null,null,null,"8507","HACH","Nitrite in Water"]
["28655-71-2","Heptachlorobiphenyl",null,null,null,null,null,null,null,"8515","USEPA","Colorimetric Method for TNT in Soil"]
["37871-00-4","Heptachlorodibenzo-p-dioxin",null,null,null,null,null,null,null,"8520","USEPA","Formaldehyde in Ambient Air"]
["593-49-7","Heptacosane",null,null,null,null,null,null,null,"88.01(S)","NCASI","TCDD and TCDF by Mass Spectrometry"]
["629-78-7","Heptadecane",null,null,null,null,null,null,null,"88.01(W)","NCASI","TCDD and TCDF by Mass Spectrometry"]
["111-71-7","Heptanal",null,null,null,null,null,null,null,"9 (OPACITY)","USEPA","Opacity of Air Emissions"]
["142-82-5","Heptane",null,null,null,null,null,null,null,"9 (TRITIUM)","USEPA","Low Level Tritium in Water"]
["111-14-8","Heptanoic acid",null,null,null,null,null,null,null,"900","USEPA","Gross Alpha and Beta Activity in Water"]
["106-30-9","Heptanoic acid, ethyl ester",null,null,null,null,null,null,null,"900.1","USEPA","Radium in Drinking Water"]
["53535-33-4","Heptanol",null,null,null,null,null,null,null,"9000","NIOSH","Asbestos, Chrysotile by XRD"]
["25339-56-4","Heptene",null,null,null,null,null,null,null,"9002","NIOSH","Asbestos by KLP"]
["118-74-1","Hexachlorobenzene",null,888,null,null,null,null,null,"901","USEPA","Radioactive Cesium in Drinking Water"]
["26601-64-9","Hexachlorobiphenyl",null,null,null,null,null,null,null,"901.1","USEPA","Gamma Emitters in Drinking Water"]
["87-68-3","Hexachlorobutadiene",null,68088,null,null,null,null,null,"9010A(A)","USEPA","Total and Amenable Cyanides by Colorimetry"]
["27154-44-5","Hexachlorocyclohexane",null,null,null,null,null,null,null,"9010A(B)","USEPA","Total and Amenable Cyanides by Titration"]
["77-47-4","Hexachlorocyclopentadiene",null,752,null,null,null,null,null,"9012","USEPA","Total and Amenable Cyanides"]
["34465-46-8","Hexachlorodibenzo-p-dioxin",null,null,null,null,null,null,null,"9012A","USEPA","Total and Amenable Cyanide (Auto UV)"]
["67-72-1","Hexachloroethane",null,752,null,null,null,null,null,"9013","USEPA","Cyanide Extraction for Solids and Oils"]
["70-30-4","Hexachlorophene",null,null,null,null,null,null,null,"902","USEPA","Radioactive Iodine in Water"]
["1888-71-7","Hexachloropropene",null,9,null,null,null,null,null,"9020B","USEPA","Total Organic Halides by Coulometry"]
["630-01-3","Hexacosane",null,null,null,null,null,null,null,"9021","USEPA","Purgeable Organic Halides in Water"]
["544-76-3","Hexadecane",null,null,null,null,null,null,null,"9022","USEPA","Total Oganic Halides, Neutron Activation"]
["116-15-4","Hexafluoropropene",null,null,null,null,null,null,null,"9023","USEPA","Extractable Organic Halides in Solids"]
["66-25-1","Hexaldehyde",null,null,null,null,null,null,null,"903","USEPA","Radium in Drinking Water"]
["87-85-4","Hexamethylbenzene",null,null,null,null,null,null,null,"903.1","USEPA","Radium-226 in Drinking Water",1]
["541-05-9","Hexamethylcyclotrisiloxane",null,null,null,null,null,null,null,"9030A","USEPA","Acid Soluble and Acid Insoluble Sulfides"]
["680-31-9","Hexamethylphosphoramide",null,null,null,null,null,null,null,"9031","USEPA","Extractable Sulfides by Titration"]
["110-54-3","Hexane",null,2,null,null,null,null,null,"9035","USEPA","Sulfate by Automated Colorimetry"]
["142-62-1","Hexanoic acid",null,null,null,null,null,null,null,"9036","USEPA","Sulfate by Automated Colorimetry"]
["30637-87-7","Hexanone",null,null,null,null,null,null,null,"9038","USEPA","Sulfate by Turbidimetric Determination"]
["13798-23-7","Hexasulfur",null,null,null,null,null,null,null,"904","USEPA","Radium-228 in Drinking Water"]
["51235-04-2","Hexazinone",null,1697,null,null,null,null,null,"9040A","USEPA","pH in Water by Electrometric Measurement",726]
["25264-93-1","Hexene",null,null,null,null,null,null,null,"9041A","USEPA","pH using Paper"]
["7440-60-0","Holmium","Ho",null,null,null,null,null,null,"9045B","USEPA","Soil and Waste pH"]
["302-01-2","Hydrazine",null,null,null,null,null,null,null,"905","USEPA","Radioactive Strontium in Water"]
["7647-01-0","Hydrochloric acid",null,null,null,null,null,null,null,"9050","USEPA","Specific Conductance",416]
["58-93-5","Hydrochlorothiazide",null,null,null,null,null,null,null,"9050A","USEPA","Specific Conductance",1026]
["501-52-0","Hydrocinnamic acid",null,null,null,null,null,null,null,"9056","USEPA","Anion Chromatography Method",222]
["50-23-7","Hydrocortisone",null,null,null,null,null,null,null,"9057","USEPA","Impinger Solutions for Cl- by ICP"]
["1333-74-0","Hydrogen","H",13,null,null,null,null,null,"906","USEPA","Tritium in Drinking Water"]
["74-90-8","Hydrogen cyanide",null,null,null,null,null,null,null,"9060","USEPA","Total Organic Carbon in Water and Waste",90]
["7722-84-1","Hydrogen peroxide",null,null,null,null,null,null,null,"9060AM","USEPA","Total Volatile Organic Carbon"]
["7783-06-4","Hydrogen sulfide",null,492,null,null,null,null,null,"9065","USEPA","Total Phenolics by Spectroscopy"]
["123-31-9","Hydroquinone",null,null,null,null,null,null,null,"9066","USEPA","Total Phenolics by Automated Colorimetry"]
["14280-30-9","Hydroxide",null,4,null,null,null,null,null,"9067","USEPA","Total Phenolics by Spectrophotometry"]
["1159-82-6","Hydroxy-amitriptyline, 10-",null,null,null,null,null,null,null,"907","USEPA","Actinides in Drinking Water"]
["51146-55-5","Hydroxy-ibuprofen, 2-",null,null,null,null,null,null,null,"9070","USEPA","Total Recoverable Oil and Grease"]
["2163-68-0","Hydroxyatrazine",null,1716,null,null,null,null,null,"9071A","USEPA","Oil and Grease in Sludge and Sediment"]
["357399-43-0","Hydroxybupropion",null,null,null,null,null,null,null,"9075","USEPA","Total Chlorine in Petroleum Products"]
["15687-27-1","Ibuprofen",null,null,null,null,null,null,null,"9076","USEPA","Total Chlorine in Petroleum Products"]
["35554-44-0","Imazalil","Fungaflor",null,null,null,null,null,null,"9077(A)","USEPA","Total Chlorine in Petroleum Products"]
["81405-85-8-ACID","Imazamethabenz acid",null,1707,null,null,null,null,null,"9077(B)","USEPA","Total Chlorine in Petroleum Products"]
["81405-85-8","Imazamethabenz-methyl",null,1707,null,null,null,null,null,"9077(C)","USEPA","Total Chlorine in Petroleum Products"]
["114311-32-9","Imazamox",null,1707,null,null,null,null,null,"9078","USEPA","Screening for PCBs in Soil"]
["104098-48-8","Imazapic",null,1707,null,null,null,null,null,"9079","USEPA","Screening for PCBs in Transformer Oil"]
["81334-34-1","Imazapyr",null,1707,null,null,null,null,null,"908","USEPA","Uranium in Drinking Water"]
["81335-37-7","Imazaquin",null,1707,null,null,null,null,null,"908.1","USEPA","Uranium in Drinking Water"]
["81335-77-5","Imazethapyr",null,1707,null,null,null,null,null,"9080","USEPA","Cation-Exchange Capacity of Soils"]
["138261-41-3","Imidacloprid",null,1698,null,null,null,null,null,"9081","USEPA","Cation-Exchange Capacity of Soils"]
["50-49-7","Imipramine",null,null,null,null,null,null,null,"911.03","AOAC","Strontium in Water"]
["496-11-7","Indan",null,1,null,null,null,null,null,"9131","USEPA","Total Coliform by Multiple Tube Fermentation"]
["95-13-6","Indene",null,1,null,null,null,null,null,"9132","USEPA","Total Coliform by Membrane Filter"]
["193-39-5","Indeno[1,2,3-cd]pyrene",null,873,null,null,null,null,null,"920.13","AOAC","Inorganic and Organometallic Pesticides"]
["7440-74-6","Indium","In",null,null,null,null,null,null,"920.193(A)","AOAC","Total Solids in Water"]
["120-72-9","Indole",null,1,null,null,null,null,null,"920.193(B)","AOAC","Solids in Solution in Water"]
["C-INORG","Inorganic carbon",null,203,null,null,null,null,null,"920.193(C)","AOAC","Solids in Water by Ignition"]
["NO2NO3","Inorganic nitrogen (nitrate and nitrite)",null,181834,null,null,null,null,null,"920.194","AOAC","Carbonate and Bicarbonate in Water"]
["20461-54-5","Iodide",null,null,null,null,null,null,null,"920.195","AOAC","Silica in Water"]
["7553-56-2","Iodine","I",null,null,null,null,null,null,"920.196","AOAC","Aluminum and Iron in Water"]
["10043-66-0","Iodine-131",null,null,null,null,null,null,null,"920.197(A)","AOAC","Iron in Water"]
["1689-83-4","Ioxynil",null,null,null,null,null,null,null,"920.197(B)","AOAC","Iron in Water"]
["36734-19-7","Iprodione",null,null,null,null,null,null,null,"920.198","AOAC","Aluminum in Water"]
["7439-88-5","Iridium","Ir",null,null,null,null,null,null,"920.199","AOAC","Calcium in Water"]
["7439-89-6","Iron","Fe",43346,null,null,null,null,null,"920.2","AOAC","Magnesium in Water"]
["14596-12-4","Iron-59",null,null,null,null,null,null,null,"920.201","AOAC","Barium in Water"]
["42509-80-8","Isazofos","Miral",null,null,null,null,null,null,"920.202","AOAC","Mn, I, Br, As and Boric Acid in Water"]
["514-53-4","Iso-chlorotetracycline","ICTC",null,null,null,null,null,null,"920.203","AOAC","Manganese in Water"]
["123-92-2","Isoamyl acetate",null,14,null,null,null,null,null,"920.204","AOAC","Bromide and Iodide in Water"]
["297-78-9","Isobenzan","Telodrin",null,null,null,null,null,null,"920.205","AOAC","Arsenic in Water"]
["124-76-5","Isoborneol",null,null,null,null,null,null,null,"920.34","AOAC","Lime Sulfur Solution and Dry Lime Sulfur"]
["75-28-5","Isobutane",null,null,null,null,null,null,null,"9200","USEPA","Nitrate in Water by Spectrophotometry"]
["78-83-1","Isobutanol",null,89,null,null,null,null,null,"9200A","USEPA","Nitrate in Water by Spectrophotometry"]
["115-11-7","Isobutene",null,null,null,null,null,null,null,"9210","USEPA","Nitrate in Water by ISE"]
["110-19-0","Isobutyl acetate",null,28,null,null,null,null,null,"9211","USEPA","Bromide in Water by ISE"]
["120-50-3","Isobutyl benzoate",null,null,null,null,null,null,null,"9212","USEPA","Chloride in Water by ISE"]
["78-84-2","Isobutyraldehyde",null,null,null,null,null,null,null,"9213","USEPA","Cyanide in Water by ISE"]
["79-31-2","Isobutyric acid",null,1,null,null,null,null,null,"9213-D","APHA","E. coli method"]
["465-73-6","Isodrin",null,9,null,null,null,null,null,"9214","USEPA","Fluoride in Water by ISE"]
["25311-71-1","Isofenphos",null,null,null,null,null,null,null,"9215","USEPA","Sulfide in Water by ISE"]
["78-59-1","Isophorone",null,844,null,null,null,null,null,"9215-B","APHA","Heterotrophic Plate Count- Pour Plate Method",909]
["33820-53-0","Isopropalin",null,null,null,null,null,null,null,"9215-C","APHA","Heterotrophic Plate Count- Spread Plate Method"]
["67-63-0","Isopropanol",null,628,null,null,null,null,null,"9215-D","APHA","Heterotrophic Plate Count- Membrane Filter Method"]
["108-22-5","Isopropenyl acetate",null,null,null,null,null,null,null,"9216-B","APHA","Direct Total Microbial Count- Epifluorescence Method"]
["108-21-4","Isopropyl acetate",null,null,null,null,null,null,null,"9221-B","APHA","Standard Total Coliform- Fermentation Technique",1212]
["108-20-3","Isopropyl ether",null,695,null,null,null,null,null,"9221-B.1","APHA","Escherichia coli Fermentation Technique, Multi-tube Fermentation Technique"]
["110-27-0","Isopropyl myristate",null,null,null,null,null,null,null,"9221-C","APHA","Multiple-Tube Fermentation for Coliform",2]
["142-91-6","Isopropyl palmitate",null,null,null,null,null,null,null,"9221-D","APHA","Estimation of Bacterial Density- MPN Determination",18]
["112-10-7","Isopropyl stearate",null,null,null,null,null,null,null,"9221-E","APHA","Fecal Coliform Procedure- Multiple-Tube Procedure",3094]
["119-65-3","Isoquinoline",null,null,null,null,null,null,null,"9221-E.1","APHA","Fecal Coliform Procedure-Multiple-Tube Proc using EC medium and prior enrichment"]
["120-58-1","Isosafrole",null,9,null,null,null,null,null,"9221-E.2","APHA","Fecal Coliform Procedure-Multiple-Tube Proc using A-1 medium without prior enrichment"]
["302-04-5","Isothiocyanate",null,null,null,null,null,null,null,"9221-F","APHA","Escherichia coli, Multi-tube Fermentation Technique",31]
["590-86-3","Isovaleraldehyde",null,null,null,null,null,null,null,"9222-(B+B.5c)","APHA","Total Coliform Fermentation Technique, Multi-tube Fermentation with Enrichment Technique"]
["503-74-2","Isovaleric acid",null,1,null,null,null,null,null,"9222-B","APHA","Standard Total Coliform- Membrane Filter Procedure",328]
["141112-29-0","Isoxaflutole",null,1695,null,null,null,null,null,"9222-C","APHA","Standard Total Coliform- Delayed-Incubation Procedure"]
["143701-75-1","Isoxaflutole DKN",null,1648,null,null,null,null,null,"9222-D","APHA","Fecal Coliform- Membrane Filter Procedure",30883]
["8008-20-6","Kerosene",null,null,null,null,null,null,null,"9222-E","APHA","Fecal Coliform- Delayed-Incubation Procedure"]
["N-KJEL","Kjeldahl nitrogen","TKN",197384,null,null,null,null,null,"9222-F","APHA","Klebsiella- Membrane Filter Procedure"]
["501-30-4","Kojic acid",null,null,null,null,null,null,null,"9222G","APHA","Membrane filtration plating of E. coli with MUG-fluorescent detection",1535]
["147-85-3","L-Proline",null,null,null,null,null,null,null,"9223-B","APHA","Enzyme substrate assay for measuring total coliforms or E. coli (ONPG-MUG test or CPRG-MUG test)",6080]
["50-21-5","Lactic Acid",null,null,null,null,null,null,null,"9230-B","APHA","Fecal Streptococcus and Enterococcus Groups, Multiple Tube Technique"]
["LAKE-PA","Lake physical appearance (choice list)",null,352715,null,null,null,null,null,"9230-C","APHA","Fecal Streptococcus and Enterococcus Groups, Membrane Filter Techniques",366]
["LAKE-RS","Lake recreational suitability (choice list)",null,351103,null,null,null,null,null,"9240-B","APHA","Enumberation-Enrichment & Isolation of Iron and Sulfur Bacteria"]
["91465-08-6","Lambda Cyhalothrin",null,2784,null,null,null,null,null,"925.54","AOAC","Sulfate in Water"]
["7439-91-0","Lanthanum","La",null,null,null,null,null,null,"9250","USEPA","Chloride by Automated Colorimetry"]
["41710-20-7","Larkspur alkaloid",null,null,null,null,null,null,null,"9250-B","APHA","Actinomycete Plate Count"]
["143-07-7","Lauric acid",null,null,null,null,null,null,null,"9251","USEPA","Chloride by Automated Colorimetry"]
["7439-92-1","Lead","Pb",38019,null,null,null,null,null,"9252A","USEPA","Chloride in Water and Waste by Titration"]
["1317-36-8","Lead monoxide",null,null,null,null,null,null,null,"9253","USEPA","Chloride in Water and Waste by Titration"]
["7758-97-6","Lead(II) chromate",null,null,null,null,null,null,null,"9310","USEPA","Gross Alpha and Beta"]
["14255-04-0","Lead-210",null,null,null,null,null,null,null,"9315","USEPA","Alpha Emitting Radium Isotopes in Water",3]
["15092-94-1","Lead-212",null,null,null,null,null,null,null,"9320","USEPA","Radium-228",3]
["15067-28-4","Lead-214",null,null,null,null,null,null,null,"939.11","AOAC","Fluoride in Water"]
["LT-ATTEN-D50","Light attenuation, depth at 50%",null,2,null,null,null,null,null,"949.09","AOAC","Monofluoroacetic Acid Pesticide Residues"]
["LT-PAR","Light, photosynthetic active radiation (PAR)",null,2520,null,null,null,null,null,"949.1","AOAC","Monofluoroacetic Acid Pesticide Residues"]
["9005-53-2","Lignin",null,null,null,null,null,null,null,"949.12","AOAC","Microchemical Deter. of Carbon and Hydrogen"]
["8062-15-5","Lignosulfonic acid",null,null,null,null,null,null,null,"9510-G","APHA","Assay and Identification of Viruses in Sample Concentrates"]
["138-86-3","Limonene",null,null,null,null,null,null,null,"952.24","AOAC","Microchemical Determination of Br, Cl, or I"]
["154-21-2","Lincomycin",null,null,null,null,null,null,null,"952.25","AOAC","Microchemical Determination of Sulfur"]
["58-89-9","Lindane","BHC-gamma",1009,null,null,null,null,null,"955.48","AOAC","Microchemical Determination of Sulfur"]
["60-33-3","Linoleic acid",null,null,null,null,null,null,null,"956.07","AOAC","Microchemical Determination of Alkoxyl Group"]
["330-55-2","Linuron",null,1853,null,null,null,null,null,"9562","ISO","Adsorbable Organic Halogens"]
["66455-18-3","Lipids",null,821,null,null,null,null,null,"957.14","AOAC","Captan Pesticide Residues"]
["7439-93-2","Lithium","Li",2824,null,null,null,null,null,"957.18","AOAC","Microchemical Determination of Phosphorus"]
["14258-72-1","Lithium-6",null,null,null,null,null,null,null,"960.1","AOAC","Herbicides (Ester Forms)"]
["13982-05-3","Lithium-7",null,null,null,null,null,null,null,"960.14(A)","AOAC","Quaternary Ammonium Compounds"]
["98079-51-7","Lomefloxacin",null,null,null,null,null,null,null,"960.14(B)","AOAC","Quaternary Ammonium Compounds"]
["846-49-1","Lorazepam",null,null,null,null,null,null,null,"960.43","AOAC","Piperonyl Butoxide Residues"]
["7439-94-3","Lutetium","Lu",null,null,null,null,null,null,"960.52","AOAC","Microchemical Determination of Nitrogen"]
["MBAS","MBAS",null,7169,null,null,null,null,null,"961.16","AOAC","Microchemical Determination of Fluorine"]
["94-74-6","MCPA",null,5061,null,null,null,null,null,"963.23","AOAC","Glyodin Pesticide Residues"]
["94-81-5","MCPB",null,1704,null,null,null,null,null,"963.24","AOAC","Maleic Hydrazide Pesticide Residues"]
["93-65-2","MCPP",null,4957,null,null,null,null,null,"963.29","AOAC","Microchemical Determination of Oxygen"]
["7439-95-4","Magnesium","Mg",31825,null,null,null,null,null,"964.18","AOAC","Carbaryl Pesticide Residue - Colorimetric"]
["121-75-5","Malathion",null,8064,null,null,null,null,null,"964.19","AOAC","Dodine Pesticide Residues"]
["108-31-6","Maleic anhydride",null,null,null,null,null,null,null,"964.2","AOAC","Nicotine Residues"]
["8018-01-7","Mancozeb",null,null,null,null,null,null,null,"965.36","AOAC","Dichlone Pesticide Residues"]
["12427-38-2","Maneb",null,null,null,null,null,null,null,"967.25","AOAC","Salmonella in Foods"]
["7439-96-5","Manganese","Mn",38557,null,null,null,null,null,"967.26","AOAC","Salmonella in Foods"]
["15339-36-3","Manganese dimethyldithiocarbamate","Niacide",null,null,null,null,null,null,"967.27","AOAC","Salmonella in Foods"]
["13966-31-9","Manganese-54",null,null,null,null,null,null,null,"967.28","AOAC","Salmonella in Foods"]
["80-71-7","Maple lactone",null,null,null,null,null,null,null,"968.24","AOAC","Organo Pesticide Residue - Sweep Codist."]
["520-85-4","Medroxyprogesterone",null,null,null,null,null,null,null,"968.25","AOAC","Biphenyl Pesticide Residues in Citrus"]
["162462-69-3","Medroxyprogesterone-d3",null,null,null,null,null,null,null,"968.26","AOAC","Carbaryl Pesticide Residue - Qualitative"]
["595-33-5","Megestrol acetate",null,null,null,null,null,null,null,"969.48","AOAC","Tritium in Water"]
["58-27-5","Menadione",null,null,null,null,null,null,null,"970.52","AOAC","Organo Pesticide Residues - Multiresidue"]
["1490-04-6","Menthol",null,null,null,null,null,null,null,"970.53","AOAC","Organophos. Pesticide Residues - Sweep Osc."]
["57-53-4","Meprobamate",null,null,null,null,null,null,null,"970.54","AOAC","Naphthyleneacetic Pesticide Residues"]
["7439-97-6","Mercury","Hg",27532,null,null,null,null,null,"9711-B","APHA","Immunofluorescence Method for Giarda & Crytosporidium"]
["150-50-5","Merphos",null,null,null,null,null,null,null,"9711-C","APHA","Protozoa: Entamoeba histolytica in Water"]
["141-79-7","Mesityl oxide",null,null,null,null,null,null,null,"972.05","AOAC","Organochlorine Pesticide Contamination"]
["104206-82-8","Mesotrione",null,1648,null,null,null,null,null,"972.23","AOAC","Lead in Fish"]
["72-33-3","Mestranol",null,null,null,null,null,null,null,"972.24","AOAC","Lead in Fish"]
["MESTRANOL-D4","Mestranol-d4",null,null,null,null,null,null,null,"972.29","AOAC","Thiram Pesticide Residues"]
["57837-19-1","Metalaxyl",null,1707,null,null,null,null,null,"972.43","AOAC","Microchemical Deter. of Carbon, H and N"]
["108-62-3","Metaldehyde","Metason",null,null,null,null,null,null,"973.39","AOAC","Ethylan Pesticide Residues - GC"]
["79-41-4","Methacrylic acid",null,null,null,null,null,null,null,"973.4","AOAC","Specific Conductance of Water"]
["126-98-7","Methacrylonitrile",null,12,null,null,null,null,null,"973.41","AOAC","pH of Water"]
["10265-92-6","Methamidophos",null,null,null,null,null,null,null,"973.42","AOAC","Acidity of Water"]
["74-82-8","Methane",null,27966,null,null,null,null,null,"973.43","AOAC","Alkalinity of Water"]
["67-56-1","Methanol",null,4,null,null,null,null,null,"973.44","AOAC","Biochemical Oxygen Demand of Water"]
["91-80-5","Methapyrilene",null,9,null,null,null,null,null,"973.45","AOAC","Oxygen (Dissolved) in Water"]
["950-37-8","Methidathion",null,null,null,null,null,null,null,"973.46(E)","AOAC","Chemical Oxygen Demand of Water"]
["2032-65-7","Methiocarb",null,null,null,null,null,null,null,"973.46(F)","AOAC","Chemical Oxygen Demand of Water"]
["16752-77-5","Methomyl",null,null,null,null,null,null,null,"973.46(G)","AOAC","Chemical Oxygen Demand of Water"]
["72-43-5","Methoxychlor",null,1847,null,null,null,null,null,"973.47","AOAC","Organic Carbon in Water"]
["79-20-9","Methyl acetate",null,51,null,null,null,null,null,"973.48","AOAC","Total Nitrogen in Water"]
["1120-28-1","Methyl arachidate",null,null,null,null,null,null,null,"973.49(E)","AOAC","Nitrogen (Ammonia) in Water"]
["93-58-3","Methyl benzoate",null,null,null,null,null,null,null,"973.49(F)","AOAC","Nitrogen (Ammonia) in Water"]
["74-83-9","Methyl bromide",null,68700,null,null,null,null,null,"973.5","AOAC","Nitrogen (Nitrate) in Water"]
["4630-82-4","Methyl cyclohexanecarboxylate",null,null,null,null,null,null,null,"973.51","AOAC","Chloride in Water",73]
["110-42-9","Methyl decanoate",null,null,null,null,null,null,null,"973.52","AOAC","Hardness of Water"]
["1235-74-1","Methyl dehydroabietate",null,null,null,null,null,null,null,"973.53","AOAC","Potassium in Water"]
["624-92-0","Methyl disulfide",null,null,null,null,null,null,null,"973.54","AOAC","Sodium in Water"]
["78-93-3","Methyl ethyl ketone",null,68778,null,null,null,null,null,"973.55","AOAC","Phosphorus in Water - Photometric"]
["1338-23-4","Methyl ethyl ketone peroxide",null,null,null,null,null,null,null,"973.56","AOAC","Phosphorus in Water - Automated"]
["1731-92-6","Methyl heptadecanoate",null,null,null,null,null,null,null,"973.57","AOAC","Sulfate in Water"]
["106-73-0","Methyl heptanoate",null,null,null,null,null,null,null,"973.66","AOAC","Strontium-90 in Water"]
["409-02-9","Methyl heptenone",null,null,null,null,null,null,null,"973.67","AOAC","Iodine-131, Ba-140 and Cs-137 in Milk"]
["106-70-7","Methyl hexanoate",null,null,null,null,null,null,null,"974.14","AOAC","Mercury in Fish"]
["60-34-4","Methyl hydrazine",null,null,null,null,null,null,null,"974.22","AOAC","Organo Pesticide Residue - Carbon Column"]
["74-88-4","Methyl iodide",null,12,null,null,null,null,null,"974.27","AOAC","Cd, Cr, Cu, Fe, Pb, Mg, Mn, Ag, Zn in Water"]
["108-10-1","Methyl isobutyl ketone",null,68735,null,null,null,null,null,"974.36","AOAC","Microchemical Determination of Br, Cl, or I"]
["563-80-4","Methyl isopropyl ketone",null,null,null,null,null,null,null,"974.37","AOAC","Strontium-89 and -90 in Milk"]
["556-61-6","Methyl isothiocyanate",null,null,null,null,null,null,null,"974.38","AOAC","Clostridium perfringens in Foods"]
["111-82-0","Methyl laurate",null,null,null,null,null,null,null,"975.4","AOAC","N-Methylcarbamate Insecticide Residues"]
["112-63-0","Methyl linoleate",null,null,null,null,null,null,null,"975.53","AOAC","Microchemical Determination of Sulfur"]
["2905-65-9","Methyl m-chlorobenzoate",null,null,null,null,null,null,null,"975.54","AOAC","Salmonella in Foods"]
["74-93-1","Methyl mercaptan",null,4,null,null,null,null,null,"975.55","AOAC","Staphylococcus aureus in Foods"]
["80-62-6","Methyl methacrylate",null,12,null,null,null,null,null,"975.56","AOAC","Virus in Beef (Ground)"]
["66-27-3","Methyl methanesulfonate",null,660,null,null,null,null,null,"976.23","AOAC","Endosulfan/Tetrasul Pesticide Residues"]
["124-10-7","Methyl myristate",null,null,null,null,null,null,null,"976.29","AOAC","Microchemical Determination of Sulfur"]
["112-12-9","Methyl nonyl ketone",null,null,null,null,null,null,null,"976.3","AOAC","Clostridium perfringens in Foods"]
["606-28-0","Methyl o-benzoylbenzoate",null,null,null,null,null,null,null,"976.31","AOAC","Staphylococcal Enterotoxin in Foods"]
["111-11-5","Methyl octanoate",null,null,null,null,null,null,null,"977.06","AOAC","Chlorotoluron, Chloroxuron, or Metoxuron"]
["112-62-9","Methyl oleate",null,null,null,null,null,null,null,"977.15","AOAC","Mercury in Fish"]
["112-39-0","Methyl palmitate",null,null,null,null,null,null,null,"977.19","AOAC","Hexachlorobenzene/Mirex Residues in Fat"]
["950-35-6","Methyl paraoxon",null,586,null,null,null,null,null,"977.22","AOAC","Mercury in Water"]
["2179-60-4","Methyl propyl disulfide",null,null,null,null,null,null,null,"977.26","AOAC","Clostridium botulinum and Toxins in Food"]
["119-36-8","Methyl salicylate",null,null,null,null,null,null,null,"978.16","AOAC","Ethylenethiourea Pesticide Residues - GC"]
["112-61-8","Methyl stearate",null,null,null,null,null,null,null,"978.23","AOAC","Fecal Coliforms in Shellfish Waters"]
["1634-04-4","Methyl tert-butyl ether",null,67726,null,null,null,null,null,"978.24","AOAC","Salmonella sp. in Foods"]
["25567-11-7","Methyl toluate",null,null,null,null,null,null,null,"978.26","AOAC","Somatic Cells in Milk"]
["623-43-8","Methyl trans-crotonate",null,null,null,null,null,null,null,"980.22","AOAC","Hexachlorobenzene/Mirex Residue in Adipose"]
["1731-88-0","Methyl tridecanoate",null,null,null,null,null,null,null,"980.31","AOAC","Bacillus cereus in Foods"]
["74-89-5","Methylamine",null,null,null,null,null,null,null,"980.32","AOAC","Staphylococcal Enterotoxin in Foods"]
["26914-18-1","Methylanthracene",null,null,null,null,null,null,null,"980.37","AOAC","Staphylococcus aureus in Foods"]
["124-58-3","Methylarsonic acid","MAA",null,null,null,null,null,null,"983.21","AOAC","Organochlorine Pesticide/PCB Residues"]
["28652-72-4","Methylbiphenyl",null,null,null,null,null,null,null,"983.25","AOAC","Total and Fecal Coliforms in Foods"]
["108-87-2","Methylcyclohexane",null,23,null,null,null,null,null,"983.26","AOAC","Differentiation of Bacillus cereus Group"]
["10120-28-2","Methylcyclohexane-d14",null,null,null,null,null,null,null,"984.21","AOAC","Organochlorine Pesticide Residues in Fats"]
["25639-42-3","Methylcyclohexanol",null,null,null,null,null,null,null,"984.34","AOAC","E. coli Producing Heat-Labile Enterotoxin"]
["96-37-7","Methylcyclopentane",null,4,null,null,null,null,null,"984.35","AOAC","E. coli Enterotoxins"]
["75-09-2","Methylene chloride",null,69015,null,null,null,null,null,"985.22","AOAC","Organo Pesticide Residues - GC"]
["6317-18-6","Methylene dithiocyanate",null,null,null,null,null,null,null,"985.23","AOAC","N-Methylcarb. Insecticide/Metabolite Residue"]
["26914-17-0","Methylfluorene",null,null,null,null,null,null,null,"985.42","AOAC","Salmonella in Foods"]
["27133-93-3","Methylindan",null,null,null,null,null,null,null,"985.43","AOAC","Poliovirus 1 in Oysters"]
["29036-25-7","Methylindene",null,null,null,null,null,null,null,"986.22","AOAC","TNT, RDX, HMX and 2,4-DNT in Wastewater"]
["22967-92-6","Methylmercury(1+)",null,590,null,null,null,null,null,"986.33","AOAC","Bacterial and Coliform Counts in Milk"]
["1321-94-4","Methylnaphthalene",null,null,null,null,null,null,null,"986.34","AOAC","Enterotoxigenic E. coli"]
["99-76-3","Methylparaben",null,null,null,null,null,null,null,"986.35","AOAC","Salmonella in Foods by Photometer"]
["31711-53-2","Methylphenanthrene",null,null,null,null,null,null,null,"987.09","AOAC","Staphylococcus aureus in Foods"]
["83-43-2","Methylprednisolone","Methylprednisolone",null,null,null,null,null,null,"987.1","AOAC","Salmonella in Foods"]
["1333-41-1","Methylpyridine",null,null,null,null,null,null,null,"987.11","AOAC","Salmonella in Low Moisture Foods"]
["9006-42-2","Metiram",null,null,null,null,null,null,null,"988.19","AOAC","E. Coli in Chilled/Frozen Food"]
["51218-45-2","Metolachlor",null,10159,null,null,null,null,null,"988.2","AOAC","Vibrio cholerae in Oysters"]
["51218-45-2-ESA","Metolachlor ESA",null,4194,null,null,null,null,null,"989.1","AOAC","Bacterial and Coliforms in Dairy Products"]
["152019-73-3","Metolachlor OXA",null,4159,null,null,null,null,null,"989.11","AOAC","Coliforms in Dairy Products"]
["51384-51-1","Metoprolol",null,null,null,null,null,null,null,"989.12","AOAC","Salmonella sp./E. coli in Foods"]
["21087-64-9","Metribuzin",null,10144,null,null,null,null,null,"989.13","AOAC","Motile Salmonella in Foods"]
["35045-02-4","Metribuzin DA",null,7109,null,null,null,null,null,"989.14","AOAC","Salmonella in Foods"]
["52236-30-3","Metribuzin DADK",null,7109,null,null,null,null,null,"989.15","AOAC","Salmonella in Foods"]
["56507-35-0","Metribuzin DK",null,7108,null,null,null,null,null,"990.06","AOAC","Organochlorine Pesticide in Water by GC"]
["79510-48-8","Metsulfuron",null,null,null,null,null,null,null,"990.07","AOAC","PCBs (Aroclor 1254) in Serum by GC"]
["74223-64-6","Metsulfuron-methyl",null,1707,null,null,null,null,null,"990.08","AOAC","Metals in Solid Wastes by ICP"]
["7786-34-7","Mevinphos","Phosdrin",null,null,null,null,null,null,"990.11","AOAC","Total Coliform and E. coli in Foods"]
["315-18-4","Mexacarbate",null,null,null,null,null,null,null,"990.12","AOAC","Aerobic Plate Count in Foods"]
["12001-26-2","Mica group minerals",null,null,null,null,null,null,null,"990.13","AOAC","Salmonella in Foods"]
["22916-47-8","Miconazole",null,null,null,null,null,null,null,"991.06","AOAC","N-Methylcarb.s in Drinking Water"]
["77238-39-2","Microcystin",null,688,null,null,null,null,null,"991.07","AOAC","Nitrogen and Phosphorus in Drinking Water"]
["10118-90-8","Minocycline",null,null,null,null,null,null,null,"991.08","AOAC","Glyphosate and AMPA in Environmental Water"]
["2385-85-5","Mirex",null,13,null,null,null,null,null,"991.09","AOAC","Munition Residues in Soil by HPLC"]
["MOISTURE","Moisture content",null,33,null,null,null,null,null,"991.12","AOAC","Salmonella in Foods"]
["2212-67-1","Molinate",null,null,null,null,null,null,null,"991.13","AOAC","Salmonella, E. coli, Enterobac. in Foods"]
["7439-98-7","Molybdenum","Mo",4642,null,null,null,null,null,"991.14","AOAC","Coliform and E. coli Counts in Foods"]
["27323-18-8","Monochlorobiphenyl",null,null,null,null,null,null,null,"991.15","AOAC","Total Coliforms and E. coli in Water"]
["6923-22-4","Monocrotophos","Azodrin",null,null,null,null,null,null,"991.38","AOAC","Salmonella in Foods"]
["150-68-5","Monuron",null,null,null,null,null,null,null,"992.11","AOAC","Motile and Nonmotile Salmonella in Foods"]
["116-66-5","Musk moskine",null,null,null,null,null,null,null,"992.14","AOAC","Pesticides and Metabolites in Water"]
["88671-89-0","Myclobutanil","Rally",7031,null,null,null,null,null,"992.17","AOAC","Diquat and Paraquat Residues in Potatoes"]
["544-63-8","Myristic acid",null,null,null,null,null,null,null,"992.18","AOAC","Listeria Species"]
["134-62-3","N,N-Diethyl-m-toluamide","DEET",null,null,null,null,null,null,"992.19","AOAC","Listeria Species"]
["91-66-7","N,N-Diethylaniline",null,null,null,null,null,null,null,"992.3","AOAC","Confirmed Total Coliform/E. coli in Food"]
["68-12-2","N,N-Dimethylformamide",null,null,null,null,null,null,null,"992.31","AOAC","Ethylene Thiourea Residues in Water"]
["3886-90-6","N,N-Dimethylstearamide",null,null,null,null,null,null,null,"992.32","AOAC","Chlorinated Acidic Residues in Water"]
["113-48-4","N-2-Ethylhexylbicycloheptenedicarboximide",null,null,null,null,null,null,null,"993.08","AOAC","Salmonella in Foods"]
["91-49-6","N-Butylacetanilide",null,null,null,null,null,null,null,"993.09","AOAC","Listeria in Dairy, Seafood and Meats"]
["872-50-4","N-Methyl-2-pyrrolidone",null,null,null,null,null,null,null,"993.1","AOAC","Clostridium perfringens from Shellfish"]
["759-73-9","N-Nitroso-N-ethylurea",null,null,null,null,null,null,null,"993.11","AOAC","Bacterial Counts in Raw/Pasteurized Milk"]
["684-93-5","N-Nitroso-N-methylurea",null,null,null,null,null,null,null,"993.12","AOAC","Listeria monocytogenes in Milk"]
["924-16-3","N-Nitrosodi-n-butylamine",null,680,null,null,null,null,null,"993.14","AOAC","Trace Elements in Waters and Wastewaters"]
["621-64-7","N-Nitrosodi-n-propylamine",null,797,null,null,null,null,null,"993.15","AOAC","1,2-Dibromoethane and DBCP in Water"]
["55-18-5","N-Nitrosodiethylamine",null,9,null,null,null,null,null,"993.23","AOAC","Dissolved Hexavalent Chromium in Water"]
["62-75-9","N-Nitrosodimethylamine",null,764,null,null,null,null,null,"993.3","AOAC","Inorganic Anions in Water"]
["86-30-6","N-Nitrosodiphenylamine",null,117,null,null,null,null,null,"ABRAXIS ADDA ELISA","MNPCA","Microcystins-DM ELISA (Microtiter Plate)",688]
["10595-95-6","N-Nitrosomethylethylamine",null,9,null,null,null,null,null,"ABRAXIS PSP ELISA","MNPCA","Saxitoxin (PSP) ELISA, Microtiter Plate",26]
["59-89-2","N-Nitrosomorpholine",null,null,null,null,null,null,null,"AES-0029","FISON","Trace Element Analysis of Water"]
["16543-55-8","N-Nitrosonornicotine",null,null,null,null,null,null,null,"AM-01","USEPA","Americium-241 in Ashed Samples"]
["100-75-4","N-Nitrosopiperidine",null,680,null,null,null,null,null,"AM-02","USDOE/EML","Americium-241 in Soil"]
["930-55-2","N-Nitrosopyrrolidine",null,9,null,null,null,null,null,"AM-03(A)","USDOE/EML","Americium-241 in Air Filters"]
["N-ETFOSA","N-ethylperfluoro-1-octanesulfonamide","N-EtFOSA",null,null,null,null,null,null,"AM-03(T)","USDOE/EML","Americium-241 in Tissue"]
["N-MEFOSA","N-methylperfluoro-1-octanesulfonamide","N-MeFOSA",null,null,null,null,null,null,"AM-03(W)","USDOE/EML","Americium-241 in Water"]
["142-59-6","Nabam",null,null,null,null,null,null,null,"ANION-01","USDOE/EML","Anions - Ion Chromatography"]
["300-76-5","Naled",null,null,null,null,null,null,null,"APHA 1002G","MNPCA","Chlorophyll a, Monochromatic by Spectrometry",159]
["120813-22-1","Nandrolone-d3",null,null,null,null,null,null,null,"APHA 390-A","MNPCA","Hardness Calculation Method",145]
["8030-30-6","Naphtha",null,null,null,null,null,null,null,"APHA 420A&417G","MNPCA","Total Kjeldahl Nitrogen in Water",604]
["91-20-3","Naphthalene",null,68319,null,null,null,null,null,"APHA 4500-NO3","MNPCA","Nitrogen, Nitrate (NO2) + Nitrate (NO3) as N",66]
["1146-65-2","Naphthalene-d8",null,null,null,null,null,null,null,"APHA 4500-NORGD","MNPCA","Nitrogen, Total, by Block Digestion and Flow Injection Analysis (APHA 21st Ed)",4082]
["1321-67-1","Naphthol",null,null,null,null,null,null,null,"APHA 4500-NORGE","MNPCA","Total Kjeldahl Nitrogen in Water",850]
["15299-99-7","Napropamide",null,null,null,null,null,null,null,"APHA 9222 G 2","MNPCA","Total Coliform in Water, Membrane Filter Procedure"]
["22204-53-1","Naproxen",null,null,null,null,null,null,null,"APHA20ED_3500-CR(B)","APHA_SM20ED","Chromium Colormetric Method"]
["555-37-3","Neburon",null,1707,null,null,null,null,null,"APHA20ED_4500-N-C","APHA_SM20ED","Persulfate Method for Total Nitrogen"]
["7440-00-8","Neodymium","Nd",null,null,null,null,null,null,"APHA20ED_5310-B","APHA_SM20ED","Total Organic Carbon by High-Temperature Combustion Method"]
["1404-04-2","Neomycin",null,null,null,null,null,null,null,"APHA21ED_3500-CR(B)","APHA_SM21ED","Chromium Colormetric Method"]
["1405-10-3","Neomycin sulfate",null,null,null,null,null,null,null,"ASTM 3828","MNPCA","Flashpoint",20]
["64296-20-4","Neosaxitoxin",null,null,null,null,null,null,null,"ASTM D2216","MNPCA","Determination of Water (Moisture) Content of Soil and Rock by Mass",79]
["13994-20-2","Neptunium-237",null,null,null,null,null,null,null,"ASTM D3731-87","MNPCA","Chlorophyll-a and Pheophytin-a",30255]
["7440-02-0","Nickel","Ni",32168,null,null,null,null,null,"ASTM_4500-H+B","ASTM","pH in Water by Potentiometry, pH Value in Water by Potentiometry Using a Standard Hydrogen Electrode",529]
["111991-09-4","Nicosulfuron",null,1707,null,null,null,null,null,"AWRESRCH NT031","MNPCA","Nitrogen, Total, by Oxidizing Organic and Ammonium Nitrogen to Nitrate and then Measuring Nitrate",96]
["98-92-0","Nicotinamide",null,null,null,null,null,null,null,"AXYS PFCS","MNPCA","Perfluorinated Compounds (PFCs) by LC/MS/MS",1458]
["54-11-5","Nicotine",null,null,null,null,null,null,null,"B0001","USDOI/USGS","Standard Plate Count- Membrane Filter Method"]
["59-67-6","Nicotinic acid",null,null,null,null,null,null,null,"B0005","USDOI/USGS","Total Bacteria- Epifluorescence Method"]
["7440-03-1","Niobium","Nb",null,null,null,null,null,null,"B0025","USDOI/USGS","Total Coliform Bacteria- Immediate Incubation Test"]
["13967-76-5","Niobium-95",null,null,null,null,null,null,null,"B0030","USDOI/USGS","Total Coliform Bacteria- Delayed Incubation Test"]
["14797-55-8","Nitrate","NO3",47954,null,null,null,null,null,"B0035","USDOI/USGS","Total Coliform Bacteria- Presumptive Test- MPN Method"]
["139-13-9","Nitrilotriacetic acid",null,null,null,null,null,null,null,"B0040","USDOI/USGS","Total Coliform Bacteria- Presumptive Onsite Test- MPN Method"]
["14797-65-0","Nitrite","NO2",29116,null,null,null,null,null,"B0045","USDOI/USGS","Total Coliform Bacteria- Confirmation Test- MPN Method"]
["98-95-3","Nitrobenzene",null,841,null,null,null,null,null,"B0050","USDOI/USGS","Fecal Coliform Bacteria- Immediate Incubation Test"]
["4165-60-0","Nitrobenzene-D5",null,24,null,null,null,null,null,"B0051","USDOI/USGS","Fecal Coliform Bacteria- Presumptive Test- MPN Method"]
["1122-60-7","Nitrocyclohexane",null,null,null,null,null,null,null,"B0055","USDOI/USGS","Fecal Streptococcal Bacteria- Immediate Incubation Test"]
["1836-75-5","Nitrofen",null,null,null,null,null,null,null,"B0060","USDOI/USGS","Fecal Streptococcal Bacteria- Confirmation Test"]
["7727-37-9","Nitrogen","N",8,null,null,null,null,null,"B0065","USDOI/USGS","Fecal Streptococcal Bacteria- Presumptive/Confirmation- MPN Metho"]
["10102-44-0","Nitrogen dioxide",null,null,null,null,null,null,null,"B0100","USDOI/USGS","Salmonella and Shigella- Plate Count"]
["14390-96-6","Nitrogen-15",null,null,null,null,null,null,null,"B0105","USDOI/USGS","Pseudomonas aeruginosa- Plate Count"]
["55-63-0","Nitroglycerin",null,null,null,null,null,null,null,"B0400","USDOI/USGS","Sulfate-Reducing Bacteria- MPN Method"]
["25154-55-6","Nitrophenol",null,null,null,null,null,null,null,"B0420","USDOI/USGS","Nitrifying Bacteria- MPN Method"]
["35576-91-1","Nitrosamine",null,null,null,null,null,null,null,"B0430","USDOI/USGS","Denitrifying and Nitrate-reducing Bacteria- MPN Method"]
["10024-97-2","Nitrous oxide",null,null,null,null,null,null,null,"B1505","USDOI/USGS","Phytoplankton Enumberation- Counting Cell Method"]
["118399-22-7","Nodularin",null,null,null,null,null,null,null,"B1520","USDOI/USGS","Phytoplankton Enumberation- Inverted-Microscope Method"]
["NAIP","Non-apatite inorganic phosphorus","NAIP",47,null,null,null,null,null,"B2501","USDOI/USGS","Zooplankton Enumberation- Counting Cell Method"]
["3734-49-4","Nonachlor",null,null,null,null,null,null,null,"B2520","USDOI/USGS","Zooplankton- Gravimetric Method for Biomass Determination"]
["53742-07-7","Nonachlorobiphenyl",null,null,null,null,null,null,null,"B3401","USDOI/USGS","Seston- Glass-fiber Filter Method"]
["630-03-5","Nonacosane",null,null,null,null,null,null,null,"B3501","USDOI/USGS","Periphyton Enumberation- Sedgwick-Rafter Method"]
["629-92-5","Nonadecane",null,null,null,null,null,null,null,"B3520","USDOI/USGS","Periphyton- Gravimetric Method for Biomass Determination"]
["111-84-2","Nonane",null,null,null,null,null,null,null,"B3545","USDOI/USGS","Periphyton Enumberation- Inverted-Microscope Method"]
["112-05-0","Nonanoic acid",null,null,null,null,null,null,null,"B4520","USDOI/USGS","Macrophytes- Distribution and Abundance (quantitative method)"]
["27215-95-8","Nonene",null,null,null,null,null,null,null,"B5001","USDOI/USGS","Benthic Invertebrates- Faunal Survey (qualitative method)"]
["NMOC","Nonmethane organic compounds",null,8,null,null,null,null,null,"B5020","USDOI/USGS","Benthic Invertebrates- Numerical Assessment"]
["25154-52-3","Nonylphenol",null,null,null,null,null,null,null,"B5040","USDOI/USGS","Benthic Invertebrates- Distribution and Abundance (quantitative m"]
["NP2EC","Nonylphenol diethoxycarboxylate",null,null,null,null,null,null,null,"B5050","USDOI/USGS","Benthic Invertebrate Drift Determination"]
["NP2EO","Nonylphenol diethoxylate",null,null,null,null,null,null,null,"B6020","USDOI/USGS","Aquatic Vertebrates- Life History (quantitative method)"]
["NP1EC","Nonylphenol monoethoxycarboxylate",null,null,null,null,null,null,null,"B6501","USDOI/USGS","Chlorophyll a-b-c in Phytoplankton by Spectroscopy"]
["NP1EO","Nonylphenol monoethoxylate",null,null,null,null,null,null,null,"B6520","USDOI/USGS","Chlorophyll a-b in Phytoplankton by Chromatography/Spectroscopy"]
["NP4EC","Nonylphenol tetraethoxycarboxylate",null,null,null,null,null,null,null,"B6530","USDOI/USGS","Chlorophyll a-b in Phytoplankton by HP Liquid Chromatography"]
["NP4EO","Nonylphenol tetrathoxylate",null,null,null,null,null,null,null,"B6540","USDOI/USGS","Chlorophyll a-b in Phytoplankton by Chromatography/Fluorometry"]
["NP3EC","Nonylphenol triethoxycarboxylate",null,null,null,null,null,null,null,"B6560","USDOI/USGS","Biomass/Chlorophyll Ratio for Phytoplankton"]
["NP3EO","Nonylphenol triethoxylate",null,null,null,null,null,null,null,"B6601","USDOI/USGS","Chlorophyll a-b-c in Periphyton by Spectroscopy"]
["NORETHINDRONED6","Norethindrone-d6",null,null,null,null,null,null,null,"B6620","USDOI/USGS","Chlorophyll a-b in Periphyton by Chromatography/Spectroscopy"]
["68-22-4","Norethisterone",null,null,null,null,null,null,null,"B6630","USDOI/USGS","Chlorophyll a-b in Periphyton by HP Liquid Chromatography"]
["68-23-5","Norethynodrel",null,null,null,null,null,null,null,"B6640","USDOI/USGS","Chlorophyll a-b in Periphyton by Chromatography/Fluorometry"]
["70458-96-7","Norfloxacin",null,null,null,null,null,null,null,"B6660","USDOI/USGS","Biomass/Chlorophyll Ratio in Periphyton"]
["126924-38-7","Norfluoxetine",null,null,null,null,null,null,null,"B6700","USDOI/USGS","Adenosine triphosphate (ATP) Determination in Water Sample"]
["27314-13-2","Norflurazon",null,1696,null,null,null,null,null,"B8001","USDOI/USGS","Productivity- Oxygen Light/Dark-Bottle Method for Phytoplankton"]
["35189-28-7","Norgestimate",null,null,null,null,null,null,null,"B8020","USDOI/USGS","Productivity- Carbon-14 Light/Dark-Bottle Method for Phytoplankto"]
["6533-00-2","Norgestrel",null,null,null,null,null,null,null,"B8040","USDOI/USGS","Productivity- Oxygen Light/Dark-Enclosure Method for Periphyton"]
["87857-41-8","Norsertraline",null,null,null,null,null,null,null,"B8100","USDOI/USGS","Productivity & Community Matabolism by Diel O2-Curve Stratified W"]
["72-69-5","Nortriptyline",null,null,null,null,null,null,null,"B8120","USDOI/USGS","Productivity & Community Metabolism by Diel O2-Curve Streams"]
["67018-85-3","Norverapamil",null,null,null,null,null,null,null,"B8502","USDOI/USGS","Algal Growth Potential (AGP) Spikes for Nutrient Limitation"]
["N-NUTR","Nutrient-nitrogen",null,24265,null,null,null,null,null,"BACTERIA","MNPCA","Bacteria analysis by unspecified method",461]
["298-06-6","O,O-Diethyl dithiophosphate",null,null,null,null,null,null,null,"C-001-1","USEPA","Alkalinity of Water by Titration"]
["756-80-9","O,O-Dimethyl dithiophosphate",null,null,null,null,null,null,null,"C-002-1","USEPA","COD by Open Reflux"]
["2104-64-5","O-Ethyl O-(p-nitrophenyl) phenylphosphonothioate","EPN",null,null,null,null,null,null,"C-003-1","USEPA","Anions by Ion Chromatography"]
["55722-26-4","Octachlorobiphenyl",null,null,null,null,null,null,null,"C-004-1","USEPA","Total Hardness by Colorimetry"]
["706-78-5","Octachlorocyclopentene",null,null,null,null,null,null,null,"C-005-1","USEPA","Oil and Grease by Extraction/Gravimetry"]
["2234-13-1","Octachloronaphthalene",null,null,null,null,null,null,null,"C-006-1","USEPA","Total Dissolved Solids in Water"]
["29082-74-4","Octachlorostyrene",null,null,null,null,null,null,null,"C-007-1","USEPA","Total Organic Carbon in Water"]
["630-02-4","Octacosane",null,null,null,null,null,null,null,"C-008-1","USEPA","Total Suspended Solids in Water"]
["593-45-3","Octadecane",null,null,null,null,null,null,null,"C-01","USEPA","Carbon-14 in Aqueous Samples"]
["26764-26-1","Octadecenoic acid",null,null,null,null,null,null,null,"C-010-1","USEPA","Soil Extractable Organics by Gravimetry"]
["111-65-9","Octane",null,null,null,null,null,null,null,"C-011-1","USEPA","Soil % Moisture by Gravimetry",6]
["124-07-2","Octanoic acid",null,null,null,null,null,null,null,"C-012-1","USEPA","Free Liquid in Wastes by Filtration"]
["10544-50-0","Octasulfur",null,null,null,null,null,null,null,"C-013-1","USEPA","Soil pH"]
["119-07-3","Octyl decyl phthalate",null,null,null,null,null,null,null,"C-014-1","USEPA","Specific Gravity of Soil"]
["115-88-8","Octyl diphenyl phosphate",null,null,null,null,null,null,null,"C-015-1","USEPA","Total Carbon in Soil by Combustion"]
["67554-50-1","Octylphenol",null,null,null,null,null,null,null,"C-017-1","USEPA","Water Level Measurement in Wells",3]
["OP2EO","Octylphenol diethoxylate",null,null,null,null,null,null,null,"C-018-1","USEPA","Controlled Pumping Test in Wells"]
["OP1EO","Octylphenol monoethoxylate",null,null,null,null,null,null,null,"C-019-1","USEPA","Slug Test for Hydraulic Conductivity"]
["OP5EO","Octylphenol pentaethoxylate",null,null,null,null,null,null,null,"CA-01","USDOE/EML","Calcium - AA Spectrometry"]
["OP4EO","Octylphenol tetraethoxylate",null,null,null,null,null,null,null,"CA-02","USDOE/EML","Calcium - Titration"]
["OP3EO","Octylphenol triethoxylate",null,null,null,null,null,null,null,"CHUBCK_FC","MNPCA","Fecal Coliform"]
["82419-36-1","Ofloxacin",null,null,null,null,null,null,null,"COLISCAN EASYGL","MNPCA","Coliscan Easy Gel (Incubated) Method for Detecting E. coli",432]
["OIL-GREASE","Oil and Grease",null,1028,null,null,null,null,null,"CP-85.01","NCASI","Chlorinated Phenolics in Water"]
["301-02-0","Oleamide",null,null,null,null,null,null,null,"CP-86.01","NCASI","Chlorinated Phenolics in Water"]
["7060-74-4","Oleandomycin phosphate",null,null,null,null,null,null,null,"CR-01","USEPA","Chromium-51 in Water Samples"]
["112-80-1","Oleic acid",null,null,null,null,null,null,null,"CR_III_CALC","MNPCA","Chromium III by Calculation",147]
["N-ORG","Organic Nitrogen",null,24658,null,null,null,null,null,"CTM-001","USEPA","Determination of Butadiene Emissions"]
["C-ORG","Organic carbon",null,19964,null,null,null,null,null,"CTM-002","USEPA","Determination of Particulate Matter"]
["P-ORG","Organic phosphorus",null,2128,null,null,null,null,null,"CTM-004","USEPA","Determination of HCl Emissions"]
["6981-18-6","Ormetoprim",null,null,null,null,null,null,null,"CTM-005","USEPA","Determination of Condensable Emissions"]
["14265-44-2","Orthophosphate",null,196311,null,null,null,null,null,"CTM-006","USEPA","Chromium Emissions from Electroplaters"]
["19044-88-3","Oryzalin",null,null,null,null,null,null,null,"CTM-010","USEPA","Perchloroethylene of Wet Waste Materials"]
["7440-04-2","Osmium","Os",null,null,null,null,null,null,"CTM-011","USEPA","Determination of Halogenated Organics"]
["66-79-5","Oxacillin",null,null,null,null,null,null,null,"Colilert","IDEXX","Coliform/E. coli Enzyme substrate test; ONPG-MUG test",25052]
["19666-30-9","Oxadiazon",null,2840,null,null,null,null,null,"Colilert-18","IDEXX","Coliform/E. coli Enzyme substrate test; ONPG-MUG test",19386]
["23135-22-0","Oxamyl",null,null,null,null,null,null,null,"Colilert-182000","IDEXX","Coliform/E. coli Enzyme substrate test; ONPG-MUG test",1807]
["503-30-0","Oxetane",null,null,null,null,null,null,null,"Colilert/2000","IDEXX","Coliform/E. coli Enzyme substrate test; ONPG-MUG test"]
["ORP","Oxidation reduction potential (ORP)",null,88430,null,null,null,null,null,"D1067(A)","ASTM","Acidity or Alkalinity of Water"]
["14698-29-4","Oxolinic acid",null,null,null,null,null,null,null,"D1067(B)","ASTM","Acidity or Alkalinity of Water"]
["27304-13-8","Oxychlordane",null,null,null,null,null,null,null,"D1067(C)","ASTM","Acidity or Alkalinity of Water"]
["301-12-2","Oxydemeton-methyl",null,570,null,null,null,null,null,"D1068(A)","ASTM","Iron in Water Using Direct FLAA"]
["42874-03-3","Oxyfluorfen",null,null,null,null,null,null,null,"D1068(B)","ASTM","Iron in Water by Chelation and FLAA"]
["7782-44-7","Oxygen","O",16397,null,null,null,null,null,"D1068(C)","ASTM","Iron in Water Using GFAA"]
["14797-71-8","Oxygen-18",null,null,null,null,null,null,null,"D1068(D)","ASTM","Iron in Water Using Photometry"]
["79-57-2","Oxytetracycline","Terramycin",null,null,null,null,null,null,"D1125(A)","ASTM","Conductivity and Resistivity in Water",812]
["7179-50-2","Oxytetracycline calcium",null,null,null,null,null,null,null,"D1125(B)","ASTM","Conductivity and Resistivity in Water"]
["2058-46-0","Oxytetracycline hydrochloride",null,null,null,null,null,null,null,"D1126","ASTM","Hardness in Water"]
["10028-15-6","Ozone",null,null,null,null,null,null,null,"D1179(A)","ASTM","Fluoride Ion in Water Using Distillation"]
["61-78-9","P-Aminohippuric acid",null,null,null,null,null,null,null,"D1179(B)","ASTM","Fluoride Ion in Water Using ISE"]
["7440-05-3","Palladium","Pd",null,null,null,null,null,null,"D1246","ASTM","Bromide Ion in Water"]
["57-10-3","Palmitic acid",null,null,null,null,null,null,null,"D1252(A)","ASTM","Chemical Oxygen Demand by Titration"]
["629-79-8","Palmitonitrile",null,null,null,null,null,null,null,"D1252(B)","ASTM","COD by Spectrophotometry"]
["8012-95-1","Paraffin oils",null,null,null,null,null,null,null,"D1253","ASTM","Residual Chlorine in Water"]
["123-63-7","Paraldehyde",null,null,null,null,null,null,null,"D1291","ASTM","Chlorine Requirement or Demand of Water"]
["311-45-5","Paraoxon",null,null,null,null,null,null,null,"D1292","ASTM","Odor in Water",572]
["4685-14-7","Paraquat",null,null,null,null,null,null,null,"D1293(A)","ASTM","pH of Water By Precise Lab Measurement"]
["56-38-2","Parathion",null,8,null,null,null,null,null,"D1293(B)","ASTM","pH of Water By Routine Measurement"]
["298-00-0","Parathion-methyl",null,9829,null,null,null,null,null,"D1385","ASTM","Hydrazine in Water"]
["61869-08-7","Paroxetine",null,null,null,null,null,null,null,"D1426(A)","ASTM","Ammonia Nitrogen in Water by NESSLR"]
["PARTICLE-063MM","Particle size, Sieve No. 230, 250 mesh, (0.063mm)",null,275,null,null,null,null,null,"D1426(B)","ASTM","Ammonia Nitrogen in Water by Ion Electrode"]
["1114-71-2","Pebulate",null,null,null,null,null,null,null,"D1429(A)","ASTM","Specific Gravity of Water by Pyncnometer"]
["40487-42-1","Pendimethalin",null,8519,null,null,null,null,null,"D1429(B)","ASTM","Specific Gravity of Water Using Balance"]
["61-33-6","Penicillin G",null,null,null,null,null,null,null,"D1429(C)","ASTM","Specific Gravity of Water Using Flask"]
["87-08-1","Penicillin V",null,null,null,null,null,null,null,"D1429(D)","ASTM","Specific Gravity of Water by Hydrometer"]
["55880-77-8","Pentachloro-1,3-butadiene",null,null,null,null,null,null,null,"D1498","ASTM","Oxidation-Reduction Potential for Water",1870]
["1825-21-4","Pentachloroanisole",null,null,null,null,null,null,null,"D1590","ASTM","Surface Tension of Water"]
["608-93-5","Pentachlorobenzene",null,683,null,null,null,null,null,"D1607","ASTM","Nitrogen Dioxide in Atmosphere"]
["25429-29-2","Pentachlorobiphenyl",null,null,null,null,null,null,null,"D1608","ASTM","Nitrogen Dioxide in Atmosphere"]
["76-01-7","Pentachloroethane",null,819,null,null,null,null,null,"D1687(A)","ASTM","Chromium VI in Water",6]
["1321-64-8","Pentachloronaphthalene",null,null,null,null,null,null,null,"D1687(B)","ASTM","Chromium in Water By FLAA"]
["82-68-8","Pentachloronitrobenzene","PCNB",660,null,null,null,null,null,"D1687(C)","ASTM","Chromium in Water By GFAA"]
["87-86-5","Pentachlorophenol","PCP",883,null,null,null,null,null,"D1688(A)","ASTM","Copper in Water By FLAA"]
["35109-57-0","Pentachlorophenol dehydroabietylamine salt",null,null,null,null,null,null,null,"D1688(B)","ASTM","Copper in Water By Chelation and FLAA"]
["629-99-2","Pentacosane",null,null,null,null,null,null,null,"D1688(C)","ASTM","Copper in Water By GFAA"]
["629-62-9","Pentadecane",null,null,null,null,null,null,null,"D1691(A)","ASTM","Zinc in Water By FLAA"]
["1002-84-2","Pentadecanoic acid",null,null,null,null,null,null,null,"D1691(B)","ASTM","Zinc in Water by Chelation and FLAA"]
["7132-64-1","Pentadecanoic acid, methyl ester",null,null,null,null,null,null,null,"D1704","ASTM","Particulate Matter in Atmosphere"]
["2131-18-2","Pentadecylbenzene",null,null,null,null,null,null,null,"D1783(A)","ASTM","Phenolic Compounds in Water"]
["363-72-4","Pentafluorobenzene",null,null,null,null,null,null,null,"D1783(B)","ASTM","Phenolic Compounds in Water"]
["771-61-9","Pentafluorophenol","PFP",null,null,null,null,null,null,"D1886(A)","ASTM","Nickel in Water by FLAA"]
["110-62-3","Pentanal",null,null,null,null,null,null,null,"D1886(B)","ASTM","Nickel in Water by Chelation and FLAA"]
["109-66-0","Pentane",null,3,null,null,null,null,null,"D1886(C)","ASTM","Nickel in Water by GFAA"]
["539-82-2","Pentanoic acid, ethyl ester",null,null,null,null,null,null,null,"D1889","ASTM","Turbidity of Water",56]
["25377-72-4","Pentene",null,null,null,null,null,null,null,"D1890","ASTM","Beta Particle Radioactivity of Water"]
["14797-73-0","Perchlorate",null,36,null,null,null,null,null,"D1941","ASTM","Open Channel Flow Measurement by Flume"]
["7601-90-3","Perchloric acid",null,null,null,null,null,null,null,"D1943","ASTM","Alpha Particle Radioactivity of Water"]
["13C4-PFOS (80)","Perfluoro-1-[1,2,3,4-13C4]octanesulfonate","13C4-PFOS (80)",null,null,null,null,null,null,"D1976","ASTM","Elements in Water by ICP"]
["18O2-PFHXS","Perfluoro-1-hexane [18O2]sulfonate","18O2-PFHxS",null,null,null,null,null,null,"D2035","ASTM","Coagulation-Flocculation Test of Water"]
["13C8-PFOA","Perfluoro-n-[1,2,3,4,5,6,7,8-13C8]octanoic acid","13C8-PFOA",null,null,null,null,null,null,"D2036(A)","ASTM","Cyanides in Water After Distillation"]
["13C5-PFNA","Perfluoro-n-[1,2,3,4,5-13C5]nonanoic acid","13C5-PFNA",null,null,null,null,null,null,"D2036(B)","ASTM","Cyanides in Water by Colorimetry",11]
["13C4-PFBA","Perfluoro-n-[1,2,3,4-13C4]butanoic acid","13C4-PFBA",null,null,null,null,null,null,"D2036(C)","ASTM","Cyanides in Water by Colorimetry"]
["13C2-PFDA","Perfluoro-n-[1,2-13C2]decanoic acid","13C2-PFDA",null,null,null,null,null,null,"D2036(D)","ASTM","Cyanides without Distillation"]
["13C2-PFDOA","Perfluoro-n-[1,2-13C2]dodecanoic acid","13C2-PFDoA",null,null,null,null,null,null,"D2186(A)","ASTM","Deposit-Forming Impurities in Steam"]
["13C2-PFHXA","Perfluoro-n-[1,2-13C2]hexanoic acid","13C2-PFHxA",null,null,null,null,null,null,"D2186(B)","ASTM","Deposit-Forming Impurities in Steam"]
["13C2-PFOA","Perfluoro-n-[1,2-13C2]octanoic acid","13C2-PFOA",null,null,null,null,null,null,"D2186(C)","ASTM","Deposit-Forming Impurities in Steam"]
["45187-15-3","Perfluorobutane sulfonate","PFBS",7873,null,null,null,null,null,"D2186(D)","ASTM","Deposit-Forming Impurities in Steam"]
["375-22-4","Perfluorobutanoic acid","PFBA",6329,null,null,null,null,null,"D2330","ASTM","Methylene Blue Active Substances"]
["126105-34-8","Perfluorodecane sulfonate","PFDS",null,null,null,null,null,null,"D2332","ASTM","Water-formed Deposits by XRF"]
["335-76-2","Perfluorodecanoic acid","PFDA",2487,null,null,null,null,null,"D2334(A)","ASTM","Radioactive Iodine - Ion-Exchange"]
["PFHPS","Perfluoroheptane sulfonate","PFHPS",311,null,null,null,null,null,"D2334(B)","ASTM","Radioactive Iodine - Distillation"]
["355-42-0","Perfluorohexane",null,null,null,null,null,null,null,"D2334(C)","ASTM","Radioactive Iodine - Extraction"]
["108427-53-8","Perfluorohexane sulfonate","PFHxS",7053,null,null,null,null,null,"D2460","ASTM","Radionuclides of Radium in Water"]
["307-24-4","Perfluorohexanoic acid","PFHxA",6367,null,null,null,null,null,"D2476","ASTM","Tritium in Water by Liquid Scintillation"]
["307-55-1","Perfluorolauric acid","PFDoA",2438,null,null,null,null,null,"D2579","ASTM","Total Organic Carbon in Water"]
["376-06-7","Perfluoromyristic acid","PFTA",null,null,null,null,null,null,"D2580","ASTM","Phenols in Water by Gas-Liquid Chromatograph"]
["375-95-1","Perfluorononanoic acid","PFNA",2496,null,null,null,null,null,"D2688(A)","ASTM","Corrosivity of Water Using Metal Coupons"]
["45298-90-6","Perfluorooctane sulfonate","PFOS",8221,null,null,null,null,null,"D2688(B)","ASTM","Corrosivity of Water Using Pipe Inserts"]
["754-91-6","Perfluorooctanesulfonamide","PFOSA",1422,null,null,null,null,null,"D2776","ASTM","Corrosivity"]
["2991-51-7","Perfluorooctanesulfonamidoacetate","PFOSAA",null,null,null,null,null,null,"D2791","ASTM","Sodium in Water by ISE-Na"]
["335-67-1","Perfluorooctanoic acid","PFOA",8213,null,null,null,null,null,"D2820","ASTM","C1 - C5 Hydrocarbons by GC"]
["PFPES","Perfluoropentane sulfonate","PFPeS",null,null,null,null,null,null,"D2907(A)","ASTM","Uranium in Water by Direct Fluorometry"]
["PFPS","Perfluoropropane sulfonate","PFPS",null,null,null,null,null,null,"D2907(B)","ASTM","Uranium in Water by Extraction & Fluorometry"]
["72629-94-8","Perfluorotridecanoic acid","PFTrA",21,null,null,null,null,null,"D2908","ASTM","Volatile Organics in Water by GC"]
["2058-94-8","Perfluoroundecanoic acid","PFUnA",2462,null,null,null,null,null,"D2914","ASTM","Sulfur Dioxide in Atmosphere"]
["2706-90-3","Perfluorovaleric acid","PFPeA",6164,null,null,null,null,null,"D2972(A)","ASTM","Arsenic in Water Using Spectrophotometry"]
["52645-53-1","Permethrin",null,null,null,null,null,null,null,"D2972(B)","ASTM","Arsenic in Water Using HYDAA"]
["198-55-0","Perylene",null,null,null,null,null,null,null,"D2972(C)","ASTM","Arsenic in Water by GFAA"]
["1520-96-3","Perylene-d12",null,1,null,null,null,null,null,"D3082","ASTM","Boron in Water Using Spectrometry"]
["PESTICIDE-MIX","Pesticide mix, unspecified",null,39,null,null,null,null,null,"D3084","ASTM","Alpha Spectrometry of Water"]
["64743-03-9","Petroleum phenols",null,2595,null,null,null,null,null,"D3086","ASTM","Organochlorine Pesticides in Water"]
["64475-85-0","Petroleum spirits",null,null,null,null,null,null,null,"D3113(A)","ASTM","Sodium Salts of EDTA in Water"]
["62-44-2","Phenacetin",null,657,null,null,null,null,null,"D3113(B)","ASTM","Sodium Salts of EDTA in Water"]
["85-01-8","Phenanthrene",null,796,null,null,null,null,null,"D3162","ASTM","Carbon Monoxide in Atmosphere - NDIR"]
["1517-22-2","Phenanthrene-d10",null,null,null,null,null,null,null,"D3223","ASTM","Total Mercury in Water by CVAA"]
["229-87-8","Phenanthridine",null,null,null,null,null,null,null,"D3266","ASTM","Fluorides in the Atmosphere"]
["2275-14-1","Phenkapton",null,null,null,null,null,null,null,"D3267","ASTM","Fluorides in the Atmosphere"]
["108-95-2","Phenol",null,1509,null,null,null,null,null,"D3268","ASTM","Fluorides in the Atmosphere"]
["53404-25-4","Phenol dehydroabietylamine salt",null,null,null,null,null,null,null,"D3269(ISE)","ASTM","Fluorides in Plants/Atmosphere"]
["608-33-3","Phenol, 2,6-dibromo-",null,null,null,null,null,null,null,"D3269(SPEC)","ASTM","Fluorides in Plants/Atmosphere"]
["121-00-6","Phenol, 2-(1,1-dimethylethyl)-4-methoxy-","BHA",null,null,null,null,null,null,"D3269(TITR)","ASTM","Fluorides in Plants/Atmosphere"]
["1073-29-6","Phenol, 2-(methylthio)-",null,null,null,null,null,null,null,"D3270","ASTM","Fluorides in Plants/Atmosphere"]
["4165-62-2","Phenol-d5",null,25,null,null,null,null,null,"D3278","ASTM","Standard Test Method for Flash Point of Liquids by Small Scale Closed Cup Apparatus",557]
["101-84-8","Phenyl ether",null,null,null,null,null,null,null,"D3327","ASTM","N, S, Ni and V in Waterborne Oils"]
["103-71-9","Phenyl isocyanate",null,null,null,null,null,null,null,"D3328(A)","ASTM","Waterborne Petroleum Oils by GC"]
["122-78-1","Phenylacetaldehyde",null,null,null,null,null,null,null,"D3328(B)","ASTM","Waterborne Petroleum Oils by GC"]
["103-82-2","Phenylacetic acid",null,null,null,null,null,null,null,"D3352","ASTM","Strontium Ion in Water"]
["57-41-0","Phenytoin",null,null,null,null,null,null,null,"D3371","ASTM","Nitriles in Aqueous Solution"]
["PHEO-PERI","Pheophytin - Periphyton (attached)",null,18,null,null,null,null,null,"D3372","ASTM","Molybdenum by Chelation and FLAA"]
["603-17-8","Pheophytin a",null,44286,null,null,null,null,null,"D3373","ASTM","Vanadium in Water by GFAA"]
["PHEO-RATIO","Pheophytin ratio",null,47,null,null,null,null,null,"D3414","ASTM","Waterborne Petroleum Oils by IR"]
["298-02-2","Phorate",null,9889,null,null,null,null,null,"D3415","ASTM","Waterborne Oils by GC, IRSPEC or FLSPEC"]
["2588-04-7","Phorate sulfone",null,null,null,null,null,null,null,"D3416","ASTM","Carbon Monoxide in Atmosphere - GC/FID"]
["2310-17-0","Phosalone",null,null,null,null,null,null,null,"D3442","ASTM","Tritium in Atmosphere"]
["732-11-6","Phosmet","Imidan",null,null,null,null,null,null,"D3454","ASTM","Radium-226 in Water by Radon Scintillation"]
["13171-21-6","Phosphamidon",null,null,null,null,null,null,null,"D3478","ASTM","Chlorinated Phenoxy-Acid Herbicides"]
["PHOSPHATE-P","Phosphate-phosphorus",null,991,null,null,null,null,null,"D3534(ECD)","ASTM","PCBs in Water by Gas Chromatography"]
["598-02-7","Phosphoric acid, diethyl ester",null,null,null,null,null,null,null,"D3534(ELCD)","ASTM","PCBs in Water by Gas Chromatography"]
["7723-14-0","Phosphorus","P",406609,null,null,null,null,null,"D3557(A)","ASTM","Cadmium in Water by FLAA"]
["14596-37-3","Phosphorus-32",null,null,null,null,null,null,null,"D3557(B)","ASTM","Cadmium in Water by Chelation and FLAA"]
["39801-14-4","Photomirex",null,null,null,null,null,null,null,"D3557(C)","ASTM","Cadmium in Water by Polarography"]
["88-99-3","Phthalic acid",null,null,null,null,null,null,null,"D3557(D)","ASTM","Cadmium in Water by GFAA"]
["85-44-9","Phthalic anhydride",null,null,null,null,null,null,null,"D3558(A)","ASTM","Cobalt in Water by FLAA"]
["87-41-2","Phthalide",null,null,null,null,null,null,null,"D3558(B)","ASTM","Cobalt in Water by Chelation and FLAA"]
["638-36-8","Phytane",null,null,null,null,null,null,null,"D3558(C)","ASTM","Cobalt in Water by GFAA"]
["11005-09-7","Phytoactin",null,null,null,null,null,null,null,"D3559(A)","ASTM","Lead in Water by FLAA"]
["PHYTOPLANKTON","Phytoplankton",null,531,null,null,null,null,null,"D3559(B)","ASTM","Lead in Water by Chelation and FLAA"]
["1918-02-1","Picloram",null,1706,null,null,null,null,null,"D3559(C)","ASTM","Lead in Water by Polarography"]
["35832-11-2","Picloram triethylamine salt",null,null,null,null,null,null,null,"D3559(D)","ASTM","Lead in Water by GFAA"]
["6753-47-5","Picloram triisopropanolamine salt",null,null,null,null,null,null,null,"D3561","ASTM","Lithium, Potassium and Sodium"]
["26952-20-5","Picloram-isooctyl",null,null,null,null,null,null,null,"D3590(A)","ASTM","TKN by Ion Selective Electrode",433]
["2545-60-0","Picloram-potassium",null,null,null,null,null,null,null,"D3590(B)","ASTM","TKN by AutoAnalyzer"]
["88-89-1","Picric acid",null,null,null,null,null,null,null,"D3608","ASTM","Nitrogen Oxides in Atmosphere"]
["124-87-8","Picrotoxin",null,null,null,null,null,null,null,"D3645(A)","ASTM","Beryllium in Water by FLAA"]
["75-97-8","Pinacolone",null,null,null,null,null,null,null,"D3645(B)","ASTM","Beryllium in Water by GFAA"]
["51-03-6","Piperonyl butoxide","Alleviate",null,null,null,null,null,null,"D3648(A)","ASTM","Measurement of Radioactivity, Alpha"]
["7440-06-4","Platinum","Pt",null,null,null,null,null,null,"D3648(B)","ASTM","Measurement of Radioactivity, Beta"]
["13981-16-3","Plutonium-238",null,null,null,null,null,null,null,"D3648(C)","ASTM","Measurement of Radioactivity, Gamma"]
["15117-48-3","Plutonium-239",null,null,null,null,null,null,null,"D3649","ASTM","High Resolution Gamma-Ray Spectrometry"]
["13981-52-7","Polonium-210",null,null,null,null,null,null,null,"D3650","ASTM","Waterborne Petroleum Oil by Fluorescence"]
["1336-36-3","Polychlorinated biphenyls","PCBs",88,null,null,null,null,null,"D3651","ASTM","Barium in Water by FLAA"]
["130498-29-2","Polycyclic aromatic hydrocarbons","PAHs",null,null,null,null,null,null,"D3686","ASTM","Charcoal Tube Adsorption of Organic Vapors"]
["9002-88-4","Polyethylene",null,null,null,null,null,null,null,"D3695","ASTM","Volatile Alcohols in Water by GC"]
["26468-79-1","Polyethylene glycol mono-tert-butylphenyl ether",null,null,null,null,null,null,null,"D3697","ASTM","Antimony in Water by FLAA"]
["1406-11-7","Polymyxin",null,null,null,null,null,null,null,"D3824(A)","ASTM","Ambient NOx by Chemiluminescence"]
["POLYPHOS","Polyphosphate",null,460,null,null,null,null,null,"D3824(B)","ASTM","Workplace NOx by Chemiluminescence"]
["9003-07-0","Polypropylene",null,null,null,null,null,null,null,"D3857","ASTM","Water Velocity in Open Channels"]
["7440-09-7","Potassium","K",31249,null,null,null,null,null,"D3858","ASTM","Open-Channel Flow Measurement by Area"]
["7646-93-7","Potassium bisulfate",null,null,null,null,null,null,null,"D3859(A)","ASTM","Selenium in Water by HYDAA"]
["868-14-4","Potassium bitartrate",null,null,null,null,null,null,null,"D3859(B)","ASTM","Selenium in Water by GFAA"]
["1932-50-9","Potassium glycolate",null,null,null,null,null,null,null,"D3865","ASTM","Plutonium in Water"]
["7722-64-7","Potassium permanganate",null,null,null,null,null,null,null,"D3866(A)","ASTM","Silver in Water by Chelation and FLAA"]
["7778-80-5","Potassium sulfate",null,null,null,null,null,null,null,"D3866(B)","ASTM","Silver in Water by FLAA"]
["13966-00-2","Potassium-40",null,null,null,null,null,null,null,"D3866(C)","ASTM","Silver in Water by GFAA"]
["7440-10-0","Praseodymium","Pr",null,null,null,null,null,null,"D3867(A)","ASTM","Nitrite-Nitrate Automated Cd Reduction"]
["PRECIP-24-LIST","Precipitation 24hr prior to monitoring event (choice list)",null,152367,null,null,null,null,null,"D3867(B)","ASTM","Nitrite-Nitrate by Manual Cd Reduction"]
["PRECIP-48-LIST","Precipitation 48hr prior to monitoring event (choice list)",null,654,null,null,null,null,null,"D3868","ASTM","Fluoride Ions in Saline Water"]
["50-24-8","Prednisolone",null,null,null,null,null,null,null,"D3869(A)","ASTM","Iodide and Bromide in Saline Water"]
["53-03-2","Prednisone",null,null,null,null,null,null,null,"D3869(B)","ASTM","Iodide in Saline Water by Colorimetry"]
["1921-70-6","Pristane",null,null,null,null,null,null,null,"D3869(C)","ASTM","Iodide in Saline Water by ISE-I"]
["41198-08-7","Profenofos","Curacron",null,null,null,null,null,null,"D3869(D)","ASTM","Bromide in Saline Water by Colorimetry"]
["26399-36-0","Profluralin",null,null,null,null,null,null,null,"D3871","ASTM","Purgeable Organics in Water"]
["57-83-0","Progesterone",null,null,null,null,null,null,null,"D3875","ASTM","Alkalinity in Water"]
["327048-87-3","Progesterone-13C3",null,null,null,null,null,null,null,"D3919","ASTM","Trace Elements in Water Using GFAA"]
["15775-74-3","Progesterone-d9",null,1,null,null,null,null,null,"D3920","ASTM","Strontium in Water by FLAA",1]
["60-87-7","Promethazine",null,null,null,null,null,null,null,"D3921","ASTM","Oil and Grease and Petroleum Hydrocarbons"]
["1610-18-0","Prometon",null,6751,null,null,null,null,null,"D3972","ASTM","Uranium by Radiochemistry"]
["7287-19-6","Prometryn",null,1707,null,null,null,null,null,"D3973","ASTM","Halogenated Hydrocarbons in Water"]
["23950-58-5","Pronamide",null,675,null,null,null,null,null,"D3977","ASTM","Suspended-Sediment in Water"]
["1918-16-7","Propachlor",null,3345,null,null,null,null,null,"D3986","ASTM","Barium in Water by DCAPS"]
["1918-16-7-ESA","Propachlor ESA",null,1648,null,null,null,null,null,"D4012","ASTM","ATP Content of Microorganisms in Water"]
["70628-36-3","Propachlor OXA",null,1704,null,null,null,null,null,"D4107","ASTM","Tritium in Drinking Water"]
["74-98-6","Propane",null,null,null,null,null,null,null,"D4128","ASTM","Organic Compounds in Water by GC/MS"]
["107-12-0","Propanenitrile",null,12,null,null,null,null,null,"D4129","ASTM","Total Carbon and Organic Carbon in Water"]
["709-98-8","Propanil",null,null,null,null,null,null,null,"D4130","ASTM","Sulfate Ion in Water by Spectroscopy"]
["2312-35-8","Propargite",null,null,null,null,null,null,null,"D4165","ASTM","Cyanogen Chloride in Water"]
["107-19-7","Propargyl alcohol",null,null,null,null,null,null,null,"D4183(A)","ASTM","Total Recoverable Organic Phosphorus"]
["139-40-2","Propazine",null,4851,null,null,null,null,null,"D4183(B)","ASTM","Total Recoverable Organic Phosphorus"]
["122-42-9","Propham",null,null,null,null,null,null,null,"D4185","ASTM","Metals in Workplace Atmosphere by AAS"]
["60207-90-1","Propiconazole","Tilt",7207,null,null,null,null,null,"D4189","ASTM","Silt Density Index of Water"]
["123-38-6","Propionaldehyde",null,null,null,null,null,null,null,"D4190","ASTM","Metals by Argon Emission Spectroscopy"]
["79-09-4","Propionic acid",null,null,null,null,null,null,null,"D4191","ASTM","Sodium in Water by FLAA"]
["114-26-1","Propoxur",null,1106,null,null,null,null,null,"D4192","ASTM","Potassium in Water by FLAA"]
["469-62-5","Propoxyphene","Darvon",null,null,null,null,null,null,"D4193","ASTM","Thiocyanate in Water"]
["525-66-6","Propranolol",null,null,null,null,null,null,null,"D4201","ASTM","Coliphages in Water by Counting"]
["109-60-4","Propyl acetate",null,28,null,null,null,null,null,"D422","ASTM","Particle-Size Analysis of Soils"]
["111-43-3","Propyl ether",null,null,null,null,null,null,null,"D4240","ASTM","Asbestos in Atmosphere"]
["107-10-8","Propylamine",null,null,null,null,null,null,null,"D4249","ASTM","Enumeration of Candida albicans in Water"]
["57-55-6","Propylene glycol",null,null,null,null,null,null,null,"D4254","ASTM","Index Density and Unit Weight of Soils",6]
["1331-17-5","Propylene glycol allyl ether",null,null,null,null,null,null,null,"D4281(A)","ASTM","Oil and Grease by Liquid-Liquid Extraction"]
["75-56-9","Propylene oxide",null,null,null,null,null,null,null,"D4281(B)","ASTM","Oil and Grease by Soxhlet Extraction"]
["94-13-3","Propylparaben",null,null,null,null,null,null,null,"D4282","ASTM","Free Cyanide in Water by Microdiffusion"]
["51-52-5","Propylthiouracil","Procasil",null,null,null,null,null,null,"D4323","ASTM","Hydrogen Sulfide in Atmosphere"]
["14331-85-2","Protactinium-231",null,null,null,null,null,null,null,"D4327","ASTM","Anions in Water by Ion Chromatography"]
["13981-14-1","Protactinium-233",null,null,null,null,null,null,null,"D4374","ASTM","Cyanide in Water by Automated Methods"]
["15100-28-4","Protactinium-234",null,null,null,null,null,null,null,"D4382","ASTM","Barium in Water by GFAA"]
["34643-46-4","Prothiofos",null,null,null,null,null,null,null,"D4408","ASTM","Open-Channel Flow by Acoustic Means"]
["438-60-8","Protriptyline",null,null,null,null,null,null,null,"D4409","ASTM","Open-Channel Flow by RECM"]
["552-59-0","Prunetin",null,null,null,null,null,null,null,"D4412","ASTM","Sulfate-Reducing Bacteria"]
["68602-93-7","Pseudomonas",null,null,null,null,null,null,null,"D4413","ASTM","Ethylene Oxide in Atmosphere"]
["68332-93-4","Pseudomonas fluorescens",null,null,null,null,null,null,null,"D4454","ASTM","Total and Respiring Bacteria"]
["175013-18-0","Pyraclostrobin",null,1291,null,null,null,null,null,"D4455","ASTM","Aquatic Bacteria by Epifluorescence"]
["1698-60-8","Pyrazon","Chloridazon",null,null,null,null,null,null,"D4458","ASTM","Chloride Ions in Saline Waters"]
["129-00-0","Pyrene",null,938,null,null,null,null,null,"D4478(A)","ASTM","Immediate Oxygen Uptake"]
["8003-34-7","Pyrethrins",null,null,null,null,null,null,null,"D4478(B)","ASTM","Total Oxygen Uptake"]
["110-86-1","Pyridine",null,null,null,null,null,null,null,"D4490","ASTM","Gases/Vapors by Detector Tubes"]
["1309-36-0","Pyrite",null,null,null,null,null,null,null,"D4517","ASTM","Silica in Water by FLAA"]
["87-66-1","Pyrogallol",null,null,null,null,null,null,null,"D4657","ASTM","PAHs in Water by HPLC/UV"]
["447399-55-5","Pyroxasulfone",null,125,null,null,null,null,null,"D4658","ASTM","Sulfide Ion in Water by ISE"]
["91-22-5","Quinoline",null,null,null,null,null,null,null,"D4691","ASTM","Elements in Water Using FLAA"]
["106-51-4","Quinone",null,null,null,null,null,null,null,"D4744","ASTM","Organic Halides in Water"]
["RBP-LANDUSE","RBP Predominant Surrounding Land Use (choice list)",null,7,null,null,null,null,null,"D4763","ASTM","Organics by Fluorescence Spectroscopy"]
["RBP2-HIG-RVZ-WL","RBP2, High G, Riparian Vegetative Zone Width, Left Bank (choice list)",null,10543,null,null,null,null,null,"D4765","ASTM","Fluorides in the Workplace Atmospheres"]
["RBP2-HIG-RVZ-WR","RBP2, High G, Riparian Vegetative Zone Width, Right Bank (choice list)",null,10549,null,null,null,null,null,"D4766","ASTM","Vinyl Chloride in Atmosphere"]
["RBP2-RV-DOMSPEC","RBP2, Riparian Vegetation, Dominant Species Present (choice list)",null,6,null,null,null,null,null,"D4779","ASTM","Total, Organic and Inorganic Carbon"]
["RBP2-WATERODORS","RBP2, Water Quality, Water Odors (choice list)",null,90,null,null,null,null,null,"D4785","ASTM","Low Level Iodine-131 in Water"]
["7440-14-4","Radium","Ra",null,null,null,null,null,null,"D4839","ASTM","Total Carbon and Organic Carbon in Water"]
["15623-45-7","Radium-223",null,null,null,null,null,null,null,"D4856","ASTM","Sulfuric Acid Mist in Atmosphere"]
["13233-32-4","Radium-224",null,null,null,null,null,null,null,"D4861","ASTM","Pesticides and PCBs"]
["13982-63-3","Radium-226",null,105,null,null,null,null,null,"D4913","ASTM","Hydrogen Sulfide in Air"]
["15262-20-1","Radium-228",null,3,null,null,null,null,null,"D4922","ASTM","Radioactive Iron in Water"]
["14859-67-7","Radon-222",null,null,null,null,null,null,null,"D4947","ASTM","Chlordane and Heptachlor Residues"]
["66357-35-5","Ranitidine",null,null,null,null,null,null,null,"D4962","ASTM","NaI(Tl) Gamma-Ray Spectrometry of Water"]
["68476-77-7","Refined used lubricating oils",null,null,null,null,null,null,null,"D4978(A)","ASTM","Sulfides in Wastes - Lead Acetate Paper"]
["10453-86-8","Resmethrin",null,1,null,null,null,null,null,"D4978(B)","ASTM","Sulfides in Wastes - Gas Tube"]
["108-46-3","Resorcinol",null,null,null,null,null,null,null,"D4980(A)","ASTM","pH in Waste - pH Paper"]
["483-65-8","Retene",null,null,null,null,null,null,null,"D4980(B)","ASTM","pH in Waste - pH Meter"]
["7440-15-5","Rhenium","Re",null,null,null,null,null,null,"D4983","ASTM","Volatile Amines in Water"]
["37299-86-8","Rhodamine WT",null,122,null,null,null,null,null,"D4994(A)","ASTM","Recovery of Viruses by Adsorption"]
["7440-16-6","Rhodium","Rh",null,null,null,null,null,null,"D4994(B)","ASTM","Recovery of Viruses by Sonication"]
["14234-34-5","Rhodium-106",null,null,null,null,null,null,null,"D5014","ASTM","Formaldehyde - Indoor Air, MBTH"]
["299-84-3","Ronnel",null,null,null,null,null,null,null,"D5015","ASTM","pH of Atmosphere"]
["83-79-4","Rotenone",null,null,null,null,null,null,null,"D5037","ASTM","Waterborne Petroleum Oils by HPLC"]
["80214-83-1","Roxithromycin",null,null,null,null,null,null,null,"D5049(A)","ASTM","Cyanides in Waste - Chloramine T"]
["7440-17-7","Rubidium","Rb",1866,null,null,null,null,null,"D5049(B)","ASTM","Cyanides in Waste - Prussian Blue"]
["7440-18-8","Ruthenium","Ru",null,null,null,null,null,null,"D5049(C)","ASTM","Cyanides in Waste - Cyantesmo Paper"]
["13968-53-1","Ruthenium-103",null,null,null,null,null,null,null,"D5049(D)","ASTM","Cyanides in Waste - Gas Detector Tube"]
["13967-48-1","Ruthenium-106",null,null,null,null,null,null,null,"D5072","ASTM","Radon in Drinking Water"]
["81-07-2","Saccharin",null,null,null,null,null,null,null,"D5075","ASTM","Nicotine in Indoor Air - GC/NPD"]
["372137-35-4","Saflufenacil",null,1697,null,null,null,null,null,"D5084","ASTM","Hydraulic Conductivity"]
["94-59-7","Safrole",null,9,null,null,null,null,null,"D5085","ASTM","Chloride, Nitrate and Sulfate"]
["90-02-8","Salicylaldehyde",null,null,null,null,null,null,null,"D5086","ASTM","Ca, Mg, K and Na in Atmospheric Wet Dep."]
["SALINITY","Salinity",null,14242,null,null,null,null,null,"D5089","ASTM","Velocity of Water,electromagnetic meters",107]
["7440-19-9","Samarium","Sm",null,null,null,null,null,null,"D511(A)","ASTM","Calcium and Magnesium in Water by Titration"]
["308075-07-2","Sand",null,4,null,null,null,null,null,"D511(B)","ASTM","Calcium and Magnesium in Water by FLAA"]
["98105-99-8","Sarafloxacin",null,null,null,null,null,null,null,"D512(A)","ASTM","Chloride in Water by Mercurimetric Titration"]
["35523-89-8","Saxitoxin",null,26,null,null,null,null,null,"D512(B)","ASTM","Chloride in Water by Silver Nitrate Titration"]
["7440-20-2","Scandium","Sc",null,null,null,null,null,null,"D512(C)","ASTM","Chloride in Water by ISE-Cl",6]
["WAVE-SEVERITY","Sea waves severity (choice list)",null,null,null,null,null,null,null,"D5128","ASTM","pH of Water of Low Conductivity"]
["26259-45-0","Secbumeton",null,null,null,null,null,null,null,"D5129","ASTM","Flow of Water by Width Contractions"]
["7782-49-2","Selenium","Se",9276,null,null,null,null,null,"D513(A)","ASTM","Total and Dissolved CO2 - Gas Sensing Electrode"]
["14265-71-5","Selenium-75",null,null,null,null,null,null,null,"D513(B)","ASTM","Total and Dissolved CO2 - Coulometric Titration"]
["79617-96-2","Sertraline",null,null,null,null,null,null,null,"D5130","ASTM","Flow of Water Indirectly by Slope Area"]
["74051-80-2","Sethoxydim","Poast",null,null,null,null,null,null,"D514","ASTM","Hydroxide Ion in Water(discontinued 05/96)"]
["SOLIDS-SS","Settleable solids",null,447,null,null,null,null,null,"D5149","ASTM","Ozone in Atmosphere - Chemiluminescence"]
["1982-49-6","Siduron",null,1704,null,null,null,null,null,"D515(A)","ASTM","Phosphorus in Water by Colorimetric Reduction",1598]
["7631-86-9","Silica",null,8842,null,null,null,null,null,"D515(B)","ASTM","Phosphorus in Water by Digestion/Colorimetric Reduction"]
["12627-13-3","Silicate",null,575,null,null,null,null,null,"D516","ASTM","Sulfate in Water by Turbidimeter",6684]
["7440-21-3","Silicon","Si",null,null,null,null,null,null,"D5173","ASTM","Carbon Compounds in Water"]
["7440-22-4","Silver","Ag",5897,null,null,null,null,null,"D5174","ASTM","Uranium in Water by Phosphorimetry"]
["14391-76-5","Silver-110",null,null,null,null,null,null,null,"D5175","ASTM","Organohalide Pesticides and PCBs by GC"]
["32534-95-5","Silvex isooctyl ester",null,null,null,null,null,null,null,"D5176","ASTM","Nitrogen in Water by Pyrolysis Detection"]
["122-34-9","Simazine",null,8628,null,null,null,null,null,"D5243","ASTM","Open-Channel Flow of Water at Culverts"]
["673-04-1","Simetone",null,null,null,null,null,null,null,"D5244","ASTM","Recovery of Enteroviruses from Waters"]
["1014-70-6","Simetryn",null,null,null,null,null,null,null,"D5246","ASTM","Pseudomonas aeruginosa"]
["79902-63-9","Simvastatin",null,null,null,null,null,null,null,"D5257","ASTM","Chromium in Water by Ion Chromatography"]
["7440-23-5","Sodium","Na",31815,null,null,null,null,null,"D5259","ASTM","Isolation and Enumeration of Enterococci"]
["68439-57-6","Sodium C14-16-alkane hydroxy and C14-16-olefin sulfonates",null,null,null,null,null,null,null,"D5315","ASTM","Carbamate Pesticides in Water by HPLC"]
["137-16-6","Sodium N-lauroylsarcosinate",null,null,null,null,null,null,null,"D5316","ASTM","EDB and DBCP by Microextraction and GC"]
["SAR","Sodium adsorption ratio [(Na)/(sq root of 1/2 Ca + Mg)]",null,39,null,null,null,null,null,"D5317","ASTM","Chlorinated Organic Acid Compounds by GC"]
["124-65-2","Sodium cacodylate","DMA",null,null,null,null,null,null,"D5389","ASTM","Open-Channel Flow Measurement by Acoustic Velocity Meter"]
["497-19-8","Sodium carbonate",null,null,null,null,null,null,null,"D5390","ASTM","Open-Channel Flow Measurement by Palmer-Bowlus Flumes"]
["7775-09-9","Sodium chlorate",null,null,null,null,null,null,null,"D5391","ASTM","Electrical Conductivity and Resistivity"]
["7647-14-5","Sodium chloride",null,null,null,null,null,null,null,"D5392","ASTM","Isolation and Enumeration of E. coli Bacteria"]
["7775-11-3","Sodium chromate(VI)",null,null,null,null,null,null,null,"D5412","ASTM","Polycyclic Aromatic Hydrocarbon Mixtures"]
["10588-01-9","Sodium dichromate",null,null,null,null,null,null,null,"D5413(A)","ASTM","Water Levels Using Nonrecording Devices"]
["128-04-1","Sodium dimethyldithiocarbamate",null,null,null,null,null,null,null,"D5413(B)","ASTM","Water Levels Using Recording Devices"]
["2836-32-0","Sodium glycolate",null,null,null,null,null,null,null,"D5413(C)","ASTM","Water Levels Using Remote Interrogation"]
["137-42-8","Sodium methyldithiocarbamate",null,null,null,null,null,null,null,"D5462","ASTM","On-Line Measurement of Low Level DO"]
["7632-00-0","Sodium nitrite",null,null,null,null,null,null,null,"D5464(A)","ASTM","pH of Water of Low Conductivity"]
["131-52-2","Sodium pentachlorophenate",null,null,null,null,null,null,null,"D5464(B)","ASTM","pH of Water of Low Conductivity"]
["7757-82-6","Sodium sulfate",null,null,null,null,null,null,null,"D5465(A)","ASTM","Microbial Counts from Waters by Plating"]
["13966-32-0","Sodium-22",null,null,null,null,null,null,null,"D5465(B)","ASTM","Microbial Counts from Waters by Plating"]
["SOLAR-IRR","Solar irradiation, local",null,1,null,null,null,null,null,"D5465(C)","ASTM","Microbial Counts from Water by Plating"]
["50-70-4","Sorbitol",null,null,null,null,null,null,null,"D5475","ASTM","Nitrogen and Phosphorus Pesticides in Water"]
["SUVA 254","Specific UV Absorbance at 254 nm",null,42,null,null,null,null,null,"D6317","ASTM","Carbon (all forms) in Water",83]
["SUVA 254 FE","Specific UV Absorbance at 254 nm, corrected for Fe",null,42,null,null,null,null,null,"D6503","ASTM","Standard Test Method for Enterococci in Water Using Enterolert"]
["SC","Specific conductance",null,562882,null,null,null,null,null,"D6503-99","ASTM","Standard Test Method for Enterococci in Water Using Enterolert"]
["57-11-4","Stearic acid",null,null,null,null,null,null,null,"D6919-03","ASTM","Dissolved Alkali, Alkaline Earth Cations and Ammonium by Ion Chromatography"]
["638-65-3","Stearonitrile",null,null,null,null,null,null,null,"D698","ASTM","Compaction Characteristics of Soil"]
["19466-47-8","Stigmastan-3.beta.-ol",null,null,null,null,null,null,null,"D854","ASTM","Specific Gravity of Soils"]
["STREAM-PA","Stream Physical Appearance, Minnesota (choice list)",null,160951,null,null,null,null,null,"D857","ASTM","Aluminum in Water by FLAA"]
["STREAMCONDITION","Stream condition (text)",null,178186,null,null,null,null,null,"D857(A)","ASTM","Aluminum in Water by FLAA (discontinued 1988)"]
["STREAM-PA-OLD","Stream physical appearance (choice list)",null,33210,null,null,null,null,null,"D857(B)","ASTM","Aluminum in Water by Chelation and FLAA (discontinued 1988)"]
["STREAM-RS","Stream recreational suitability (choice list)",null,192309,null,null,null,null,null,"D857(C)","ASTM","Aluminum in Water by FLAA (discontinued 1988)"]
["STREAM-STAGE","Stream stage",null,51602,null,null,null,null,null,"D858(A)","ASTM","Manganese in Water by FLAA"]
["STREAM-WIDTH","Stream width measure",null,244,null,null,null,null,null,"D858(B)","ASTM","Manganese in Water by Chelation and FLAA"]
["57-92-1","Streptomycin",null,null,null,null,null,null,null,"D858(C)","ASTM","Manganese in Water by GFAA"]
["3688-73-1","Streptomycin nitrate",null,null,null,null,null,null,null,"D859","ASTM","Silica in Water by Colorimetry"]
["3810-74-0","Streptomycin sulfate",null,null,null,null,null,null,null,"D888(A)","ASTM","High Level Dissolved Oxygen by Titration"]
["18883-66-4","Streptozotocin",null,null,null,null,null,null,null,"D888(B)","ASTM","Dissolved Oxygen by Instrumental Probe"]
["8001-50-1","Strobane",null,null,null,null,null,null,null,"D888(C)","ASTM","Dissolved Oxygen by Luminescence-based Senor"]
["7440-24-6","Strontium","Sr",4336,null,null,null,null,null,"D93-07","ASTM","Standard Test Methods for Flash Point by Pensky-Martens Closed Cup Tester",74]
["14158-27-1","Strontium-89",null,null,null,null,null,null,null,"D932","ASTM","Iron Bacteria in Water and Deposits"]
["10098-97-2","Strontium-90",null,101,null,null,null,null,null,"D934(A)","ASTM","Crystalline Compounds in Water Deposits"]
["100-42-5","Styrene",null,67481,null,null,null,null,null,"D934(B)","ASTM","Crystalline Compounds in Water Deposits"]
["96-09-3","Styrene oxide",null,null,null,null,null,null,null,"DEPTH BOTTOM","MNPCA","Depth, bottom"]
["57-50-1","Sucrose",null,null,null,null,null,null,null,"DIOX(O)","USEPA","PCDD and PCDF in Chemical Waste by CGC/MS"]
["80-32-0","Sulfachloropyridazine",null,null,null,null,null,null,null,"DIOX(S)","USEPA","PCDD and PCDF in Soil by CGC/MS"]
["68-35-9","Sulfadiazine",null,null,null,null,null,null,null,"DIOX(W)","USEPA","PCDD and PCDF in Water by CGC/MS"]
["122-11-2","Sulfadimethoxine",null,null,null,null,null,null,null,"DO LDO","MNPCA","Dissolved Oxygen, Luminescent Dissolved Oxygen (LDO) Probe",2427]
["127-79-7","Sulfamerazine",null,null,null,null,null,null,null,"DO PROBE","MNPCA","Dissolved Oxygen, Membrane Electrode Method",280]
["57-68-1","Sulfamethazine",null,null,null,null,null,null,null,"DO WINKLER","MNPCA","Dissolved Oxygen, Iodometric Method with Azide Modification",230414]
["144-82-1","Sulfamethizole",null,null,null,null,null,null,null,"DUMMY","MNPCA","Dummy procedure to assign when SIM refuses a genuine procedure",4]
["723-46-6","Sulfamethoxazole",null,null,null,null,null,null,null,"E318","ASTM","Uranium in Aqueous Solutions"]
["63-74-1","Sulfanilamide",null,null,null,null,null,null,null,"ELISA PEST","MNPCA","Enzyme-linked immunosorbent assay for pesticides",614]
["14808-79-8","Sulfate",null,51396,null,null,null,null,null,"EPA_CLP_INOR","USEPA","Inorganic Analytical Services provided under the EPA Contract Lab Program"]
["72-14-0","Sulfathiazole",null,null,null,null,null,null,null,"EPA_CLP_ORG","USEPA","Organic Analytical Services provided under the EPA Contract Lab Program"]
["18496-25-8","Sulfide",null,1669,null,null,null,null,null,"ESPEC(IR)","USDOI/USGS","Minor Elements by Residue-IR"]
["14265-45-3","Sulfite",null,null,null,null,null,null,null,"ESPEC(UV)","USDOI/USGS","Minor Elements by Residue-UV"]
["74222-97-2","Sulfometuron-methyl",null,1707,null,null,null,null,null,"ESPECCMPX","USDOI/USGS","Minor Elements by Complexing"]
["3689-24-5","Sulfotep","TEDP",null,null,null,null,null,null,"ESPECPRCP","USDOI/USGS","Minor Elements by Precipitation"]
["7704-34-9","Sulfur","S",1873,null,null,null,null,null,"ETS-8-044.0","MNPCA","PFCs in Water by Direct Injection"]
["7446-09-5","Sulfur dioxide",null,1,null,null,null,null,null,"ETS-8-154.3","MNPCA","PFCs in Water by Solid Phase Extraction and High Performance LC/MS"]
["13981-57-2","Sulfur-32",null,null,null,null,null,null,null,"EV-024","USEPA","Tin and Triorganotin in Wastewater"]
["13965-97-4","Sulfur-34",null,null,null,null,null,null,null,"EV-025","USEPA","Tin and Triorganotin in Wastewater"]
["35400-43-2","Sulprofos","Bolstar",null,null,null,null,null,null,"Enterolert","IDEXX","Enterolert Test Kit Procedure",20]
["ANION-SUM","Sum of anions",null,7780,null,null,null,null,null,"Enterolert2000","IDEXX","Enterolert Test Kit Procedure"]
["CATION-SUM","Sum of cations",null,7781,null,null,null,null,null,"F-01","USDOE/EML","Fluoride in Soil and Sediment"]
["SURFACEAREA","Surface area",null,20,null,null,null,null,null,"F488","ASTM","Bacterial Count in Water"]
["1918-18-9","Swep",null,null,null,null,null,null,null,"F60","ASTM","Detection of Microbiological Contaminant"]
["134-96-3","Syringaldehyde",null,null,null,null,null,null,null,"FE-01","USEPA","Iron-55 in Water Samples"]
["10540-29-1","Tamoxifen",null,null,null,null,null,null,null,"FLD","MNPCA","Field measurement/observation, generic method",1765104]
["1401-55-4","Tannic acid",null,null,null,null,null,null,null,"FLD CHLORIDE","MNPCA","Chloride by Field Kit or Meter",10]
["7440-25-7","Tantalum","Ta",null,null,null,null,null,null,"FLD IRON FE+2","MNPCA","Iron, Ferrous, Fe+2  by Field Kit or Meter",146]
["102851-06-9","Tau-fluvalinate","Mavrik",null,null,null,null,null,null,"FLD LK GAGE STAFF","MNPCA","Lake Gage, Relative Water Level, Staff Gage",2169]
["107534-96-3","Tebuconazole",null,7207,null,null,null,null,null,"FLD NH4-N","MNPCA","Nitrogen, Ammonium (NH4) as N, by Field Kit or Meter"]
["96182-53-5","Tebuprimiphos",null,7273,null,null,null,null,null,"FLD NO3-N","MNPCA","Nitrogen, Nitrate (NO3) as N, by Field Kit or Meter",11]
["34014-18-1","Tebuthiuron",null,null,null,null,null,null,null,"FLD ORP","MNPCA","Oxidation Reduction Potential by Field Kit or Meter",75]
["7440-26-8","Technetium","Tc",null,null,null,null,null,null,"FLD SECCHI TUBE","MNPCA","Secchi Transparency Tube, 100 cm",17088]
["14133-76-7","Technetium-99",null,null,null,null,null,null,null,"FLD SO4-S","MNPCA","Sulfur, Sulfate (SO4) as S, by Field Kit or Meter",5]
["79538-32-2","Tefluthrin",null,null,null,null,null,null,null,"FLD STR FLOW D-MEAN","MNPCA","Stream Flow, Daily Mean",21983]
["13494-80-9","Tellurium","Te",1,null,null,null,null,null,"FLD STR FLOW H-DAILY","MNPCA","Stream Flow, Hydstra Daily Value, Computed from Established Rating Curve",4360]
["335104-84-2","Tembotrione",null,1648,null,null,null,null,null,"FLD STR FLOW H-UNIT","MNPCA","Stream Flow, Hydstra Unit Value, Computed from Established Rating Curve",8184]
["3383-96-8","Temephos",null,null,null,null,null,null,null,"FLD STR FLOW MEASURE","MNPCA","Stream Flow, Instantaneous, Measured",9080]
["TEMP-A","Temperature, air",null,12210,null,null,null,null,null,"FLD STR FLOW MILE","MNPCA","Stream Flow, Instantaneous, at Milestone Sites",160]
["TEMP-S","Temperature, sample",null,6665,null,null,null,null,null,"FLD STR FLOW RATING","MNPCA","Stream Flow, Instantaneous, Estimated from Established Rating",5017]
["TEMP-W","Temperature, water",null,1087535,null,null,null,null,null,"FLD STR FLOW UNKNOWN","MNPCA","Stream Flow, Instantaneous, Unknown Method",29883]
["5902-51-2","Terbacil",null,null,null,null,null,null,null,"FLD STR STAGE AUTO","MNPCA","Stream Stage, Relative Water Level, Automated Stage Recorder",1591]
["7440-27-9","Terbium","Tb",null,null,null,null,null,null,"FLD STR STAGE CSMP","MNPCA","Stream Stage, Relative Water Level, CSMP",2489]
["13071-79-9","Terbufos",null,8577,null,null,null,null,null,"FLD STR STAGE MILE","MNPCA","Stream Stage, Relative Water Level at Milestone Sites",635]
["56070-16-7","Terbufos sulfone",null,null,null,null,null,null,null,"FLD STR STAGE NON-U","MNPCA","Stream Stage, Relative Water Level, Non-USGS Gage",912]
["33693-04-8","Terbumeton",null,null,null,null,null,null,null,"FLD STR STAGE OTHER","MNPCA","Stream Stage, Relative Water Level, Other Method",5198]
["5915-41-3","Terbuthylazine",null,null,null,null,null,null,null,"FLD STR STAGE POOL","MNPCA","Stream Stage, Relative Water Level, Pool/Tailwater Elevation",9]
["886-50-0","Terbutryn",null,null,null,null,null,null,null,"FLD STR STAGE STAFF","MNPCA","Stream Stage, Relative Water Level, Staff Gage",16476]
["26140-60-3","Terphenyl",null,null,null,null,null,null,null,"FLD STR STAGE T-D","MNPCA","Stream Stage, Relative Water Level, Tape-Down Method",28126]
["8000-41-7","Terpineol",null,null,null,null,null,null,null,"FLD STR STAGE USGS","MNPCA","Stream Stage, Relative Water Level, USGS Gage",1810]
["58-22-0","Testosterone",null,null,null,null,null,null,null,"FLD STR STAGE WIRE","MNPCA","Stream Stage, Relative Water Level, Wire Weight",4055]
["21002-80-2","Testosterone-d5",null,null,null,null,null,null,null,"FLD TDD","MNPCA","Tape-down Distance Measurement to Water Surface",20408]
["10543-57-4","Tetraacetylethylenediamine",null,null,null,null,null,null,null,"FLD TTUBE100","MNPCA","Transparency Tube, 100 cm",48757]
["79-94-7","Tetrabromobisphenol A",null,null,null,null,null,null,null,"FLD TTUBE120","MNPCA","Transparency Tube, 120 cm",5417]
["1461-25-2","Tetrabutyltin",null,null,null,null,null,null,null,"FLD TTUBE160","MNPCA","Transparency tube, 160 cm",33]
["58334-79-5","Tetrachloro-1,3-butadiene",null,null,null,null,null,null,null,"FLD TTUBE60","MNPCA","Transparency Tube, 60 cm",164822]
["877-09-8","Tetrachloro-m-xylene",null,96,null,null,null,null,null,"FLD TURB","MNPCA","Turbidity, Nephelometric Method",44803]
["26914-33-0","Tetrachlorobiphenyl",null,null,null,null,null,null,null,"FLD TURB PROBE","MNPCA","Turbidity, Probe Method",34852]
["25322-20-7","Tetrachloroethane",null,null,null,null,null,null,null,"FLD ZOOPLANK","MNPCA","Zooplankton Abundance (0-4) and Size (1-4)"]
["127-18-4","Tetrachloroethylene",null,69016,null,null,null,null,null,"FRONTIER-MTLS","MNPCA","Trace Metals by ICP/MS at Frontier Labs",413]
["2539-17-5","Tetrachloroguaiacol",null,null,null,null,null,null,null,"Field Measure","MNPCA","Field Measure"]
["25167-83-3","Tetrachlorophenol",null,null,null,null,null,null,null,"G-01","USDOE/EML","Electrodeposition of the Actinides"]
["22248-79-9","Tetrachlorvinphos",null,null,null,null,null,null,null,"GENCHEM","MNPCA","Chemical analysis by unspecified method",10540]
["961-11-5","Tetrachlorvinphos (mixed isomers)","Rabon",null,null,null,null,null,null,"GLKN_MTHYL_HG","MNPCA","Methyl Mercury in Water by GC-CVAFD",18]
["112281-77-3","Tetraconazole",null,7207,null,null,null,null,null,"H-01","USEPA","Tritium in Milk, Soil, Urine and Biota"]
["646-31-1","Tetracosane",null,null,null,null,null,null,null,"H-02","USEPA","Tritium in Water"]
["60-54-8","Tetracycline",null,null,null,null,null,null,null,"H-03","USEPA","Tritium in Water"]
["64-75-5","Tetracycline hydrochloride",null,null,null,null,null,null,null,"HACH 10020","MNPCA","Nitrate, Chromotropic Acid Method",148]
["629-59-4","Tetradecane",null,null,null,null,null,null,null,"HACH 10360","MNPCA","Luminescence Measurement of Dissolved Oxygen (LDO) in Water and Wastewater",2]
["629-63-0","Tetradecanenitrile",null,null,null,null,null,null,null,"HACH 8039","MNPCA","Nitrate, Cadmium Reduction Method",2534]
["27196-00-5","Tetradecanol",null,null,null,null,null,null,null,"HACH BL-GRN ALG","MNPCA","Blue-Green Algae Density by Hach probe",2500]
["1459-10-5","Tetradecylbenzene",null,null,null,null,null,null,null,"HACH COLOR","MNPCA","Apparent Color, Hach Color Wheel Method",607]
["116-29-0","Tetradifon","Tedion",null,null,null,null,null,null,"HACH NO23 SPEC","MNPCA","Nitrate and Nitrite, Total, Using Spectrophotometer VIS/UV 4000, Nitrate 2500 Method",311]
["77-98-5","Tetraethyl ammonium hydroxide",null,null,null,null,null,null,null,"HACH PAR","MNPCA","Photosynthetic Active Radiation (PAR) by Hach probe",2520]
["107-49-3","Tetraethyl pyrophosphate","TEPP",null,null,null,null,null,null,"HACH_8033","HACH","Lead in Water"]
["53494-58-9","Tetrahydroabietylamine acetate",null,null,null,null,null,null,null,"HACH_8131","HACH","Sulfide in Water"]
["109-99-9","Tetrahydrofuran",null,69087,null,null,null,null,null,"HERL_001","USEPA","Organchlorine Pesticides in Tissue"]
["142-68-7","Tetrahydropyran","THP",null,null,null,null,null,null,"HERL_002","USEPA","HCB and Mirex in Tissue"]
["1124-11-4","Tetramethylpyrazine",null,null,null,null,null,null,null,"HERL_003","USEPA","Pesticides in Tissue and Human Milk"]
["14167-59-0","Tetratetracontane",null,null,null,null,null,null,null,"HERL_004","USEPA","Pesticides in Blood or Serum"]
["4368-28-9","Tetrodotoxin",null,null,null,null,null,null,null,"HERL_005","USEPA","Pentachlorophenol in Blood"]
["7440-28-0","Thallium","Tl",2593,null,null,null,null,null,"HERL_006","USEPA","Pentachlorophenol and Salts in Urine"]
["14913-50-9","Thallium-208",null,null,null,null,null,null,null,"HERL_007","USEPA","Bis(p-Chlorophenyl) Acetic Acid in Urine"]
["58-55-9","Theophylline",null,null,null,null,null,null,null,"HERL_008","USEPA","2,4-D and 2,4,5-T in Urine"]
["148-79-8","Thiabendazole",null,null,null,null,null,null,null,"HERL_009","USEPA","Kepone in Blood and Environmental Samples"]
["153719-23-4","Thiamethoxam",null,1697,null,null,null,null,null,"HERL_010","USEPA","Pesticides and Metabolites in Tissue"]
["51707-55-2","Thidiazuron","Dropp",null,null,null,null,null,null,"HERL_011","USEPA","Metabolites or Hydrolysis Products"]
["79277-27-3","Thifensulfuron-methyl",null,1707,null,null,null,null,null,"HERL_012","USEPA","para-Nitrophenol in Urine"]
["28249-77-6","Thiobencarb",null,1707,null,null,null,null,null,"HERL_013","USEPA","Cholinesterase Activity in Blood"]
["463-56-9","Thiocyanic acid",null,null,null,null,null,null,null,"HERL_014","USEPA","1-Naphthol in Urine"]
["59669-26-0","Thiodicarb",null,null,null,null,null,null,null,"HERL_016","USEPA","Pesticides in Air"]
["THIONAZIN","Thionazin",null,9,null,null,null,null,null,"HERL_017","USEPA","PCBs in Human Milk by Macro Method"]
["23564-06-9","Thiophanate ethyl","Topsin",null,null,null,null,null,null,"HERL_018","USEPA","PCBs in Human Milk by Micro Method"]
["110-02-1","Thiophene",null,null,null,null,null,null,null,"HERL_020","USEPA","PCBs in Adipose Tissue"]
["108-98-5","Thiophenol",null,null,null,null,null,null,null,"HERL_021","USEPA","TCDD Residues"]
["14383-50-7","Thiosulfate",null,null,null,null,null,null,null,"HERL_022","USEPA","Analysis of Water for Pesticides"]
["62-56-6","Thiourea",null,null,null,null,null,null,null,"HERL_023","USEPA","Analysis of Water for Herbicides"]
["14274-82-9","Thorium-228",null,null,null,null,null,null,null,"HERL_024","USEPA","Insecticides in Soils and Housedust"]
["14269-63-7","Thorium-230",null,null,null,null,null,null,null,"HERL_025","USEPA","Insecticides in Bottom Sediment"]
["7440-29-1","Thorium-232",null,null,null,null,null,null,null,"HERL_026","USEPA","Pesticides in Human Tissue and Milk"]
["15065-10-8","Thorium-234",null,null,null,null,null,null,null,"HERL_030","USEPA","Infrared Spectroscopy"]
["7440-30-4","Thulium","Tm",181,null,null,null,null,null,"HG-01","USDOE/EML","Mercury - AA Spectroscopy"]
["23526-02-5","Thuringiensin",null,null,null,null,null,null,null,"HG-AFS","MNPCA","Hydride Generation Atomic Fluorescence Spectrometry",209]
["55297-95-5","Tiamulin",null,null,null,null,null,null,null,"HG-CV-AFS","MNPCA","Mercury by Cold Vapor Atomic Floursescence Spectroscopy",846]
["108050-54-0","Tilmicosin",null,null,null,null,null,null,null,"I-001-1","USEPA","Metals in Soil by XRF"]
["7440-31-5","Tin",null,773,null,null,null,null,null,"I-002-1","USEPA","Digestion/Analysis of Soil by Flame AA"]
["56573-85-4","Tin-San",null,null,null,null,null,null,null,"I-003-1","USEPA","Hexavalent Chromium"]
["7440-32-6","Titanium","Ti",2721,null,null,null,null,null,"I-004-1","USEPA","Digestion/Analysis of Waters by FLAA"]
["108-88-3","Toluene",null,69340,null,null,null,null,null,"I-005-1","USEPA","Mercury by CVAA"]
["26471-62-5","Toluene diisocyanate",null,null,null,null,null,null,null,"I-006-1","USEPA","Mercury by CVAA"]
["2037-26-5","Toluene-d8",null,2339,null,null,null,null,null,"I-01","USEPA","Iodine-131 in Drinking Water"]
["25376-45-8","Toluenediamine",null,null,null,null,null,null,null,"I-02","USEPA","Iodine-131 in Milk"]
["25567-10-6","Toluic acid",null,null,null,null,null,null,null,"I-03","USEPA","Low Level Iodine-131 in Milk"]
["26915-12-8","Toluidine",null,null,null,null,null,null,null,"I-1338","USDOI/USGS","Hardness in water by colorimetric titration",546]
["29385-43-1","Tolyl triazole",null,null,null,null,null,null,null,"I-2540-90","USDOI/USGS","Nitrite-Nitrogen in Water by Colorimetry"]
["TOTAL-COLIF","Total Coliform",null,19387,null,null,null,null,null,"I-3753","USDOI/USGS","Solids, volatile-on-ignition, total, gravimetric",21]
["VOLUME","Total Sample Volume",null,339,null,null,null,null,null,"I-3767","USDOI/USGS","Solids, volatile-on-ignition, suspended, gravimetric",9441]
["SOLIDS-TDS","Total dissolved solids",null,27557,null,null,null,null,null,"I-4540-85","USDOI/USGS","Nitrogen, nitrite, total, in water by colorimetric, diazotization, automated-segmented flow",92]
["SOLIDS-TFS","Total fixed solids",null,1,null,null,null,null,null,"I-4650-03","USDOI/USGS","Nitrogen and Phosphorus, Total, Whole-water, Alkaline Persulfate Digest"]
["SOLIDS-TS","Total solids",null,20121,null,null,null,null,null,"I1020","USDOI/USGS","Acidity in Water by Titration"]
["SOLIDS-TSS","Total suspended solids",null,227973,null,null,null,null,null,"I1030","USDOI/USGS","Alkalinity in Water by Titration"]
["SOLIDS-TVS","Total volatile solids",null,89234,null,null,null,null,null,"I1051","USDOI/USGS","Aluminum in Water by FLAA"]
["8001-35-2","Toxaphene",null,385,null,null,null,null,null,"I1052","USDOI/USGS","Aluminum in Water by Chelation and FLAA"]
["TTUBE","Transparency, tube with disk",null,236421,null,null,null,null,null,"I1054","USDOI/USGS","Aluminum by D-C Plasma Spectrometry"]
["10161-33-8","Trenbolone",null,null,null,null,null,null,null,"I1055","USDOI/USGS","Antimony in Water by Hydride AA"]
["10161-34-9","Trenbolone acetate",null,null,null,null,null,null,null,"I1060","USDOI/USGS","Arsenic in Water by Colorimetry"]
["638-68-6","Triacontane",null,null,null,null,null,null,null,"I1062","USDOI/USGS","Arsenic in Water by HYDAA"]
["43121-43-3","Triadimefon",null,null,null,null,null,null,null,"I1084","USDOI/USGS","Barium in Water by FLAA"]
["2303-17-5","Triallate",null,2840,null,null,null,null,null,"I1095","USDOI/USGS","Beryllium in Water by FLAA"]
["82097-50-5","Triasulfuron",null,1707,null,null,null,null,null,"I1110","USDOI/USGS","Boron in Water by Colorimetry"]
["24017-47-8","Triazophos",null,null,null,null,null,null,null,"I1112","USDOI/USGS","Boron in Water by Colorimetry"]
["75-96-7","Tribromoacetic acid",null,null,null,null,null,null,null,"I1114","USDOI/USGS","Boron in Water by DC Plasma Spectrometry"]
["75-25-2","Tribromomethane","Bromoform",68668,null,null,null,null,null,"I1125","USDOI/USGS","Bromide in Water by Titration"]
["78-48-8","Tribufos","DEF",null,null,null,null,null,null,"I1135","USDOI/USGS","Cadmium in Water by FLAA"]
["688-73-3","Tributlytin",null,null,null,null,null,null,null,"I1136","USDOI/USGS","Cadmium in Water by Chelation and FLAA"]
["126-73-8","Tributyl phosphate",null,null,null,null,null,null,null,"I1137","USDOI/USGS","Cadmium in Water by GFAA"]
["814-29-9","Tributylphosphine oxide",null,null,null,null,null,null,null,"I1152","USDOI/USGS","Calcium in Water by FLAA"]
["1461-22-9","Tributyltin chloride",null,null,null,null,null,null,null,"I1183","USDOI/USGS","Chloride in Water by Titration"]
["7758-87-4","Tricalcium phosphate",null,null,null,null,null,null,null,"I1184","USDOI/USGS","Chloride in Water by Titration"]
["2307-49-5","Tricamba","Banvel T",null,null,null,null,null,null,"I1187","USDOI/USGS","Chloride in Water by Colorimetry"]
["52-68-6","Trichlorfon","Dylox",null,null,null,null,null,null,"I1230","USDOI/USGS","Hexavalent Chromium by Colorimetry"]
["53317-48-9","Trichloro-1,3-butadiene",null,null,null,null,null,null,null,"I1232","USDOI/USGS","Hexavalent Chromium in Water by FLAA"]
["76-03-9","Trichloroacetic acid","TCAA",null,null,null,null,null,null,"I1235","USDOI/USGS","Chromium in Water by GFAA"]
["545-06-2","Trichloroacetonitrile",null,null,null,null,null,null,null,"I1236","USDOI/USGS","Chromium in Water by FLAA"]
["12002-48-1","Trichlorobenzene",null,null,null,null,null,null,null,"I1238","USDOI/USGS","Chromium in Water by Chelation and FLAA"]
["25323-68-6","Trichlorobiphenyl",null,null,null,null,null,null,null,"I1239","USDOI/USGS","Cobalt in Water by FLAA"]
["25323-89-1","Trichloroethane",null,null,null,null,null,null,null,"I1240","USDOI/USGS","Cobalt in Water by Chelation and FLAA"]
["79-01-6","Trichloroethylene",null,69129,null,null,null,null,null,"I1241","USDOI/USGS","Cobalt in Water by GFAA"]
["75-69-4","Trichlorofluoromethane","CFC-11",68677,null,null,null,null,null,"I1250","USDOI/USGS","Color in Water by Visual Comparison"]
["1321-65-9","Trichloronaphthalene",null,null,null,null,null,null,null,"I1270","USDOI/USGS","Copper in Water by FLAA"]
["327-98-0","Trichloronate",null,null,null,null,null,null,null,"I1271","USDOI/USGS","Copper in Water by Chelation and FLAA"]
["25167-82-2","Trichlorophenol",null,null,null,null,null,null,null,"I1272","USDOI/USGS","Copper in Water by GFAA"]
["25735-29-9","Trichloropropane",null,null,null,null,null,null,null,"I1300","USDOI/USGS","Cyanide in Water by Colorimetry"]
["26523-64-8","Trichlorotrifluoroethane",null,414,null,null,null,null,null,"I1325","USDOI/USGS","Fluoride in Water by Colorimetry"]
["101-20-2","Triclocarban",null,null,null,null,null,null,null,"I1327","USDOI/USGS","Fluoride in Water Using an ISE"]
["55335-06-3","Triclopyr",null,4957,null,null,null,null,null,"I1370","USDOI/USGS","Iodide in Water by Titration"]
["3380-34-5","Triclosan",null,null,null,null,null,null,null,"I1371","USDOI/USGS","Iodide in Water by Colorimetry"]
["638-67-5","Tricosane",null,null,null,null,null,null,null,"I1381","USDOI/USGS","Iron in Water by FLAA"]
["41814-78-2","Tricyclazole",null,null,null,null,null,null,null,"I1399","USDOI/USGS","Lead in Water by FLAA"]
["375-85-9","Tridecafluoroheptanoic acid","PFHpA",2176,null,null,null,null,null,"I1400","USDOI/USGS","Lead in Water by Chelation and FLAA"]
["629-50-5","Tridecane",null,null,null,null,null,null,null,"I1401","USDOI/USGS","Lead in Water by GFAA"]
["638-53-9","Tridecanoic acid",null,null,null,null,null,null,null,"I1425","USDOI/USGS","Lithium in Water by FLAA"]
["102-71-6","Triethanolamine",null,null,null,null,null,null,null,"I1447","USDOI/USGS","Magnesium in Water by FLAA"]
["77-93-0","Triethyl citrate",null,null,null,null,null,null,null,"I1454","USDOI/USGS","Manganese in Water by FLAA"]
["112-49-2","Triethylene glycol dimethyl ether",null,null,null,null,null,null,null,"I1455","USDOI/USGS","Manganese in Water by GFAA"]
["143-22-6","Triethylene glycol monobutyl ether",null,null,null,null,null,null,null,"I1456","USDOI/USGS","Manganese in Water by Chelation and FLAA"]
["1582-09-8","Trifluralin",null,9988,null,null,null,null,null,"I1462","USDOI/USGS","Mercury in Water by CVAA"]
["122-20-3","Triisopropanolamine",null,null,null,null,null,null,null,"I1472","USDOI/USGS","Metals in Water by ICP"]
["5419-55-6","Triisopropyl orthoborate","Boric acid",null,null,null,null,null,null,"I1490","USDOI/USGS","Molybdenum by Chelation and FLAA"]
["3424-21-3","Triisopropylamine",null,null,null,null,null,null,null,"I1499","USDOI/USGS","Nickel in Water by FLAA"]
["738-70-5","Trimethoprim",null,null,null,null,null,null,null,"I1500","USDOI/USGS","Nickel in Water by Chelation and FLAA"]
["25551-13-7","Trimethylbenzene",null,null,null,null,null,null,null,"I1501","USDOI/USGS","Nickel in Water by GFAA"]
["68555-95-3","Trimethylcyclohexene",null,null,null,null,null,null,null,"I1520","USDOI/USGS","Ammonia Nitrogen by Nesslerization",1070]
["28652-77-9","Trimethylnaphthalene",null,null,null,null,null,null,null,"I1524","USDOI/USGS","Ammonia Nitrogen in Water Using an ISE"]
["14667-55-1","Trimethylpyrazine",null,null,null,null,null,null,null,"I1540","USDOI/USGS","Nitrite-Nitrogen in Water by Colorimetry"]
["521-78-8","Trimipramine maleate",null,null,null,null,null,null,null,"I1550","USDOI/USGS","Ammonia plus Organic Nitrogen in Water"]
["118-96-7","Trinitrotoluene","TNT",null,null,null,null,null,null,"I1586","USDOI/USGS","Water pH",1574]
["115-86-6","Triphenyl phosphate",null,null,null,null,null,null,null,"I1600","USDOI/USGS","Dissolved Phosphorus by Colorimetry"]
["13674-87-8","Tris(1,3-dichloro-2-propyl)phosphate","TDCPP",null,null,null,null,null,null,"I1601","USDOI/USGS","Orthophosphate-Phosphorus by Colorimetry"]
["78-51-3","Tris(2-butoxyethyl) phosphate",null,null,null,null,null,null,null,"I1602","USDOI/USGS","Orthophosphate plus Hydrolyzable Phosphorous"]
["115-96-8","Tris(2-chloroethyl) phosphate",null,1,null,null,null,null,null,"I1630(S)","USDOI/USGS","Potassium in Bottom Material by FLAA"]
["10028-17-8","Tritium",null,594,null,null,null,null,null,"I1630(W)","USDOI/USGS","Potassium in Water by FLAA"]
["630-05-7","Tritriacontane",null,null,null,null,null,null,null,"I1667(S)","USDOI/USGS","Selenium in Bottom Material by HYDAA"]
["COLOR-TRUE","True color",null,2961,null,null,null,null,null,"I1667(W)","USDOI/USGS","Selenium in Water by HYDAA"]
["7440-33-7","Tungsten","W",null,null,null,null,null,null,"I1700","USDOI/USGS","Silica in Water by Colorimetry"]
["TURB","Turbidity",null,235225,null,null,null,null,null,"I1702","USDOI/USGS","Silica in Water by FLAA"]
["1401-69-0","Tylosin",null,null,null,null,null,null,null,"I1720","USDOI/USGS","Silver in Water by Chelation and FLAA"]
["1404-88-2","Tyrothricin",null,null,null,null,null,null,null,"I1735(S)","USDOI/USGS","Sodium in Bottom Material by FLAA"]
["UV 254","UV Absorbance at 254 nm",null,42,null,null,null,null,null,"I1735(W)","USDOI/USGS","Sodium in Water by FLAA"]
["UV 440","UV Absorbance at 440 nm",null,42,null,null,null,null,null,"I1738","MNPCA","Sodium Absorption Ratio"]
["UVABS-REL-ORG","UV Absorption, relative conc. of organic constituents",null,136,null,null,null,null,null,"I1749","USDOI/USGS","Residue by Evaporation and Gravimetric"]
["1120-21-4","Undecane",null,null,null,null,null,null,null,"I1750","USDOI/USGS","Residue by Evaporation and Gravimetric",671]
["112-37-8","Undecanoic acid",null,null,null,null,null,null,null,"I1780","USDOI/USGS","Specific Conductance"]
["13966-29-5","Uranium-234",null,null,null,null,null,null,null,"I1800(S)","USDOI/USGS","Strontium in Bottom Material by FLAA"]
["15117-96-1","Uranium-235",null,null,null,null,null,null,null,"I1800(W)","USDOI/USGS","Strontium in Water by FLAA"]
["13982-70-2","Uranium-236",null,null,null,null,null,null,null,"I1820","USDOI/USGS","Sulfate in Water by Titration"]
["7440-61-1","Uranium-238",null,null,null,null,null,null,null,"I1866","USDOI/USGS","Thallium in Water by GFAA"]
["57-13-6","Urea",null,null,null,null,null,null,null,"I1880","USDOI/USGS","Vanadium in Water by Colorimetry"]
["109-52-4","Valeric acid",null,1,null,null,null,null,null,"I1900(S)","USDOI/USGS","Zinc in Bottom Material by FLAA"]
["137862-53-4","Valsartan",null,null,null,null,null,null,null,"I1900(W)","USDOI/USGS","Zinc in Water by FLAA"]
["7440-62-2","Vanadium","V",3885,null,null,null,null,null,"I1901","USDOI/USGS","Zinc in Water by GFAA"]
["STREAM-VEL","Velocity - stream",null,4,null,null,null,null,null,"I2030","USDOI/USGS","Alkalinity in Water by Titration"]
["93413-69-5","Venlafaxine",null,null,null,null,null,null,null,"I2057","USDOI/USGS","Anions in Water by Ion Chromatography"]
["52-53-9","Verapamil",null,null,null,null,null,null,null,"I2058","USDOI/USGS","Anions in Water by Ion Chromatography"]
["1929-77-7","Vernolate",null,null,null,null,null,null,null,"I2062","USDOI/USGS","Arsenic in Water by HYDAA"]
["67892-35-7","Verticillium lecanii",null,null,null,null,null,null,null,"I2115","USDOI/USGS","Boron in Water by Automated Colorimetry"]
["50471-44-8","Vinclozolin",null,null,null,null,null,null,null,"I2128","USDOI/USGS","Bromide in Water by Ion Chromatography"]
["108-05-4","Vinyl acetate",null,24,null,null,null,null,null,"I2129","USDOI/USGS","Bromide in Water by Colorimetry"]
["593-60-2","Vinyl bromide",null,null,null,null,null,null,null,"I2187","USDOI/USGS","Chloride in Water by Automated Colorimetry"]
["75-01-4","Vinyl chloride",null,69154,null,null,null,null,null,"I2188","USDOI/USGS","Chloride in Water by Colorimetry"]
["25013-15-4","Vinyltoluene",null,null,null,null,null,null,null,"I2302","USDOI/USGS","Cyanide in Water by Colorimetry"]
["21411-53-0","Virginiamycin",null,null,null,null,null,null,null,"I2327","USDOI/USGS","Fluoride in Water Using an ISE"]
["81-81-2","Warfarin",null,null,null,null,null,null,null,"I2462","USDOI/USGS","Mercury in Water by CVAA"]
["7732-18-5","Water",null,74,null,null,null,null,null,"I2521","USDOI/USGS","Ammonia Nitrogen in Water by Colorimetry"]
["WATERAPPEAR","Water appearance (text)",null,1,null,null,null,null,null,"I2522","USDOI/USGS","Ammonia Nitrogen in Water by Colorimetry"]
["WL-GAGE","Water level gage",null,21,null,null,null,null,null,"I2523","USDOI/USGS","Ammonia Nitrogen in Water by Colorimetry"]
["WELL-WL-MSL","Water level in well, MSL",null,1,null,null,null,null,null,"I2539","USDOI/USGS","Nitrite-Nitrogen in Water by Colorimetry"]
["WELL-WL-RP","Water level in well, depth from a reference point",null,31386,null,null,null,null,null,"I2543","USDOI/USGS","Nitrite- plus Nitrate-Nitrogen in Water"]
["WL-RP","Water level reference point elevation",null,150,null,null,null,null,null,"I2545(S)","USDOI/USGS","Nitrite- Plus Nitrate-Nitrogen in Solids"]
["WAVE-HEIGHT","Wave height",null,1653,null,null,null,null,null,"I2545(W)","USDOI/USGS","Nitrite- Plus Nitrate-Nitrogen in Water"]
["WT","Weight",null,122,null,null,null,null,null,"I2552","USDOI/USGS","Ammonia plus Organic Nitrogen in Water"]
["WT-VOL","Weight, volatile portion",null,5,null,null,null,null,null,"I2558","USDOI/USGS","Ammonia plus Organic Nitrogen in Water"]
["WIND-DIR","Wind direction (direction from, expressed 0-360 deg)",null,116,null,null,null,null,null,"I2598","USDOI/USGS","Orthophosphate-Phosphorus by Colorimetry"]
["WIND-VEL","Wind velocity",null,406,null,null,null,null,null,"I2599","USDOI/USGS","Phosphorus by Auto-Discrete Colorimetry"]
["8021-39-4","Wood creosote",null,null,null,null,null,null,null,"I2600(S)","USDOI/USGS","Phosphorus in Solids by Colorimetry"]
["8048-52-0","Xanthacridinum",null,null,null,null,null,null,null,"I2600(W)","USDOI/USGS","Phosphorus in Water by Colorimetry"]
["1330-20-7","Xylene",null,3570,null,null,null,null,null,"I2601","USDOI/USGS","Orthophosphate-Phosphorus by Colorimetry",2]
["7440-64-4","Ytterbium","Yb",null,null,null,null,null,null,"I2602","USDOI/USGS","Hydrolyzable plus Orthophosphate-Phosphorous"]
["7440-65-5","Yttrium","Y",null,null,null,null,null,null,"I2667(S)","USDOI/USGS","Selenium in Bottom Material by HYDAA"]
["10098-91-6","Yttrium-90",null,null,null,null,null,null,null,"I2667(W)","USDOI/USGS","Selenium in Water by HYDAA"]
["7440-66-6","Zinc","Zn",38421,null,null,null,null,null,"I2700","USDOI/USGS","Silica in Water by Colorimetry"]
["1405-89-6","Zinc bacitracin",null,null,null,null,null,null,null,"I2822","USDOI/USGS","Sulfate in Water by Colorimetry"]
["53404-92-5","Zinc dehydroabietylammonium 2-ethylhexanoate",null,null,null,null,null,null,null,"I2823","USDOI/USGS","Sulfate in Water by Turbidimetry"]
["1314-84-7","Zinc phosphide",null,null,null,null,null,null,null,"I2851(S)","USDOI/USGS","Tin in Bottom Material by HYDAA"]
["13982-39-3","Zinc-65",null,null,null,null,null,null,null,"I2851(W)","USDOI/USGS","Tin in Water by HYDAA"]
["12122-67-7","Zineb",null,null,null,null,null,null,null,"I2880","USDOI/USGS","Vanadium in Water by Colorimetry"]
["137-30-4","Ziram",null,null,null,null,null,null,null,"I3051","USDOI/USGS","Aluminum in Water by FLAA"]
["7440-67-7","Zirconium","Zr",342,null,null,null,null,null,"I3052","USDOI/USGS","Aluminum in Water by Chelation and FLAA"]
["13967-71-0","Zirconium-95",null,null,null,null,null,null,null,"I3054","USDOI/USGS","Aluminum by D-C Plasma Spectrometry"]
["ZOOPLANKTON","Zooplankton",null,94,null,null,null,null,null,"I3055","USDOI/USGS","Antimony in Water by Hydride AA"]
["28013-11-8","ar,ar'-Dimethylbiphenyl",null,null,null,null,null,null,null,"I3060","USDOI/USGS","Arsenic in Water by Colorimetry"]
["66903-23-9","bis(3-Methylcyclohexyl) peroxide",null,null,null,null,null,null,null,"I3062","USDOI/USGS","Arsenic in Water by HYDAA"]
["156-59-2","cis-1,2-Dichloroethylene",null,69123,null,null,null,null,null,"I3084","USDOI/USGS","Barium in Water by FLAA"]
["10061-01-5","cis-1,3-Dichloropropene",null,68617,null,null,null,null,null,"I3095","USDOI/USGS","Beryllium in Water by FLAA"]
["2532-58-3","cis-1,3-Dimethylcyclopentane",null,null,null,null,null,null,null,"I3110","USDOI/USGS","Boron in Water by Colorimetry"]
["51422-75-4","cis-1-Bromo-2-chlorocyclohexane",null,null,null,null,null,null,null,"I3112","USDOI/USGS","Boron in Water by Colorimetry"]
["16536-57-5","cis-2-Bromocyclohexanol",null,null,null,null,null,null,null,"I3135","USDOI/USGS","Cadmium in Water by FLAA"]
["767-99-7","cis-2-Phenyl-2-butene",null,null,null,null,null,null,null,"I3136","USDOI/USGS","Cadmium in Water by Chelation and FLAA"]
["2939-80-2","cis-Captafol","Difolatan",null,null,null,null,null,null,"I3152","USDOI/USGS","Calcium in Water by FLAA"]
["5103-71-9","cis-Chlordane",null,107,null,null,null,null,null,"I3153","USDOI/USGS","Calcium in Water by FLAA"]
["5103-73-1","cis-Nonachlor",null,1,null,null,null,null,null,"I3236","USDOI/USGS","Chromium in Water by FLAA"]
["42534-61-2","d-cis-trans-Allethrin",null,null,null,null,null,null,null,"I3238","USDOI/USGS","Chromium in Water by Chelation and FLAA"]
["28434-00-6","d-trans-Allethrin",null,null,null,null,null,null,null,"I3239","USDOI/USGS","Cobalt in Water by FLAA"]
["108-42-9","m-Chloroaniline",null,null,null,null,null,null,null,"I3240","USDOI/USGS","Cobalt in Water by Chelation and FLAA"]
["625-98-9","m-Chlorofluorobenzene",null,null,null,null,null,null,null,"I3270","USDOI/USGS","Copper in Water by FLAA"]
["121-73-3","m-Chloronitrobenzene",null,null,null,null,null,null,null,"I3271","USDOI/USGS","Copper in Water by Chelation and FLAA"]
["108-43-0","m-Chlorophenol",null,null,null,null,null,null,null,"I3300","USDOI/USGS","Cyanide in Water by Colorimetry"]
["108-41-8","m-Chlorotoluene",null,null,null,null,null,null,null,"I3325","USDOI/USGS","Fluoride in Water by Colorimetry"]
["108-39-4","m-Cresol",null,203,null,null,null,null,null,"I3381","USDOI/USGS","Iron in Water by FLAA"]
["535-77-3","m-Cymene",null,null,null,null,null,null,null,"I3399","USDOI/USGS","Lead in Water by FLAA"]
["541-73-1","m-Dichlorobenzene",null,69197,null,null,null,null,null,"I3400","USDOI/USGS","Lead in Water by Chelation and FLAA"]
["99-65-0","m-Dinitrobenzene",null,16,null,null,null,null,null,"I3425","USDOI/USGS","Lithium in Water by FLAA"]
["620-14-4","m-Ethyltoluene",null,2,null,null,null,null,null,"I3447","USDOI/USGS","Magnesium in Water by FLAA"]
["99-06-9","m-Hydroxybenzoic acid",null,null,null,null,null,null,null,"I3448","USDOI/USGS","Magnesium in Water by Direct EPA FLAA"]
["99-09-2","m-Nitroaniline",null,669,null,null,null,null,null,"I3454","USDOI/USGS","Manganese in Water by FLAA"]
["99-08-1","m-Nitrotoluene",null,null,null,null,null,null,null,"I3462","USDOI/USGS","Mercury in Water by CVAA"]
["92-06-8","m-Terphenyl",null,null,null,null,null,null,null,"I3490","USDOI/USGS","Molybdenum by Chelation and FLAA"]
["108-38-3","m-Xylene",null,837,null,null,null,null,null,"I3499","USDOI/USGS","Nickel in Water by FLAA"]
["179601-23-1","meta & para Xylene mix",null,65799,null,null,null,null,null,"I3500","USDOI/USGS","Nickel in Water by Chelation and FLAA"]
["628-63-7","n-Amyl acetate",null,null,null,null,null,null,null,"I3524","USDOI/USGS","Ammonia Nitrogen in Water Using an ISE"]
["123-86-4","n-Butyl acetate",null,28,null,null,null,null,null,"I3561","USDOI/USGS","Chemical Oxygen Demand by Colorimetry"]
["138-22-7","n-Butyl lactate",null,null,null,null,null,null,null,"I3562(S)","USDOI/USGS","Chemical Oxygen Demand by Titration"]
["104-51-8","n-Butylbenzene",null,67394,null,null,null,null,null,"I3562(W)","USDOI/USGS","Chemical Oxygen Demand by Titration"]
["103-65-1","n-Propylbenzene",null,67377,null,null,null,null,null,"I3631","USDOI/USGS","Potassium in Water by FLAA"]
["53-19-0","o,p'-DDD",null,82,null,null,null,null,null,"I3736","USDOI/USGS","Sodium in Water by FLAA"]
["3424-82-6","o,p'-DDE",null,82,null,null,null,null,null,"I3750","USDOI/USGS","Residue by Evaporation and Gravimetric"]
["789-02-6","o,p'-DDT",null,166,null,null,null,null,null,"I3765","USDOI/USGS","Residue by Evaporation and Gravimetric",34700]
["30667-99-3","o,p'-Methoxychlor",null,null,null,null,null,null,null,"I3840","USDOI/USGS","Sulfide in Water by Titration"]
["95-51-2","o-Chloroaniline",null,null,null,null,null,null,null,"I3860","USDOI/USGS","Nephelometric Turbidity in Water"]
["88-73-3","o-Chloronitrobenzene",null,null,null,null,null,null,null,"I4062","USDOI/USGS","Arsenic in Water by HYDAA"]
["95-57-8","o-Chlorophenol",null,799,null,null,null,null,null,"I4302","USDOI/USGS","Cyanide in Water by Colorimetry"]
["95-49-8","o-Chlorotoluene",null,67372,null,null,null,null,null,"I4327","USDOI/USGS","Fluoride in Water Using an ISE"]
["95-48-7","o-Cresol",null,751,null,null,null,null,null,"I4521","USDOI/USGS","Ammonia Nitrogen in Water by Colorimetry"]
["527-84-4","o-Cymene",null,null,null,null,null,null,null,"I4522","USDOI/USGS","Ammonia Nitrogen in Water by Colorimetry"]
["95-50-1","o-Dichlorobenzene",null,69315,null,null,null,null,null,"I4523","USDOI/USGS","Ammonia Nitrogen in Water by Colorimetry"]
["611-14-3","o-Ethyltoluene",null,null,null,null,null,null,null,"I4552","USDOI/USGS","Ammonia Plus Organic Nitrogen in Water"]
["451-80-9","o-Fluorophenatole",null,null,null,null,null,null,null,"I5051","USDOI/USGS","Aluminum in Bottom Material by FLAA"]
["367-12-4","o-Fluorophenol",null,25,null,null,null,null,null,"I5055","USDOI/USGS","Antimony in Bottom Material by HYDAA"]
["88-74-4","o-Nitroaniline",null,692,null,null,null,null,null,"I5060","USDOI/USGS","Arsenic in Bottom Material by Colorimetry"]
["91-23-6","o-Nitroanisole",null,null,null,null,null,null,null,"I5062","USDOI/USGS","Arsenic in Bottom Material by HYDAA"]
["88-75-5","o-Nitrophenol",null,824,null,null,null,null,null,"I5084","USDOI/USGS","Barium in Bottom Material by FLAA"]
["88-72-2","o-Nitrotoluene",null,null,null,null,null,null,null,"I5095","USDOI/USGS","Beryllium in Bottom Material by FLAA"]
["84-15-1","o-Terphenyl",null,null,null,null,null,null,null,"I5110","USDOI/USGS","Boron in Bottom Material by Colorimetry"]
["95-53-4","o-Toluidine",null,9,null,null,null,null,null,"I5135","USDOI/USGS","Cadmium in Bottom Material by FLAA"]
["636-21-5","o-Toluidine hydrochloride",null,null,null,null,null,null,null,"I5152","USDOI/USGS","Calcium in Bottom Material by FLAA"]
["611-15-4","o-Vinyltoluene",null,null,null,null,null,null,null,"I5236","USDOI/USGS","Chromium in Bottom Material by FLAA"]
["95-47-6","o-Xylene",null,66708,null,null,null,null,null,"I5239","USDOI/USGS","Cobalt in Bottom Material by FLAA"]
["136777-61-2","ortho & para Xylene mix",null,154,null,null,null,null,null,"I5270","USDOI/USGS","Copper in Bottom Material by FLAA"]
["72-54-8","p,p'-DDD",null,836,null,null,null,null,null,"I5300","USDOI/USGS","CN in Bottom Material by Colorimetry"]
["72-55-9","p,p'-DDE",null,1048,null,null,null,null,null,"I5381","USDOI/USGS","Iron in Bottom Material by FLAA"]
["50-29-3","p,p'-DDT",null,2224,null,null,null,null,null,"I5399","USDOI/USGS","Lead in Bottom Material by FLAA"]
["140-66-9","p-(1,1,3,3-Tetramethylbutyl)phenol",null,null,null,null,null,null,null,"I5425","USDOI/USGS","Lithium in Bottom Material by FLAA"]
["460-00-4","p-Bromofluorobenzene",null,2410,null,null,null,null,null,"I5447","USDOI/USGS","Magnesium in Bottom Material by FLAA"]
["101-55-3","p-Bromophenyl phenyl ether",null,775,null,null,null,null,null,"I5454","USDOI/USGS","Manganese in Bottom Material by FLAA"]
["59-50-7","p-Chloro-m-cresol",null,755,null,null,null,null,null,"I5462","USDOI/USGS","Mercury in Bottom Material by CVAA"]
["106-47-8","p-Chloroaniline",null,689,null,null,null,null,null,"I5473","USDOI/USGS","Metals in Sediment by FLAA"]
["123-09-1","p-Chlorophenyl methyl sulfide",null,null,null,null,null,null,null,"I5474","USDOI/USGS","Metals in Sediment by FLAA"]
["7005-72-3","p-Chlorophenyl phenyl ether",null,778,null,null,null,null,null,"I5475","USDOI/USGS","Metals in Sediment by HYDAA"]
["1878-66-6","p-Chlorophenylacetic acid",null,null,null,null,null,null,null,"I5490","USDOI/USGS","Molybdenum by Chelation and FLAA"]
["106-43-4","p-Chlorotoluene",null,67360,null,null,null,null,null,"I5499","USDOI/USGS","Nickel in Bottom Material by FLAA"]
["106-44-5","p-Cresol",null,709,null,null,null,null,null,"I5553","USDOI/USGS","Ammonia plus Organic Nitrogen in Solids"]
["599-64-4","p-Cumylphenol",null,null,null,null,null,null,null,"I6062","USDOI/USGS","Arsenic in Bottom Material by HYDAA"]
["99-87-6","p-Cymene",null,59782,null,null,null,null,null,"I6302","USDOI/USGS","CN in Bottom Material by Colorimetry"]
["106-46-7","p-Dichlorobenzene",null,69465,null,null,null,null,null,"I6522","USDOI/USGS","Ammonia Nitrogen by Colorimetry in Solid"]
["937-30-4","p-Ethylacetophenone",null,null,null,null,null,null,null,"I6523","USDOI/USGS","Ammonia Nitrogen by Colorimetry in Solid"]
["123-07-9","p-Ethylphenol",null,null,null,null,null,null,null,"I6552","USDOI/USGS","Ammonia Plus Organic Nitrogen in Solids"]
["622-96-8","p-Ethyltoluene",null,null,null,null,null,null,null,"I6600","USDOI/USGS","Phosphorous by Auto-Discrete Colorimetry"]
["99-96-7","p-Hydroxybenzoic acid",null,null,null,null,null,null,null,"I7051","USDOI/USGS","Aluminum in Water by FLAA"]
["7400-08-0","p-Hydroxycinnamic acid",null,null,null,null,null,null,null,"I7052","USDOI/USGS","Aluminum in Water by Chelation and FLAA"]
["5359-04-6","p-Isopropenylacetophenone",null,null,null,null,null,null,null,"I7054","USDOI/USGS","Aluminum by D-C Plasma Spectrometry"]
["150-76-5","p-Methoxyphenol",null,null,null,null,null,null,null,"I7055","USDOI/USGS","Antimony in Water by Hydride AA"]
["100-01-6","p-Nitroaniline",null,669,null,null,null,null,null,"I7060","USDOI/USGS","Arsenic in Water by Colorimetry"]
["100-17-4","p-Nitroanisole",null,null,null,null,null,null,null,"I7062","USDOI/USGS","Arsenic in Water by HYDAA"]
["100-02-7","p-Nitrophenol",null,824,null,null,null,null,null,"I7084","USDOI/USGS","Barium in Water by FLAA"]
["104-40-5","p-Nonylphenol",null,null,null,null,null,null,null,"I7095","USDOI/USGS","Beryllium in Water by FLAA"]
["1806-26-4","p-Octylphenol",null,null,null,null,null,null,null,"I7110","USDOI/USGS","Boron in Water by Colorimetry"]
["106-50-3","p-Phenylenediamine",null,9,null,null,null,null,null,"I7112","USDOI/USGS","Boron in Water by Colorimetry"]
["645-56-7","p-Propylphenol",null,null,null,null,null,null,null,"I7135","USDOI/USGS","Cadmium in Water by FLAA"]
["135-70-6","p-Quaterphenyl",null,null,null,null,null,null,null,"I7136","USDOI/USGS","Cadmium in Water by Chelation and FLAA"]
["92-94-4","p-Terphenyl",null,null,null,null,null,null,null,"I7152","USDOI/USGS","Calcium in Water by FLAA"]
["1718-51-0","p-Terphenyl-d14",null,22,null,null,null,null,null,"I7236","USDOI/USGS","Chromium in Water by FLAA"]
["106-49-0","p-Toluidine",null,null,null,null,null,null,null,"I7238","USDOI/USGS","Chromium in Water by Chelation and FLAA"]
["106-42-3","p-Xylene",null,803,null,null,null,null,null,"I7239","USDOI/USGS","Cobalt in Water by FLAA"]
["80-46-6","p-tert-Amylphenol",null,null,null,null,null,null,null,"I7240","USDOI/USGS","Cobalt in Water by Chelation and FLAA"]
["98-73-7","p-tert-Butylbenzoic acid",null,null,null,null,null,null,null,"I7270","USDOI/USGS","Copper in Water by FLAA"]
["98-54-4","p-tert-Butylphenol",null,null,null,null,null,null,null,"I7271","USDOI/USGS","Copper in Water by Chelation and FLAA"]
["PH","pH",null,587639,null,null,null,null,null,"I7325","USDOI/USGS","Fluoride in Water by Colorimetry"]
["13952-84-6","sec-Butylamine",null,null,null,null,null,null,null,"I7327","USDOI/USGS","Fluoride in Water Using an ISE"]
["135-98-8","sec-Butylbenzene",null,67386,null,null,null,null,null,"I7381","USDOI/USGS","Iron in Water by FLAA"]
["994-05-8","tert-Amyl methyl ether",null,null,null,null,null,null,null,"I7399","USDOI/USGS","Lead in Water by FLAA"]
["2049-95-8","tert-Amylbenzene",null,null,null,null,null,null,null,"I7400","USDOI/USGS","Lead in Water by Chelation and FLAA"]
["75-65-0","tert-Butanol",null,null,null,null,null,null,null,"I7425","USDOI/USGS","Lithium in Water by FLAA"]
["540-88-5","tert-Butyl acetate",null,null,null,null,null,null,null,"I7447","USDOI/USGS","Magnesium in Water by FLAA"]
["98-06-6","tert-Butylbenzene",null,67379,null,null,null,null,null,"I7454","USDOI/USGS","Manganese in Water by FLAA"]
["1460-57-7","trans-1,2-Cyclohexanediol",null,null,null,null,null,null,null,"I7462","USDOI/USGS","Mercury in Water by CVAA"]
["822-86-6","trans-1,2-Dichlorocyclohexane",null,null,null,null,null,null,null,"I7490","USDOI/USGS","Molybdenum by Chelation and FLAA"]
["156-60-5","trans-1,2-Dichloroethylene",null,68011,null,null,null,null,null,"I7499","USDOI/USGS","Nickel in Water by FLAA"]
["10061-02-6","trans-1,3-Dichloropropene",null,68513,null,null,null,null,null,"I7500","USDOI/USGS","Nickel in Water by Chelation and FLAA"]
["110-57-6","trans-1,4-Dichloro-2-butene",null,12,null,null,null,null,null,"I7552","USDOI/USGS","Ammonia Plus Organic Nitrogen in Water"]
["16890-91-8","trans-1,4-Dichlorocyclohexane",null,null,null,null,null,null,null,"ICP-AES","USEPA","Inductively Coupled Plasma"]
["497-03-0","trans-2-Methylcrotonaldehyde",null,null,null,null,null,null,null,"ICP-AES-U","MNPCA","Inductively Coupled Plasma - Atomic Emission Spectrometry, unspecified",34]
["768-00-3","trans-2-Phenyl-2-butene",null,null,null,null,null,null,null,"ICP-MS-U","MNPCA","Inductively Coupled Plasma - Mass Spectrometry, unspecified ",1023]
["5103-74-2","trans-Chlordane",null,164,null,null,null,null,null,"IDEXX COLISURE","MNPCA","Colisure Test Kit Procedure",231]
["91318-10-4","trans-Diethyl-1,1,1',1'-d4-stilbestrol-3,3',5,5'-d4",null,null,null,null,null,null,null,"IM-002-1","USEPA","Field Screening by Portable XRF"]
["39765-80-5","trans-Nonachlor",null,1,null,null,null,null,null,"IM-003-1","USEPA","Metals by Flame AA"]
["52315-07-8","zeta-Cypermethrin","Cymbush",2816,null,null,null,null,null,"INTERIM1","USEPA","Hydrogen Cyanide Released from Wastes"]
[null,null,null,null,null,null,null,null,null,"INTERIM2","USEPA","Hydrogen Sulfide Released from Wastes"]
[null,null,null,null,null,null,null,null,null,"IP-10A","USEPA","Respirable Particulates in Indoor Air"]
[null,null,null,null,null,null,null,null,null,"IP-10B","USEPA","Respirable Particulates in Indoor Air"]
[null,null,null,null,null,null,null,null,null,"IP-1A","USEPA","Volatiles in Air - SUMMA Canister"]
[null,null,null,null,null,null,null,null,null,"IP-1A-B","USEPA","Volatiles in Air - Portable GC/PID"]
[null,null,null,null,null,null,null,null,null,"IP-1A-C","USEPA","Installation and Operation Procedure"]
[null,null,null,null,null,null,null,null,null,"IP-1B","USEPA","Volatiles in Air - Adsorbent Tubes"]
[null,null,null,null,null,null,null,null,null,"IP-2A","USEPA","Nicotine in Indoor Air - XAD-4"]
[null,null,null,null,null,null,null,null,null,"IP-2B","USEPA","Nicotine in Indoor Air-Cassette"]
[null,null,null,null,null,null,null,null,null,"IP-3A","USEPA","Carbon Monoxide in Air - NDIR"]
[null,null,null,null,null,null,null,null,null,"IP-3B","USEPA","Carbon Monoxide in Air - GFC"]
[null,null,null,null,null,null,null,null,null,"IP-3C","USEPA","Carbon Monoxide in Air - ECO"]
[null,null,null,null,null,null,null,null,null,"IP-5A","USEPA","Nitrogen Dioxide - Air, Luminescence"]
[null,null,null,null,null,null,null,null,null,"IP-5B","USEPA","Nitrogen Dioxide - Air, Palmes Tubes"]
[null,null,null,null,null,null,null,null,null,"IP-5C","USEPA","Nitrogen Dioxide - Air, IONCHR"]
[null,null,null,null,null,null,null,null,null,"IP-6A","USEPA","Formaldehyde - Indoor Air, HPLC"]
[null,null,null,null,null,null,null,null,null,"IP-6B","USEPA","Formaldehyde in Air - Colorimetric"]
[null,null,null,null,null,null,null,null,null,"IP-6C","USEPA","Formaldehyde in Air - Passive Sampling"]
[null,null,null,null,null,null,null,null,null,"IP-7-A","USEPA","B(a)P in Air by GC/FID and GC/MS"]
[null,null,null,null,null,null,null,null,null,"IP-7-B","USEPA","B(a)P and PAHs in Air by HPLC"]
[null,null,null,null,null,null,null,null,null,"IP-8","USEPA","Organochlorine Pesticides - Indoor Air"]
[null,null,null,null,null,null,null,null,null,"ITM-001","USEPA","Metals Emissions from Stationary Sources"]
[null,null,null,null,null,null,null,null,null,"KR-01","USEPA","Krypton-85 in Environmental Air Samples"]
[null,null,null,null,null,null,null,null,null,"LAB TEMP","MNPCA","Lab sample temperature",463]
[null,null,null,null,null,null,null,null,null,"LC_PEST","USEPA","Low Concentration Water for Pesticides"]
[null,null,null,null,null,null,null,null,null,"LC_SV","USEPA","Semivolatiles in Low Concentration Water"]
[null,null,null,null,null,null,null,null,null,"LC_VOA","USEPA","Volatile Organics in Low Concentration Water"]
[null,null,null,null,null,null,null,null,null,"LF_HISTORIC","MNPCA","Landfill Historic Data",933]
[null,null,null,null,null,null,null,null,null,"M-01","USDOE/EML","Cadmium and Lead by GFAA"]
[null,null,null,null,null,null,null,null,null,"M-02-CON","USDOE/EML","Conductivity Measurements"]
[null,null,null,null,null,null,null,null,null,"M-02-PH","USDOE/EML","pH Measurements"]
[null,null,null,null,null,null,null,null,null,"M-03","USDOE/EML","Trace Metals"]
[null,null,null,null,null,null,null,null,null,"M02MTLAAS","USDOE/EML","Metals in Aqueous Solutions"]
[null,null,null,null,null,null,null,null,null,"M02MTLAES","USDOE/EML","Metals in Aqueous Solutions"]
[null,null,null,null,null,null,null,null,null,"MCES FC","MNPCA","Fecal Coliform, EPA 600/18-78-017",1164]
[null,null,null,null,null,null,null,null,null,"MC_PEST(S)","USEPA","Organic Analysis For Pesticides/Aroclors"]
[null,null,null,null,null,null,null,null,null,"MC_PEST(W)","USEPA","Organic Analysis For Pesticides/Aroclors"]
[null,null,null,null,null,null,null,null,null,"MC_SVOA","USEPA","Screening Semivolatile Organic Extracts"]
[null,null,null,null,null,null,null,null,null,"MC_SVOA(LS)","USEPA","Semivolatile Organics in Low Conc. Soils",2]
[null,null,null,null,null,null,null,null,null,"MC_SVOA(MS)","USEPA","Semivolatile Organics in Medium Conc. Soil"]
[null,null,null,null,null,null,null,null,null,"MC_SVOA(W)","USEPA","Semivolatile Organics in Waters"]
[null,null,null,null,null,null,null,null,null,"MC_VOA","USEPA","Screening of Hexadecane Extracts"]
[null,null,null,null,null,null,null,null,null,"MC_VOA(LS)","USEPA","Volatile Organics in Low Concentration Soils"]
[null,null,null,null,null,null,null,null,null,"MC_VOA(MS)","USEPA","Volatile Organics in Medium Conc. Soils"]
[null,null,null,null,null,null,null,null,null,"MC_VOA(W)","USEPA","Volatile Organics in Multi-Conc. Waters"]
[null,null,null,null,null,null,null,null,null,"MDA GCMS","MNPCA","Pesticides in Water by Gas Chromatography/Mass Spectrometry",8428]
[null,null,null,null,null,null,null,null,null,"MDA GLYPHOSATE","MNPCA","Glyphosate in Water by Liquid Chromatography/Mass Spectrometry/Mass Spectrometry",50]
[null,null,null,null,null,null,null,null,null,"MDA PEST GCMSMS","MNPCA","Polar Pesticides and Metabolites in Water by Gas Chromatography/Mass Spectrometry/Mass Spectrometry",200]
[null,null,null,null,null,null,null,null,null,"MDA PEST LCMSMS","MNPCA","Polar Pesticides and Metabolites in Water by Liquid Chromatography/Mass Spectrometry/Mass Spectrometry",1700]
[null,null,null,null,null,null,null,null,null,"MDH058C","MNPCA","Phosphorus, Total, Low Level",169]
[null,null,null,null,null,null,null,null,null,"MDH203","MNPCA","Volatiles in Soil or Sediment, Percent, by Gravimetry",5]
[null,null,null,null,null,null,null,null,null,"MDH483","MNPCA","Caffeine in Water by LC/MS"]
[null,null,null,null,null,null,null,null,null,"MDH555","MNPCA","Perfluorinated Compounds (PFCs) by LC/MS/MS",3650]
[null,null,null,null,null,null,null,null,null,"MDH582","MNPCA","Weight, Dry, Percent",117]
[null,null,null,null,null,null,null,null,null,"MDH778","MNPCA","Inorganic Arsenic Speciation by ICP-MS",4]
[null,null,null,null,null,null,null,null,null,"MM100","USDOE/ASD","ICP/MS Radionuclide Analyses"]
[null,null,null,null,null,null,null,null,null,"MM210","USDOE/ASD","ICP/MS of Th230, Tc99 and U234"]
[null,null,null,null,null,null,null,null,null,"MM800","USDOE/ASD","ICP/MS of Uranium in Water"]
[null,null,null,null,null,null,null,null,null,"MS100","USDOE/ASD","Reflectometry-Based Instrument"]
[null,null,null,null,null,null,null,null,null,"MS110","USDOE/ASD","Colorimetric Test for CrO4+"]
[null,null,null,null,null,null,null,null,null,"MS210","USDOE/ASD","Colorimetric Test for Lead in Water"]
[null,null,null,null,null,null,null,null,null,"MS310(S)","USDOE/ASD","Colorimetric Test for NO3+ in Soil"]
[null,null,null,null,null,null,null,null,null,"MS310(W)","USDOE/ASD","Colorimetric Test for NO3+ in Water"]
[null,null,null,null,null,null,null,null,null,"MS410(W)","USDOE/ASD","Colorimetric Test for Nickel in Water"]
[null,null,null,null,null,null,null,null,null,"MS_AM20GAX","MNPCA","Dissolved hydrogen analysis by GC with sample collection by bubble strip method",13]
[null,null,null,null,null,null,null,null,null,"MU012R","USDOE/ASD","Cyanide by Microdistillation and Argento"]
[null,null,null,null,null,null,null,null,null,"MVTL_RWT","MNPCA","Rhodamine WT by HPLC using Fluorescence Detection",116]
[null,null,null,null,null,null,null,null,null,"NH3-01","USDOE/EML","Ammonium in Water"]
[null,null,null,null,null,null,null,null,null,"NIOSH_1001","NIOSH","Methyl Chloride by GC/FID"]
[null,null,null,null,null,null,null,null,null,"NIOSH_1600","NIOSH","Carbon Disulfide by GC/FPD"]
[null,null,null,null,null,null,null,null,null,"NIOSH_1601","NIOSH","1,1-Dichloro-1-Nitroethane by GC/FID"]
[null,null,null,null,null,null,null,null,null,"NIOSH_1602","NIOSH","Dioxane by GC/FID"]
[null,null,null,null,null,null,null,null,null,"NIOSH_1603","NIOSH","Acetic acid by GC/FID"]
[null,null,null,null,null,null,null,null,null,"NIOSH_1604","NIOSH","Acrylonitrile by GC/FID"]
[null,null,null,null,null,null,null,null,null,"NIOSH_1618","NIOSH","Isopropyl Ether by GC/FID"]
[null,null,null,null,null,null,null,null,null,"NIOSH_2510","NIOSH","1-Octanethiol by GC/FPD"]
[null,null,null,null,null,null,null,null,null,"NIOSH_5021","NIOSH","o-Terphenyl by Gas Chromatography"]
[null,null,null,null,null,null,null,null,null,"NIOSH_5031","NIOSH","Aspartamine by HPLC/UV"]
[null,null,null,null,null,null,null,null,null,"NIOSH_5032","NIOSH","Pentamidine Isethionate by HPLC"]
[null,null,null,null,null,null,null,null,null,"NIOSH_7020","NIOSH","Calcium by Atomic Absorption"]
[null,null,null,null,null,null,null,null,null,"NIOSH_8310","NIOSH","Metals in Urine by ICP"]
[null,null,null,null,null,null,null,null,null,"NITRO-1","USDOC/NOAA","Ammonia in Water - AutoAnalyzer"]
[null,null,null,null,null,null,null,null,null,"NITRO-10","USDOC/NOAA","Nitrite Nitrogen in Saline Water"]
[null,null,null,null,null,null,null,null,null,"NITRO-11","USDOC/NOAA","Nitrite Nitrogen in Seawater"]
[null,null,null,null,null,null,null,null,null,"NITRO-12","USDOC/NOAA","Nitrate Nitrogen in Saline Water"]
[null,null,null,null,null,null,null,null,null,"NITRO-13","USDOC/NOAA","Determination of Ammonium Nitrogen"]
[null,null,null,null,null,null,null,null,null,"NITRO-14","USDOC/NOAA","Nitrite Nitrogen in Water"]
[null,null,null,null,null,null,null,null,null,"NITRO-15","USDOC/NOAA","Nitrate plus Nitrite in Sediment"]
[null,null,null,null,null,null,null,null,null,"NITRO-16","USDOC/NOAA","Total Kjehdahl Nitrogen"]
[null,null,null,null,null,null,null,null,null,"NITRO-17","USDOC/NOAA","Ammonia in Saline Water"]
[null,null,null,null,null,null,null,null,null,"NITRO-18","USDOC/NOAA","Ammonia Plus Amino Acids"]
[null,null,null,null,null,null,null,null,null,"NITRO-19","USDOC/NOAA","Reactive Nitrate in Seawater"]
[null,null,null,null,null,null,null,null,null,"NITRO-2","USDOC/NOAA","Ammonia in Water - Phenate"]
[null,null,null,null,null,null,null,null,null,"NITRO-20","USDOC/NOAA","Reactive Nitrite in Seawater"]
[null,null,null,null,null,null,null,null,null,"NITRO-23","USDOC/NOAA","Ammonia in Water - Distillation"]
[null,null,null,null,null,null,null,null,null,"NITRO-24","USDOC/NOAA","Ammonia in Water - Ion Selective"]
[null,null,null,null,null,null,null,null,null,"NITRO-25","USDOC/NOAA","TKN - Phenate, AutoAnalyzer"]
[null,null,null,null,null,null,null,null,null,"NITRO-3","USDOC/NOAA","Ammonia - AutoAnalyzer"]
[null,null,null,null,null,null,null,null,null,"NITRO-4","USDOC/NOAA","Ammonia - Colorimetric"]
[null,null,null,null,null,null,null,null,null,"NITRO-5","USDOC/NOAA","TKN - Block Digestor, Automated"]
[null,null,null,null,null,null,null,null,null,"NITRO-6","USDOC/NOAA","TKN - Colorimetric"]
[null,null,null,null,null,null,null,null,null,"NITRO-7","USDOC/NOAA","TKN - Spectrophotometric"]
[null,null,null,null,null,null,null,null,null,"NITRO-8","USDOC/NOAA","Nitrate-Nitrite in Water"]
[null,null,null,null,null,null,null,null,null,"NITRO-9","USDOC/NOAA","Nitrate plus Nitrite Nitrogen"]
[null,null,null,null,null,null,null,null,null,"NSSC 6A2E","MNPCA","Carbon in Soil"]
[null,null,null,null,null,null,null,null,null,"NSSC 6B4A","MNPCA","Nitrogen in Soil"]
[null,null,null,null,null,null,null,null,null,"NSSC 6R3C","MNPCA","Sulfur in Soil",47]
[null,null,null,null,null,null,null,null,null,"O-001-1","USEPA","Pentachlorophenol in Soil"]
[null,null,null,null,null,null,null,null,null,"O-002-1","USEPA","TPH in Soil by IR of Freon Extract"]
[null,null,null,null,null,null,null,null,null,"O-003-1","USEPA","TPH in Soil by GC/PID of Methanol Extract"]
[null,null,null,null,null,null,null,null,null,"O-004-1","USEPA","TPH in Soil by GC/FID of CH2Cl2 Extracts"]
[null,null,null,null,null,null,null,null,null,"O-005-1","USEPA","Phenols in Water and Soil by GC"]
[null,null,null,null,null,null,null,null,null,"O-006-1","USEPA","TPH by Headspace GC/PID"]
[null,null,null,null,null,null,null,null,null,"O-008-1","USEPA","Pentachlorophenol in Soil by GC/ECD"]
[null,null,null,null,null,null,null,null,null,"O-009-1","USEPA","TPH in Soil by GC/FID of CH2Cl2 Extracts"]
[null,null,null,null,null,null,null,null,null,"O-1126-95","USDOI/USGS","Pesticides in Water by C-18 Solid-Phase Extraction and GC-MS"]
[null,null,null,null,null,null,null,null,null,"O-1131-95","USDOI/USGS","Pesticides in Water by Solid Phase Extraction and High Performance Liquid Chromatography (HPLC)"]
[null,null,null,null,null,null,null,null,null,"O-1433-01","USDOI/USGS","Wastewater compounds in water by SPE and GC/MS"]
[null,null,null,null,null,null,null,null,null,"O-2080-08","USDOI/USGS","Pharmaceuticals in Water by SPE and HPLC-MS"]
[null,null,null,null,null,null,null,null,null,"O1105","USDOI/USGS","Dissolved Chlorophenoxy Acids in Water"]
[null,null,null,null,null,null,null,null,null,"O3100","USDOI/USGS","Total Organic Carbon in Water"]
[null,null,null,null,null,null,null,null,null,"O3104","USDOI/USGS","Organochlorine and -phosphorous in Water"]
[null,null,null,null,null,null,null,null,null,"O3105","USDOI/USGS","Total Chlorophenoxy Acids in Water"]
[null,null,null,null,null,null,null,null,null,"O3106","USDOI/USGS","Total Recoverable Triazines in Water"]
[null,null,null,null,null,null,null,null,null,"O3107","USDOI/USGS","Carbamate Pesticides in Water"]
[null,null,null,null,null,null,null,null,null,"O3108","USDOI/USGS","Extractable Oil and Grease in Water"]
[null,null,null,null,null,null,null,null,null,"O3109","USDOI/USGS","Light Fuel Oils in Water"]
[null,null,null,null,null,null,null,null,null,"O3110","USDOI/USGS","Total Recoverable Phenols in Water"]
[null,null,null,null,null,null,null,null,null,"O3111","USDOI/USGS","Methylene Blue Active Substance in Water"]
[null,null,null,null,null,null,null,null,null,"O3112","USDOI/USGS","TNT, RDX and Picric Acid in Water"]
[null,null,null,null,null,null,null,null,null,"O3113","USDOI/USGS","Polynuclear Aromatic Hydrocarbons"]
[null,null,null,null,null,null,null,null,null,"O3114","USDOI/USGS","Ethylene and Propane in Water"]
[null,null,null,null,null,null,null,null,null,"O3115","USDOI/USGS","Purgeable Organic Compounds in Water"]
[null,null,null,null,null,null,null,null,null,"O3117","USDOI/USGS","Acid Extractable Compounds in Water"]
[null,null,null,null,null,null,null,null,null,"O3118","USDOI/USGS","Base/Neutral Extractable Compounds"]
[null,null,null,null,null,null,null,null,null,"O5101","USDOI/USGS","Total Carbon in Bottom Material"]
[null,null,null,null,null,null,null,null,null,"O5104","USDOI/USGS","Organochlorine and -phosphorous in Solid"]
[null,null,null,null,null,null,null,null,null,"O5105","USDOI/USGS","Chlorophenoxy Acids in Bottom Material"]
[null,null,null,null,null,null,null,null,null,"O5108","USDOI/USGS","Extractable Oil and Grease"]
[null,null,null,null,null,null,null,null,null,"O7100","USDOI/USGS","Suspended Organic Carbon in Water"]
[null,null,null,null,null,null,null,null,null,"O7104","USDOI/USGS","Organochlorine and -phosphorous in Solid"]
[null,null,null,null,null,null,null,null,null,"O7105","USDOI/USGS","Chlorophenoxy Acids in Sediment"]
[null,null,null,null,null,null,null,null,null,"O9104","USDOI/USGS","Organochlorine Compounds in Fish Tissue"]
[null,null,null,null,null,null,null,null,null,"OA-001-1","USEPA","Field Use of Sentex Scentograph GC"]
[null,null,null,null,null,null,null,null,null,"OA-002-1","USEPA","VOCs by GC/MS of Cartridges/Cylinders"]
[null,null,null,null,null,null,null,null,null,"OA-003-1","USEPA","Field Survey with PID Vapor Detector"]
[null,null,null,null,null,null,null,null,null,"OA-004-1","USEPA","Field Use of Photovac Portable GC"]
[null,null,null,null,null,null,null,null,null,"OA-005-1","USEPA","Field Use of Photovac Portable GC"]
[null,null,null,null,null,null,null,null,null,"OA-006-1","USEPA","Photovac Portable GC for Soil/Water/Air"]
[null,null,null,null,null,null,null,null,null,"OG015R","USDOE/ASD","Volatile Organics in Radioactive Liquids"]
[null,null,null,null,null,null,null,null,null,"OG100R","USDOE/ASD","PCBs in Solid Radioactive Wastes"]
[null,null,null,null,null,null,null,null,null,"OH100R","USDOE/ASD","TCLP Acidic Semivolatiles Using HPLC"]
[null,null,null,null,null,null,null,null,null,"OHC","USEPA","Organics Analysis, Multi-Media, Hi-Conc"]
[null,null,null,null,null,null,null,null,null,"OIA-1677","USEPA","Available Cyanide by Flow Injection, Ligand Exchange, and Amperometry"]
[null,null,null,null,null,null,null,null,null,"OM500R","USDOE/ASD","Organic Acids in Mixed Hazard Waste by LC/MS"]
[null,null,null,null,null,null,null,null,null,"OM510R","USDOE/ASD","Chelators in Mixed Hazardous Waste by GC/MS"]
[null,null,null,null,null,null,null,null,null,"OP010R","USDOE/ASD","VOAs in High-Level Radioactive Wastes"]
[null,null,null,null,null,null,null,null,null,"OP020R","USDOE/ASD","VOA in Solid RMW by Ultrasonic Extract"]
[null,null,null,null,null,null,null,null,null,"OP040R","USDOE/ASD","ZHE Extraction for TCLP Volatiles"]
[null,null,null,null,null,null,null,null,null,"OP100R","USDOE/ASD","PCBs in Radioactive Wastes Using GC-ECD"]
[null,null,null,null,null,null,null,null,null,"OP130R","USDOE/ASD","TCLP for Semivolatiles and Pesticides"]
[null,null,null,null,null,null,null,null,null,"OS010","USDOE/ASD","Total Organic Chlorine in Oil"]
[null,null,null,null,null,null,null,null,null,"OS030","USDOE/ASD","Chlorinated VOCs in Water and Air"]
[null,null,null,null,null,null,null,null,null,"OS040(S)","USDOE/ASD","Volatile Organics in Soil"]
[null,null,null,null,null,null,null,null,null,"OS040(W)","USDOE/ASD","Volatile Organics in Water"]
[null,null,null,null,null,null,null,null,null,"OSW-A","USEPA","Metals in Incinerator Exhausts"]
[null,null,null,null,null,null,null,null,null,"OSW-B","USEPA","Hexavalent Chromium in Stack Emissions"]
[null,null,null,null,null,null,null,null,null,"P-001-1","USEPA","Chlorinated Pesticides in Soil"]
[null,null,null,null,null,null,null,null,null,"P-002-1","USEPA","Field Screen for Chlorinated Pesticides"]
[null,null,null,null,null,null,null,null,null,"P-003-1","USEPA","Chlorinated Pesticides in Water"]
[null,null,null,null,null,null,null,null,null,"P-004-1","USEPA","Field Screen for Chlorinated Pesticides"]
[null,null,null,null,null,null,null,null,null,"P-005-1","USEPA","Organophosphorus Pesticides in Water"]
[null,null,null,null,null,null,null,null,null,"P-006-1","USEPA","Organophosphorus Pesticides in Soil"]
[null,null,null,null,null,null,null,null,null,"P-007-1","USEPA","Phenoxyherbicides in Soil/Sediment"]
[null,null,null,null,null,null,null,null,null,"P-008-1","USEPA","Phenoxyherbicides in Water"]
[null,null,null,null,null,null,null,null,null,"P-009-1","USEPA","CLP Pesticide/PCB in Water/Soil by GC/EC"]
[null,null,null,null,null,null,null,null,null,"P-01","USEPA","Phosphorus-32 in Fish Muscle"]
[null,null,null,null,null,null,null,null,null,"P-011-1","USEPA","Chlorinated Pesticides in Soil by GC/ECD"]
[null,null,null,null,null,null,null,null,null,"P-02","USEPA","Stable Phosphorous in Biological Samples"]
[null,null,null,null,null,null,null,null,null,"P0002561","MNPCA","Perfluoronated compounds (PFCs) by Exygen Protocol P0002561",4057]
[null,null,null,null,null,null,null,null,null,"PAH-001(S)","USEPA","Field Analysis of PAHs by GC/FID"]
[null,null,null,null,null,null,null,null,null,"PAH-001(W)","USEPA","Field Analysis of PAHs by GC/FID"]
[null,null,null,null,null,null,null,null,null,"PAH-002","USEPA","PAHs in Water by GC/FID"]
[null,null,null,null,null,null,null,null,null,"PAH-005","USEPA","Polycyclic Aromatic Hydrocarbons in Soil"]
[null,null,null,null,null,null,null,null,null,"PAH-006","USEPA","Polycyclic Aromatic Hydrocarbons in Water"]
[null,null,null,null,null,null,null,null,null,"PAH-008","USEPA","Total PAHs in Soil"]
[null,null,null,null,null,null,null,null,null,"PAH-009","USEPA","Analysis of PAHs by GC/FID and GC/PID"]
[null,null,null,null,null,null,null,null,null,"PAH-011","USEPA","Analysis of PAHs in Soil by GC/FID"]
[null,null,null,null,null,null,null,null,null,"PAH-012","USEPA","Analysis of PAHs in Soil by HPLC"]
[null,null,null,null,null,null,null,null,null,"PART_1","USEPA","Trihalomethanes in Water by Purge and Trap"]
[null,null,null,null,null,null,null,null,null,"PART_2","USEPA","Trihalomethanes in Drinking Water by GC"]
[null,null,null,null,null,null,null,null,null,"PART_3","USEPA","Maximum Total Trihalomethane Potential"]
[null,null,null,null,null,null,null,null,null,"PB-01","USEPA","Lead-210 in Water and Solid Samples"]
[null,null,null,null,null,null,null,null,null,"PB-01(A)","USDOE/EML","Lead-210 in Air filters"]
[null,null,null,null,null,null,null,null,null,"PB-01(B)","USDOE/EML","Lead-210 in Bone"]
[null,null,null,null,null,null,null,null,null,"PB-01(F)","USDOE/EML","Lead-210 in Food"]
[null,null,null,null,null,null,null,null,null,"PB-01(W)","USDOE/EML","Lead-210 in Water"]
[null,null,null,null,null,null,null,null,null,"PCB-002","USEPA","Field Screening of PCBs in Soil"]
[null,null,null,null,null,null,null,null,null,"PCB-003","USEPA","PCBs in Water"]
[null,null,null,null,null,null,null,null,null,"PCB-004","USEPA","Screening for PCBs in Water"]
[null,null,null,null,null,null,null,null,null,"PCB-005","USEPA","PCBs and Pesticide in Soil"]
[null,null,null,null,null,null,null,null,null,"PCB-006","USEPA","PCBs in Soil as Decachlorobiphenyl by GC"]
[null,null,null,null,null,null,null,null,null,"PCB-008","USEPA","Field Analysis of PCBs in Soil"]
[null,null,null,null,null,null,null,null,null,"PCB-009","USEPA","PCBs in Soil and Oil"]
[null,null,null,null,null,null,null,null,null,"PESTICIDE","MNPCA","Pesticide analysis by unspecified method",178]
[null,null,null,null,null,null,null,null,null,"PHOS-1","USDOC/NOAA","Phosphorus - Colorimetric, Automated"]
[null,null,null,null,null,null,null,null,null,"PHOS-2","USDOC/NOAA","Phosphorus - Ascorbic Acid"]
[null,null,null,null,null,null,null,null,null,"PHOS-3","USDOC/NOAA","Phosphorus - AutoAnalyzer"]
[null,null,null,null,null,null,null,null,null,"PHOS-4","USDOC/NOAA","Phosphorus - Colorimetric"]
[null,null,null,null,null,null,null,null,null,"PHOS-5","USDOC/NOAA","Phosphorus - AutoAnalyzer"]
[null,null,null,null,null,null,null,null,null,"PM-01","USEPA","Promethium-147 in Aqueous and Urine Samples"]
[null,null,null,null,null,null,null,null,null,"PM-02","USEPA","Promethium-147 in Feces Ash"]
[null,null,null,null,null,null,null,null,null,"PMD-ACA","USEPA","Acifluorfen by HPLC"]
[null,null,null,null,null,null,null,null,null,"PMD-ACG(GC)","USEPA","Acephate, Dicofol and Triforine by GC"]
[null,null,null,null,null,null,null,null,null,"PMD-ACG(LC1)","USEPA","Dicofol by HPLC"]
[null,null,null,null,null,null,null,null,null,"PMD-ACG(LC2)","USEPA","Triforine by HPLC"]
[null,null,null,null,null,null,null,null,null,"PMD-AKY(GC1)","USEPA","Alachlor by GC"]
[null,null,null,null,null,null,null,null,null,"PMD-AKY(GC2)","USEPA","Alachlor by GC"]
[null,null,null,null,null,null,null,null,null,"PMD-AM-S","USEPA","AMS by Sodium Nitrate Titration"]
[null,null,null,null,null,null,null,null,null,"PMD-AMN","USEPA","4-Aminopyridine by UV Spectroscopy"]
[null,null,null,null,null,null,null,null,null,"PMD-AMT","USEPA","Amitrole by Visible Spectroscopy"]
[null,null,null,null,null,null,null,null,null,"PMD-ANF(GC)","USEPA","Anilazine by GC"]
[null,null,null,null,null,null,null,null,null,"PMD-ANF(IR)","USEPA","Anilazine by IR Spectroscopy"]
[null,null,null,null,null,null,null,null,null,"PMD-ANT","USEPA","Antimycin A by UV Spectroscopy"]
[null,null,null,null,null,null,null,null,null,"PMD-ANY","USEPA","ANTU by UV Spectroscopy"]
[null,null,null,null,null,null,null,null,null,"PMD-AS(ATE)","USEPA","Arsenate by Titration"]
[null,null,null,null,null,null,null,null,null,"PMD-AS(ITE)","USEPA","Sodium Arsenite by Titration"]
[null,null,null,null,null,null,null,null,null,"PMD-AS(TIT1)","USEPA","Total Arsenic by Titration"]
[null,null,null,null,null,null,null,null,null,"PMD-AS(TIT2)","USEPA","Total Arsenic by Titration"]
[null,null,null,null,null,null,null,null,null,"PMD-AS(TIT3)","USEPA","Inorganic Arsenic Compounds by Titration"]
[null,null,null,null,null,null,null,null,null,"PMD-AS(TIT4)","USEPA","Organic Arsenic by Digestion and Titration"]
[null,null,null,null,null,null,null,null,null,"PMD-AS(TIT5)","USEPA","Arsenic in Organic Compounds by Titration"]
[null,null,null,null,null,null,null,null,null,"PMD-ASU","USEPA","Asulam by UV Spectroscopy"]
[null,null,null,null,null,null,null,null,null,"PMD-ATR","USEPA","Atrazine and Metolachlor by GC/FID"]
[null,null,null,null,null,null,null,null,null,"PMD-ATR(GC1)","USEPA","Atrazine by GC"]
[null,null,null,null,null,null,null,null,null,"PMD-ATR(GC2)","USEPA","Atrazine and Metolachlor by GC"]
[null,null,null,null,null,null,null,null,null,"PMD-ATR(IR)","USEPA","Atrazine by IR Spectroscopy"]
[null,null,null,null,null,null,null,null,null,"PMD-ATR(LC)","USEPA","Atrazine by HPLC"]
[null,null,null,null,null,null,null,null,null,"PMD-AZN","USEPA","Azinphos-Methyl by IR Spectroscopy"]
[null,null,null,null,null,null,null,null,null,"PMD-BDX","USEPA","Benalaxyl by GC"]
[null,null,null,null,null,null,null,null,null,"PMD-BEB(IR)","USEPA","Bendiocarb by IR Spectroscopy"]
[null,null,null,null,null,null,null,null,null,"PMD-BEB(LC)","USEPA","Bendiocarb by HPLC"]
[null,null,null,null,null,null,null,null,null,"PMD-BEB(UV)","USEPA","Bendiocarb by UV Spectroscopy"]
[null,null,null,null,null,null,null,null,null,"PMD-BEE(GC)","USEPA","Benefin by GC"]
[null,null,null,null,null,null,null,null,null,"PMD-BEE(IR)","USEPA","Benefin by IR Spectroscopy"]
[null,null,null,null,null,null,null,null,null,"PMD-BEH(IR)","USEPA","Benomyl by IR Spectroscopy"]
[null,null,null,null,null,null,null,null,null,"PMD-BEH(UV)","USEPA","Benomyl by UV Spectroscopy"]
[null,null,null,null,null,null,null,null,null,"PMD-BEL(IR)","USEPA","Bensulide by IR Spectroscopy"]
[null,null,null,null,null,null,null,null,null,"PMD-BEL(LC)","USEPA","Bensulide by HPLC"]
[null,null,null,null,null,null,null,null,null,"PMD-BEN(LC)","USEPA","Bentazon by HPLC"]
[null,null,null,null,null,null,null,null,null,"PMD-BEN(UV)","USEPA","Bentazon by UV Spectroscopy"]
[null,null,null,null,null,null,null,null,null,"PMD-BEO","USEPA","Thiobencarb by GC/FID"]
[null,null,null,null,null,null,null,null,null,"PMD-BIL","USEPA","Bitertanol by GC"]
[null,null,null,null,null,null,null,null,null,"PMD-BIN","USEPA","Binapacryl by IR Spectroscopy"]
[null,null,null,null,null,null,null,null,null,"PMD-BOR","USEPA","Boron Compounds by Ignition and Titration"]
[null,null,null,null,null,null,null,null,null,"PMD-BRA","USEPA","Bromadiolone by HPLC"]
[null,null,null,null,null,null,null,null,null,"PMD-BRO","USEPA","Bromacil by GC"]
[null,null,null,null,null,null,null,null,null,"PMD-BYA(GC1)","USEPA","Butylate by GC"]
[null,null,null,null,null,null,null,null,null,"PMD-BYA(GC2)","USEPA","Butylate by GC"]
[null,null,null,null,null,null,null,null,null,"PMD-BYA(LC1)","USEPA","Butylate by HPLC"]
[null,null,null,null,null,null,null,null,null,"PMD-BYA(LC2)","USEPA","Butylate by HPLC"]
[null,null,null,null,null,null,null,null,null,"PMD-CAO","USEPA","Captafol by IR Spectroscopy"]
[null,null,null,null,null,null,null,null,null,"PMD-CAP(GC1)","USEPA","Captan by GC"]
[null,null,null,null,null,null,null,null,null,"PMD-CAP(GC2)","USEPA","Captan, Carbaryl and Naled by GC"]
[null,null,null,null,null,null,null,null,null,"PMD-CAP(IR)","USEPA","Captan by IR Spectroscopy"]
[null,null,null,null,null,null,null,null,null,"PMD-CAP(LC)","USEPA","Captan by HPLC"]
[null,null,null,null,null,null,null,null,null,"PMD-CAV(LC)","USEPA","Carbaryl by HPLC"]
[null,null,null,null,null,null,null,null,null,"PMD-CAV(UV)","USEPA","Carbaryl by UV Spectroscopy"]
[null,null,null,null,null,null,null,null,null,"PMD-CBF","USEPA","Carbofuran by IR Spectroscopy"]
[null,null,null,null,null,null,null,null,null,"PMD-CBX(IR)","USEPA","Carboxin by IR Spectroscopy"]
[null,null,null,null,null,null,null,null,null,"PMD-CBX(UV)","USEPA","Carboxin by UV Spectroscopy"]
[null,null,null,null,null,null,null,null,null,"PMD-CD","USEPA","Cadmium by AAS"]
[null,null,null,null,null,null,null,null,null,"PMD-CGV","USEPA","Chlorbromuron by GC"]
[null,null,null,null,null,null,null,null,null,"PMD-CHP","USEPA","Chlorflurecol-Methyl Ester by UV Spec."]
[null,null,null,null,null,null,null,null,null,"PMD-CIB","USEPA","Chlorobenzilate by GC"]
[null,null,null,null,null,null,null,null,null,"PMD-CJL","USEPA","Chloroneb by UV Spectroscopy"]
[null,null,null,null,null,null,null,null,null,"PMD-CJO(LC)","USEPA","Chlorophacinone by HPLC"]
[null,null,null,null,null,null,null,null,null,"PMD-CJO(UV1)","USEPA","Chlorophacinone by UV Spectroscopy"]
[null,null,null,null,null,null,null,null,null,"PMD-CJO(UV2)","USEPA","Chlorophacinone by UV Spectroscopy"]
[null,null,null,null,null,null,null,null,null,"PMD-CKA","USEPA","Chloropicrin and 1,3-DCPs by GC"]
[null,null,null,null,null,null,null,null,null,"PMD-CKL(GC)","USEPA","Chlorothalonil by GC"]
[null,null,null,null,null,null,null,null,null,"PMD-CKL(IR)","USEPA","Chlorothalonil by IR Spectroscopy"]
[null,null,null,null,null,null,null,null,null,"PMD-CKR(GC)","USEPA","Chloroxuron by GC"]
[null,null,null,null,null,null,null,null,null,"PMD-CKR(IR)","USEPA","Chloroxuron in Dust by IR Spectroscopy"]
[null,null,null,null,null,null,null,null,null,"PMD-CLD(GC)","USEPA","Chlorpyrifos by GC"]
[null,null,null,null,null,null,null,null,null,"PMD-CLD(IR)","USEPA","Chlorpyrifos by IR Spectroscopy"]
[null,null,null,null,null,null,null,null,null,"PMD-CLD(UV)","USEPA","Chlorpyrifos by UV Spectroscopy"]
[null,null,null,null,null,null,null,null,null,"PMD-CLV","USEPA","Chlorsulfuron by HPLC"]
[null,null,null,null,null,null,null,null,null,"PMD-CMN","USEPA","Cinmethalin by GC"]
[null,null,null,null,null,null,null,null,null,"PMD-COQ","USEPA","Coumafuryl by UV Spectroscopy"]
[null,null,null,null,null,null,null,null,null,"PMD-COR(GC)","USEPA","Coumaphos by GC"]
[null,null,null,null,null,null,null,null,null,"PMD-COR(IR)","USEPA","Coumaphos by IR Spectroscopy"]
[null,null,null,null,null,null,null,null,null,"PMD-COR(LC)","USEPA","Coumaphos by HPLC"]
[null,null,null,null,null,null,null,null,null,"PMD-CPH","USEPA","Chlorophenoxy Herbicide Technical Data"]
[null,null,null,null,null,null,null,null,null,"PMD-CRO","USEPA","Crotoxyphos by GC"]
[null,null,null,null,null,null,null,null,null,"PMD-CU-S","USEPA","Cupric Ion by Ion Chromatography"]
[null,null,null,null,null,null,null,null,null,"PMD-CUC","USEPA","Cyanazine by IR Spectroscopy"]
[null,null,null,null,null,null,null,null,null,"PMD-CYZ(GC1)","USEPA","Cyromazine in Trigard 75W by GC"]
[null,null,null,null,null,null,null,null,null,"PMD-CYZ(GC2)","USEPA","Cyromazine in Armor by GC"]
[null,null,null,null,null,null,null,null,null,"PMD-CYZ(GC3)","USEPA","Cyromazine in Armor Premix by GC"]
[null,null,null,null,null,null,null,null,null,"PMD-DAL","USEPA","Dalapon by IR Spectroscopy"]
[null,null,null,null,null,null,null,null,null,"PMD-DCA(GC1)","USEPA","2,4-D and 2,4,5-T Esters by GC"]
[null,null,null,null,null,null,null,null,null,"PMD-DCA(GC2)","USEPA","2,4-D and Silvex by Derivatization GC"]
[null,null,null,null,null,null,null,null,null,"PMD-DEE(GC)","USEPA","DEET by GC"]
[null,null,null,null,null,null,null,null,null,"PMD-DEE(LC)","USEPA","DEET by HPLC"]
[null,null,null,null,null,null,null,null,null,"PMD-DFN","USEPA","Diazinon by HPLC"]
[null,null,null,null,null,null,null,null,null,"PMD-DGL","USEPA","Dibutyl Succinate by Titration"]
[null,null,null,null,null,null,null,null,null,"PMD-DGV","USEPA","Dichlone by IR Spectroscopy"]
[null,null,null,null,null,null,null,null,null,"PMD-DIC","USEPA","DICA by HPLC"]
[null,null,null,null,null,null,null,null,null,"PMD-DJA","USEPA","Dichloran in Dusts by IR Spectroscopy"]
[null,null,null,null,null,null,null,null,null,"PMD-DJG","USEPA","Dicrotophos by IR Spectroscopy"]
[null,null,null,null,null,null,null,null,null,"PMD-DME","USEPA","Dimethoate by GC"]
[null,null,null,null,null,null,null,null,null,"PMD-DMF","USEPA","Dioxins in 2,4-D and 2,4,5-T by GC/MS"]
[null,null,null,null,null,null,null,null,null,"PMD-DNE","USEPA","Dimethyl Phthalate by GC"]
[null,null,null,null,null,null,null,null,null,"PMD-DNR","USEPA","Dinitramine by GC"]
[null,null,null,null,null,null,null,null,null,"PMD-DNZ(IR)","USEPA","Dinocap by IR Spectroscopy"]
[null,null,null,null,null,null,null,null,null,"PMD-DNZ(TITR)","USEPA","Dinocap by TKN and Titration"]
[null,null,null,null,null,null,null,null,null,"PMD-DOG","USEPA","Dinoseb by IR Spectroscopy"]
[null,null,null,null,null,null,null,null,null,"PMD-DOZ(LC1)","USEPA","Diphacinone by HPLC"]
[null,null,null,null,null,null,null,null,null,"PMD-DOZ(LC2)","USEPA","Diphacinone by HPLC"]
[null,null,null,null,null,null,null,null,null,"PMD-DOZ(UV)","USEPA","Diphacinone in Baits by UV Spectroscopy"]
[null,null,null,null,null,null,null,null,null,"PMD-DPA(GC)","USEPA","Diphenamid by GC"]
[null,null,null,null,null,null,null,null,null,"PMD-DPA(IR)","USEPA","Diphenamid by IR Spectroscopy"]
[null,null,null,null,null,null,null,null,null,"PMD-DPF","USEPA","Diphenylamine by GC"]
[null,null,null,null,null,null,null,null,null,"PMD-DQT","USEPA","Diquat (Dibromide) by HPLC"]
[null,null,null,null,null,null,null,null,null,"PMD-DSN(GC)","USEPA","Disulfoton and Fensulfothion by GC/FID"]
[null,null,null,null,null,null,null,null,null,"PMD-DSN(IR)","USEPA","Disulfoton by IR Spectroscopy"]
[null,null,null,null,null,null,null,null,null,"PMD-DUR(IR)","USEPA","Diuron by IR Spectroscopy"]
[null,null,null,null,null,null,null,null,null,"PMD-DUR(LC)","USEPA","Diuron by HPLC"]
[null,null,null,null,null,null,null,null,null,"PMD-EDF","USEPA","Edifenphos by GC"]
[null,null,null,null,null,null,null,null,null,"PMD-ENA","USEPA","Endosulfan by IR Spectroscopy"]
[null,null,null,null,null,null,null,null,null,"PMD-ENB(GC)","USEPA","Endothall by GC"]
[null,null,null,null,null,null,null,null,null,"PMD-ENB(TITR)","USEPA","Endothall by Titration"]
[null,null,null,null,null,null,null,null,null,"PMD-EPI","USEPA","Epichlorohydrin by GC"]
[null,null,null,null,null,null,null,null,null,"PMD-EPT","USEPA","EPTC by HPLC"]
[null,null,null,null,null,null,null,null,null,"PMD-ETF","USEPA","Ethofumesate by GC"]
[null,null,null,null,null,null,null,null,null,"PMD-ETI(GC)","USEPA","Ethion by GC"]
[null,null,null,null,null,null,null,null,null,"PMD-ETI(IR)","USEPA","Ethion by IR Spectroscopy"]
[null,null,null,null,null,null,null,null,null,"PMD-ETN(GC)","USEPA","Ethoprop by GC"]
[null,null,null,null,null,null,null,null,null,"PMD-ETN(IR)","USEPA","Ethoprop by IR Spectroscopy"]
[null,null,null,null,null,null,null,null,null,"PMD-EUX(GC)","USEPA","Ethyl Hexanediol by GC/TCD"]
[null,null,null,null,null,null,null,null,null,"PMD-EUX(TITR)","USEPA","Ethyl Hexanediol by Acetylation & Titration"]
[null,null,null,null,null,null,null,null,null,"PMD-EZN","USEPA","Ethiozin by HPLC"]
[null,null,null,null,null,null,null,null,null,"PMD-FBP","USEPA","Fenamiphos by GC/FID"]
[null,null,null,null,null,null,null,null,null,"PMD-FBR","USEPA","Fenarimol by GC/FID"]
[null,null,null,null,null,null,null,null,null,"PMD-FCL(GC)","USEPA","Ronnel by GC/FID"]
[null,null,null,null,null,null,null,null,null,"PMD-FCL(IR)","USEPA","Ronnel by IR Spectroscopy"]
[null,null,null,null,null,null,null,null,null,"PMD-FKN","USEPA","Fluchloralin by GC/TCD"]
[null,null,null,null,null,null,null,null,null,"PMD-FLM","USEPA","Atrazine and Metolachlor by GC"]
[null,null,null,null,null,null,null,null,null,"PMD-FLM(IR)","USEPA","Fluometuron by IR Spectroscopy"]
[null,null,null,null,null,null,null,null,null,"PMD-FLM(UV)","USEPA","Fluometuron by UV Spectroscopy"]
[null,null,null,null,null,null,null,null,null,"PMD-FOL","USEPA","Folpet by IR Spectroscopy"]
[null,null,null,null,null,null,null,null,null,"PMD-FON","USEPA","Fonofos by IR Spectroscopy"]
[null,null,null,null,null,null,null,null,null,"PMD-GLP","USEPA","Glyphosate by HPLC"]
[null,null,null,null,null,null,null,null,null,"PMD-HXE","USEPA","Hexachlorophene by HPLC"]
[null,null,null,null,null,null,null,null,null,"PMD-HXO(GC)","USEPA","Hexazinone by GC/TCD"]
[null,null,null,null,null,null,null,null,null,"PMD-HXO(LC)","USEPA","Hexazinone by HPLC"]
[null,null,null,null,null,null,null,null,null,"PMD-INB","USEPA","Indolebutyric Acid by UV Spectroscopy"]
[null,null,null,null,null,null,null,null,null,"PMD-KAR(IR)","USEPA","Karbutilate by IR Spectroscopy"]
[null,null,null,null,null,null,null,null,null,"PMD-KAR(LC)","USEPA","Karbutilate by HPLC"]
[null,null,null,null,null,null,null,null,null,"PMD-LIN","USEPA","Lindane by IR Spectroscopy"]
[null,null,null,null,null,null,null,null,null,"PMD-LIU(IR)","USEPA","Linuron by IR Spectroscopy"]
[null,null,null,null,null,null,null,null,null,"PMD-LIU(LC)","USEPA","Linuron by HPLC"]
[null,null,null,null,null,null,null,null,null,"PMD-LIU(UV)","USEPA","Linuron by UV Spectroscopy"]
[null,null,null,null,null,null,null,null,null,"PMD-LMG","USEPA","Lemongrass Oil by GC/TCD"]
[null,null,null,null,null,null,null,null,null,"PMD-LTF(LC1)","USEPA","Lactofen by HPLC"]
[null,null,null,null,null,null,null,null,null,"PMD-LTF(LC2)","USEPA","Lactofen by HPLC"]
[null,null,null,null,null,null,null,null,null,"PMD-MAL(IR)","USEPA","Malathion by IR Spectroscopy"]
[null,null,null,null,null,null,null,null,null,"PMD-MAL(LC)","USEPA","Malathion by HPLC"]
[null,null,null,null,null,null,null,null,null,"PMD-MAU(GC1)","USEPA","Ethylenethiourea by GC/TCD"]
[null,null,null,null,null,null,null,null,null,"PMD-MAU(GC2)","USEPA","Ethylenethiourea by GC/FID"]
[null,null,null,null,null,null,null,null,null,"PMD-MBL","USEPA","Myclobutanil by GC/FID"]
[null,null,null,null,null,null,null,null,null,"PMD-MBT(TITR)","USEPA","2-Mercaptobenzothiazole by Titration"]
[null,null,null,null,null,null,null,null,null,"PMD-MBT(UV)","USEPA","2-Mercaptobenzothiazole by UV Spectroscopy"]
[null,null,null,null,null,null,null,null,null,"PMD-MDZ","USEPA","Merphos by Internal Standard GC"]
[null,null,null,null,null,null,null,null,null,"PMD-MEA(GC)","USEPA","Metaldehyde by GC/TCD"]
[null,null,null,null,null,null,null,null,null,"PMD-MEA(IR)","USEPA","Metaldehyde by IR Spectroscopy"]
[null,null,null,null,null,null,null,null,null,"PMD-MEL","USEPA","Methidathion by GC/FID"]
[null,null,null,null,null,null,null,null,null,"PMD-MEM","USEPA","Methiocarb by IR Spectroscopy"]
[null,null,null,null,null,null,null,null,null,"PMD-MER","USEPA","Methomyl by HPLC"]
[null,null,null,null,null,null,null,null,null,"PMD-MET","USEPA","Methoprene by Internal Standard GC"]
[null,null,null,null,null,null,null,null,null,"PMD-MEY(GC)","USEPA","Methoxychlor by GC/FID"]
[null,null,null,null,null,null,null,null,null,"PMD-MEY(IR)","USEPA","Methoxychlor by IR Spectroscopy"]
[null,null,null,null,null,null,null,null,null,"PMD-MEY(LC)","USEPA","Methoxychlor by HPLC"]
[null,null,null,null,null,null,null,null,null,"PMD-MFX","USEPA","Metalaxyl by Internal Standard GC"]
[null,null,null,null,null,null,null,null,null,"PMD-MGC","USEPA","Methyl Nonyl Ketone (MNK) by GC/TCD"]
[null,null,null,null,null,null,null,null,null,"PMD-MGU(GC)","USEPA","Metobromuron by GC/TCD"]
[null,null,null,null,null,null,null,null,null,"PMD-MGU(IR)","USEPA","Metobromuron by IR Spectroscopy"]
[null,null,null,null,null,null,null,null,null,"PMD-MHX","USEPA","Mexacarbate by GC/TCD"]
[null,null,null,null,null,null,null,null,null,"PMD-MHY(LC)","USEPA","Maleic Hydrazide (MH) by HPLC"]
[null,null,null,null,null,null,null,null,null,"PMD-MHY(UV)","USEPA","Maleic Hydrazide by UV Spectroscopy"]
[null,null,null,null,null,null,null,null,null,"PMD-MOK(GC)","USEPA","Monocrotophos by GC/FID"]
[null,null,null,null,null,null,null,null,null,"PMD-MOK(IR)","USEPA","Monocrotophos by IR Spectroscopy"]
[null,null,null,null,null,null,null,null,null,"PMD-MON(IR)","USEPA","Monuron by IR Spectroscopy"]
[null,null,null,null,null,null,null,null,null,"PMD-MON(TITR)","USEPA","Monuron by Hydrolysis and Titration"]
[null,null,null,null,null,null,null,null,null,"PMD-MON(UV)","USEPA","Monuron by UV Spectroscopy"]
[null,null,null,null,null,null,null,null,null,"PMD-NA-D","USEPA","Sodium Chlorate and Metaborate by Titration"]
[null,null,null,null,null,null,null,null,null,"PMD-NA-H","USEPA","Sodium Fluoride by Ion Chromatography"]
[null,null,null,null,null,null,null,null,null,"PMD-NAP","USEPA","Naphthaleneacetic Acid by HPLC"]
[null,null,null,null,null,null,null,null,null,"PMD-NBL","USEPA","Naptalam by UV Spectroscopy"]
[null,null,null,null,null,null,null,null,null,"PMD-NCS","USEPA","Nicosulfuron by HPLC"]
[null,null,null,null,null,null,null,null,null,"PMD-NEB(IR)","USEPA","Neburon by IR Spectroscopy"]
[null,null,null,null,null,null,null,null,null,"PMD-NEB(UV)","USEPA","Neburon by UV Spectroscopy"]
[null,null,null,null,null,null,null,null,null,"PMD-NIC","USEPA","Nicotine by HPLC"]
[null,null,null,null,null,null,null,null,null,"PMD-NOB","USEPA","Norbormide by UV Spectroscopy"]
[null,null,null,null,null,null,null,null,null,"PMD-NTP(TIT1)","USEPA","Nitrophenols by Titration"]
[null,null,null,null,null,null,null,null,null,"PMD-NTP(TIT2)","USEPA","Nitrophenols by Titration"]
[null,null,null,null,null,null,null,null,null,"PMD-ORY","USEPA","Oryazlin by UV Spectroscopy"]
[null,null,null,null,null,null,null,null,null,"PMD-OVO","USEPA","Ovex by IR Spectroscopy"]
[null,null,null,null,null,null,null,null,null,"PMD-OXB","USEPA","Oxamyl by HPLC"]
[null,null,null,null,null,null,null,null,null,"PMD-P-HS","USEPA","Phosphorus by Digestion and Gravimetry"]
[null,null,null,null,null,null,null,null,null,"PMD-PAD(GC)","USEPA","p-Dichlorobenzene by GC"]
[null,null,null,null,null,null,null,null,null,"PMD-PAD(IR)","USEPA","p-Dichlorobenzene by IR Spectroscopy"]
[null,null,null,null,null,null,null,null,null,"PMD-PAP","USEPA","Paraquat by HPLC"]
[null,null,null,null,null,null,null,null,null,"PMD-PAR(GC)","USEPA","Parathion in Carbaryl by GC/FID"]
[null,null,null,null,null,null,null,null,null,"PMD-PAR(LC)","USEPA","Parathion by HPLC"]
[null,null,null,null,null,null,null,null,null,"PMD-PBS","USEPA","Polybrominated Salicylanilides by UV"]
[null,null,null,null,null,null,null,null,null,"PMD-PCP(GC)","USEPA","Pentachlorophenol by GC/FID"]
[null,null,null,null,null,null,null,null,null,"PMD-PCP(LC)","USEPA","Pentachlorophenol by HPLC"]
[null,null,null,null,null,null,null,null,null,"PMD-PFH(GC)","USEPA","Phenols and Chlorophenols by GC/TCD"]
[null,null,null,null,null,null,null,null,null,"PMD-PFH(TD)","USEPA","Phenols and Chlorophenols Technical Data"]
[null,null,null,null,null,null,null,null,null,"PMD-PFI","USEPA","Phenothiazine by IR Spectroscopy"]
[null,null,null,null,null,null,null,null,null,"PMD-PGM","USEPA","Phorate by IR Spectroscopy"]
[null,null,null,null,null,null,null,null,null,"PMD-PIE(LC)","USEPA","Pindone by HPLC"]
[null,null,null,null,null,null,null,null,null,"PMD-PIE(UV)","USEPA","Pindone by UV Spectroscopy"]
[null,null,null,null,null,null,null,null,null,"PMD-PIO","USEPA","Piperonyl Butoxide Qualitative Test"]
[null,null,null,null,null,null,null,null,null,"PMD-PIX","USEPA","Pendimethalin by GC/TCD"]
[null,null,null,null,null,null,null,null,null,"PMD-PJB","USEPA","Pirimicarb by UV Spectroscopy"]
[null,null,null,null,null,null,null,null,null,"PMD-PJE(GC)","USEPA","Pirimiphos-Ethyl by GC/FID"]
[null,null,null,null,null,null,null,null,null,"PMD-PJM","USEPA","Pirimiphos-Methyl by GC/FID"]
[null,null,null,null,null,null,null,null,null,"PMD-PNM(GC)","USEPA","Prochloraz by GC/FID"]
[null,null,null,null,null,null,null,null,null,"PMD-PNM(LC)","USEPA","Prochloraz by HPLC"]
[null,null,null,null,null,null,null,null,null,"PMD-POD","USEPA","Prometon and Simazine by GC/FID"]
[null,null,null,null,null,null,null,null,null,"PMD-POJ","USEPA","Propylene Glycol by GC/TCD"]
[null,null,null,null,null,null,null,null,null,"PMD-POT(GC)","USEPA","Propargite by GC/TCD"]
[null,null,null,null,null,null,null,null,null,"PMD-POT(IR)","USEPA","Propargite by IR Spectroscopy"]
[null,null,null,null,null,null,null,null,null,"PMD-PPD","USEPA","Propionic Acid by GC/FID"]
[null,null,null,null,null,null,null,null,null,"PMD-PYA(IR)","USEPA","Pyrazon by IR Spectroscopy"]
[null,null,null,null,null,null,null,null,null,"PMD-PYA(UV)","USEPA","Pyrazon by UV Spectroscopy"]
[null,null,null,null,null,null,null,null,null,"PMD-PYR(GC1)","USEPA","Pyrethrins by GC/FID"]
[null,null,null,null,null,null,null,null,null,"PMD-PYR(GC2)","USEPA","Pyrethrins, MGK-264 and PBTO by HPLC"]
[null,null,null,null,null,null,null,null,null,"PMD-PYR(LC1)","USEPA","Pyrethrins by HPLC"]
[null,null,null,null,null,null,null,null,null,"PMD-PYR(LC2)","USEPA","Pyrethrins, MGK-264 and PBTO by HPLC"]
[null,null,null,null,null,null,null,null,null,"PMD-PYR(TD)","USEPA","Pyrethrins, Technical Data"]
[null,null,null,null,null,null,null,null,null,"PMD-PYR(TITR)","USEPA","Pyrethrins I and II by Titration"]
[null,null,null,null,null,null,null,null,null,"PMD-QAC(COLR)","USEPA","Quaternary Ammonium Compounds Qualitative"]
[null,null,null,null,null,null,null,null,null,"PMD-QAC(TD)","USEPA","Quaternary Ammonium Compound Technical Data"]
[null,null,null,null,null,null,null,null,null,"PMD-QAC(TIT1)","USEPA","Quaternary Ammonium Compounds Ferricyanide"]
[null,null,null,null,null,null,null,null,null,"PMD-QAC(TIT2)","USEPA","Quaternary Ammonium Compounds, Epton Titr."]
[null,null,null,null,null,null,null,null,null,"PMD-QAC(TIT3)","USEPA","Quaternary Ammonium Cl and Br by Titration"]
[null,null,null,null,null,null,null,null,null,"PMD-RES(GC1)","USEPA","Resmethrin in Aerosols by GC"]
[null,null,null,null,null,null,null,null,null,"PMD-RES(GC2)","USEPA","Resmethrin by GC/FID"]
[null,null,null,null,null,null,null,null,null,"PMD-RES(IR)","USEPA","Resmethrin by IR Spectroscopy"]
[null,null,null,null,null,null,null,null,null,"PMD-RES(LC)","USEPA","Resmethrin in Aerosols by HPLC"]
[null,null,null,null,null,null,null,null,null,"PMD-ROT","USEPA","Rotenone by HPLC"]
[null,null,null,null,null,null,null,null,null,"PMD-S-UF(GRV1","USEPA","Sulfur by CS2 Extraction and Gravimetry"]
[null,null,null,null,null,null,null,null,null,"PMD-S-UF(GRV2","USEPA","Sulfur by Oxidation and Gravimetry"]
[null,null,null,null,null,null,null,null,null,"PMD-S-UF(GRV3","USEPA","Sulfur by CS2 Extraction and Gravimetry"]
[null,null,null,null,null,null,null,null,null,"PMD-S-UO","USEPA","Sulfur Dioxide by Titration"]
[null,null,null,null,null,null,null,null,null,"PMD-SAE","USEPA","Salicylanilide by UV Spectroscopy"]
[null,null,null,null,null,null,null,null,null,"PMD-SEU","USEPA","Siduron by UV Spectroscopy"]
[null,null,null,null,null,null,null,null,null,"PMD-SIM","USEPA","Simazine by UV Spectroscopy"]
[null,null,null,null,null,null,null,null,null,"PMD-SN","USEPA","Tin in Organotins by Titration"]
[null,null,null,null,null,null,null,null,null,"PMD-STM(UV)","USEPA","Streptomycin by UV Spectroscopy"]
[null,null,null,null,null,null,null,null,null,"PMD-STM(VIS)","USEPA","Streptomycin by Visible Spectroscopy"]
[null,null,null,null,null,null,null,null,null,"PMD-STY(GRAV)","USEPA","Strychnine by Acid Precipitation"]
[null,null,null,null,null,null,null,null,null,"PMD-STY(LC)","USEPA","Strychnine by HPLC"]
[null,null,null,null,null,null,null,null,null,"PMD-STY(UV)","USEPA","Strychnine by UV Spectroscopy"]
[null,null,null,null,null,null,null,null,null,"PMD-TBU","USEPA","Tribenuron Methyl Ester by HPLC"]
[null,null,null,null,null,null,null,null,null,"PMD-TDU","USEPA","Tebuthiuron by UV Spectroscopy"]
[null,null,null,null,null,null,null,null,null,"PMD-TDZ","USEPA","Technazene by GC/FID"]
[null,null,null,null,null,null,null,null,null,"PMD-TEI","USEPA","Terbacil by UV Spectroscopy"]
[null,null,null,null,null,null,null,null,null,"PMD-TFB","USEPA","Tetrachlorvinphos by GC/FID"]
[null,null,null,null,null,null,null,null,null,"PMD-TFK","USEPA","Tetramethrin by GC/FID"]
[null,null,null,null,null,null,null,null,null,"PMD-TFM","USEPA","Triflumizole by HPLC"]
[null,null,null,null,null,null,null,null,null,"PMD-TFU","USEPA","Lamprecid by UV Spectroscopy"]
[null,null,null,null,null,null,null,null,null,"PMD-TFZ","USEPA","Thiabendazole by GC/FID"]
[null,null,null,null,null,null,null,null,null,"PMD-THN","USEPA","Thiophanate by UV Spectroscopy"]
[null,null,null,null,null,null,null,null,null,"PMD-THO","USEPA","Thiophanate-Methyl by UV Spectroscopy"]
[null,null,null,null,null,null,null,null,null,"PMD-THR(IR)","USEPA","Thiram by IR Spectroscopy"]
[null,null,null,null,null,null,null,null,null,"PMD-THR(LC)","USEPA","Thiram by HPLC"]
[null,null,null,null,null,null,null,null,null,"PMD-THR(UV)","USEPA","Thiram by UV Spectroscopy"]
[null,null,null,null,null,null,null,null,null,"PMD-TLC(OTP)","USEPA","Organothiophosphates by TLC"]
[null,null,null,null,null,null,null,null,null,"PMD-TLC(TLC1)","USEPA","TLC Systems for Pesticide Identification"]
[null,null,null,null,null,null,null,null,null,"PMD-TLC(TLC2)","USEPA","TLC Systems for Pesticide Identification"]
[null,null,null,null,null,null,null,null,null,"PMD-TLL","USEPA","Triadimenol by GC/FID"]
[null,null,null,null,null,null,null,null,null,"PMD-TPR","USEPA","Triclopyr by HPLC"]
[null,null,null,null,null,null,null,null,null,"PMD-TQA","USEPA","Triallate by GC/FID"]
[null,null,null,null,null,null,null,null,null,"PMD-TQO","USEPA","bis(Tri-n-butyltin) Oxide by GC"]
[null,null,null,null,null,null,null,null,null,"PMD-TRC(GC1)","USEPA","Trichlorfon by GC/FID"]
[null,null,null,null,null,null,null,null,null,"PMD-TRC(GC2)","USEPA","Trichlorfon by Derivatization and GC/FID"]
[null,null,null,null,null,null,null,null,null,"PMD-TRC(IR)","USEPA","Trichlorfon by IR Spectroscopy"]
[null,null,null,null,null,null,null,null,null,"PMD-TRC(LC)","USEPA","Trichlorfon by HPLC"]
[null,null,null,null,null,null,null,null,null,"PMD-TSU","USEPA","Trifluralin by IR Spectroscopy"]
[null,null,null,null,null,null,null,null,null,"PMD-VAE","USEPA","PMP by UV Spectroscopy"]
[null,null,null,null,null,null,null,null,null,"PMD-VER(IR)","USEPA","Vernolate by IR Spectroscopy"]
[null,null,null,null,null,null,null,null,null,"PMD-VER(LC)","USEPA","Vernolate by HPLC"]
[null,null,null,null,null,null,null,null,null,"PMD-WAR","USEPA","Warfarin and Sulfaquinoxaline by HPLC"]
[null,null,null,null,null,null,null,null,null,"PMD-WAR(LC)","USEPA","Warfarin by HPLC"]
[null,null,null,null,null,null,null,null,null,"PMD-WAR(UV)","USEPA","Warfarin by UV Spectroscopy"]
[null,null,null,null,null,null,null,null,null,"PMD-WTY","USEPA","Triethylene Glycol by GC/TCD"]
[null,null,null,null,null,null,null,null,null,"PMD-ZIR","USEPA","Ziram by UV Spectroscopy"]
[null,null,null,null,null,null,null,null,null,"PMD-ZN-T(GC)","USEPA","Zinc Phosphide by GC/FPD"]
[null,null,null,null,null,null,null,null,null,"PMD-ZN-T(TITR","USEPA","Zinc Phosphide by Titration"]
[null,null,null,null,null,null,null,null,null,"PO_01","USDOE/EML","Polonium in Water and Urine"]
[null,null,null,null,null,null,null,null,null,"PO_02(S)","USDOE/EML","Polonium in Soil and Air Filters"]
[null,null,null,null,null,null,null,null,null,"PO_02(W)","USDOE/EML","Polonium in Water and Vegetation"]
[null,null,null,null,null,null,null,null,null,"PU-01","USEPA","Plutonium in Water and Ashed Samples"]
[null,null,null,null,null,null,null,null,null,"PU-02","USEPA","Plutonium-236 Tracer Solution"]
[null,null,null,null,null,null,null,null,null,"PU_01","USDOE/EML","Plutonium in Air Filters"]
[null,null,null,null,null,null,null,null,null,"PU_02","USDOE/EML","Plutonium in Soil Samples"]
[null,null,null,null,null,null,null,null,null,"PU_03","USDOE/EML","Plutonium in Soil Residue"]
[null,null,null,null,null,null,null,null,null,"PU_04","USDOE/EML","Plutonium in Tissue"]
[null,null,null,null,null,null,null,null,null,"PU_05","USDOE/EML","Plutonium in Tissue"]
[null,null,null,null,null,null,null,null,null,"PU_06","USDOE/EML","Plutonium in Urine"]
[null,null,null,null,null,null,null,null,null,"PU_07","USDOE/EML","Plutonium in Large Urine Samples"]
[null,null,null,null,null,null,null,null,null,"PU_08","USDOE/EML","Plutonium in Vegetation Samples"]
[null,null,null,null,null,null,null,null,null,"PU_09","USDOE/EML","Plutonium in Vegetation Samples"]
[null,null,null,null,null,null,null,null,null,"PU_10","USDOE/EML","Plutonium in Water"]
[null,null,null,null,null,null,null,null,null,"QC10-107-04-1-C","MNPCA","Nitrate and Nitrite Nitrogen, Total, by QuikChem method 10-107-04-1-C",156]
[null,null,null,null,null,null,null,null,null,"QC10-107-06-1-C","MNPCA","Ammonia Nitrogen, Total, by QuikChem method 10-107-06-1-C",156]
[null,null,null,null,null,null,null,null,null,"QC10-115-01-1-A","MNPCA","Orthophosphate, Total, by QuikChem method 10-115-01-1-A",7125]
[null,null,null,null,null,null,null,null,null,"QC10-115-01-1-C","MNPCA","Phosphorus, Total, by QuikChem method 10-115-01-1-C",185]
[null,null,null,null,null,null,null,null,null,"QC13-115-01-1-B","MNPCA","Phosphorous in Soil or Plants, Total, by QuikChem method 13-115-01-1-B"]
[null,null,null,null,null,null,null,null,null,"QC20-107-04-1B","MNPCA","Nitrogen, Total, by QuickChem method 20-107-04-1B",155]
[null,null,null,null,null,null,null,null,null,"R-001-1","USEPA","QC for Alpha/Beta Sample Analysis"]
[null,null,null,null,null,null,null,null,null,"R-002-1","USEPA","Gross Alpha/Beta Activity in Soil"]
[null,null,null,null,null,null,null,null,null,"R-004-1","USEPA","Gross Alpha/Beta Activity in Water"]
[null,null,null,null,null,null,null,null,null,"R-005-1","USEPA","Gross Alpha/Beta Activity in Water"]
[null,null,null,null,null,null,null,null,null,"R-006-1","USEPA","Gross Alpha and Beta Activity in Soil"]
[null,null,null,null,null,null,null,null,null,"R-007-1","USEPA","Gross Alpha/Beta Activity in Biota"]
[null,null,null,null,null,null,null,null,null,"R-008-1","USEPA","Gross Alpha/Beta Activity in Biota, Extended"]
[null,null,null,null,null,null,null,null,null,"R1110","USDOI/USGS","Cesium-137 and 134, Dissolved"]
[null,null,null,null,null,null,null,null,null,"R1130","USDOI/USGS","Lead-210"]
[null,null,null,null,null,null,null,null,null,"R1140","USDOI/USGS","Radium"]
[null,null,null,null,null,null,null,null,null,"R1141","USDOI/USGS","Radium-226"]
[null,null,null,null,null,null,null,null,null,"R1142","USDOI/USGS","Radium-228"]
[null,null,null,null,null,null,null,null,null,"R1150","USDOI/USGS","Radioruthenium"]
[null,null,null,null,null,null,null,null,null,"R1160","USDOI/USGS","Strontium-90"]
[null,null,null,null,null,null,null,null,null,"R1171","USDOI/USGS","Tritium - Liquid Scintillation, Denver Lab"]
[null,null,null,null,null,null,null,null,null,"R1172","USDOI/USGS","Tritium - Electrolytic, Denver Lab"]
[null,null,null,null,null,null,null,null,null,"R1173","USDOI/USGS","Tritium - Liquid Scintillation, Reston Lab"]
[null,null,null,null,null,null,null,null,null,"R1174","USDOI/USGS","Tritium - Electrolytic, Reston Lab"]
[null,null,null,null,null,null,null,null,null,"R1180","USDOI/USGS","Uranium - Fluorometric"]
[null,null,null,null,null,null,null,null,null,"R1181","USDOI/USGS","Uranium - Fluorometric, Extraction"]
[null,null,null,null,null,null,null,null,null,"R1182","USDOI/USGS","Uranium - Alpha Spectroscopy"]
[null,null,null,null,null,null,null,null,null,"RA-01","USEPA","Radium-226 in Solids"]
[null,null,null,null,null,null,null,null,null,"RA-02","USEPA","Radium-226 in Urine"]
[null,null,null,null,null,null,null,null,null,"RA-03","USEPA","Radium-226 in Water Samples"]
[null,null,null,null,null,null,null,null,null,"RA-04","USEPA","Radium-226 De-emanation Procedure"]
[null,null,null,null,null,null,null,null,null,"RA-05","USEPA","Radium-228 in Water Samples"]
[null,null,null,null,null,null,null,null,null,"RA-06","USDOE/EML","Radium-224"]
[null,null,null,null,null,null,null,null,null,"RA-07","USDOE/EML","Radium-226"]
[null,null,null,null,null,null,null,null,null,"RA010","USDOE/ASD","EIC for Gross Alpha Emission from Indoor"]
[null,null,null,null,null,null,null,null,null,"RA020","USDOE/ASD","Alpha Track Detectors for Alpha Emission"]
[null,null,null,null,null,null,null,null,null,"RI010","USDOE/ASD","Gamma-Ray Spectrometry"]
[null,null,null,null,null,null,null,null,null,"RI100","USDOE/ASD","Liquid Scintillation Instrumentation"]
[null,null,null,null,null,null,null,null,null,"RN-01","USDOE/EML","Radon-222 in Air and Breath Samples"]
[null,null,null,null,null,null,null,null,null,"RP230","USDOE/ASD","Iodine-129 in Aqueous Solutions"]
[null,null,null,null,null,null,null,null,null,"RP280","USDOE/ASD","Determination of Lead-210 in Water"]
[null,null,null,null,null,null,null,null,null,"RP300","USDOE/ASD","Ni-59 and Ni-63 in Aqueous Samples"]
[null,null,null,null,null,null,null,null,null,"RP330","USDOE/ASD","Niobium-93m and 94 in Aqueous Solutions"]
[null,null,null,null,null,null,null,null,null,"RP450","USDOE/ASD","Radium-226 in Aqueous Samples"]
[null,null,null,null,null,null,null,null,null,"RP501(1)","USDOE/ASD","Strontium in High Level Samples"]
[null,null,null,null,null,null,null,null,null,"RP510","USDOE/ASD","Strontium-90 in Dissolved Samples"]
[null,null,null,null,null,null,null,null,null,"RP520","USDOE/ASD","Strontium-90 in Soil, Water and Filter"]
[null,null,null,null,null,null,null,null,null,"RP530","USDOE/ASD","Selenium-79 in Aqueous Samples"]
[null,null,null,null,null,null,null,null,null,"RP550","USDOE/ASD","Technetium-99 Using Liquid Scintillation"]
[null,null,null,null,null,null,null,null,null,"RP570","USDOE/ASD","Thorium Isotopes by Radiochemistry"]
[null,null,null,null,null,null,null,null,null,"RP580","USDOE/ASD","Tritium by Distillation of Waters and Soils"]
[null,null,null,null,null,null,null,null,null,"RP710","USDOE/ASD","Gross Alpha and Beta Activity"]
[null,null,null,null,null,null,null,null,null,"RP720","USDOE/ASD","Gross Alpha, Beta and Tritium in Water"]
[null,null,null,null,null,null,null,null,null,"RP725","USDOE/ASD","Group Actinide Screening by Extraction"]
[null,null,null,null,null,null,null,null,null,"RP730","USDOE/ASD","Gross Gamma Screening for Matrices"]
[null,null,null,null,null,null,null,null,null,"RP735","USDOE/ASD","Determination of Total Fissile Content"]
[null,null,null,null,null,null,null,null,null,"RS100","USDOE/ASD","Radionuclides by Borehole Logging"]
[null,null,null,null,null,null,null,null,null,"RS551","USDOE/ASD","Isolation of Technetium-99 by Anion Exchange"]
[null,null,null,null,null,null,null,null,null,"RSK-175","MNPCA","Analysis for Dissolved Methane, Ethane, and Ethylene in Ground Water",4]
[null,null,null,null,null,null,null,null,null,"S-001-1","USEPA","Semivolatiles in Water by CS2 Extraction"]
[null,null,null,null,null,null,null,null,null,"S-002-1","USEPA","Field Screening Semivolatiles in Water"]
[null,null,null,null,null,null,null,null,null,"S-003-1","USEPA","Semivolatiles in Soil (MeCl2 Extraction)"]
[null,null,null,null,null,null,null,null,null,"S-004-1","USEPA","Field Screening Semivolatiles in Soil"]
[null,null,null,null,null,null,null,null,null,"SA010","USDOE/ASD","VOCs in Headspace Gas with Manifold"]
[null,null,null,null,null,null,null,null,null,"SA011","USDOE/ASD","VOCs in Headspace Gas using SUMMA Canisters"]
[null,null,null,null,null,null,null,null,null,"SE-01","USDOE/EML","Isotopic Uranium and Radium-226"]
[null,null,null,null,null,null,null,null,null,"SEMIVOLATILE","MNPCA","Semivolatile compound analysis by unspecified method",39]
[null,null,null,null,null,null,null,null,null,"SFSAS_1","USEPA","Total Organic Carbon in Sediment"]
[null,null,null,null,null,null,null,null,null,"SFSAS_10","USEPA","Phenols in Sediment"]
[null,null,null,null,null,null,null,null,null,"SFSAS_11","USEPA","Mercury in Sediment"]
[null,null,null,null,null,null,null,null,null,"SFSAS_12","USEPA","Mercury in Fish"]
[null,null,null,null,null,null,null,null,null,"SFSAS_13","USEPA","Metals in Sediment"]
[null,null,null,null,null,null,null,null,null,"SFSAS_14","USEPA","Metals in Fish"]
[null,null,null,null,null,null,null,null,null,"SFSAS_15","USEPA","Arsenic and Selenium in Sediment"]
[null,null,null,null,null,null,null,null,null,"SFSAS_16","USEPA","Organics in Sediment"]
[null,null,null,null,null,null,null,null,null,"SFSAS_17","USEPA","Ethylene Glycol in Water"]
[null,null,null,null,null,null,null,null,null,"SFSAS_18","USEPA","Total Organic Carbon in Water"]
[null,null,null,null,null,null,null,null,null,"SFSAS_19","USEPA","Total Organic Carbon in Sediment"]
[null,null,null,null,null,null,null,null,null,"SFSAS_2","USEPA","PCBs in Transformer Fluid and Waste Oil"]
[null,null,null,null,null,null,null,null,null,"SFSAS_20","USEPA","Total Phosphates in Water"]
[null,null,null,null,null,null,null,null,null,"SFSAS_21","USEPA","Soil Volume by Volumetric Method"]
[null,null,null,null,null,null,null,null,null,"SFSAS_22","USEPA","Soil Volume by Displacement Method"]
[null,null,null,null,null,null,null,null,null,"SFSAS_23","USEPA","Flow of Water Through Soil"]
[null,null,null,null,null,null,null,null,null,"SFSAS_24","USEPA","Permeability of Cohesionless Soil"]
[null,null,null,null,null,null,null,null,null,"SFSAS_25","USEPA","Permeability of Soil"]
[null,null,null,null,null,null,null,null,null,"SFSAS_26","USEPA","Permeability of Soil with Back Pressure"]
[null,null,null,null,null,null,null,null,null,"SFSAS_27","USEPA","Permeability of Soil with Consolidometer"]
[null,null,null,null,null,null,null,null,null,"SFSAS_28","USEPA","Permeability of Soil Using Constant-Head"]
[null,null,null,null,null,null,null,null,null,"SFSAS_29","USEPA","Organics in Biological Tissue"]
[null,null,null,null,null,null,null,null,null,"SFSAS_3","USEPA","Chlorinated Pesticides in Sediments"]
[null,null,null,null,null,null,null,null,null,"SFSAS_4","USEPA","Chlorinated Pesticides in Fish"]
[null,null,null,null,null,null,null,null,null,"SFSAS_5","USEPA","Purgeable Organics in Fish"]
[null,null,null,null,null,null,null,null,null,"SFSAS_6","USEPA","Organics in Fish"]
[null,null,null,null,null,null,null,null,null,"SFSAS_7","USEPA","Purgeable Organics in Sediment"]
[null,null,null,null,null,null,null,null,null,"SFSAS_8","USEPA","Cyanide in Sediment"]
[null,null,null,null,null,null,null,null,null,"SFSAS_9","USEPA","Cyanide in Fish"]
[null,null,null,null,null,null,null,null,null,"SR-01","USEPA","Radiostrontium in Food Ash and Solids"]
[null,null,null,null,null,null,null,null,null,"SR-01(A)","USDOE/EML","Strontium"]
[null,null,null,null,null,null,null,null,null,"SR-01(SCN)","USDOE/EML","Strontium-89"]
[null,null,null,null,null,null,null,null,null,"SR-02","USEPA","Radiostrontium in Milk"]
[null,null,null,null,null,null,null,null,null,"SR-03","USEPA","Strontium-90 in Urine"]
[null,null,null,null,null,null,null,null,null,"SR-04","USEPA","Radiostrontium in Aqueous Media"]
[null,null,null,null,null,null,null,null,null,"SYNGENTA AG-625","MNPCA","Atrazine in Drinking Water by Immunoassay (ELISA)",278]
[null,null,null,null,null,null,null,null,null,"TB_253","NCASI","Measurement of Water Color",1646]
[null,null,null,null,null,null,null,null,null,"TC-01","USDOE/EML","Technetium-99"]
[null,null,null,null,null,null,null,null,null,"TH-01","USEPA","Thorium-234 Tracer Solution"]
[null,null,null,null,null,null,null,null,null,"TN SEC-DER SPEC","MNPCA","Nitrate and Organic N Analyses with Second-Derivative Spectroscopy",2223]
[null,null,null,null,null,null,null,null,null,"TO-1","USEPA","Volatile Nonpolar Organics in Air"]
[null,null,null,null,null,null,null,null,null,"TO-10","USEPA","Organochlorine Pesticides in Air"]
[null,null,null,null,null,null,null,null,null,"TO-11","USEPA","Formaldehyde in Ambient Air"]
[null,null,null,null,null,null,null,null,null,"TO-12","USEPA","Non-Methane Organic in Ambient Air"]
[null,null,null,null,null,null,null,null,null,"TO-13","USEPA","Benzo(a)Pyrene and PAHs - Ambient Air"]
[null,null,null,null,null,null,null,null,null,"TO-14","USEPA","Volatile Organics in Air by GC"]
[null,null,null,null,null,null,null,null,null,"TO-14B","USEPA","Volatile Organics by Portable GC"]
[null,null,null,null,null,null,null,null,null,"TO-2","USEPA","Highly Volatile Nonpolar Organics"]
[null,null,null,null,null,null,null,null,null,"TO-3","USEPA","Volatile Nonpolar Organics in Air"]
[null,null,null,null,null,null,null,null,null,"TO-4","USEPA","O-C Pesticides and PCB - Ambient Air"]
[null,null,null,null,null,null,null,null,null,"TO-5","USEPA","Aldehydes and Ketones in Air"]
[null,null,null,null,null,null,null,null,null,"TO-6","USEPA","Phosgene Determination in Air"]
[null,null,null,null,null,null,null,null,null,"TO-7","USEPA","N-Nitrosodimethylamine in Air"]
[null,null,null,null,null,null,null,null,null,"TO-8","USEPA","Cresols and Phenols in Air by HPLC"]
[null,null,null,null,null,null,null,null,null,"TO-9","USEPA","Dioxin in Air by HRGC/HRMS"]
[null,null,null,null,null,null,null,null,null,"TO15","USEPA","Determination Of Volatile Organic Compounds In Air, Specially-PreparedCanisters(GC/MS)"]
[null,null,null,null,null,null,null,null,null,"TRITIUM","MNPCA","Tritium analysis by unspecified method",323]
[null,null,null,null,null,null,null,null,null,"U-01","USEPA","Uranium-232 Tracer Solution"]
[null,null,null,null,null,null,null,null,null,"U-01(ASP)","USDOE/EML","Uranium in Urine"]
[null,null,null,null,null,null,null,null,null,"U-01(F)","USDOE/EML","Uranium in Urine"]
[null,null,null,null,null,null,null,null,null,"U-02","USDOE/EML","Isotopic Uranium"]
[null,null,null,null,null,null,null,null,null,"U-03","USDOE/EML","Isotopic Uranium"]
[null,null,null,null,null,null,null,null,null,"U-04","USDOE/EML","Uranium"]
[null,null,null,null,null,null,null,null,null,"UNKNOWN","MNPCA","Analytical procedure not specified",17695]
[null,null,null,null,null,null,null,null,null,"USDOE/EML_AM-01","USDOE/EML","Americium in Soil"]
[null,null,null,null,null,null,null,null,null,"USDOE/EML_I-01","USDOE/EML","Iodine-131 in Milk"]
[null,null,null,null,null,null,null,null,null,"USDOE/EML_RA-01","USDOE/EML","Radium-226 in Bone Ash"]
[null,null,null,null,null,null,null,null,null,"USDOE/EML_RA-02","USDOE/EML","Radium-226 - Chromate Method"]
[null,null,null,null,null,null,null,null,null,"USDOE/EML_RA-03","USDOE/EML","Radium-226 - Emanation Procedure"]
[null,null,null,null,null,null,null,null,null,"USDOE/EML_RA-04","USDOE/EML","Radium-226"]
[null,null,null,null,null,null,null,null,null,"USDOE/EML_RA-05","USDOE/EML","Radium-226"]
[null,null,null,null,null,null,null,null,null,"USDOE/EML_SR-02","USDOE/EML","Strontium-90"]
[null,null,null,null,null,null,null,null,null,"USDOE/EML_TH-01","USDOE/EML","Thorium in Urine"]
[null,null,null,null,null,null,null,null,null,"USEPA 415.3_440","MNPCA","Determination of UV Absorbance at 440 nm in Water",42]
[null,null,null,null,null,null,null,null,null,"USEPA 8270 MOD","MNPCA","USEPA 8270 Modified, Pesticides in Water by GC/MS",1458]
[null,null,null,null,null,null,null,null,null,"USEPA IO-3.5","MNPCA","Metals in Ambient Particulate Matter Using ICP-MS"]
[null,null,null,null,null,null,null,null,null,"USFDA_231.1","USFDA","Organophosphorous Residue for Fatty Food"]
[null,null,null,null,null,null,null,null,null,"USGS 2434","MNPCA","Hormones in Water by GS/MS/MS (Experimental Schedule)"]
[null,null,null,null,null,null,null,null,null,"USGS LCAB","MNPCA","Antibiotics in Water by LC/MS"]
[null,null,null,null,null,null,null,null,null,"USGS OFR 00-182","MNPCA","Chloroacetanilide Herbicide Metabolites in Water Using Liquid Chromatography-Diode Array Detection & LC/MS"]
[null,null,null,null,null,null,null,null,null,"UT_3He","MNPCA","Helium-3 (Univ of Utah)"]
[null,null,null,null,null,null,null,null,null,"UT_4He","MNPCA","Helium-4 (Univ of Utah)"]
[null,null,null,null,null,null,null,null,null,"UT_Ar","MNPCA","Argon (Univ of Utah)"]
[null,null,null,null,null,null,null,null,null,"UT_He","MNPCA","Helium (Univ of Utah)"]
[null,null,null,null,null,null,null,null,null,"UT_Kr","MNPCA","Krypton (Univ of Utah)"]
[null,null,null,null,null,null,null,null,null,"UT_Ne","MNPCA","Neon (Univ of Utah)"]
[null,null,null,null,null,null,null,null,null,"UT_Tritium","MNPCA","Tritium by Helium Ingrowth Method (Univ of Utah)"]
[null,null,null,null,null,null,null,null,null,"UT_Xe","MNPCA","Xenon (Univ of Utah)"]
[null,null,null,null,null,null,null,null,null,"VA-001-1","USEPA","VOCs in Air by GC of Sorbent Tubes"]
[null,null,null,null,null,null,null,null,null,"VA-002-1","USEPA","Halogenated VOCs in Air by GC/ELCD"]
[null,null,null,null,null,null,null,null,null,"VA-003-1","USEPA","VOCs in Air by Portable GC/PID"]
[null,null,null,null,null,null,null,null,null,"VA-004-1","USEPA","Halogenated VOCs in Air by Direct GC/EC"]
[null,null,null,null,null,null,null,null,null,"VA-005-1","USEPA","VOCs in Air by Purge and Trap GC"]
[null,null,null,null,null,null,null,null,null,"VA-006-1","USEPA","VOCs in Ambient Air by Portable GC/PID"]
[null,null,null,null,null,null,null,null,null,"VA-007-1","USEPA","VOCs in Ambient Air by Direct GC/PID"]
[null,null,null,null,null,null,null,null,null,"VA-008-1","USEPA","VOCs in Air by Automated Portable GC"]
[null,null,null,null,null,null,null,null,null,"VG-001-1","USEPA","VOCs in Soil Gas by Adsorbent Tube"]
[null,null,null,null,null,null,null,null,null,"VG-002-1","USEPA","Halogenated VOCs in Soil Gas by GC/ELCD"]
[null,null,null,null,null,null,null,null,null,"VG-003-1","USEPA","Halogenated VOCs in Soil Gas by GC/EC"]
[null,null,null,null,null,null,null,null,null,"VG-004-1","USEPA","Halogenated VOCs in Soil Gas by GC/ECD"]
[null,null,null,null,null,null,null,null,null,"VG-005-1","USEPA","Halogenated VOCs in Soil Gas by GC/PID"]
[null,null,null,null,null,null,null,null,null,"VG-006-1","USEPA","VOCs in Soil Gas by Purge and Trap GC"]
[null,null,null,null,null,null,null,null,null,"VG-007-1","USEPA","VOCs in Air by Thermal Desorption GC"]
[null,null,null,null,null,null,null,null,null,"VG-008-1","USEPA","VOCs in Soil Gas by GC of Sorbent Tubes"]
[null,null,null,null,null,null,null,null,null,"VG-009-1","USEPA","VOCs in Soil Gas by Direct GC/PID"]
[null,null,null,null,null,null,null,null,null,"VG-010-1(ECD)","USEPA","VOCs in Soil Gas by Portable GC"]
[null,null,null,null,null,null,null,null,null,"VG-010-1(PID)","USEPA","VOCs in Soil Gas by Portable GC"]
[null,null,null,null,null,null,null,null,null,"VG-011-1","USEPA","VOCs in Gas by Purge and Trap GC/ELCD/PID"]
[null,null,null,null,null,null,null,null,null,"VOC","MNPCA","VOC analysis by unspecified method",580]
[null,null,null,null,null,null,null,null,null,"VS-001-1","USEPA","VOCs in Soil by Purge and Trap GC"]
[null,null,null,null,null,null,null,null,null,"VS-002-1","USEPA","VOCs in Soil by Automated Headspace GC"]
[null,null,null,null,null,null,null,null,null,"VS-003-1","USEPA","VOCs in Soil by GC/ECD of Extract"]
[null,null,null,null,null,null,null,null,null,"VS-004-1","USEPA","VOCs in Soil by GC/FID of CS2 Extracts"]
[null,null,null,null,null,null,null,null,null,"VS-005-1","USEPA","VOCs in Soil by Headspace GC/PID"]
[null,null,null,null,null,null,null,null,null,"VS-006-1","USEPA","VOCs in Water/Soil by Purge and Trap GC"]
[null,null,null,null,null,null,null,null,null,"VW-001-1","USEPA","VOCs in Water by Purge and Trap GC"]
[null,null,null,null,null,null,null,null,null,"VW-002-1","USEPA","VOCs in Water by Automated Headspace GC"]
[null,null,null,null,null,null,null,null,null,"VW-003-1","USEPA","VOCs in Water by Automated Headspace GC"]
[null,null,null,null,null,null,null,null,null,"VW-004-1","USEPA","VOCs in Water by Manual Headspace GC"]
[null,null,null,null,null,null,null,null,null,"VW-005-1","USEPA","VOCs in Water by GC/ECD of Extracts"]
[null,null,null,null,null,null,null,null,null,"VW-006-1","USEPA","VOCs in Water by GC/FID of CS2 Extracts"]
[null,null,null,null,null,null,null,null,null,"VW-007-1","USEPA","VOCs in Water by Headspace GC/PID"]
[null,null,null,null,null,null,null,null,null,"VW-008-1","USEPA","VOCs in Water by Purge and Trap GC"]
[null,null,null,null,null,null,null,null,null,"VW-010-1(S)","USEPA","VOCs in Water/Soil by Headspace GC/PID"]
[null,null,null,null,null,null,null,null,null,"VW-010-1(W)","USEPA","VOCs in Water/Soil by Headspace GC/PID"]
[null,null,null,null,null,null,null,null,null,"VW-011-1","USEPA","VOCs in Water/Soil by Purge and Trap GC"]
[null,null,null,null,null,null,null,null,null,"VW-012-1","USEPA","VOCs in Water/Soil by Purge and Trap GC"]
[null,null,null,null,null,null,null,null,null,"VW-013-1","USEPA","VOCs in Water/Soil by Headspace GC/FID"]
[null,null,null,null,null,null,null,null,null,"VW-014-1","USEPA","VOCs in Water by Purge and Trap GC"]
[null,null,null,null,null,null,null,null,null,"WI DNR DRO","MNPCA","Diesel Range Organics in Water by GC/FID",227]
[null,null,null,null,null,null,null,null,null,"WI DNR GRO","MNPCA","Gasoline Range Organics in Water by GC/FID",347]
[null,null,null,null,null,null,null,null,null,"XENO","USEPA","Xenobiotic Contaminants in Fish"]
[null,null,null,null,null,null,null,null,null,"X_89_176(N)","USEPA","Chlorinated Herbicides by LC/MS"]
[null,null,null,null,null,null,null,null,null,"X_89_176(P)","USEPA","Chlorinated Herbicides by LC/MS"]
[null,null,null,null,null,null,null,null,null,"4500-CL(E)","APHA","Residual Chlorine in Water by Titration- Low-Level Amperometric M",2878]